Workbook

Sheet App.2-X_CoS_Flowchart
F1: File Number: | G1: ='LDC Info'!$E$18 -> EB-2013-0139
F2: Exhibit:
F3: Tab:
F4: Schedule:
F5: Page:
F7: Date:
B13: Appendix 2-X
B14: Cost of Service Rate Application Schematic
B16: The Cost of Service Rate Application Schematic is a flowchart appended to Chapter 2 of the Filing Requirements as a guide for the components of an application and how demand and costs interrelate to derive the revenue requirement and then how the revenue requirement is allocated between classes and through fixed/variable splits to derive rates that will be compensatory for the annual revenue requirement, based on the the forecasted demand. There is no form to be filled out; therefore, this Schedule is not required to be filed.

Sheet LDC Info
D14: Utility Name | E14: Hydro Hawkesbury Inc.
D16: Service Territory
D18: Assigned EB Number | E18: EB-2013-0139
D20: Name of Contact and Title | E20: Michel Poulin
D22: Phone Number | E22: 613-632-6689
D24: Email Address | E24: MichelPoulin@HydroHawkesbury.ca
D26: Bridge Year | E26: 2013
D28: Test Year | E28: 2014
D30: Last Rebasing Year | E30: 2010
B32: Notes
C34: Pale green cells represent input cells.
C36: Pale blue cells represent drop-down lists. The applicant should select the appropriate item from the drop-down list.
C38: White cells contain fixed values, automatically generated values or formulae.

Sheet CustomerClass
F1: File Number: | G1: ='LDC Info'!$E$18 -> EB-2013-0139
F2: Exhibit:
F3: Tab:
F4: Schedule:
F5: Page:
F7: Date:
A9: TESI-1
A10: Customer Class
A13: Customer Class Name | B13: Existing | C13: Proposed | D13: Status | E13: MSC Metric | F13: Usage Metric | G13: USA #
A14: Residential | B14: YES | C14: YES | D14: Continued | E14: Customer | F14: kWh
A15: General Service < 50 kW | B15: YES | C15: YES | D15: Continued | E15: Customer | F15: kWh
A16: General Service > 50 to 4999 kW | B16: YES | C16: YES | D16: Continued | E16: Customer | F16: kW
A17: Unmetered Scattered Load | B17: YES | C17: YES | D17: Continued | E17: Customer | F17: kWh
A18: Sentinel Lighting | B18: YES | C18: YES | D18: Continued | E18: Connection | F18: kW
A19: Street Lighting | B19: YES | C19: YES | D19: Continued | E19: Connection | F19: kW
A20: MicroFit | B20: YES | C20: YES | D20: Continued | E20: Customer | F20: Monthly

Sheet CurrentTariff
C1: File Number: | D1: ='LDC Info'!$E$18 -> EB-2013-0139
C2: Exhibit: | D2: 8
C3: Tab: | D3: 1
C4: Schedule: | D4: 2
C5: Page:
C7: Date:
A9: TESI-2
A10: Current Tariff Sheet
A12: Loss Factor
A14: Total Loss Factor – Secondary Metered Customer < 5,000 kW | B14: 1.0446
A15: Total Loss Factor – Secondary Metered Customer > 5,000 kW
A16: Total Loss Factor – Primary Metered Customer < 5,000 kW | B16: 1.0342
A17: Total Loss Factor – Primary Metered Customer > 5,000 KW
A19: =CustomerClass!A14 -> Residential | B19: Effective Until mm/dd/yy | C19: rate | D19: Connection Type
A21: Service Charge | C21: 5.99 | D21: $
A22: Distribution Volumetric Rate | C22: 0.0081 | D22: kWh
A23: Rate Rider for Disposition of Residual Historical Smart Meter Costs - effective until April 30, 2014 | C23: -1.35 | D23: kWh
A24: Rate Rider for Recovery of Smart Meter Incremental Revenue Requirement - in effective until the effective date of the next cost of service-based rate order | C24: 1.39 | D24: kWh
A25: Rate Rider for Smart Metering Entity Charge - effective until October 31, 2018 | C25: 0.79 | D25: kWh
A26: Low Voltage Service Rate | C26: 0.0004 | D26: kWh
A27: Rate Rider for Recovery of Incremental Capital Costs | C27: 0.0024 | D27: kWh
A28: Rate Rider for Disposition of Deferral/Variance Account (2013) - effective until April 30, 2014 | C28: 0.0011 | D28: kWh
A29: Rate Rider for Disposition of Global Adjustment Sub-Account (2013) - effective until April 30, 2014 Applicable only for Non-RPP Customers | C29: 0.006 | D29: kWh
A34: Retail Transmission Rate – Network Service Rate | C34: 0.0069 | D34: kWh
A35: Retail Transmission Rate – Line and Transformation Connection Service Rate | C35: 0.0031 | D35: kWh
A36: Wholesale Market Service Rate | C36: 0.0044 | D36: kWh
A37: Rural Rate Protection Charge | C37: 0.0012 | D37: kWh
A38: Standard Supply Service – Administrative Charge (if applicable) | C38: 0.25 | D38: $
A40: =CustomerClass!A15 -> General Service < 50 kW | B40: Effective Until mm/dd/yy | C40: rate | D40: Connection Type
A42: Service Charge | C42: 13.84 | D42: $
A43: Distribution Volumetric Rate | C43: 0.0055 | D43: kWh
A44: Rate Rider for Disposition of Residual Historical Smart Meter Costs - effective until April 30, 2014 | C44: -0.09 | D44: kWh
A45: Rate Rider for Recovery of Smart Meter Incremental Revenue Requirement - in effective until the effective date of the next cost of service-based rate order | C45: 2.46 | D45: kWh
A46: Rate Rider for Smart Metering Entity Charge - effective until October 31, 2018 | C46: 0.79 | D46: kWh
A47: Low Voltage Service Rate | C47: 0.0004 | D47: kWh
A48: Rate Rider for Recovery of Incremental Capital Costs | C48: 0.0017 | D48: kWh
A49: Rate Rider for Disposition of Deferral/Variance Account (2013) - effective until April 30, 2014 | C49: 0.0011 | D49: kWh
A50: Rate Rider for Disposition of Global Adjustment Sub-Account (2013) - effective until April 30, 2014 Applicable only for Non-RPP Customers | C50: 0.006 | D50: kWh
A55: Retail Transmission Rate – Network Service Rate | C55: 0.0063 | D55: kWh
A56: Retail Transmission Rate – Line and Transformation Connection Service Rate | C56: 0.0027 | D56: kWh
A57: Wholesale Market Service Rate | C57: 0.0044 | D57: kWh
A58: Rural Rate Protection Charge | C58: 0.0012 | D58: kWh
A59: Standard Supply Service – Administrative Charge (if applicable) | C59: 0.25 | D59: $
A61: =CustomerClass!A16 -> General Service > 50 to 4999 kW | B61: Effective Until mm/dd/yy | C61: rate | D61: Connection Type
A63: Service Charge | C63: 97.35 | D63: $
A64: Distribution Volumetric Rate | C64: 1.5558 | D64: kW
A65: Low Voltage Service Rate | C65: 0.1369 | D65: kW
A66: Rate Rider for Recovery of Incremental Capital Costs | C66: 0.327 | D66: kW
A67: Rate Rider for Disposition of Deferral/Variance Account (2013) - effective until April 30, 2014 | C67: 0.4219 | D67: kW
A68: Rate Rider for Disposition of Global Adjustment Sub-Account (2013) - effective until April 30, 2014 Applicable only for Non-RPP Customers | C68: 2.3612 | D68: kW
D69: kW
A76: Retail Transmission Rate – Network Service Rate | C76: 2.5533 | D76: kW
A77: Retail Transmission Rate – Line and Transformation Connection Service Rate | C77: 1.1197 | D77: kW
A78: Wholesale Market Service Rate | C78: 0.0044 | D78: kWh
A79: Rural Rate Protection Charge | C79: 0.0012 | D79: kWh
A80: Standard Supply Service – Administrative Charge (if applicable) | C80: 0.25 | D80: $
A82: =CustomerClass!A17 -> Unmetered Scattered Load | B82: Effective Until mm/dd/yy | C82: rate | D82: Connection Type
A84: Service Charge | C84: 6.39 | D84: $
A85: Distribution Volumetric Rate | C85: 0.0021 | D85: kWh
A86: Low Voltage Service Rate | C86: 0.0004 | D86: kWh
A87: Rate Rider for Recovery of Incremental Capital Costs | C87: 0.0006 | D87: kWh
A88: Rate Rider for Disposition of Deferral/Variance Account (2013) - effective until April 30, 2014 | C88: 0.0011 | D88: kWh
A89: Rate Rider for Disposition of Global Adjustment Sub-Account (2013) - effective until April 30, 2014 Applicable only for Non-RPP Customers | C89: 0.006 | D89: kWh
A97: Retail Transmission Rate – Network Service Rate | C97: 0.0063 | D97: kWh
A98: Retail Transmission Rate – Line and Transformation Connection Service Rate | C98: 0.0027 | D98: kWh
A99: Wholesale Market Service Rate | C99: 0.0044 | D99: kWh
A100: Rural Rate Protection Charge | C100: 0.0012 | D100: kWh
A101: Standard Supply Service – Administrative Charge (if applicable) | C101: 0.25 | D101: $
A103: =CustomerClass!A18 -> Sentinel Lighting | B103: Effective Until mm/dd/yy | C103: rate | D103: Connection Type
A105: Service Charge | C105: 1.63 | D105: $
A106: Distribution Volumetric Rate | C106: 3.2285 | D106: kW
A107: Low Voltage Service Rate | C107: 0.2162 | D107: kW
A108: Rate Rider for Recovery of Incremental Capital Costs | C108: 0.7496 | D108: kW
A118: Retail Transmission Rate – Network Service Rate | C118: 1.9264 | D118: kW
A119: Retail Transmission Rate – Line and Transformation Connection Service Rate | C119: 1.7674 | D119: kW
A120: Wholesale Market Service Rate | C120: 0.0044 | D120: kWh
A121: Rural Rate Protection Charge | C121: 0.0012 | D121: kWh
A122: Standard Supply Service – Administrative Charge (if applicable) | C122: 0.25 | D122: $
A124: =CustomerClass!A19 -> Street Lighting | B124: Effective Until mm/dd/yy | C124: rate | D124: Connection Type
A126: Service Charge | C126: 0.62 | D126: $
A127: Distribution Volumetric Rate | C127: 6.7744 | D127: kW
A128: Low Voltage Service Rate | C128: 0.1059 | D128: kW
A129: Rate Rider for Recovery of Incremental Capital Costs | C129: 1.5987 | D129: kW
A130: Rate Rider for Disposition of Deferral/Variance Account (2013) - effective until April 30, 2014 | C130: 0.3889 | D130: kW
A131: Rate Rider for Disposition of Global Adjustment Sub-Account (2013) - effective until April 30, 2014 Applicable only for Non-RPP Customers | C131: 2.1767 | D131: kW
A139: Retail Transmission Rate – Network Service Rate | C139: 1.9258 | D139: kW
A140: Retail Transmission Rate – Line and Transformation Connection Service Rate | C140: 0.8656 | D140: kW
A141: Wholesale Market Service Rate | C141: 0.0044 | D141: kWh
A142: Rural Rate Protection Charge | C142: 0.0012 | D142: kWh
A143: Standard Supply Service – Administrative Charge (if applicable) | C143: 0.25 | D143: $

Sheet App.2-A_Capital Projects
G1: File Number: | H1: EB-2012-0000
G2: Exhibit: | H2: 2
G3: Tab: | H3: 2
G4: Schedule: | H4: 2
G5: Page:
G7: Date:
A13: projects | B13: 2008 | C13: 2009 | D13: 2010 | E13: 2011 | F13: 2012 | G13: 2013 Bridge Year | H13: 2014 Test Year
A14: reporting basis
A15: (1815) 1 reclosers (new) ms#1 | B15: 20663.96
A16: (1815) major transformer ( gasing transformer 55t2) maintenance (degas) | C16: 47728.62
A17: (1815) add 1 recloser betterment to 55t1 and 55t2 tap changers externally add inhibitor | D17: 52494.8
A18: (1815) replacement of arcing contact on both tap changers | E18: 55500
A19: (1815) meetering and assure all ct's are not affected by operations. dismanttle meetering and assure all ct's are not affected by operations. internal tap changer repairs following recongnision that 55t1 is faulty. change all auxiliary contacts 55t1 and 55t2 | F19: 24890
A20: (1815) revamp 110 kv station as per oeb approval eb-2011-0173 & regular expenditures on 55t1 and 55t2 | G20: 1547900
A21: regular expenditures on the new 55t1 and 55t2 and 55t3 ( on pot) | H21: 25000
A22: sub-total | B22: =SUM(B15:B19) -> 20663.96 | C22: =SUM(C15:C19) -> 47728.62 | D22: 52494.8 | E22: 55500 | F22: =SUM(F15:F19) -> 24890 | G22: =SUM(G15:G21) -> 1547900 | H22: =SUM(H15:H21) -> 25000
A24: (1820) new recloser 44kv sub | C24: 23424.54
A25: (1820) add inhibitor to 10mva transformer | D25: 9059.01
A26: (1820) 2 new recloser 44kv sub ( replacement complete), plus 44kv transformer maintenance and inspection, by-pass tap changer. high gas. change rotten x-arms on incoming and outgoind structures at 44 kv sub new fence | E26: 66690.82
A27: (1820) stone at sub for lineman safety | F27: 4632.27
A28: (1820) Expenditures of SUB 44KV recorded upon completion and annual maintenance on SUB 44KV structure. | G28: 800000
A29: (1820) Expenditures to obtain a report on the anomalies that caused the high combustible gases of transformer 43t1 of SUB 44KV. Obtain a re-vamp solution and quote and if feasible, repair the transformer in order to reach HHI's goal to have proper transformation capacity and mainly redundancy. | H29: 60000
A30: sub-total | B30: =SUM(B24:B29) -> 0 | C30: =SUM(C24:C29) -> 23424.54 | D30: 9059.01 | E30: 66690.82 | F30: 4632.27 | G30: 800000 | H30: 60000
A32: (1830) riser pole new subdivision | B32: 1064.56
A33: (1830) pole replacement & riser pole new subdivision | C33: 24399.13
A34: (1830) pole replacement, x-arms and hardware several location following annual inspections | D34: 28410.75
A35: (1830) pole replacement, x-arms and hardware several location following annual inspections | E35: 27658.52
A36: (1830) pole replacement, x-arms and hardware several location following annual inspections plus line extention on west st. for new customer on hwy 17, plus 44kv feeder between 44kv station and spence st. | F36: 80902.08
A37: (1830) replace poles, fixtures as per asset management plan | G37: 99000
A38: (1830) replace poles, fixtures as per asset management plan | H38: 89000
A43: sub-total | B43: =SUM(B32:B42) -> 1064.56 | C43: =SUM(C32:C42) -> 24399.13 | D43: 28410.75 | E43: 27658.52 | F43: =SUM(F32:F42) -> 80902.08 | G43: 99000 | H43: 89000
A45: (1835) oh conductor (remove copper conductor) | B45: 7361.03
A46: (1835) oh conductor betterment increase size primary and neutral | C46: 5117.57
A47: (1835) oh conductor betterment increase size primary feeder 43f2 to 336 mcm | D47: 34806.04
A48: (1835) oh conductor (cooper) and new in-line switch | E48: 3636.3
A49: (1835) oh conductor line extention west st. and 44kv feeder betterment | F49: 69887.63
A50: (1835) replace 3/0 o.h. primary on circuit 43f2 with 336 mcm tulip continuity of work performed in 2011 and 2012 | G50: 25000
A51: (1835) replace 3/0 o.h. primary on circuit 55f1. part of main st. pole # 304 to # 332 with 336 mcm tulip | H51: 20000
A52: sub-total | B52: =SUM(B45:B51) -> 7361.03 | C52: =SUM(C45:C51) -> 5117.57 | D52: 34806.04 | E52: 3636.3 | F52: 69887.63 | G52: 25000 | H52: 20000
A54: underground
A55: (1840) conduit (loop system) & (1845) conductor ( subdivision) | B55: =219.86+26378.06 -> 26597.92
A56: (1840) conduit & (1845) ug conductor subdivision | C56: =73.71+10448.85 -> 10522.56
A57: (1840) conduit & (1845) ug conductor subdivision east end town & nelson | D57: =147.42+47660.1 -> 47807.52
A58: (1840) conduit & (1845) ug conductor ( single service, no subdivision in 2011) | E58: 585.31
A59: (1840) conduit & (1845) ug conductor ( single service, no subdivision in 2011)
A60: (1840) conduit & (1845) ug conductor ( loop at paul cres.) | F60: 4935.66
A61: (1840) & ( 1845)subdivision plan submitted for approval in january 2012 section on ruppert and jacinthe st | G61: 17500
A62: (1840) & (1845) subdivision and u.g facilities section on ruppert and jacinthe st. | H62: 18000
A65: sub-total | B65: =SUM(B55:B58) -> 26597.92 | C65: =SUM(C55:C58) -> 10522.56 | D65: 47807.52 | E65: 585.31 | F65: =SUM(F55:F64) -> 4935.66 | G65: =SUM(G55:G64) -> 17500 | H65: 18000
A67: (1850) line transformers for subdivision and oh services | B67: 21908.16
A68: (1850) line transformers for subdivision and oh services also re-distribute inventory transformers nto 1850 as per oeb | C68: 62799.66
A69: (1850) line transformers for subdivision ( east end and nelson) and oh services | D69: 24321.22
A70: (1850) line transformers 167 kva & equipment | E70: 6024.65
A71: (1850) line transformers refurbish padmount plus hardware betterment on several oh transformers ( cut-outs and lightning arresters | F71: 5619.7
A72: (1850) transformers for the proposed subdivision | G72: 28000
A73: (1850) transformers for the proposed subdivision and ldc needs | H73: 12500
A74: sub-total | B74: =SUM(B67:B73) -> 21908.16 | C74: =SUM(C67:C73) -> 62799.66 | D74: 24321.22 | E74: 6024.65 | F74: 5619.7 | G74: 28000 | H74: 12500
A76: (1855) new services | B76: 1600.35
A77: (1855) new services | C77: 2248.11
A78: (1855) new services | D78: 3574.22
A79: (1855) new services | E79: 3350.22
A80: (1855) new services | F80: 2234.12
A81: (1855) new services | G81: 3000
A82: (1855) new services | H82: 3100
A86: sub-total | B86: =SUM(B76:B85) -> 1600.35 | C86: =SUM(C76:C85) -> 2248.11 | D86: 3574.22 | E86: 3350.22 | F86: 2234.12 | G86: 3000 | H86: 3100
A88: (1860) meters ( conventional & intervals meters) | B88: 1936.44
A89: (1860) meters ( conventional & intervals meters) | C89: 22090.5
A90: (1860) meters ( metering sub 110kv) | E90: 7796.64
A91: (1860 & 1860.01) redistribute capital expenses as per oeb guidelines | F91: 619033.11
A92: (1860-01) smart meters | G92: 3500
A93: (1860-01) smart meters | H93: 3500
A97: sub-total | B97: =SUM(B87:B96) -> 1936.44 | C97: 22090.5 | D97: 0 | E97: 7796.64 | F97: 619033.11 | G97: 3500 | H97: 3500
A99: (1908) building and fixtures | B99: 0
A100: (1908) building and fixtures | C100: 0
A101: (1908) building and fixtures | D101: 0
A102: (1908) building and fixtures | E102: 0
A103: (1908) building and fixtures | F103: 0
A104: (1908) building and fixtures building 21 years old eater infiltration into curtain wall. corrections required & replace carpets in common area and 2 offices & roof inspection report by garlan canada. remove existing caulking, termination bars and detoriated butyl tape na dreplace same. also re-seals the seams with new butyl tape and urethane caulking | G104: 37500
A105: replace last 3 furnaces ( 3 out of 5) | H105: 12500
A106: sub-total | B106: =SUM(B99:B105) -> 0 | C106: =SUM(C99:C105) -> 0 | D106: 0 | E106: 0 | F106: 0 | G106: 37500 | H106: 12500
A108: (1915) office furniture plus 1 fireproof safe ass. manager's office | B108: 7084.26
A109: (1915) office chairs + fireproof safe+ 2 printers furniture plus 1 fireproof safe ass. manager's office | C109: 5016.54
A110: (1915) telephone head set (csr) and projector | D110: 2126.2
A111: (1915) new fridge employees kitchen | E111: 1130.23
A112: (1915) regular office equipement and commercial shredder | G112: 5700
A113: (1915) regular office equipement | H113: 3500
A118: sub-total | B118: =SUM(B108:B117) -> 7084.26 | C118: =SUM(C108:C117) -> 5016.54 | D118: 2126.2 | E118: 1130.23 | F118: 0 | G118: 5700 | H118: 3500
A120: (1920) computer -harware 2 desktop computers ( management) | B120: 2222.69
A121: (1920) computer -harware 3 desktop computers (csr) | C121: 3813.59
A122: (1920) computer -harware | D122: 3691.2
A123: (1920) computer -computer screens +apc smart ( computer protection) and watchgard | E123: 2103.38
A124: (1920) computer - laptop, tablets + firewall hardware | F124: 2656.32
A125: (1920) regular computer equipment and hardware | G125: 3000
A126: (1920) regular computer equipment and hardware | H126: 3100
A130: sub-total | B130: =SUM(B119:B129) -> 2222.69 | C130: 3813.59 | D130: 3691.2 | E130: 2103.38 | F130: 2656.32 | G130: 3000 | H130: 3100
A132: (1611 formelly 1925) ets. new cis system & destop software | B132: 63308.11
A133: (1611 formelly 1925) destop software | C133: 753.73
A134: (1611 formelly 1925) software licensing & i.t. for accpac solutions. windows 7 and ms office software and licenses | D134: 14357.63
A135: (1611 formelly 1925) ets ecare module and e-billing, plus hansen software to collect phone calls for oeb reporting | E135: 8639.34
A136: (1611 formelly 1925) accpac upgrades and licensing, plus sm capital cost transfer following oeb guidelines | F136: 44231.5
A137: (1611 formelly 1925) yearly upgrades and licensing requirements accpac, hansen (call log software ) & web presentment & asset management software to support oeb requirement on asset management plan | G137: 28000
A138: (1611() yearly upgrades and licensing requirements accpac, hansen ( call log software ) | H138: 17000
A142: sub-total | B142: =SUM(B132:B141) -> 63308.11 | C142: =SUM(C132:C141) -> 753.73 | D142: 14357.63 | E142: 8639.34 | F142: 44231.5 | G142: 28000 | H142: 17000
A144: (1930) transportation equipment new pickup | B144: 20449.8
A150: sub-total | B150: =SUM(B144:B149) -> 20449.8 | C150: =SUM(C144:C149) -> 0 | D150: 0 | E150: 0 | F150: 0 | G150: 0 | H150: 0
A152: (1940) tools, shop equipment | B152: 708.84
A153: (1940) tools, shop equipment | C153: 1311.34
A154: (1940) tools, shop equipment crimping tools , road signs & rubber blankets etc | D154: 6006.67
A155: (1940) tools, shop equipment plus ug temporary cable & adapters | E155: 5063.27
A156: (1940) tools, shop equipment | F156: 2967
A157: (1940) misc tools for line crew | G157: 3000
A158: (1940) misc tools for line crew | H158: 3100
A159: sub-total | B159: =SUM(B152:B158) -> 708.84 | C159: =SUM(C152:C158) -> 1311.34 | D159: 6006.67 | E159: 5063.27 | F159: 2967 | G159: 3000 | H159: 3100
A161: (1950) powered tool | G161: 2000
A162: (1950) powered tool | H162: 2000
B163: =SUM(B161:B162) -> 0 | C163: =SUM(C161:C162) -> 0 | D163: 0 | E163: 0 | F163: 0 | G163: 2000 | H163: 2000
B165: =SUM(B22,B30,B43,B52,B65,B74,B86,B97,B106,B118,B130,B142,B150,B159,B163) -> 174906.12 | C165: =SUM(C22,C30,C43,C52,C65,C74,C86,C97,C106,C118,C130,C142,C150,C159,C163) -> 209225.89 | D165: 226655.26 | E165: 188178.68 | F165: 861989.39 | G165: 2603100 | H165: 272300

Sheet App 2-B FixAsset2010-CGAAP
M1: File Number: | N1: ='LDC Info'!$E$18 -> EB-2013-0139
M2: Exhibit: | N2: 2
M3: Tab: | N3: 1
M4: Schedule: | N4: 5
M5: Page: | N5: 1
M7: Date:
A9: Appendix 2-B
A10: Fixed Asset Continuity Schedule
F12: Year | G12: 2010
E14: Cost | K14: Accumulated Depreciation
A15: CCA Class | B15: OEB | C15: Description | D15: Depreciation Rate | E15: Opening Balance | F15: Additions | G15: Disposals | H15: Closing Balance | J15: Opening Balance | K15: Additions | L15: Disposals | M15: Closing Balance | N15: Net Book Value
A16: 12 | B16: 1611 | C16: Computer Software (Formally known as Account 1925) | E16: 113795.64 | F16: 14357.63 | H16: =E16+F16+G16 -> 128153.27 | J16: -50288.64 | K16: -23123.63 | M16: =J16+K16+L16 -> -73412.27 | N16: =H16+M16 -> 54741
A17: CEC | B17: 1612 | C17: Land Rights (Formally known as Account 1906) | E17: 8588 | F17: 0 | H17: =E17+F17+G17 -> 8588 | J17: -2608 | K17: 0 | M17: =J17+K17+L17 -> -2608 | N17: =H17+M17 -> 5980
A18: N/A | B18: 1805 | C18: Land | E18: 10000 | H18: =E18+F18+G18 -> 10000 | J18: 0 | K18: 0 | M18: =J18+K18+L18 -> 0 | N18: =H18+M18 -> 10000
A19: 47 | B19: 1808 | C19: Buildings | H19: =E19+F19+G19 -> 0 | M19: =J19+K19+L19 -> 0 | N19: =H19+M19 -> 0
A20: 13 | B20: 1810 | C20: Leasehold Improvements | H20: 0 | M20: 0 | N20: 0
A21: 47 | B21: 1815 | C21: Transformer Station Equipment >50 kV | E21: 349916.94 | F21: 52494.8 | H21: 402411.74 | J21: -68847.94 | K21: -8884.8 | M21: -77732.74 | N21: 324679
A22: 47 | B22: 1820 | C22: Distribution Station Equipment <50 kV | E22: 175800.99 | F22: 9059.01 | H22: 184860 | J22: -88860.99 | K22: -10597.01 | M22: -99458 | N22: 85402
A23: 47 | B23: 1825 | C23: Storage Battery Equipment | H23: 0 | M23: 0 | N23: 0
A24: 47 | B24: 1830 | C24: Poles, Towers & Fixtures | E24: 322655.88 | F24: 28410.75 | H24: 351066.63 | J24: -171008.88 | K24: -18315.75 | M24: -189324.63 | N24: 161742
A25: 47 | B25: 1835 | C25: Overhead Conductors & Devices | E25: 367500.19 | F25: 34806.04 | H25: 402306.23 | J25: -198824.19 | K25: -22294.04 | M25: -221118.23 | N25: 181188
A26: 47 | B26: 1840 | C26: Underground Conduit | E26: 113707.7 | F26: 147.42 | H26: 113855.12 | J26: -54220.7 | K26: -5937.42 | M26: -60158.12 | N26: 53697
A27: 47 | B27: 1845 | C27: Underground Conductors & Devices | E27: 212731.5 | F27: 47660.1 | H27: 260391.6 | J27: -84446.5 | K27: -11544.1 | M27: -95990.6 | N27: 164401
A28: 47 | B28: 1850 | C28: Line Transformers | E28: 372827.19 | F28: 24321.22 | H28: 397148.41 | J28: -170766.19 | K28: -16654.22 | M28: -187420.41 | N28: 209728
A29: 47 | B29: 1855 | C29: Services (Overhead & Underground) | E29: 23261.26 | F29: 3574.22 | H29: 26835.48 | J29: -5121.26 | K29: -1001.22 | M29: -6122.48 | N29: 20713
A30: 47 | B30: 1860 | C30: Meters | E30: 246912.13 | H30: 246912.13 | J30: -140473.13 | K30: -15656 | M30: -156129.13 | N30: 90783
A31: 47 | B31: 1860 | C31: Meters (Smart Meters) | H31: 0 | M31: 0 | N31: 0
A32: N/A | B32: 1905 | C32: Land | E32: 28299.7 | H32: 28299.7 | J32: 0 | K32: 0 | M32: 0 | N32: 28299.7
A33: 47 | B33: 1908 | C33: Buildings & Fixtures | E33: 824123.77 | H33: 824123.77 | J33: -169572.77 | K33: -16999 | M33: -186571.77 | N33: 637552
A34: 13 | B34: 1910 | C34: Leasehold Improvements | H34: 0 | M34: 0 | N34: 0
A35: 8 | B35: 1915 | C35: Office Furniture & Equipment (10 years) | E35: 30527.53 | F35: 2126.2 | H35: 32653.73 | J35: -12210.53 | K35: -2616.2 | M35: -14826.73 | N35: 17827
A36: 8 | B36: 1915 | C36: Office Furniture & Equipment (5 years) | H36: 0 | M36: 0 | N36: 0
A37: 10 | B37: 1920 | C37: Computer Equipment - Hardware | E37: 46427.21 | F37: 3691.2 | H37: 50118.41 | J37: -35048.21 | K37: -4725.2 | M37: -39773.41 | N37: 10345
A38: 45 | B38: 1920 | C38: Computer Equip.-Hardware(Post Mar. 22/04) | H38: 0 | M38: 0 | N38: 0
A39: 45.1 | B39: 1920 | C39: Computer Equip.-Hardware(Post Mar. 19/07) | H39: 0 | M39: 0 | N39: 0
A40: 10 | B40: 1930 | C40: Transportation Equipment | E40: 205345.8 | H40: 205345.8 | J40: -188729.8 | K40: -2556 | M40: -191285.8 | N40: 14060
A41: 8 | B41: 1935 | C41: Stores Equipment | H41: 0 | M41: 0 | N41: 0
A42: 8 | B42: 1940 | C42: Tools, Shop & Garage Equipment | E42: 13959.53 | F42: 6006.67 | H42: 19966.2 | J42: -7829.53 | K42: -1352.67 | M42: -9182.2 | N42: 10784
A43: 8 | B43: 1945 | C43: Measurement & Testing Equipment | H43: 0 | M43: 0 | N43: 0
A44: 8 | B44: 1950 | C44: Power Operated Equipment | E44: 4363.29 | H44: 4363.29 | J44: -2453.29 | K44: -545 | M44: -2998.29 | N44: 1365
A45: 8 | B45: 1955 | C45: Communications Equipment | H45: 0 | M45: 0 | N45: 0
A46: 8 | B46: 1955 | C46: Communication Equipment (Smart Meters) | H46: 0 | M46: 0 | N46: 0
A47: 8 | B47: 1960 | C47: Miscellaneous Equipment | H47: 0 | M47: 0 | N47: 0
A48: 47 | B48: 1975 | C48: Load Management Controls Utility Premises | H48: 0 | M48: 0 | N48: 0
A49: 47 | B49: 1980 | C49: System Supervisor Equipment | H49: 0 | M49: 0 | N49: 0
A50: 47 | B50: 1985 | C50: Miscellaneous Fixed Assets | H50: 0 | M50: 0 | N50: 0
A51: 47 | B51: 1995 | C51: Contributions & Grants | E51: -70173.64 | F51: -74299.97 | H51: -144473.61 | J51: 3636.64 | K51: 4290.97 | M51: 7927.61 | N51: -136546
B52: etc. | H52: 0 | M52: 0 | N52: 0
C54: Total | E54: =SUM(E16:E53) -> 3400570.61 | F54: =SUM(F16:F53) -> 152355.29 | G54: =SUM(G16:G53) -> 0 | H54: =SUM(H16:H53) -> 3552925.9 | J54: =SUM(J16:J53) -> -1447673.91 | K54: =SUM(K16:K53) -> -158511.29 | L54: =SUM(L16:L53) -> 0 | M54: =SUM(M16:M53) -> -1606185.2 | N54: =SUM(N16:N53) -> 1946740.7
J56: Less: Fully Allocated Depreciation
A57: 10 | C57: Transportation | J57: Transportation
A58: 8 | C58: Stores Equipment | J58: Stores Equipment
J59: Net Depreciation | L59: =L54-L57-L58 -> 0
A61: Notes:
A63: 1 | B63: Tables in the format outlined above covering all fixed asset accounts should be submitted for the Test Year, Bridge Year and all relevant historical years. At a minimum , the applicant must provide data for the earlier of: 1) all historical years back to its last rebasing; or 2) at least three years of historical actuals, in addition to Bridge Year and Test Year forecasts.
A66: 2 | B66: The "CCA Class" for fixed assets should agree with the CCA Class used for tax purposes in Tax Returns. Fixed Assets sub-components may be used where the underlying asset components are classified under multiple CCA Classes for tax purposes. If an applicant uses any different classes from those shown in the table, an explanation should be provided. (also see note 3 below).
A69: 3 | B69: The table may need to be customized for a utility's asset categories or for any new asset accounts announced or authorized by the Board.
A71: 4 | B71: The depreciation column (D) is not required as the relevant information will be provided in the following 2-C series of appendices.

Sheet App 2-B FixAsset 2011-CGAAP
M1: File Number: | N1: ='LDC Info'!$E$18 -> EB-2013-0139
M2: Exhibit: | N2: 2
M3: Tab: | N3: 1
M4: Schedule: | N4: 5
M5: Page: | N5: 2
M7: Date:
A9: Appendix 2-B
A10: Fixed Asset Continuity Schedule
F12: Year | G12: 2011
E14: Cost | K14: Accumulated Depreciation
A15: CCA Class | B15: OEB | C15: Description | D15: Depreciation Rate | E15: Opening Balance | F15: Additions | G15: Disposals | H15: Closing Balance | J15: Opening Balance | K15: Additions | L15: Disposals | M15: Closing Balance | N15: Net Book Value
A16: 12 | B16: 1611 | C16: Computer Software (Formally known as Account 1925) | E16: 128153.27 | F16: 8639.34 | H16: =E16+F16+G16 -> 136792.61 | J16: -73412.27 | K16: -23439 | M16: =J16+K16+L16 -> -96851.27 | N16: =H16+M16 -> 39941.34
A17: CEC | B17: 1612 | C17: Land Rights (Formally known as Account 1906) | E17: 8588 | F17: 0 | H17: =E17+F17+G17 -> 8588 | J17: -2608 | K17: 0 | M17: =J17+K17+L17 -> -2608 | N17: =H17+M17 -> 5980
A18: N/A | B18: 1805 | C18: Land | E18: 10000 | H18: =E18+F18+G18 -> 10000 | J18: 0 | K18: 0 | M18: =J18+K18+L18 -> 0 | N18: =H18+M18 -> 10000
A19: 47 | B19: 1808 | C19: Buildings | E19: 0 | H19: =E19+F19+G19 -> 0 | J19: 0 | M19: =J19+K19+L19 -> 0 | N19: =H19+M19 -> 0
A20: 13 | B20: 1810 | C20: Leasehold Improvements | E20: 0 | H20: 0 | J20: 0 | M20: 0 | N20: 0
A21: 47 | B21: 1815 | C21: Transformer Station Equipment >50 kV | E21: 402411.74 | F21: 55500 | H21: 457911.74 | J21: -77732.74 | K21: -9744 | M21: -87476.74 | N21: 370435
A22: 47 | B22: 1820 | C22: Distribution Station Equipment <50 kV | E22: 184860 | F22: 66690.82 | H22: 251550.82 | J22: -99458 | K22: -11860 | M22: -111318 | N22: 140232.82
A23: 47 | B23: 1825 | C23: Storage Battery Equipment | E23: 0 | H23: 0 | J23: 0 | M23: 0 | N23: 0
A24: 47 | B24: 1830 | C24: Poles, Towers & Fixtures | E24: 351066.63 | F24: 27658.52 | H24: 378725.15 | J24: -189324.63 | K24: -18599 | M24: -207923.63 | N24: 170801.52
A25: 47 | B25: 1835 | C25: Overhead Conductors & Devices | E25: 402306.23 | F25: 3636.3 | H25: 405942.53 | J25: -221118.23 | K25: -22027 | M25: -243145.23 | N25: 162797.3
A26: 47 | B26: 1840 | C26: Underground Conduit | E26: 113855.12 | F26: 0 | H26: 113855.12 | J26: -60158.12 | K26: -5942 | M26: -66100.12 | N26: 47755
A27: 47 | B27: 1845 | C27: Underground Conductors & Devices | E27: 260391.6 | F27: 585.31 | H27: 260976.91 | J27: -95990.6 | K27: -12507 | M27: -108497.6 | N27: 152479.31
A28: 47 | B28: 1850 | C28: Line Transformers | E28: 397148.41 | F28: 6024.65 | H28: 403173.06 | J28: -187420.41 | K28: -15567 | M28: -202987.41 | N28: 200185.65
A29: 47 | B29: 1855 | C29: Services (Overhead & Underground) | E29: 26835.48 | F29: 3350.22 | H29: 30185.7 | J29: -6122.48 | K29: -1140 | M29: -7262.48 | N29: 22923.22
A30: 47 | B30: 1860 | C30: Meters | E30: 246912.13 | F30: 7796.64 | H30: 254708.77 | J30: -156129.13 | K30: -15406 | M30: -171535.13 | N30: 83173.64
A31: 47 | B31: 1860 | C31: Meters (Smart Meters) | E31: 0 | H31: 0 | J31: 0 | M31: 0 | N31: 0
A32: N/A | B32: 1905 | C32: Land | E32: 28299.7 | F32: 0 | H32: 28299.7 | J32: 0 | K32: 0 | M32: 0 | N32: 28299.7
A33: 47 | B33: 1908 | C33: Buildings & Fixtures | E33: 824123.77 | F33: 0 | H33: 824123.77 | J33: -186571.77 | K33: -16999 | M33: -203570.77 | N33: 620553
A34: 13 | B34: 1910 | C34: Leasehold Improvements | E34: 0 | H34: 0 | J34: 0 | M34: 0 | N34: 0
A35: 8 | B35: 1915 | C35: Office Furniture & Equipment (10 years) | E35: 32653.73 | F35: 1130.23 | H35: 33783.96 | J35: -14826.73 | K35: -2738 | M35: -17564.73 | N35: 16219.23
A36: 8 | B36: 1915 | C36: Office Furniture & Equipment (5 years) | E36: 0 | H36: 0 | J36: 0 | M36: 0 | N36: 0
A37: 10 | B37: 1920 | C37: Computer Equipment - Hardware | E37: 50118.41 | F37: 2103.38 | H37: 52221.79 | J37: -39773.41 | K37: -4392 | M37: -44165.41 | N37: 8056.38
A38: 45 | B38: 1920 | C38: Computer Equip.-Hardware(Post Mar. 22/04) | E38: 0 | H38: 0 | J38: 0 | M38: 0 | N38: 0
A39: 45.1 | B39: 1920 | C39: Computer Equip.-Hardware(Post Mar. 19/07) | E39: 0 | H39: 0 | J39: 0 | M39: 0 | N39: 0
A40: 10 | B40: 1930 | C40: Transportation Equipment | E40: 205345.8 | F40: 0 | H40: 205345.8 | J40: -191285.8 | K40: -2556 | M40: -193841.8 | N40: 11504
A41: 8 | B41: 1935 | C41: Stores Equipment | E41: 0 | H41: 0 | J41: 0 | M41: 0 | N41: 0
A42: 8 | B42: 1940 | C42: Tools, Shop & Garage Equipment | E42: 19966.2 | F42: 5063.27 | H42: 25029.47 | J42: -9182.2 | K42: -1876 | M42: -11058.2 | N42: 13971.27
A43: 8 | B43: 1945 | C43: Measurement & Testing Equipment | E43: 0 | H43: 0 | J43: 0 | M43: 0 | N43: 0
A44: 8 | B44: 1950 | C44: Power Operated Equipment | E44: 4363.29 | F44: 0 | H44: 4363.29 | J44: -2998.29 | K44: -545 | M44: -3543.29 | N44: 820
A45: 8 | B45: 1955 | C45: Communications Equipment | E45: 0 | H45: 0 | J45: 0 | M45: 0 | N45: 0
A46: 8 | B46: 1955 | C46: Communication Equipment (Smart Meters) | E46: 0 | H46: 0 | J46: 0 | M46: 0 | N46: 0
A47: 8 | B47: 1960 | C47: Miscellaneous Equipment | E47: 0 | H47: 0 | J47: 0 | M47: 0 | N47: 0
A48: 47 | B48: 1975 | C48: Load Management Controls Utility Premises | E48: 0 | H48: 0 | J48: 0 | M48: 0 | N48: 0
A49: 47 | B49: 1980 | C49: System Supervisor Equipment | E49: 0 | H49: 0 | J49: 0 | M49: 0 | N49: 0
A50: 47 | B50: 1985 | C50: Miscellaneous Fixed Assets | E50: 0 | H50: 0 | J50: 0 | M50: 0 | N50: 0
A51: 47 | B51: 1995 | C51: Contributions & Grants | E51: -144473.61 | F51: 0 | H51: -144473.61 | J51: 7927.61 | K51: 5777 | M51: 13704.61 | N51: -130769
B52: etc. | E52: 0 | H52: 0 | J52: 0 | M52: 0 | N52: 0
C54: Total | E54: =SUM(E16:E53) -> 3552925.9 | F54: =SUM(F16:F53) -> 188178.68 | G54: =SUM(G16:G53) -> 0 | H54: =SUM(H16:H53) -> 3741104.58 | J54: =SUM(J16:J53) -> -1606185.2 | K54: =SUM(K16:K53) -> -159560 | L54: =SUM(L16:L53) -> 0 | M54: =SUM(M16:M53) -> -1765745.2 | N54: =SUM(N16:N53) -> 1975359.38
J56: Less: Fully Allocated Depreciation
A57: 10 | C57: Transportation | J57: Transportation
A58: 8 | C58: Stores Equipment | J58: Stores Equipment
J59: Net Depreciation | L59: =L54-L57-L58 -> 0
A61: Notes:
A63: 1 | B63: Tables in the format outlined above covering all fixed asset accounts should be submitted for the Test Year, Bridge Year and all relevant historical years. At a minimum , the applicant must provide data for the earlier of: 1) all historical years back to its last rebasing; or 2) at least three years of historical actuals, in addition to Bridge Year and Test Year forecasts.
A66: 2 | B66: The "CCA Class" for fixed assets should agree with the CCA Class used for tax purposes in Tax Returns. Fixed Assets sub-components may be used where the underlying asset components are classified under multiple CCA Classes for tax purposes. If an applicant uses any different classes from those shown in the table, an explanation should be provided. (also see note 3 below).
A69: 3 | B69: The table may need to be customized for a utility's asset categories or for any new asset accounts announced or authorized by the Board.
A71: 4 | B71: The depreciation column (D) is not required as the relevant information will be provided in the following 2-C series of appendices.

Sheet App 2-B FixAsset 2012-CGAAP
O1: File Number: | P1: ='LDC Info'!$E$18 -> EB-2013-0139
O2: Exhibit: | P2: 2
O3: Tab: | P3: 1
O4: Schedule: | P4: 5
O5: Page: | P5: 3
O7: Date:
A9: Appendix 2-B
A10: Fixed Asset Continuity Schedule
F12: Year | H12: 2012
E14: Cost | L14: Accumulated Depreciation
A15: CCA Class | B15: OEB | C15: Description | D15: Depreciation Rate | E15: Opening Balance | F15: Additions | G15: Smart Meter Additions | H15: Disposals | I15: Closing Balance | K15: Opening Balance | L15: Additions | M15: Smart Meter Additions | N15: Disposals | O15: Closing Balance | P15: Net Book Value
A16: 12 | B16: 1611 | C16: Computer Software (Formally known as Account 1925) | E16: 136792.61 | F16: =2682.5 -> 2682.5 | G16: 41549 | I16: =E16+F16+G16+H16 -> 181024.11 | K16: -96851.27 | L16: =-'App.2-CF_CGAAP_DepExp_2012'!L16 -> -28739 | M16: -4360.86 | O16: =K16+L16+M16+N16 -> -129951.13 | P16: =I16+O16 -> 51072.98
A17: CEC | B17: 1612 | C17: Land Rights (Formally known as Account 1906) | E17: 8588 | F17: 0 | I17: =E17+F17+H17 -> 8588 | K17: -2608 | L17: =-'App.2-CF_CGAAP_DepExp_2012'!L17 -> 0 | O17: =K17+L17+N17 -> -2608 | P17: =I17+O17 -> 5980
A18: N/A | B18: 1805 | C18: Land | E18: 10000 | F18: 0 | I18: =E18+F18+H18 -> 10000 | K18: 0 | L18: =-'App.2-CF_CGAAP_DepExp_2012'!L18 -> 0 | O18: =K18+L18+N18 -> 0 | P18: =I18+O18 -> 10000
A19: 47 | B19: 1808 | C19: Buildings | E19: 0 | I19: =E19+F19+H19 -> 0 | K19: 0 | L19: =-'App.2-CF_CGAAP_DepExp_2012'!L19 -> 0 | O19: =K19+L19+N19 -> 0 | P19: =I19+O19 -> 0
A20: 13 | B20: 1810 | C20: Leasehold Improvements | E20: 0 | I20: 0 | K20: 0 | L20: =-'App.2-CF_CGAAP_DepExp_2012'!L20 -> 0 | O20: 0 | P20: 0
A21: 47 | B21: 1815 | C21: Transformer Station Equipment >50 kV | E21: 457911.74 | F21: 24890 | I21: 482801.74 | K21: -87476.74 | L21: =-'App.2-CF_CGAAP_DepExp_2012'!L21 -> -10749 | O21: -98225.74 | P21: 384576
A22: 47 | B22: 1820 | C22: Distribution Station Equipment <50 kV | E22: 251550.82 | F22: 4632.27 | I22: 256183.09 | K22: -111318 | L22: =-'App.2-CF_CGAAP_DepExp_2012'!L22 -> -13048 | O22: -124366 | P22: 131817.09
A23: 47 | B23: 1825 | C23: Storage Battery Equipment | E23: 0 | I23: 0 | K23: 0 | L23: =-'App.2-CF_CGAAP_DepExp_2012'!L23 -> 0 | O23: 0 | P23: 0
A24: 47 | B24: 1830 | C24: Poles, Towers & Fixtures | E24: 378725.15 | F24: 80902.08 | I24: 459627.23 | K24: -207923.63 | L24: =-'App.2-CF_CGAAP_DepExp_2012'!L24 -> -20770 | O24: -228693.63 | P24: 230933.6
A25: 47 | B25: 1835 | C25: Overhead Conductors & Devices | E25: 405942.53 | F25: 69887.63 | I25: 475830.16 | K25: -243145.23 | L25: =-'App.2-CF_CGAAP_DepExp_2012'!L25 -> -22615 | O25: -265760.23 | P25: 210069.93
A26: 47 | B26: 1840 | C26: Underground Conduit | E26: 113855.12 | F26: 0 | I26: 113855.12 | K26: -66100.12 | L26: =-'App.2-CF_CGAAP_DepExp_2012'!L26 -> -5735 | O26: -71835.12 | P26: 42020
A27: 47 | B27: 1845 | C27: Underground Conductors & Devices | E27: 260976.91 | F27: 4935.66 | I27: 265912.57 | K27: -108497.6 | L27: =-'App.2-CF_CGAAP_DepExp_2012'!L27 -> -12310 | O27: -120807.6 | P27: 145104.97
A28: 47 | B28: 1850 | C28: Line Transformers | E28: 403173.06 | F28: 5619.7 | I28: 408792.76 | K28: -202987.41 | L28: =-'App.2-CF_CGAAP_DepExp_2012'!L28 -> -15664 | O28: -218651.41 | P28: 190141.35
A29: 47 | B29: 1855 | C29: Services (Overhead & Underground) | E29: 30185.7 | F29: 2234.12 | I29: 32419.82 | K29: -7262.48 | L29: =-'App.2-CF_CGAAP_DepExp_2012'!L29 -> -1252 | O29: -8514.48 | P29: 23905.34
A30: 47 | B30: 1860 | C30: Meters | E30: 254708.77 | F30: 134.61 | I30: 254843.38 | K30: -171535.13 | L30: =-'App.2-CF_CGAAP_DepExp_2012'!L30 -> -12753 | O30: -184288.13 | P30: 70555.25
A31: 47 | B31: 1860 | C31: Meters (Smart Meters) | E31: 0 | F31: =17081.77 -> 17081.77 | G31: 601816.73 | I31: =E31+F31+G31+H31 -> 618898.5 | K31: 0 | L31: =-'App.2-CF_CGAAP_DepExp_2012'!L31 -> -40690 | M31: -64642.69 | O31: =K31+L31+M31+N31 -> -105332.69 | P31: 513565.81
A32: N/A | B32: 1905 | C32: Land | E32: 28299.7 | F32: 0 | I32: 28299.7 | K32: 0 | L32: =-'App.2-CF_CGAAP_DepExp_2012'!L32 -> 0 | O32: 0 | P32: 28299.7
A33: 47 | B33: 1908 | C33: Buildings & Fixtures | E33: 824123.77 | F33: 0 | I33: 824123.77 | K33: -203570.77 | L33: =-'App.2-CF_CGAAP_DepExp_2012'!L33 -> -16999 | O33: -220569.77 | P33: 603554
A34: 13 | B34: 1910 | C34: Leasehold Improvements | E34: 0 | I34: 0 | K34: 0 | L34: =-'App.2-CF_CGAAP_DepExp_2012'!L34 -> 0 | O34: 0 | P34: 0
A35: 8 | B35: 1915 | C35: Office Furniture & Equipment (10 years) | E35: 33783.96 | F35: 0 | I35: 33783.96 | K35: -17564.73 | L35: =-'App.2-CF_CGAAP_DepExp_2012'!L35 -> -2755 | O35: -20319.73 | P35: 13464.23
A36: 8 | B36: 1915 | C36: Office Furniture & Equipment (5 years) | E36: 0 | I36: 0 | K36: 0 | L36: =-'App.2-CF_CGAAP_DepExp_2012'!L36 -> 0 | O36: 0 | P36: 0
A37: 10 | B37: 1920 | C37: Computer Equipment - Hardware | E37: 52221.79 | F37: 2656.32 | I37: 54878.11 | K37: -44165.41 | L37: =-'App.2-CF_CGAAP_DepExp_2012'!L37 -> -3639 | O37: -47804.41 | P37: 7073.7
A38: 45 | B38: 1920 | C38: Computer Equip.-Hardware(Post Mar. 22/04) | E38: 0 | I38: 0 | K38: 0 | L38: =-'App.2-CF_CGAAP_DepExp_2012'!L38 -> 0 | O38: 0 | P38: 0
A39: 45.1 | B39: 1920 | C39: Computer Equip.-Hardware(Post Mar. 19/07) | E39: 0 | I39: 0 | K39: 0 | L39: =-'App.2-CF_CGAAP_DepExp_2012'!L39 -> 0 | O39: 0 | P39: 0
A40: 10 | B40: 1930 | C40: Transportation Equipment | E40: 205345.8 | F40: 0 | H40: -552 | I40: 204793.8 | K40: =-193842 -> -193842 | L40: =-'App.2-CF_CGAAP_DepExp_2012'!L40 -> -2556 | N40: 552 | O40: -195846 | P40: 8947.8
A41: 8 | B41: 1935 | C41: Stores Equipment | E41: 0 | I41: 0 | K41: 0 | L41: =-'App.2-CF_CGAAP_DepExp_2012'!L41 -> 0 | O41: 0 | P41: 0
A42: 8 | B42: 1940 | C42: Tools, Shop & Garage Equipment | E42: 25029.47 | F42: =794 -> 794 | G42: 2173 | I42: =E42+F42+G42+H42 -> 27996.47 | K42: -11058.2 | L42: =-'App.2-CF_CGAAP_DepExp_2012'!L42 -> -2281 | M42: -307.3 | O42: =K42+L42+M42+N42 -> -13646.5 | P42: 14349.97
A43: 8 | B43: 1945 | C43: Measurement & Testing Equipment | E43: 0 | I43: 0 | K43: 0 | L43: =-'App.2-CF_CGAAP_DepExp_2012'!L43 -> 0 | O43: 0 | P43: 0
A44: 8 | B44: 1950 | C44: Power Operated Equipment | E44: 4363.29 | F44: 0 | I44: 4363.29 | K44: -3543.29 | L44: =-'App.2-CF_CGAAP_DepExp_2012'!L44 -> -545.41 | O44: -4088.7 | P44: 274.59
A45: 8 | B45: 1955 | C45: Communications Equipment | E45: 0 | I45: 0 | K45: 0 | L45: =-'App.2-CF_CGAAP_DepExp_2012'!L45 -> 0 | O45: 0 | P45: 0
A46: 8 | B46: 1955 | C46: Communication Equipment (Smart Meters) | E46: 0 | I46: 0 | K46: 0 | L46: =-'App.2-CF_CGAAP_DepExp_2012'!L46 -> 0 | O46: 0 | P46: 0
A47: 8 | B47: 1960 | C47: Miscellaneous Equipment | E47: 0 | I47: 0 | K47: 0 | L47: =-'App.2-CF_CGAAP_DepExp_2012'!L47 -> 0 | O47: 0 | P47: 0
A48: 47 | B48: 1975 | C48: Load Management Controls Utility Premises | E48: 0 | I48: 0 | K48: 0 | L48: =-'App.2-CF_CGAAP_DepExp_2012'!L48 -> 0 | O48: 0 | P48: 0
A49: 47 | B49: 1980 | C49: System Supervisor Equipment | E49: 0 | I49: 0 | K49: 0 | L49: =-'App.2-CF_CGAAP_DepExp_2012'!L49 -> 0 | O49: 0 | P49: 0
A50: 47 | B50: 1985 | C50: Miscellaneous Fixed Assets | E50: 0 | I50: 0 | K50: 0 | L50: =-'App.2-CF_CGAAP_DepExp_2012'!L50 -> 0 | O50: 0 | P50: 0
A51: 47 | B51: 1995 | C51: Contributions & Grants | E51: -144473.61 | F51: -110040.57 | I51: -254514.18 | K51: 13704.61 | L51: =-'App.2-CF_CGAAP_DepExp_2012'!L51 -> 7977.81 | O51: 21682.42 | P51: -232831.76
E52: 0 | I52: 0 | K52: 0 | O52: =K52+L52+N52 -> 0 | P52: =I52+O52 -> 0
I53: 0 | O53: 0 | P53: 0
H54: 0 | I54: 0 | O54: 0 | P54: 0
H55: 0 | I55: 0 | O55: 0 | P55: 0
B56: etc. | H56: 0 | I56: 0 | O56: 0 | P56: 0
C58: Total | E58: =SUM(E16:E57) -> 3741104.58 | F58: =SUM(F16:F57) -> 106410.09 | G58: =SUM(G16:G57) -> 645538.73 | H58: =SUM(H16:H57) -> -552 | I58: =SUM(I16:I57) -> 4492501.4 | K58: =SUM(K16:K57) -> -1765745.4 | L58: -205122.6 | M58: -69310.85 | N58: 552 | O58: -2039626.85 | P58: 2452874.55
K60: Less: Fully Allocated Depreciation
A61: 10 | C61: Transportation | K61: Transportation
A62: 8 | C62: Stores Equipment | E62: =3741105-E58 -> 0.4199999999 | K62: Stores Equipment
K63: Net Depreciation | N63: =N58-N61-N62 -> 552
A65: Notes:
A67: 1 | B67: Tables in the format outlined above covering all fixed asset accounts should be submitted for the Test Year, Bridge Year and all relevant historical years. At a minimum , the applicant must provide data for the earlier of: 1) all historical years back to its last rebasing; or 2) at least three years of historical actuals, in addition to Bridge Year and Test Year forecasts.
A70: 2 | B70: The "CCA Class" for fixed assets should agree with the CCA Class used for tax purposes in Tax Returns. Fixed Assets sub-components may be used where the underlying asset components are classified under multiple CCA Classes for tax purposes. If an applicant uses any different classes from those shown in the table, an explanation should be provided. (also see note 3 below).
A73: 3 | B73: The table may need to be customized for a utility's asset categories or for any new asset accounts announced or authorized by the Board.
A75: 4 | B75: The depreciation column (D) is not required as the relevant information will be provided in the following 2-C series of appendices.

Sheet App 2-B FixAsset 2013-CGAAP
M1: File Number: | N1: ='LDC Info'!$E$18 -> EB-2013-0139
M2: Exhibit: | N2: 2
M3: Tab: | N3: 1
M4: Schedule: | N4: 5
M5: Page: | N5: 4
M7: Date:
A9: Appendix 2-B
A10: Fixed Asset Continuity Schedule
F12: Year | G12: 2013
E14: Cost | K14: Accumulated Depreciation
A15: CCA Class | B15: OEB | C15: Description | D15: Depreciation Rate | E15: Opening Balance | F15: Additions | G15: Disposals | H15: Closing Balance | J15: Opening Balance | K15: Additions | L15: Disposals | M15: Closing Balance | N15: Net Book Value
A16: 12 | B16: 1611 | C16: Computer Software (Formally known as Account 1925) | E16: 181024.11 | F16: 28000 | G16: 0 | H16: =E16+F16+G16 -> 209024.11 | J16: ='App 2-B FixAsset 2012-CGAAP'!O16 -> -129951.13 | K16: -22727 | M16: =J16+K16+L16 -> -152678.13 | N16: =H16+M16 -> 56345.98
A17: CEC | B17: 1612 | C17: Land Rights (Formally known as Account 1906) | E17: 8588 | F17: 0 | G17: 0 | H17: =E17+F17+G17 -> 8588 | J17: ='App 2-B FixAsset 2012-CGAAP'!O17 -> -2608 | K17: 0 | M17: =J17+K17+L17 -> -2608 | N17: =H17+M17 -> 5980
A18: N/A | B18: 1805 | C18: Land | E18: 10000 | F18: 0 | G18: 0 | H18: =E18+F18+G18 -> 10000 | J18: ='App 2-B FixAsset 2012-CGAAP'!O18 -> 0 | M18: =J18+K18+L18 -> 0 | N18: =H18+M18 -> 10000
A19: 47 | B19: 1808 | C19: Buildings | E19: 0 | G19: 0 | H19: =E19+F19+G19 -> 0 | J19: ='App 2-B FixAsset 2012-CGAAP'!O19 -> 0 | M19: =J19+K19+L19 -> 0 | N19: =H19+M19 -> 0
A20: 13 | B20: 1810 | C20: Leasehold Improvements | E20: 0 | G20: 0 | H20: 0 | J20: ='App 2-B FixAsset 2012-CGAAP'!O20 -> 0 | M20: 0 | N20: 0
A21: 47 | B21: 1815 | C21: Transformer Station Equipment >50 kV | E21: 482801.74 | F21: 1547900 | G21: 0 | H21: 2030701.74 | J21: ='App 2-B FixAsset 2012-CGAAP'!O21 -> -98225.74 | K21: -27030 | M21: -125255.74 | N21: 1905446
A22: 47 | B22: 1820 | C22: Distribution Station Equipment <50 kV | E22: 256183.09 | F22: 800000 | G22: 0 | H22: 1056183.09 | J22: ='App 2-B FixAsset 2012-CGAAP'!O22 -> -124366 | K22: -17639 | M22: -142005 | N22: 914178.09
A23: 47 | B23: 1825 | C23: Storage Battery Equipment | E23: 0 | G23: 0 | H23: 0 | J23: ='App 2-B FixAsset 2012-CGAAP'!O23 -> 0 | M23: 0 | N23: 0
A24: 47 | B24: 1830 | C24: Poles, Towers & Fixtures | E24: 459627.23 | F24: 99000 | G24: 0 | H24: 558627.23 | J24: ='App 2-B FixAsset 2012-CGAAP'!O24 -> -228693.63 | K24: -13447 | M24: -242140.63 | N24: 316486.6
A25: 47 | B25: 1835 | C25: Overhead Conductors & Devices | E25: 475830.16 | F25: 25000 | G25: 0 | H25: 500830.16 | J25: ='App 2-B FixAsset 2012-CGAAP'!O25 -> -265760.23 | K25: -10212 | M25: -275972.23 | N25: 224857.93
A26: 47 | B26: 1840 | C26: Underground Conduit | E26: 113855.12 | F26: 500 | G26: 0 | H26: 114355.12 | J26: ='App 2-B FixAsset 2012-CGAAP'!O26 -> -71835.12 | K26: -2756 | M26: -74591.12 | N26: 39764
A27: 47 | B27: 1845 | C27: Underground Conductors & Devices | E27: 265912.57 | F27: 17000 | G27: 0 | H27: 282912.57 | J27: ='App 2-B FixAsset 2012-CGAAP'!O27 -> -120807.6 | K27: -10321 | M27: -131128.6 | N27: 151783.97
A28: 47 | B28: 1850 | C28: Line Transformers | E28: 408792.76 | F28: 28000 | G28: -1548 | H28: 435244.76 | J28: ='App 2-B FixAsset 2012-CGAAP'!O28 -> -218651.41 | K28: -10012 | L28: 1548 | M28: -227115.41 | N28: 208129.35
A29: 47 | B29: 1855 | C29: Services (Overhead & Underground) | E29: 32419.82 | F29: 3000 | G29: 0 | H29: 35419.82 | J29: ='App 2-B FixAsset 2012-CGAAP'!O29 -> -8514.48 | K29: -1130 | M29: -9644.48 | N29: 25775.34
A30: 47 | B30: 1860 | C30: Meters | E30: 254843.38 | G30: 0 | H30: 254843.38 | J30: ='App 2-B FixAsset 2012-CGAAP'!O30 -> -184288.13 | K30: -9055 | M30: -193343.13 | N30: 61500.25
A31: 47 | B31: 1860 | C31: Meters (Smart Meters) | E31: 618898.5 | F31: 3500 | G31: 0 | H31: 622398.5 | J31: ='App 2-B FixAsset 2012-CGAAP'!O31 -> -105332.69 | K31: -41377 | M31: -146709.69 | N31: 475688.81
A32: N/A | B32: 1905 | C32: Land | E32: 28299.7 | F32: 0 | G32: 0 | H32: 28299.7 | J32: ='App 2-B FixAsset 2012-CGAAP'!O32 -> 0 | M32: 0 | N32: 28299.7
A33: 47 | B33: 1908 | C33: Buildings & Fixtures - BUILDING ROOF | E33: 165167 | F33: 18040 | G33: 0 | H33: 183207 | J33: -44363 | K33: -6968 | M33: -51331 | N33: 131876
A34: 47 | B34: 1908 | C34: Buildings & Fixtures - INTERIOR FIXTURES | E34: 246040.77 | F34: 19460 | G34: 0 | H34: 265500.77 | J34: -65297.77 | K34: -17053 | M34: -82350.77 | N34: 183150
A35: 47 | B35: 1908 | C35: Buildings & Fixtures - STRUCTURE | E35: 412916 | F35: 0 | G35: 0 | H35: 412916 | J35: -110908 | K35: -8258 | M35: -119166 | N35: 293750
A36: 13 | B36: 1910 | C36: Leasehold Improvements | E36: 0 | G36: 0 | H36: 0 | J36: ='App 2-B FixAsset 2012-CGAAP'!O34 -> 0 | M36: 0 | N36: 0
A37: 8 | B37: 1915 | C37: Office Furniture & Equipment (10 years) | E37: 33783.96 | F37: 5700 | G37: 0 | H37: 39483.96 | J37: ='App 2-B FixAsset 2012-CGAAP'!O35 -> -20319.73 | K37: -3041 | M37: -23360.73 | N37: 16123.23
A38: 8 | B38: 1915 | C38: Office Furniture & Equipment (5 years) | E38: 0 | G38: 0 | H38: 0 | J38: ='App 2-B FixAsset 2012-CGAAP'!O36 -> 0 | M38: 0 | N38: 0
A39: 10 | B39: 1920 | C39: Computer Equipment - Hardware | E39: 54878.11 | F39: 3000 | G39: 0 | H39: 57878.11 | J39: ='App 2-B FixAsset 2012-CGAAP'!O37 -> -47804.41 | K39: -2974 | M39: -50778.41 | N39: 7099.7
A40: 45 | B40: 1920 | C40: Computer Equip.-Hardware(Post Mar. 22/04) | E40: 0 | G40: 0 | H40: 0 | J40: ='App 2-B FixAsset 2012-CGAAP'!O38 -> 0 | M40: 0 | N40: 0
A41: 45.1 | B41: 1920 | C41: Computer Equip.-Hardware(Post Mar. 19/07) | E41: 0 | G41: 0 | H41: 0 | J41: ='App 2-B FixAsset 2012-CGAAP'!O39 -> 0 | M41: 0 | N41: 0
A42: 10 | B42: 1930 | C42: Transportation Equipment | E42: 204793.8 | F42: 0 | G42: 0 | H42: 204793.8 | J42: ='App 2-B FixAsset 2012-CGAAP'!O40 -> -195846 | K42: -2556 | M42: -198402 | N42: 6391.8
A43: 8 | B43: 1935 | C43: Stores Equipment | E43: 0 | G43: 0 | H43: 0 | J43: ='App 2-B FixAsset 2012-CGAAP'!O41 -> 0 | M43: 0 | N43: 0
A44: 8 | B44: 1940 | C44: Tools, Shop & Garage Equipment | E44: 27996.47 | F44: 3000 | G44: 0 | H44: 30996.47 | J44: ='App 2-B FixAsset 2012-CGAAP'!O42 -> -13646.5 | K44: -2443 | M44: -16089.5 | N44: 14906.97
A45: 8 | B45: 1945 | C45: Measurement & Testing Equipment | E45: 0 | G45: 0 | H45: 0 | J45: ='App 2-B FixAsset 2012-CGAAP'!O43 -> 0 | M45: 0 | N45: 0
A46: 8 | B46: 1950 | C46: Power Operated Equipment | E46: 4363.29 | F46: 2000 | G46: 0 | H46: 6363.29 | J46: ='App 2-B FixAsset 2012-CGAAP'!O44 -> -4088.7 | K46: -400 | M46: -4488.7 | N46: 1874.59
A47: 8 | B47: 1955 | C47: Communications Equipment | E47: 0 | G47: 0 | H47: 0 | J47: ='App 2-B FixAsset 2012-CGAAP'!O45 -> 0 | M47: 0 | N47: 0
A48: 8 | B48: 1955 | C48: Communication Equipment (Smart Meters) | E48: 0 | G48: 0 | H48: 0 | J48: ='App 2-B FixAsset 2012-CGAAP'!O46 -> 0 | M48: 0 | N48: 0
A49: 8 | B49: 1960 | C49: Miscellaneous Equipment | E49: 0 | G49: 0 | H49: 0 | J49: ='App 2-B FixAsset 2012-CGAAP'!O47 -> 0 | M49: 0 | N49: 0
A50: 47 | B50: 1975 | C50: Load Management Controls Utility Premises | E50: 0 | G50: 0 | H50: 0 | J50: ='App 2-B FixAsset 2012-CGAAP'!O48 -> 0 | M50: 0 | N50: 0
A51: 47 | B51: 1980 | C51: System Supervisor Equipment | E51: 0 | G51: 0 | H51: 0 | J51: ='App 2-B FixAsset 2012-CGAAP'!O49 -> 0 | M51: 0 | N51: 0
A52: 47 | B52: 1985 | C52: Miscellaneous Fixed Assets | E52: 0 | G52: 0 | H52: 0 | J52: ='App 2-B FixAsset 2012-CGAAP'!O50 -> 0 | M52: 0 | N52: 0
A53: 47 | B53: 1995 | C53: Contributions & Grants - ACCT 1830 | E53: -77570.38 | F53: 0 | G53: 0 | H53: -77570.38 | J53: 2509.38 | K53: 1724 | M53: 4233.38 | N53: -73337
A54: 47 | B54: 1995 | C54: Contributions & Grants - ACCT 1835 | E54: -49660.65 | F54: 0 | G54: 0 | H54: -49660.65 | J54: 2189.65 | K54: 828 | M54: =J54+K54+L54 -> 3017.65 | N54: =H54+M54 -> -46643
A55: 47 | B55: 1995 | C55: Contributions & Grants - ACCT 1840 | E55: -219.86 | F55: 0 | G55: 0 | H55: -219.86 | J55: 39.86 | K55: 4 | M55: 43.86 | N55: -176
A56: 47 | B56: 1995 | C56: Contributions & Grants - ACCT 1845 | E56: -80350.46 | F56: 0 | G56: 0 | H56: -80350.46 | J56: 10441.7 | K56: 2678 | M56: 13119.7 | N56: -67230.76
A57: 47 | B57: 1995 | C57: Contributions & Grants - ACCT 1850 | E57: -46712.83 | F57: 0 | G57: 0 | H57: -46712.83 | J57: 6501.83 | K57: 1168 | M57: 7669.83 | N57: -39043
B58: etc. | G58: 0 | H58: 0 | M58: 0 | N58: 0
C60: Total | E60: =SUM(E16:E59) -> 4492501.4 | F60: =SUM(F16:F59) -> 2603100 | G60: =SUM(G16:G59) -> -1548 | H60: =SUM(H16:H59) -> 7094053.4 | J60: =SUM(J16:J59) -> -2039625.85 | K60: =SUM(K16:K59) -> -202997 | L60: =SUM(L16:L59) -> 1548 | M60: =SUM(M16:M59) -> -2241074.85 | N60: =SUM(N16:N59) -> 4852978.55
J62: Less: Fully Allocated Depreciation
A63: 10 | C63: Transportation | J63: Transportation
A64: 8 | C64: Stores Equipment | J64: Stores Equipment
J65: Net Depreciation | L65: =L60-L63-L64 -> 1548
A67: Notes:
A69: 1 | B69: Tables in the format outlined above covering all fixed asset accounts should be submitted for the Test Year, Bridge Year and all relevant historical years. At a minimum , the applicant must provide data for the earlier of: 1) all historical years back to its last rebasing; or 2) at least three years of historical actuals, in addition to Bridge Year and Test Year forecasts.
A72: 2 | B72: The "CCA Class" for fixed assets should agree with the CCA Class used for tax purposes in Tax Returns. Fixed Assets sub-components may be used where the underlying asset components are classified under multiple CCA Classes for tax purposes. If an applicant uses any different classes from those shown in the table, an explanation should be provided. (also see note 3 below).
A75: 3 | B75: The table may need to be customized for a utility's asset categories or for any new asset accounts announced or authorized by the Board.
A77: 4 | B77: The depreciation column (D) is not required as the relevant information will be provided in the following 2-C series of appendices.

Sheet App.2-B_FixAsset 2013-MIFRS (hidden)
M1: File Number: | N1: ='LDC Info'!$E$18 -> EB-2013-0139
M2: Exhibit:
M3: Tab:
M4: Schedule:
M5: Page:
M7: Date:
A9: Appendix 2-B
A10: Fixed Asset Continuity Schedule
F12: Year | G12: 2014
E14: Cost | K14: Accumulated Depreciation
A15: CCA Class | B15: OEB | C15: Description | D15: Depreciation Rate | E15: Opening Balance | F15: Additions | G15: Disposals | H15: Closing Balance | J15: Opening Balance | K15: Additions | L15: Disposals | M15: Closing Balance | N15: Net Book Value
A16: 12 | B16: 1611 | C16: Computer Software (Formally known as Account 1925) | H16: =E16+F16+G16 -> 0 | M16: =J16+K16+L16 -> 0 | N16: =H16+M16 -> 0
A17: CEC | B17: 1612 | C17: Land Rights (Formally known as Account 1906) | H17: =E17+F17+G17 -> 0 | M17: =J17+K17+L17 -> 0 | N17: =H17+M17 -> 0
A18: N/A | B18: 1805 | C18: Land | H18: =E18+F18+G18 -> 0 | M18: =J18+K18+L18 -> 0 | N18: =H18+M18 -> 0
A19: 47 | B19: 1808 | C19: Buildings | H19: =E19+F19+G19 -> 0 | M19: =J19+K19+L19 -> 0 | N19: =H19+M19 -> 0
A20: 13 | B20: 1810 | C20: Leasehold Improvements | H20: 0 | M20: 0 | N20: 0
A21: 47 | B21: 1815 | C21: Transformer Station Equipment >50 kV | H21: 0 | M21: 0 | N21: 0
A22: 47 | B22: 1820 | C22: Distribution Station Equipment <50 kV | H22: 0 | M22: 0 | N22: 0
A23: 47 | B23: 1825 | C23: Storage Battery Equipment | H23: 0 | M23: 0 | N23: 0
A24: 47 | B24: 1830 | C24: Poles, Towers & Fixtures | H24: 0 | M24: 0 | N24: 0
A25: 47 | B25: 1835 | C25: Overhead Conductors & Devices | H25: 0 | M25: 0 | N25: 0
A26: 47 | B26: 1840 | C26: Underground Conduit | H26: 0 | M26: 0 | N26: 0
A27: 47 | B27: 1845 | C27: Underground Conductors & Devices | H27: 0 | M27: 0 | N27: 0
A28: 47 | B28: 1850 | C28: Line Transformers | H28: 0 | M28: 0 | N28: 0
A29: 47 | B29: 1855 | C29: Services (Overhead & Underground) | H29: 0 | M29: 0 | N29: 0
A30: 47 | B30: 1860 | C30: Meters | H30: 0 | M30: 0 | N30: 0
A31: 47 | B31: 1860 | C31: Meters (Smart Meters) | H31: 0 | M31: 0 | N31: 0
A32: N/A | B32: 1905 | C32: Land | H32: 0 | M32: 0 | N32: 0
A33: 47 | B33: 1908 | C33: Buildings & Fixtures | H33: 0 | M33: 0 | N33: 0
A34: 13 | B34: 1910 | C34: Leasehold Improvements | H34: 0 | M34: 0 | N34: 0
A35: 8 | B35: 1915 | C35: Office Furniture & Equipment (10 years) | H35: 0 | M35: 0 | N35: 0
A36: 8 | B36: 1915 | C36: Office Furniture & Equipment (5 years) | H36: 0 | M36: 0 | N36: 0
A37: 10 | B37: 1920 | C37: Computer Equipment - Hardware | H37: 0 | M37: 0 | N37: 0
A38: 45 | B38: 1920 | C38: Computer Equip.-Hardware(Post Mar. 22/04) | H38: 0 | M38: 0 | N38: 0
A39: 45.1 | B39: 1920 | C39: Computer Equip.-Hardware(Post Mar. 19/07) | H39: 0 | M39: 0 | N39: 0
A40: 10 | B40: 1930 | C40: Transportation Equipment | H40: 0 | M40: 0 | N40: 0
A41: 8 | B41: 1935 | C41: Stores Equipment | H41: 0 | M41: 0 | N41: 0
A42: 8 | B42: 1940 | C42: Tools, Shop & Garage Equipment | H42: 0 | M42: 0 | N42: 0
A43: 8 | B43: 1945 | C43: Measurement & Testing Equipment | H43: 0 | M43: 0 | N43: 0
A44: 8 | B44: 1950 | C44: Power Operated Equipment | H44: 0 | M44: 0 | N44: 0
A45: 8 | B45: 1955 | C45: Communications Equipment | H45: 0 | M45: 0 | N45: 0
A46: 8 | B46: 1955 | C46: Communication Equipment (Smart Meters) | H46: 0 | M46: 0 | N46: 0
A47: 8 | B47: 1960 | C47: Miscellaneous Equipment | H47: 0 | M47: 0 | N47: 0
A48: 47 | B48: 1975 | C48: Load Management Controls Utility Premises | H48: 0 | M48: 0 | N48: 0
A49: 47 | B49: 1980 | C49: System Supervisor Equipment | H49: 0 | M49: 0 | N49: 0
A50: 47 | B50: 1985 | C50: Miscellaneous Fixed Assets | H50: 0 | M50: 0 | N50: 0
A51: 47 | B51: 1995 | C51: Contributions & Grants | H51: 0 | M51: 0 | N51: 0
B56: etc. | H56: 0 | M56: 0 | N56: 0
C58: Total | E58: =SUM(E16:E57) -> 0 | F58: =SUM(F16:F57) -> 0 | G58: =SUM(G16:G57) -> 0 | H58: =SUM(H16:H57) -> 0 | J58: =SUM(J16:J57) -> 0 | K58: =SUM(K16:K57) -> 0 | L58: =SUM(L16:L57) -> 0 | M58: =SUM(M16:M57) -> 0 | N58: =SUM(N16:N57) -> 0
J60: Less: Fully Allocated Depreciation
A61: 10 | C61: Transportation | J61: Transportation
A62: 8 | C62: Stores Equipment | J62: Stores Equipment
J63: Net Depreciation | L63: =L58-L61-L62 -> 0
A65: Notes:
A67: 1 | B67: Tables in the format outlined above covering all fixed asset accounts should be submitted for the Test Year, Bridge Year and all relevant historical years. At a minimum , the applicant must provide data for the earlier of: 1) all historical years back to its last rebasing; or 2) at least three years of historical actuals, in addition to Bridge Year and Test Year forecasts.
A70: 2 | B70: The "CCA Class" for fixed assets should agree with the CCA Class used for tax purposes in Tax Returns. Fixed Assets sub-components may be used where the underlying asset components are classified under multiple CCA Classes for tax purposes. If an applicant uses any different classes from those shown in the table, an explanation should be provided. (also see note 3 below).
A73: 3 | B73: The table may need to be customized for a utility's asset categories or for any new asset accounts announced or authorized by the Board.
A75: 4 | B75: The depreciation column (D) is not required as the relevant information will be provided in the following 2-C series of appendices.

Sheet App.2-B_FixAsset 2014-CGAAP
M1: File Number: | N1: ='LDC Info'!$E$18 -> EB-2013-0139
M2: Exhibit: | N2: 2
M3: Tab: | N3: 1
M4: Schedule: | N4: 5
M5: Page: | N5: 5
M7: Date:
A9: Appendix 2-B
A10: Fixed Asset Continuity Schedule
F12: Year | G12: 2014
E14: Cost | K14: Accumulated Depreciation | P14: Input to Cost Allocation Model
A15: CCA Class | B15: OEB | C15: Description | D15: Depreciation Rate | E15: Opening Balance | F15: Additions | G15: Disposals | H15: Closing Balance | J15: Opening Balance | K15: Additions | L15: Disposals | M15: Closing Balance | N15: Net Book Value | P15: AVGGrossCloBal | Q15: AVG AccDep
A16: 12 | B16: 1611 | C16: Computer Software (Formally known as Account 1925) | E16: 209024.11 | F16: 17000 | H16: =E16+F16+G16 -> 226024.11 | J16: ='App 2-B FixAsset 2013-CGAAP'!M16 -> -152678.13 | K16: -20822 | M16: =J16+K16+L16 -> -173500.13 | N16: =H16+M16 -> 52523.98 | P16: =AVERAGE(H16,'App 2-B FixAsset 2013-CGAAP'!H16) -> 217524.11 | Q16: =AVERAGE(M16,'App 2-B FixAsset 2013-CGAAP'!M16) -> -163089.13
A17: CEC | B17: 1612 | C17: Land Rights (Formally known as Account 1906) | E17: 8588 | H17: =E17+F17+G17 -> 8588 | J17: ='App 2-B FixAsset 2013-CGAAP'!M17 -> -2608 | M17: =J17+K17+L17 -> -2608 | N17: =H17+M17 -> 5980 | P17: =AVERAGE(H17,'App 2-B FixAsset 2013-CGAAP'!H17) -> 8588 | Q17: =AVERAGE(M17,'App 2-B FixAsset 2013-CGAAP'!M17) -> -2608
A18: N/A | B18: 1805 | C18: Land | E18: 10000 | H18: =E18+F18+G18 -> 10000 | J18: ='App 2-B FixAsset 2013-CGAAP'!M18 -> 0 | M18: =J18+K18+L18 -> 0 | N18: =H18+M18 -> 10000 | P18: =AVERAGE(H18,'App 2-B FixAsset 2013-CGAAP'!H18) -> 10000 | Q18: =AVERAGE(M18,'App 2-B FixAsset 2013-CGAAP'!M18) -> 0
A19: 47 | B19: 1808 | C19: Buildings | E19: 0 | H19: =E19+F19+G19 -> 0 | J19: ='App 2-B FixAsset 2013-CGAAP'!M19 -> 0 | M19: =J19+K19+L19 -> 0 | N19: =H19+M19 -> 0 | P19: =AVERAGE(H19,'App 2-B FixAsset 2013-CGAAP'!H19) -> 0 | Q19: =AVERAGE(M19,'App 2-B FixAsset 2013-CGAAP'!M19) -> 0
A20: 13 | B20: 1810 | C20: Leasehold Improvements | E20: 0 | H20: 0 | J20: ='App 2-B FixAsset 2013-CGAAP'!M20 -> 0 | M20: 0 | N20: 0 | P20: =AVERAGE(H20,'App 2-B FixAsset 2013-CGAAP'!H20) -> 0 | Q20: =AVERAGE(M20,'App 2-B FixAsset 2013-CGAAP'!M20) -> 0
A21: 47 | B21: 1815 | C21: Transformer Station Equipment >50 kV | E21: 2030701.74 | F21: 25000 | H21: 2055701.74 | J21: ='App 2-B FixAsset 2013-CGAAP'!M21 -> -125255.74 | K21: -44507 | M21: -169762.74 | N21: 1885939 | P21: =AVERAGE(H21,'App 2-B FixAsset 2013-CGAAP'!H21) -> 2043201.74 | Q21: =AVERAGE(M21,'App 2-B FixAsset 2013-CGAAP'!M21) -> -147509.24
A22: 47 | B22: 1820 | C22: Distribution Station Equipment <50 kV | E22: 1056183 | F22: 60000 | H22: 1116183 | J22: ='App 2-B FixAsset 2013-CGAAP'!M22 -> -142005 | K22: -27195 | M22: -169200 | N22: 946983 | P22: =AVERAGE(H22,'App 2-B FixAsset 2013-CGAAP'!H22) -> 1086183.045 | Q22: =AVERAGE(M22,'App 2-B FixAsset 2013-CGAAP'!M22) -> -155602.5
A23: 47 | B23: 1825 | C23: Storage Battery Equipment | E23: 0 | H23: 0 | J23: ='App 2-B FixAsset 2013-CGAAP'!M23 -> 0 | M23: 0 | N23: 0 | P23: =AVERAGE(H23,'App 2-B FixAsset 2013-CGAAP'!H23) -> 0 | Q23: =AVERAGE(M23,'App 2-B FixAsset 2013-CGAAP'!M23) -> 0
A24: 47 | B24: 1830 | C24: Poles, Towers & Fixtures | E24: 558627.23 | F24: 89000 | H24: 647627.23 | J24: ='App 2-B FixAsset 2013-CGAAP'!M24 -> -242140.63 | K24: -14131 | M24: -256271.63 | N24: 391355.6 | P24: =AVERAGE(H24,'App 2-B FixAsset 2013-CGAAP'!H24) -> 603127.23 | Q24: =AVERAGE(M24,'App 2-B FixAsset 2013-CGAAP'!M24) -> -249206.13
A25: 47 | B25: 1835 | C25: Overhead Conductors & Devices | E25: 500830.16 | F25: 20000 | H25: 520830.16 | J25: ='App 2-B FixAsset 2013-CGAAP'!M25 -> -275972.23 | K25: -10588 | M25: -286560.23 | N25: 234269.93 | P25: =AVERAGE(H25,'App 2-B FixAsset 2013-CGAAP'!H25) -> 510830.16 | Q25: =AVERAGE(M25,'App 2-B FixAsset 2013-CGAAP'!M25) -> -281266.23
A26: 47 | B26: 1840 | C26: Underground Conduit | E26: 114355.12 | F26: 500 | H26: 114855.12 | J26: ='App 2-B FixAsset 2013-CGAAP'!M26 -> -74591.12 | K26: -2763 | M26: -77354.12 | N26: 37501 | P26: =AVERAGE(H26,'App 2-B FixAsset 2013-CGAAP'!H26) -> 114605.12 | Q26: =AVERAGE(M26,'App 2-B FixAsset 2013-CGAAP'!M26) -> -75972.62
A27: 47 | B27: 1845 | C27: Underground Conductors & Devices | E27: 282912.57 | F27: 17500 | H27: 300412.57 | J27: ='App 2-B FixAsset 2013-CGAAP'!M27 -> -131128.6 | K27: -10837 | M27: -141965.6 | N27: 158446.97 | P27: =AVERAGE(H27,'App 2-B FixAsset 2013-CGAAP'!H27) -> 291662.57 | Q27: =AVERAGE(M27,'App 2-B FixAsset 2013-CGAAP'!M27) -> -136547.1
A28: 47 | B28: 1850 | C28: Line Transformers | E28: 435244.76 | F28: 12500 | H28: 447744.76 | J28: ='App 2-B FixAsset 2013-CGAAP'!M28 -> -227115.41 | K28: -10250 | M28: -237365.41 | N28: 210379.35 | P28: =AVERAGE(H28,'App 2-B FixAsset 2013-CGAAP'!H28) -> 441494.76 | Q28: =AVERAGE(M28,'App 2-B FixAsset 2013-CGAAP'!M28) -> -232240.41
A29: 47 | B29: 1855 | C29: Services (Overhead & Underground) | E29: 35419.82 | F29: 3100 | H29: 38519.82 | J29: ='App 2-B FixAsset 2013-CGAAP'!M29 -> -9644.48 | K29: -1232 | M29: -10876.48 | N29: 27643.34 | P29: =AVERAGE(H29,'App 2-B FixAsset 2013-CGAAP'!H29) -> 36969.82 | Q29: =AVERAGE(M29,'App 2-B FixAsset 2013-CGAAP'!M29) -> -10260.48
A30: 47 | B30: 1860 | C30: Meters | E30: 254843.38 | F30: 0 | G30: -254843.38 | H30: 0 | J30: ='App 2-B FixAsset 2013-CGAAP'!M30 -> -193343.13 | K30: 0 | L30: 193343.13 | M30: 0 | N30: 0 | P30: =AVERAGE(H30,'App 2-B FixAsset 2013-CGAAP'!H30) -> 127421.69 | Q30: =AVERAGE(M30,'App 2-B FixAsset 2013-CGAAP'!M30) -> -96671.565
A31: 47 | B31: 1860 | C31: Meters (Smart Meters) | E31: 622398.5 | F31: 3500 | H31: 625898.5 | J31: ='App 2-B FixAsset 2013-CGAAP'!M31 -> -146709.69 | K31: -41610 | M31: -188319.69 | N31: 437578.81 | P31: =AVERAGE(H31,'App 2-B FixAsset 2013-CGAAP'!H31) -> 624148.5 | Q31: =AVERAGE(M31,'App 2-B FixAsset 2013-CGAAP'!M31) -> -167514.69
A32: N/A | B32: 1905 | C32: Land | E32: 28299.7 | H32: 28299.7 | J32: ='App 2-B FixAsset 2013-CGAAP'!M32 -> 0 | M32: 0 | N32: 28299.7 | P32: =AVERAGE(H32,'App 2-B FixAsset 2013-CGAAP'!H32) -> 28299.7 | Q32: =AVERAGE(M32,'App 2-B FixAsset 2013-CGAAP'!M32) -> 0
A33: 47 | B33: 1908 | C33: Buildings & Fixtures - BUILDING ROOF | E33: 183207 | F33: 0 | H33: 183207 | J33: ='App 2-B FixAsset 2013-CGAAP'!M33 -> -51331 | K33: -7329 | M33: -58660 | N33: 124547 | P33: =AVERAGE(H33,'App 2-B FixAsset 2013-CGAAP'!H33) -> 183207 | Q33: =AVERAGE(M33,'App 2-B FixAsset 2013-CGAAP'!M33) -> -54995.5
A34: 47 | B34: 1908 | C34: Buildings & Fixtures - INTERIOR FIXTURES | E34: 265500.77 | F34: 12500 | H34: 278000.77 | J34: -82350.77 | K34: -18118 | M34: =J34+K34+L34 -> -100468.77 | N34: =H34+M34 -> 177532 | P34: =AVERAGE(H34,'App 2-B FixAsset 2013-CGAAP'!H34) -> 271750.77 | Q34: =AVERAGE(M34,'App 2-B FixAsset 2013-CGAAP'!M34) -> -91409.77
A35: 47 | B35: 1908 | C35: Buildings & Fixtures - STRUCTURE | E35: 412916 | F35: 0 | H35: 412916 | J35: -119167 | K35: -8258 | M35: -127425 | N35: 285491 | P35: =AVERAGE(H35,'App 2-B FixAsset 2013-CGAAP'!H35) -> 412916 | Q35: =AVERAGE(M35,'App 2-B FixAsset 2013-CGAAP'!M35) -> -123295.5
A36: 13 | B36: 1910 | C36: Leasehold Improvements | E36: 0 | H36: 0 | J36: ='App 2-B FixAsset 2013-CGAAP'!M36 -> 0 | M36: 0 | N36: 0 | P36: =AVERAGE(H36,'App 2-B FixAsset 2013-CGAAP'!H36) -> 0 | Q36: =AVERAGE(M36,'App 2-B FixAsset 2013-CGAAP'!M36) -> 0
A37: 8 | B37: 1915 | C37: Office Furniture & Equipment (10 years) | E37: 39483.96 | F37: 3500 | H37: 42983.96 | J37: ='App 2-B FixAsset 2013-CGAAP'!M37 -> -23360.73 | K37: -3128 | M37: -26488.73 | N37: 16495.23 | P37: =AVERAGE(H37,'App 2-B FixAsset 2013-CGAAP'!H37) -> 41233.96 | Q37: =AVERAGE(M37,'App 2-B FixAsset 2013-CGAAP'!M37) -> -24924.73
A38: 8 | B38: 1915 | C38: Office Furniture & Equipment (5 years) | E38: 0 | H38: 0 | J38: ='App 2-B FixAsset 2013-CGAAP'!M38 -> 0 | M38: 0 | N38: 0 | P38: =AVERAGE(H38,'App 2-B FixAsset 2013-CGAAP'!H38) -> 0 | Q38: =AVERAGE(M38,'App 2-B FixAsset 2013-CGAAP'!M38) -> 0
A39: 10 | B39: 1920 | C39: Computer Equipment - Hardware | E39: 57878.11 | F39: 3100 | H39: 60978.11 | J39: ='App 2-B FixAsset 2013-CGAAP'!M39 -> -50778.41 | K39: -2981 | M39: -53759.41 | N39: 7218.7 | P39: =AVERAGE(H39,'App 2-B FixAsset 2013-CGAAP'!H39) -> 59428.11 | Q39: =AVERAGE(M39,'App 2-B FixAsset 2013-CGAAP'!M39) -> -52268.91
A40: 45 | B40: 1920 | C40: Computer Equip.-Hardware(Post Mar. 22/04) | E40: 0 | H40: 0 | J40: ='App 2-B FixAsset 2013-CGAAP'!M40 -> 0 | M40: 0 | N40: 0 | P40: =AVERAGE(H40,'App 2-B FixAsset 2013-CGAAP'!H40) -> 0 | Q40: =AVERAGE(M40,'App 2-B FixAsset 2013-CGAAP'!M40) -> 0
A41: 45.1 | B41: 1920 | C41: Computer Equip.-Hardware(Post Mar. 19/07) | E41: 0 | H41: 0 | J41: ='App 2-B FixAsset 2013-CGAAP'!M41 -> 0 | M41: 0 | N41: 0 | P41: =AVERAGE(H41,'App 2-B FixAsset 2013-CGAAP'!H41) -> 0 | Q41: =AVERAGE(M41,'App 2-B FixAsset 2013-CGAAP'!M41) -> 0
A42: 10 | B42: 1930 | C42: Transportation Equipment | E42: 204793.8 | H42: 204793.8 | J42: ='App 2-B FixAsset 2013-CGAAP'!M42 -> -198402 | K42: -2556 | M42: -200958 | N42: 3835.8 | P42: =AVERAGE(H42,'App 2-B FixAsset 2013-CGAAP'!H42) -> 204793.8 | Q42: =AVERAGE(M42,'App 2-B FixAsset 2013-CGAAP'!M42) -> -199680
A43: 8 | B43: 1935 | C43: Stores Equipment | E43: 0 | H43: 0 | J43: ='App 2-B FixAsset 2013-CGAAP'!M43 -> 0 | M43: 0 | N43: 0 | P43: =AVERAGE(H43,'App 2-B FixAsset 2013-CGAAP'!H43) -> 0 | Q43: =AVERAGE(M43,'App 2-B FixAsset 2013-CGAAP'!M43) -> 0
A44: 8 | B44: 1940 | C44: Tools, Shop & Garage Equipment | E44: 30996.47 | F44: 3100 | H44: 34096.47 | J44: ='App 2-B FixAsset 2013-CGAAP'!M44 -> -16089.5 | K44: -2576 | M44: -18665.5 | N44: 15430.97 | P44: =AVERAGE(H44,'App 2-B FixAsset 2013-CGAAP'!H44) -> 32546.47 | Q44: =AVERAGE(M44,'App 2-B FixAsset 2013-CGAAP'!M44) -> -17377.5
A45: 8 | B45: 1945 | C45: Measurement & Testing Equipment | E45: 0 | H45: 0 | J45: ='App 2-B FixAsset 2013-CGAAP'!M45 -> 0 | M45: 0 | N45: 0 | P45: =AVERAGE(H45,'App 2-B FixAsset 2013-CGAAP'!H45) -> 0 | Q45: =AVERAGE(M45,'App 2-B FixAsset 2013-CGAAP'!M45) -> 0
A46: 8 | B46: 1950 | C46: Power Operated Equipment | E46: 6363.29 | F46: 2000 | H46: 8363.29 | J46: ='App 2-B FixAsset 2013-CGAAP'!M46 -> -4488.7 | K46: -375 | M46: -4863.7 | N46: 3499.59 | P46: =AVERAGE(H46,'App 2-B FixAsset 2013-CGAAP'!H46) -> 7363.29 | Q46: =AVERAGE(M46,'App 2-B FixAsset 2013-CGAAP'!M46) -> -4676.2 | R46: =SUM(Q16:Q46) -> -2287116.205
A47: 8 | B47: 1955 | C47: Communications Equipment | E47: 0 | H47: 0 | J47: ='App 2-B FixAsset 2013-CGAAP'!M47 -> 0 | M47: 0 | N47: 0 | P47: =AVERAGE(H47,'App 2-B FixAsset 2013-CGAAP'!H47) -> 0 | Q47: =AVERAGE(M47,'App 2-B FixAsset 2013-CGAAP'!M47) -> 0
A48: 8 | B48: 1955 | C48: Communication Equipment (Smart Meters) | E48: 0 | H48: 0 | J48: ='App 2-B FixAsset 2013-CGAAP'!M48 -> 0 | M48: 0 | N48: 0 | P48: =AVERAGE(H48,'App 2-B FixAsset 2013-CGAAP'!H48) -> 0 | Q48: =AVERAGE(M48,'App 2-B FixAsset 2013-CGAAP'!M48) -> 0
A49: 8 | B49: 1960 | C49: Miscellaneous Equipment | E49: 0 | H49: 0 | J49: ='App 2-B FixAsset 2013-CGAAP'!M49 -> 0 | M49: 0 | N49: 0 | P49: =AVERAGE(H49,'App 2-B FixAsset 2013-CGAAP'!H49) -> 0 | Q49: =AVERAGE(M49,'App 2-B FixAsset 2013-CGAAP'!M49) -> 0
A50: 47 | B50: 1975 | C50: Load Management Controls Utility Premises | E50: 0 | H50: 0 | J50: ='App 2-B FixAsset 2013-CGAAP'!M50 -> 0 | M50: 0 | N50: 0 | P50: =AVERAGE(H50,'App 2-B FixAsset 2013-CGAAP'!H50) -> 0 | Q50: =AVERAGE(M50,'App 2-B FixAsset 2013-CGAAP'!M50) -> 0
A51: 47 | B51: 1980 | C51: System Supervisor Equipment | E51: 0 | H51: 0 | J51: ='App 2-B FixAsset 2013-CGAAP'!M51 -> 0 | M51: 0 | N51: 0 | P51: =AVERAGE(H51,'App 2-B FixAsset 2013-CGAAP'!H51) -> 0 | Q51: =AVERAGE(M51,'App 2-B FixAsset 2013-CGAAP'!M51) -> 0
A52: 47 | B52: 1985 | C52: Miscellaneous Fixed Assets | E52: 0 | H52: 0 | J52: ='App 2-B FixAsset 2013-CGAAP'!M52 -> 0 | M52: 0 | N52: 0 | P52: =AVERAGE(H52,'App 2-B FixAsset 2013-CGAAP'!H52) -> 0 | Q52: =AVERAGE(M52,'App 2-B FixAsset 2013-CGAAP'!M52) -> 0
A53: 47 | B53: 1995 | C53: Contributions & Grants - ACCT 1830 | E53: -77570.38 | F53: 0 | H53: -77570.38 | J53: ='App 2-B FixAsset 2013-CGAAP'!M53 -> 4233.38 | K53: 1724 | M53: 5957.38 | N53: -71613 | P53: =AVERAGE(H53,'App 2-B FixAsset 2013-CGAAP'!H53) -> -77570.38 | Q53: =AVERAGE(M53,'App 2-B FixAsset 2013-CGAAP'!M53) -> 5095.38
A54: 47 | B54: 1995 | C54: Contributions & Grants - ACCT 1835 | E54: -49660.65 | F54: 0 | H54: -49660.65 | J54: 3017.65 | K54: 828 | M54: =J54+K54+L54 -> 3845.65 | N54: =H54+M54 -> -45815 | P54: =AVERAGE(H54,'App 2-B FixAsset 2013-CGAAP'!H54) -> -49660.65 | Q54: =AVERAGE(M54,'App 2-B FixAsset 2013-CGAAP'!M54) -> 3431.65
A55: 47 | B55: 1995 | C55: Contributions & Grants - ACCT 1840 | E55: -219.86 | F55: 0 | H55: -219.86 | J55: 43.86 | K55: 4 | M55: =J55+K55+L55 -> 47.86 | N55: =H55+M55 -> -172 | P55: =AVERAGE(H55,'App 2-B FixAsset 2013-CGAAP'!H55) -> -219.86 | Q55: =AVERAGE(M55,'App 2-B FixAsset 2013-CGAAP'!M55) -> 45.86
A56: 47 | B56: 1995 | C56: Contributions & Grants - ACCT 1845 | E56: -80350.46 | F56: 0 | H56: -80350.46 | J56: 13119.7 | K56: 2678 | M56: =J56+K56+L56 -> 15797.7 | N56: =H56+M56 -> -64552.76 | P56: =AVERAGE(H56,'App 2-B FixAsset 2013-CGAAP'!H56) -> -80350.46 | Q56: =AVERAGE(M56,'App 2-B FixAsset 2013-CGAAP'!M56) -> 14458.7
A57: 47 | B57: 1995 | C57: Contributions & Grants - ACCT 1850 | E57: -46712.83 | F57: 0 | H57: -46712.83 | J57: 7669.83 | K57: 1168 | M57: =J57+K57+L57 -> 8837.83 | N57: =H57+M57 -> -37875 | P57: =AVERAGE(H57,'App 2-B FixAsset 2013-CGAAP'!H57) -> -46712.83 | Q57: =AVERAGE(M57,'App 2-B FixAsset 2013-CGAAP'!M57) -> 8253.83
E58: 0 | J58: 0 | P58: =AVERAGE(H58,'App 2-B FixAsset 2013-CGAAP'!H58) -> 0 | Q58: =AVERAGE(M58,'App 2-B FixAsset 2013-CGAAP'!M58) -> 0
C60: Total | E60: =SUM(E16:E59) -> 7094053.31 | F60: =SUM(F16:F59) -> 272300 | G60: =SUM(G16:G59) -> -254843.38 | H60: =SUM(H16:H59) -> 7111509.93 | J60: =SUM(J16:J59) -> -2241075.85 | K60: =SUM(K16:K59) -> -222854 | L60: =SUM(L16:L59) -> 193343.13 | M60: =SUM(M16:M59) -> -2270586.72 | N60: =SUM(N16:N59) -> 4840923.21 | P60: =SUM(P16:P59) -> 7102781.665 | Q60: =SUM(Q16:Q59) -> -2255830.785
H61: =AVERAGE(H60,E60) -> 7102781.62 | K61: =AVERAGE(K60,'App 2-B FixAsset 2013-CGAAP'!K60) -> -212925.5 | M61: =AVERAGE(M60,J60) -> -2255831.285
J62: Less: Fully Allocated Depreciation
A63: 10 | C63: Transportation | J63: Transportation
A64: 8 | C64: Stores Equipment | J64: Stores Equipment
J65: Net Depreciation | L65: =L60-L63-L64 -> 193343.13
A67: Notes:
A69: 1 | B69: Tables in the format outlined above covering all fixed asset accounts should be submitted for the Test Year, Bridge Year and all relevant historical years. At a minimum , the applicant must provide data for the earlier of: 1) all historical years back to its last rebasing; or 2) at least three years of historical actuals, in addition to Bridge Year and Test Year forecasts.
A72: 2 | B72: The "CCA Class" for fixed assets should agree with the CCA Class used for tax purposes in Tax Returns. Fixed Assets sub-components may be used where the underlying asset components are classified under multiple CCA Classes for tax purposes. If an applicant uses any different classes from those shown in the table, an explanation should be provided. (also see note 3 below).
A75: 3 | B75: The table may need to be customized for a utility's asset categories or for any new asset accounts announced or authorized by the Board.
A77: 4 | B77: The depreciation column (D) is not required as the relevant information will be provided in the following 2-C series of appendices.
C80: =+G30+L30 -> -61500.25 | D80: Record in 1555 and recuperate through a separate rider
D81: or
D82: Record record $254,843.38 and affect rate base
C84: 1555 | D84: 61500
C85: 1860 | E85: 254843.38
C86: 2105 | D86: 193343.13
D87: =SUM(D84:D86) -> 254843.13 | E87: =SUM(E84:E86) -> 254843.38

Sheet App.2-B_FixAsset 2014-MIFRS (hidden)
M1: File Number: | N1: ='LDC Info'!$E$18 -> EB-2013-0139
M2: Exhibit:
M3: Tab:
M4: Schedule:
M5: Page:
M7: Date:
A9: Appendix 2-B
A10: Fixed Asset Continuity Schedule
F12: Year | G12: 2014
E14: Cost | K14: Accumulated Depreciation
A15: CCA Class | B15: OEB | C15: Description | D15: Depreciation Rate | E15: Opening Balance | F15: Additions | G15: Disposals | H15: Closing Balance | J15: Opening Balance | K15: Additions | L15: Disposals | M15: Closing Balance | N15: Net Book Value
A16: 12 | B16: 1611 | C16: Computer Software (Formally known as Account 1925) | H16: =E16+F16+G16 -> 0 | M16: =J16+K16+L16 -> 0 | N16: =H16+M16 -> 0
A17: CEC | B17: 1612 | C17: Land Rights (Formally known as Account 1906) | H17: =E17+F17+G17 -> 0 | M17: =J17+K17+L17 -> 0 | N17: =H17+M17 -> 0
A18: N/A | B18: 1805 | C18: Land | H18: =E18+F18+G18 -> 0 | M18: =J18+K18+L18 -> 0 | N18: =H18+M18 -> 0
A19: 47 | B19: 1808 | C19: Buildings | H19: =E19+F19+G19 -> 0 | M19: =J19+K19+L19 -> 0 | N19: =H19+M19 -> 0
A20: 13 | B20: 1810 | C20: Leasehold Improvements | H20: 0 | M20: 0 | N20: 0
A21: 47 | B21: 1815 | C21: Transformer Station Equipment >50 kV | H21: 0 | M21: 0 | N21: 0
A22: 47 | B22: 1820 | C22: Distribution Station Equipment <50 kV | H22: 0 | M22: 0 | N22: 0
A23: 47 | B23: 1825 | C23: Storage Battery Equipment | H23: 0 | M23: 0 | N23: 0
A24: 47 | B24: 1830 | C24: Poles, Towers & Fixtures | H24: 0 | M24: 0 | N24: 0
A25: 47 | B25: 1835 | C25: Overhead Conductors & Devices | H25: 0 | M25: 0 | N25: 0
A26: 47 | B26: 1840 | C26: Underground Conduit | H26: 0 | M26: 0 | N26: 0
A27: 47 | B27: 1845 | C27: Underground Conductors & Devices | H27: 0 | M27: 0 | N27: 0
A28: 47 | B28: 1850 | C28: Line Transformers | H28: 0 | M28: 0 | N28: 0
A29: 47 | B29: 1855 | C29: Services (Overhead & Underground) | H29: 0 | M29: 0 | N29: 0
A30: 47 | B30: 1860 | C30: Meters | H30: 0 | M30: 0 | N30: 0
A31: 47 | B31: 1860 | C31: Meters (Smart Meters) | H31: 0 | M31: 0 | N31: 0
A32: N/A | B32: 1905 | C32: Land | H32: 0 | M32: 0 | N32: 0
A33: 47 | B33: 1908 | C33: Buildings & Fixtures | H33: 0 | M33: 0 | N33: 0
A34: 13 | B34: 1910 | C34: Leasehold Improvements | H34: 0 | M34: 0 | N34: 0
A35: 8 | B35: 1915 | C35: Office Furniture & Equipment (10 years) | H35: 0 | M35: 0 | N35: 0
A36: 8 | B36: 1915 | C36: Office Furniture & Equipment (5 years) | H36: 0 | M36: 0 | N36: 0
A37: 10 | B37: 1920 | C37: Computer Equipment - Hardware | H37: 0 | M37: 0 | N37: 0
A38: 45 | B38: 1920 | C38: Computer Equip.-Hardware(Post Mar. 22/04) | H38: 0 | M38: 0 | N38: 0
A39: 45.1 | B39: 1920 | C39: Computer Equip.-Hardware(Post Mar. 19/07) | H39: 0 | M39: 0 | N39: 0
A40: 10 | B40: 1930 | C40: Transportation Equipment | H40: 0 | M40: 0 | N40: 0
A41: 8 | B41: 1935 | C41: Stores Equipment | H41: 0 | M41: 0 | N41: 0
A42: 8 | B42: 1940 | C42: Tools, Shop & Garage Equipment | H42: 0 | M42: 0 | N42: 0
A43: 8 | B43: 1945 | C43: Measurement & Testing Equipment | H43: 0 | M43: 0 | N43: 0
A44: 8 | B44: 1950 | C44: Power Operated Equipment | H44: 0 | M44: 0 | N44: 0
A45: 8 | B45: 1955 | C45: Communications Equipment | H45: 0 | M45: 0 | N45: 0
A46: 8 | B46: 1955 | C46: Communication Equipment (Smart Meters) | H46: 0 | M46: 0 | N46: 0
A47: 8 | B47: 1960 | C47: Miscellaneous Equipment | H47: 0 | M47: 0 | N47: 0
A48: 47 | B48: 1975 | C48: Load Management Controls Utility Premises | H48: 0 | M48: 0 | N48: 0
A49: 47 | B49: 1980 | C49: System Supervisor Equipment | H49: 0 | M49: 0 | N49: 0
A50: 47 | B50: 1985 | C50: Miscellaneous Fixed Assets | H50: 0 | M50: 0 | N50: 0
A51: 47 | B51: 1995 | C51: Contributions & Grants | H51: 0 | M51: 0 | N51: 0
C52: Smart Meter Additions (from 1555) | H52: 0 | M52: =J52+K52+L52 -> 0 | N52: =H52+M52 -> 0
A53: 8 | B53: 1860 | C53: Meters (Smart Meters) | H53: 0 | M53: =J53+K53+L53 -> 0 | N53: =H53+M53 -> 0
A54: 45.1 | B54: 1920 | C54: Computer Hardware (Smart Meters) | H54: 0 | M54: =J54+K54+L54 -> 0 | N54: =H54+M54 -> 0
A55: 12 | B55: 1925 | C55: Computer Software (Smart Meters) | H55: 0 | M55: =J55+K55+L55 -> 0 | N55: =H55+M55 -> 0
C58: Total | E58: =SUM(E16:E57) -> 0 | F58: =SUM(F16:F57) -> 0 | G58: =SUM(G16:G57) -> 0 | H58: =SUM(H16:H57) -> 0 | J58: =SUM(J16:J57) -> 0 | K58: =SUM(K16:K57) -> 0 | L58: =SUM(L16:L57) -> 0 | M58: =SUM(M16:M57) -> 0 | N58: =SUM(N16:N57) -> 0
J60: Less: Fully Allocated Depreciation
A61: 10 | C61: Transportation | J61: Transportation
A62: 8 | C62: Stores Equipment | J62: Stores Equipment
J63: Net Depreciation | L63: =L58-L61-L62 -> 0
A65: Notes:
A67: 1 | B67: Tables in the format outlined above covering all fixed asset accounts should be submitted for the Test Year, Bridge Year and all relevant historical years. At a minimum , the applicant must provide data for the earlier of: 1) all historical years back to its last rebasing; or 2) at least three years of historical actuals, in addition to Bridge Year and Test Year forecasts.
A70: 2 | B70: The "CCA Class" for fixed assets should agree with the CCA Class used for tax purposes in Tax Returns. Fixed Assets sub-components may be used where the underlying asset components are classified under multiple CCA Classes for tax purposes. If an applicant uses any different classes from those shown in the table, an explanation should be provided. (also see note 3 below).
A73: 3 | B73: The table may need to be customized for a utility's asset categories or for any new asset accounts announced or authorized by the Board.
A75: 4 | B75: The depreciation column (D) is not required as the relevant information will be provided in the following 2-C series of appendices.

Sheet App.2-CA_CGAAP_DepExp_2012 (hidden)
K1: File Number: | L1: ='LDC Info'!$E$18 -> EB-2013-0139
K2: Exhibit:
K3: Tab:
K4: Schedule:
K5: Page:
K7: Date:
A9: Appendix 2-CA
A10: Depreciation and Amortization Expense
A11: Assumes the applicant adopted IFRS for financial reporting purposes January 1, 2012
C12: Year | D12: 2011 | E12: CGAAP
A14: Account | B14: Description | C14: Opening Regulatory Gross PP&E as at Jan 1, 2011 | D14: Less Fully Depreciated | E14: Net for Depreciation | F14: Additions | G14: Total for Depreciation | H14: Years | I14: Depreciation Rate | J14: Depreciation Expense | K14: 2011 Depreciation Expense per Appendix 2-B Fixed Assets, Column K (l) | L14: Variance 2
C15: (a) | D15: (b) | E15: (c) | F15: (d) | G15: (e) = (c) + ½ x (d) 1 | H15: (f) | I15: (g) = 1 / (f) | J15: (h) = (e) / (f) | L15: (m) = (h) - (l)
A16: 1611 | B16: Computer Software (Formally known as Account 1925) | E16: =C16-D16 -> 0 | G16: =E16+0.5*F16 -> 0 | I16: =IF(H16=0,0,1/H16) -> 0 | J16: =IF(H16=0,0,G16/H16) -> 0 | L16: =IF(ISERROR(+J16-K16), 0, +J16-K16) -> 0
A17: 1612 | B17: Land Rights (Formally known as Account 1906) | E17: =C17-D17 -> 0 | G17: =E17+0.5*F17 -> 0 | I17: 0 | J17: 0 | L17: 0
A18: 1805 | B18: Land | E18: 0 | G18: 0 | I18: 0 | J18: 0 | L18: 0
A19: 1808 | B19: Buildings | E19: 0 | G19: 0 | I19: 0 | J19: 0 | L19: 0
A20: 1810 | B20: Leasehold Improvements | E20: 0 | G20: 0 | I20: 0 | J20: 0 | L20: 0
A21: 1815 | B21: Transformer Station Equipment >50 kV | E21: 0 | G21: 0 | I21: 0 | J21: 0 | L21: 0
A22: 1820 | B22: Distribution Station Equipment <50 kV | E22: 0 | G22: 0 | I22: 0 | J22: 0 | L22: 0
A23: 1825 | B23: Storage Battery Equipment | E23: 0 | G23: 0 | I23: 0 | J23: 0 | L23: 0
A24: 1830 | B24: Poles, Towers & Fixtures | E24: 0 | G24: 0 | I24: 0 | J24: 0 | L24: 0
A25: 1835 | B25: Overhead Conductors & Devices | E25: 0 | G25: 0 | I25: 0 | J25: 0 | L25: 0
A26: 1840 | B26: Underground Conduit | E26: 0 | G26: 0 | I26: 0 | J26: 0 | L26: 0
A27: 1845 | B27: Underground Conductors & Devices | E27: 0 | G27: 0 | I27: 0 | J27: 0 | L27: 0
A28: 1850 | B28: Line Transformers | E28: 0 | G28: 0 | I28: 0 | J28: 0 | L28: 0
A29: 1855 | B29: Services (Overhead & Underground) | E29: 0 | G29: 0 | I29: 0 | J29: 0 | L29: 0
A30: 1860 | B30: Meters | E30: 0 | G30: 0 | I30: 0 | J30: 0 | L30: 0
A31: 1860 | B31: Meters (Smart Meters) | E31: 0 | G31: 0 | I31: 0 | J31: 0 | L31: 0
A32: 1905 | B32: Land | E32: 0 | G32: 0 | I32: 0 | J32: 0 | L32: 0
A33: 1908 | B33: Buildings & Fixtures | E33: 0 | G33: 0 | I33: 0 | J33: 0 | L33: 0
A34: 1910 | B34: Leasehold Improvements | E34: 0 | G34: 0 | I34: 0 | J34: 0 | L34: 0
A35: 1915 | B35: Office Furniture & Equipment (10 years) | E35: 0 | G35: 0 | I35: 0 | J35: 0 | L35: 0
A36: 1915 | B36: Office Furniture & Equipment (5 years) | E36: 0 | G36: 0 | I36: 0 | J36: 0 | L36: 0
A37: 1920 | B37: Computer Equipment - Hardware | E37: 0 | G37: 0 | I37: 0 | J37: 0 | L37: 0
A38: 1920 | B38: Computer Equip.-Hardware(Post Mar. 22/04) | E38: 0 | G38: 0 | I38: 0 | J38: 0 | L38: 0
A39: 1920 | B39: Computer Equip.-Hardware(Post Mar. 19/07) | E39: 0 | G39: 0 | I39: 0 | J39: 0 | L39: 0
A40: 1930 | B40: Transportation Equipment | E40: 0 | G40: 0 | I40: 0 | J40: 0 | L40: 0
A41: 1935 | B41: Stores Equipment | E41: 0 | G41: 0 | I41: 0 | J41: 0 | L41: 0
A42: 1940 | B42: Tools, Shop & Garage Equipment | E42: 0 | G42: 0 | I42: 0 | J42: 0 | L42: 0
A43: 1945 | B43: Measurement & Testing Equipment | E43: 0 | G43: 0 | I43: 0 | J43: 0 | L43: 0
A44: 1950 | B44: Power Operated Equipment | E44: 0 | G44: 0 | I44: 0 | J44: 0 | L44: 0
A45: 1955 | B45: Communications Equipment | E45: 0 | G45: 0 | I45: 0 | J45: 0 | L45: 0
A46: 1955 | B46: Communication Equipment (Smart Meters) | E46: 0 | G46: 0 | I46: 0 | J46: 0 | L46: 0
A47: 1960 | B47: Miscellaneous Equipment | E47: 0 | G47: 0 | I47: 0 | J47: 0 | L47: 0
A48: 1975 | B48: Load Management Controls Utility Premises | E48: 0 | G48: 0 | I48: 0 | J48: 0 | L48: 0
A49: 1980 | B49: System Supervisor Equipment | E49: 0 | G49: 0 | I49: 0 | J49: 0 | L49: 0
A50: 1985 | B50: Miscellaneous Fixed Assets | E50: 0 | G50: 0 | I50: 0 | J50: 0 | L50: 0
A51: 1995 | B51: Contributions & Grants | E51: 0 | G51: 0 | I51: 0 | J51: 0 | L51: 0
A52: etc. | E52: 0 | G52: 0 | I52: 0 | J52: 0 | L52: 0
E53: 0 | G53: 0 | I53: 0 | J53: 0 | L53: 0
B54: Total | C54: =SUM(C16:C53) -> 0 | D54: =SUM(D16:D53) -> 0 | E54: =SUM(E16:E53) -> 0 | F54: =SUM(F16:F53) -> 0 | G54: =SUM(G16:G53) -> 0 | J54: =SUM(J16:J53) -> 0 | K54: =SUM(K16:K53) -> 0 | L54: =SUM(L16:L53) -> 0
A56: Notes:
A58: 1 | B58: Board policy of the "half-year" rule - the applicant must ensure that additions in the year attract a half-year depreciation expense in the first year. Deviations from this standard practice must be supported in the application.
A59: 2 | B59: The applicant must provide an explanation of material variances in evidence
A61: General | B61: Applicants must provide a breakdown of depreciation and amortization expense in the above format for all relevant accounts. Asset Retirement Obligations (AROs), depreciation and accretion expense should be disclosed separately consistent with the Notes of historical Audited Financial Statements.

Sheet App.2-CB_MIFRS_DepExp_2012 (hidden)
N1: File Number: | O1: ='LDC Info'!$E$18 -> EB-2013-0139
N2: Exhibit:
N3: Tab:
N4: Schedule:
N5: Page:
N7: Date:
A9: Appendix 2-CB
A10: Depreciation and Amortization Expense
A11: Assumes the applicant adopted IFRS for financial reporting purposes January 1, 2012
C12: Year | D12: 2011 | E12: MIFRS
A14: Account | B14: Description | C14: Opening NBV as at Jan 1, 2011 5 | D14: Additions | E14: Average Remaining Life of Opening NBV 4 | F14: Years (new additions only) 3 | G14: Depreciation Rate on New Additions | H14: Depreciation Expense on Opening NBV | I14: Depreciation Expense on Additions 1 | J14: 2011 Depreciation Expense | K14: 2011 Depreciation Expense per Appendix 2-B Fixed Assets, Column K (l) | L14: Variance 2 | M14: Depreciation Expense on 2011 Full Year Additions | N14: Less Depreciation Expense on Assets Fully Depreciated during the year (o) | O14: 2011 Full Year Depreciation 6
C15: (a) | D15: (d) | E15: (i) | F15: (f) | G15: (g) = 1 / (f) | H15: (j) = (a) / (i) | I15: (h)=((d)*0.5)/(f) | J15: (k) = (j) + (h) | L15: (m) = (k) - (l) | M15: (n) = (d)/(f) | O15: (p) = (j) + (n) - (o)
A16: 1611 | B16: Computer Software (Formally known as Account 1925) | G16: =IF(F16=0,0,1/F16) -> 0 | H16: =IF(E16=0,0,+C16/E16) -> 0 | I16: =IF(F16=0,0,+(D16*0.5)/F16) -> 0 | J16: =IF(ISERROR(+H16+I16), 0, +H16+I16) -> 0 | L16: =IF(ISERROR(+J16-K16), 0, +J16-K16) -> 0 | M16: =IF(F16=0,0,+(D16)/F16) -> 0 | O16: =IF(ISERROR(+M16+H16-N16), 0, +M16+H16-N16) -> 0
A17: 1612 | B17: Land Rights (Formally known as Account 1906) | G17: 0 | H17: 0 | I17: 0 | J17: 0 | L17: 0 | M17: 0 | O17: =IF(ISERROR(+M17+H17-N17), 0, +M17+H17-N17) -> 0
A18: 1805 | B18: Land | G18: 0 | H18: 0 | I18: 0 | J18: 0 | L18: 0 | M18: 0 | O18: 0
A19: 1808 | B19: Buildings | G19: 0 | H19: 0 | I19: 0 | J19: 0 | L19: 0 | M19: 0 | O19: 0
A20: 1810 | B20: Leasehold Improvements | G20: 0 | H20: 0 | I20: 0 | J20: 0 | L20: 0 | M20: 0 | O20: 0
A21: 1815 | B21: Transformer Station Equipment >50 kV | G21: 0 | H21: 0 | I21: 0 | J21: 0 | L21: 0 | M21: 0 | O21: 0
A22: 1820 | B22: Distribution Station Equipment <50 kV | G22: 0 | H22: 0 | I22: 0 | J22: 0 | L22: 0 | M22: 0 | O22: 0
A23: 1825 | B23: Storage Battery Equipment | G23: 0 | H23: 0 | I23: 0 | J23: 0 | L23: 0 | M23: 0 | O23: 0
A24: 1830 | B24: Poles, Towers & Fixtures | G24: 0 | H24: 0 | I24: 0 | J24: 0 | L24: 0 | M24: 0 | O24: 0
A25: 1835 | B25: Overhead Conductors & Devices | G25: 0 | H25: 0 | I25: 0 | J25: 0 | L25: 0 | M25: 0 | O25: 0
A26: 1840 | B26: Underground Conduit | G26: 0 | H26: 0 | I26: 0 | J26: 0 | L26: 0 | M26: 0 | O26: 0
A27: 1845 | B27: Underground Conductors & Devices | G27: 0 | H27: 0 | I27: 0 | J27: 0 | L27: 0 | M27: 0 | O27: 0
A28: 1850 | B28: Line Transformers | G28: 0 | H28: 0 | I28: 0 | J28: 0 | L28: 0 | M28: 0 | O28: 0
A29: 1855 | B29: Services (Overhead & Underground) | G29: 0 | H29: 0 | I29: 0 | J29: 0 | L29: 0 | M29: 0 | O29: 0
A30: 1860 | B30: Meters | G30: 0 | H30: 0 | I30: 0 | J30: 0 | L30: 0 | M30: 0 | O30: 0
A31: 1860 | B31: Meters (Smart Meters) | G31: 0 | H31: 0 | I31: 0 | J31: 0 | L31: 0 | M31: 0 | O31: 0
A32: 1905 | B32: Land | G32: 0 | H32: 0 | I32: 0 | J32: 0 | L32: 0 | M32: 0 | O32: 0
A33: 1908 | B33: Buildings & Fixtures | G33: 0 | H33: 0 | I33: 0 | J33: 0 | L33: 0 | M33: 0 | O33: 0
A34: 1910 | B34: Leasehold Improvements | G34: 0 | H34: 0 | I34: 0 | J34: 0 | L34: 0 | M34: 0 | O34: 0
A35: 1915 | B35: Office Furniture & Equipment (10 years) | G35: 0 | H35: 0 | I35: 0 | J35: 0 | L35: 0 | M35: 0 | O35: 0
A36: 1915 | B36: Office Furniture & Equipment (5 years) | G36: 0 | H36: 0 | I36: 0 | J36: 0 | L36: 0 | M36: 0 | O36: 0
A37: 1920 | B37: Computer Equipment - Hardware | G37: 0 | H37: 0 | I37: 0 | J37: 0 | L37: 0 | M37: 0 | O37: 0
A38: 1920 | B38: Computer Equip.-Hardware(Post Mar. 22/04) | G38: 0 | H38: 0 | I38: 0 | J38: 0 | L38: 0 | M38: 0 | O38: 0
A39: 1920 | B39: Computer Equip.-Hardware(Post Mar. 19/07) | G39: 0 | H39: 0 | I39: 0 | J39: 0 | L39: 0 | M39: 0 | O39: 0
A40: 1930 | B40: Transportation Equipment | G40: 0 | H40: 0 | I40: 0 | J40: 0 | L40: 0 | M40: 0 | O40: 0
A41: 1935 | B41: Stores Equipment | G41: 0 | H41: 0 | I41: 0 | J41: 0 | L41: 0 | M41: 0 | O41: 0
A42: 1940 | B42: Tools, Shop & Garage Equipment | G42: 0 | H42: 0 | I42: 0 | J42: 0 | L42: 0 | M42: 0 | O42: 0
A43: 1945 | B43: Measurement & Testing Equipment | G43: 0 | H43: 0 | I43: 0 | J43: 0 | L43: 0 | M43: 0 | O43: 0
A44: 1950 | B44: Power Operated Equipment | G44: 0 | H44: 0 | I44: 0 | J44: 0 | L44: 0 | M44: 0 | O44: 0
A45: 1955 | B45: Communications Equipment | G45: 0 | H45: 0 | I45: 0 | J45: 0 | L45: 0 | M45: 0 | O45: 0
A46: 1955 | B46: Communication Equipment (Smart Meters) | G46: 0 | H46: 0 | I46: 0 | J46: 0 | L46: 0 | M46: 0 | O46: 0
A47: 1960 | B47: Miscellaneous Equipment | G47: 0 | H47: 0 | I47: 0 | J47: 0 | L47: 0 | M47: 0 | O47: 0
A48: 1975 | B48: Load Management Controls Utility Premises | G48: 0 | H48: 0 | I48: 0 | J48: 0 | L48: 0 | M48: 0 | O48: 0
A49: 1980 | B49: System Supervisor Equipment | G49: 0 | H49: 0 | I49: 0 | J49: 0 | L49: 0 | M49: 0 | O49: 0
A50: 1985 | B50: Miscellaneous Fixed Assets | G50: 0 | H50: 0 | I50: 0 | J50: 0 | L50: 0 | M50: 0 | O50: 0
A51: 1995 | B51: Contributions & Grants | G51: 0 | H51: 0 | I51: 0 | J51: 0 | L51: 0 | M51: 0 | O51: 0
A52: etc. | G52: 0 | H52: 0 | I52: 0 | J52: 0 | L52: 0 | M52: 0 | O52: 0
G53: 0 | H53: 0 | I53: 0 | J53: 0 | L53: 0 | M53: 0 | O53: 0
B54: Total | C54: =SUM(C16:C53) -> 0 | D54: =SUM(D16:D53) -> 0 | H54: =SUM(H16:H53) -> 0 | I54: 0 | J54: 0 | K54: 0 | L54: 0 | M54: 0 | N54: =SUM(N16:N53) -> 0 | O54: 0
A56: Notes:
A58: 1 | B58: Board policy of the "half-year" rule - the applicant must ensure that additions in the year attract a half-year depreciation expense in the first year. Deviations from this standard practice must be supported in the application.
A59: 2 | B59: The applicant must provide an explanation of material variances in evidence
A60: 3 | B60: The applicant should ensure that the years for new additions of assets are the asset useful lives determined by management in accordance with IFRS.
A61: 4 | B61: A recalculation should be performed to determine the average remaining life of opening balance of assets (i.e. excluding 2011 additions) under IFRS. For example, Asset A had a useful life of 20 years under CGAAP. On January 1, 2011, the date of transition, Asset A was 3 years depreciated. As a result, Asset A would have a remaining service life of 17 years (20 years less 3 years) under CGAAP as of January 1, 2011. Due to the transition to IFRS, management re-assessed the asset useful lives under IFRS principles and concluded that the revised useful life of Asset A is now 30 years. Therefore, the average remaining useful life of opening balance of Asset A is determined to be 27 years (30 years less 3 years) under IFRS as of January 1, 2011.
A62: 5 | B62: NBV must exclude assets still on the books but which have been fully amortized or depreciated.
A63: 6 | B63: This column refers to the calculated full year depreciation but excludes the depreciation expense on assets fully depreciated during the year. This column is used for the purpose of calculating depreciation expense in the following year on the next worksheet.
A65: General: | B65: Applicants must provide a breakdown of depreciation and amortization expense in the above format for all relevant accounts. Asset Retirement Obligations (AROs), depreciation and accretion expense should be disclosed separately consistent with the Notes of historical Audited Financial Statements.

Sheet App.2-CC_MIFRS_DepExp_2013 (hidden)
J1: File Number: | K1: ='LDC Info'!$E$18 -> EB-2013-0139
J2: Exhibit:
J3: Tab:
J4: Schedule:
J5: Page:
J7: Date:
A9: Appendix 2-CC
A10: Depreciation and Amortization Expense
A11: Assumes the applicant adopted IFRS for financial reporting purposes January 1, 2012
C12: 2012 | D12: MIFRS
A14: Account | B14: Description | C14: Additions | D14: Years (new additions only) | E14: Depreciation Rate on New Additions | F14: 2012 Depreciation Expense 1 | G14: 2012 Depreciation Expense per Apppendix 2-B Fixed Assets, Column K (l) | H14: Variance 2 | I14: Depreciation Expense on 2012 Full Year Additions | J14: Less Depreciation Expense on Assets Fully Depreciated during the year (o) | K14: 2012 Full Year Depreciation 3
C15: (d) | D15: (f) | E15: (g) = 1 / (f) | F15: (h)=2011 Full Year Deprecation + ((d)*0.5)/(f) | H15: (m) = (h) - (l) | I15: (n)=((d))/(f) | K15: (o) = 2011 Full Year Depreciation + (n) - (o)
A16: 1611 | B16: Computer Software (Formally known as Account 1925) | E16: =IF(D16=0,0,1/D16) -> 0 | F16: =IF(D16=0,+'App.2-CB_MIFRS_DepExp_2012'!O16,+'App.2-CB_MIFRS_DepExp_2012'!O16+((C16*0.5)/D16)) -> 0 | H16: =IF(ISERROR(+F16-G16), 0, +F16-G16) -> 0 | I16: =IF(D16=0,0,+(C16)/D16) -> 0 | K16: =IF(ISERROR(+I16+'App.2-CB_MIFRS_DepExp_2012'!O16-J16), 0, +I16+'App.2-CB_MIFRS_DepExp_2012'!O16-J16) -> 0
A17: 1612 | B17: Land Rights (Formally known as Account 1906) | E17: 0 | F17: =IF(D17=0,+'App.2-CB_MIFRS_DepExp_2012'!O17,+'App.2-CB_MIFRS_DepExp_2012'!O17+((C17*0.5)/D17)) -> 0 | H17: 0 | I17: 0 | K17: =IF(ISERROR(+I17+'App.2-CB_MIFRS_DepExp_2012'!O17-J17), 0, +I17+'App.2-CB_MIFRS_DepExp_2012'!O17-J17) -> 0
A18: 1805 | B18: Land | E18: 0 | F18: =IF(D18=0,+'App.2-CB_MIFRS_DepExp_2012'!O18,+'App.2-CB_MIFRS_DepExp_2012'!O18+((C18*0.5)/D18)) -> 0 | H18: 0 | I18: 0 | K18: =IF(ISERROR(+I18+'App.2-CB_MIFRS_DepExp_2012'!O18-J18), 0, +I18+'App.2-CB_MIFRS_DepExp_2012'!O18-J18) -> 0
A19: 1808 | B19: Buildings | E19: 0 | F19: =IF(D19=0,+'App.2-CB_MIFRS_DepExp_2012'!O19,+'App.2-CB_MIFRS_DepExp_2012'!O19+((C19*0.5)/D19)) -> 0 | H19: 0 | I19: 0 | K19: =IF(ISERROR(+I19+'App.2-CB_MIFRS_DepExp_2012'!O19-J19), 0, +I19+'App.2-CB_MIFRS_DepExp_2012'!O19-J19) -> 0
A20: 1810 | B20: Leasehold Improvements | E20: 0 | F20: =IF(D20=0,+'App.2-CB_MIFRS_DepExp_2012'!O20,+'App.2-CB_MIFRS_DepExp_2012'!O20+((C20*0.5)/D20)) -> 0 | H20: 0 | I20: 0 | K20: =IF(ISERROR(+I20+'App.2-CB_MIFRS_DepExp_2012'!O20-J20), 0, +I20+'App.2-CB_MIFRS_DepExp_2012'!O20-J20) -> 0
A21: 1815 | B21: Transformer Station Equipment >50 kV | E21: 0 | F21: =IF(D21=0,+'App.2-CB_MIFRS_DepExp_2012'!O21,+'App.2-CB_MIFRS_DepExp_2012'!O21+((C21*0.5)/D21)) -> 0 | H21: 0 | I21: 0 | K21: =IF(ISERROR(+I21+'App.2-CB_MIFRS_DepExp_2012'!O21-J21), 0, +I21+'App.2-CB_MIFRS_DepExp_2012'!O21-J21) -> 0
A22: 1820 | B22: Distribution Station Equipment <50 kV | E22: 0 | F22: =IF(D22=0,+'App.2-CB_MIFRS_DepExp_2012'!O22,+'App.2-CB_MIFRS_DepExp_2012'!O22+((C22*0.5)/D22)) -> 0 | H22: 0 | I22: 0 | K22: =IF(ISERROR(+I22+'App.2-CB_MIFRS_DepExp_2012'!O22-J22), 0, +I22+'App.2-CB_MIFRS_DepExp_2012'!O22-J22) -> 0
A23: 1825 | B23: Storage Battery Equipment | E23: 0 | F23: =IF(D23=0,+'App.2-CB_MIFRS_DepExp_2012'!O23,+'App.2-CB_MIFRS_DepExp_2012'!O23+((C23*0.5)/D23)) -> 0 | H23: 0 | I23: 0 | K23: =IF(ISERROR(+I23+'App.2-CB_MIFRS_DepExp_2012'!O23-J23), 0, +I23+'App.2-CB_MIFRS_DepExp_2012'!O23-J23) -> 0
A24: 1830 | B24: Poles, Towers & Fixtures | E24: 0 | F24: =IF(D24=0,+'App.2-CB_MIFRS_DepExp_2012'!O24,+'App.2-CB_MIFRS_DepExp_2012'!O24+((C24*0.5)/D24)) -> 0 | H24: 0 | I24: 0 | K24: =IF(ISERROR(+I24+'App.2-CB_MIFRS_DepExp_2012'!O24-J24), 0, +I24+'App.2-CB_MIFRS_DepExp_2012'!O24-J24) -> 0
A25: 1835 | B25: Overhead Conductors & Devices | E25: 0 | F25: =IF(D25=0,+'App.2-CB_MIFRS_DepExp_2012'!O25,+'App.2-CB_MIFRS_DepExp_2012'!O25+((C25*0.5)/D25)) -> 0 | H25: 0 | I25: 0 | K25: =IF(ISERROR(+I25+'App.2-CB_MIFRS_DepExp_2012'!O25-J25), 0, +I25+'App.2-CB_MIFRS_DepExp_2012'!O25-J25) -> 0
A26: 1840 | B26: Underground Conduit | E26: 0 | F26: =IF(D26=0,+'App.2-CB_MIFRS_DepExp_2012'!O26,+'App.2-CB_MIFRS_DepExp_2012'!O26+((C26*0.5)/D26)) -> 0 | H26: 0 | I26: 0 | K26: =IF(ISERROR(+I26+'App.2-CB_MIFRS_DepExp_2012'!O26-J26), 0, +I26+'App.2-CB_MIFRS_DepExp_2012'!O26-J26) -> 0
A27: 1845 | B27: Underground Conductors & Devices | E27: 0 | F27: =IF(D27=0,+'App.2-CB_MIFRS_DepExp_2012'!O27,+'App.2-CB_MIFRS_DepExp_2012'!O27+((C27*0.5)/D27)) -> 0 | H27: 0 | I27: 0 | K27: =IF(ISERROR(+I27+'App.2-CB_MIFRS_DepExp_2012'!O27-J27), 0, +I27+'App.2-CB_MIFRS_DepExp_2012'!O27-J27) -> 0
A28: 1850 | B28: Line Transformers | E28: 0 | F28: =IF(D28=0,+'App.2-CB_MIFRS_DepExp_2012'!O28,+'App.2-CB_MIFRS_DepExp_2012'!O28+((C28*0.5)/D28)) -> 0 | H28: 0 | I28: 0 | K28: =IF(ISERROR(+I28+'App.2-CB_MIFRS_DepExp_2012'!O28-J28), 0, +I28+'App.2-CB_MIFRS_DepExp_2012'!O28-J28) -> 0
A29: 1855 | B29: Services (Overhead & Underground) | E29: 0 | F29: =IF(D29=0,+'App.2-CB_MIFRS_DepExp_2012'!O29,+'App.2-CB_MIFRS_DepExp_2012'!O29+((C29*0.5)/D29)) -> 0 | H29: 0 | I29: 0 | K29: =IF(ISERROR(+I29+'App.2-CB_MIFRS_DepExp_2012'!O29-J29), 0, +I29+'App.2-CB_MIFRS_DepExp_2012'!O29-J29) -> 0
A30: 1860 | B30: Meters | E30: 0 | F30: =IF(D30=0,+'App.2-CB_MIFRS_DepExp_2012'!O30,+'App.2-CB_MIFRS_DepExp_2012'!O30+((C30*0.5)/D30)) -> 0 | H30: 0 | I30: 0 | K30: =IF(ISERROR(+I30+'App.2-CB_MIFRS_DepExp_2012'!O30-J30), 0, +I30+'App.2-CB_MIFRS_DepExp_2012'!O30-J30) -> 0
A31: 1860 | B31: Meters (Smart Meters) | E31: 0 | F31: =IF(D31=0,+'App.2-CB_MIFRS_DepExp_2012'!O31,+'App.2-CB_MIFRS_DepExp_2012'!O31+((C31*0.5)/D31)) -> 0 | H31: 0 | I31: 0 | K31: =IF(ISERROR(+I31+'App.2-CB_MIFRS_DepExp_2012'!O31-J31), 0, +I31+'App.2-CB_MIFRS_DepExp_2012'!O31-J31) -> 0
A32: 1905 | B32: Land | E32: 0 | F32: =IF(D32=0,+'App.2-CB_MIFRS_DepExp_2012'!O32,+'App.2-CB_MIFRS_DepExp_2012'!O32+((C32*0.5)/D32)) -> 0 | H32: 0 | I32: 0 | K32: =IF(ISERROR(+I32+'App.2-CB_MIFRS_DepExp_2012'!O32-J32), 0, +I32+'App.2-CB_MIFRS_DepExp_2012'!O32-J32) -> 0
A33: 1908 | B33: Buildings & Fixtures | E33: 0 | F33: =IF(D33=0,+'App.2-CB_MIFRS_DepExp_2012'!O33,+'App.2-CB_MIFRS_DepExp_2012'!O33+((C33*0.5)/D33)) -> 0 | H33: 0 | I33: 0 | K33: =IF(ISERROR(+I33+'App.2-CB_MIFRS_DepExp_2012'!O33-J33), 0, +I33+'App.2-CB_MIFRS_DepExp_2012'!O33-J33) -> 0
A34: 1910 | B34: Leasehold Improvements | E34: 0 | F34: =IF(D34=0,+'App.2-CB_MIFRS_DepExp_2012'!O34,+'App.2-CB_MIFRS_DepExp_2012'!O34+((C34*0.5)/D34)) -> 0 | H34: 0 | I34: 0 | K34: =IF(ISERROR(+I34+'App.2-CB_MIFRS_DepExp_2012'!O34-J34), 0, +I34+'App.2-CB_MIFRS_DepExp_2012'!O34-J34) -> 0
A35: 1915 | B35: Office Furniture & Equipment (10 years) | E35: 0 | F35: =IF(D35=0,+'App.2-CB_MIFRS_DepExp_2012'!O35,+'App.2-CB_MIFRS_DepExp_2012'!O35+((C35*0.5)/D35)) -> 0 | H35: 0 | I35: 0 | K35: =IF(ISERROR(+I35+'App.2-CB_MIFRS_DepExp_2012'!O35-J35), 0, +I35+'App.2-CB_MIFRS_DepExp_2012'!O35-J35) -> 0
A36: 1915 | B36: Office Furniture & Equipment (5 years) | E36: 0 | F36: =IF(D36=0,+'App.2-CB_MIFRS_DepExp_2012'!O36,+'App.2-CB_MIFRS_DepExp_2012'!O36+((C36*0.5)/D36)) -> 0 | H36: 0 | I36: 0 | K36: =IF(ISERROR(+I36+'App.2-CB_MIFRS_DepExp_2012'!O36-J36), 0, +I36+'App.2-CB_MIFRS_DepExp_2012'!O36-J36) -> 0
A37: 1920 | B37: Computer Equipment - Hardware | E37: 0 | F37: =IF(D37=0,+'App.2-CB_MIFRS_DepExp_2012'!O37,+'App.2-CB_MIFRS_DepExp_2012'!O37+((C37*0.5)/D37)) -> 0 | H37: 0 | I37: 0 | K37: =IF(ISERROR(+I37+'App.2-CB_MIFRS_DepExp_2012'!O37-J37), 0, +I37+'App.2-CB_MIFRS_DepExp_2012'!O37-J37) -> 0
A38: 1920 | B38: Computer Equip.-Hardware(Post Mar. 22/04) | E38: 0 | F38: =IF(D38=0,+'App.2-CB_MIFRS_DepExp_2012'!O38,+'App.2-CB_MIFRS_DepExp_2012'!O38+((C38*0.5)/D38)) -> 0 | H38: 0 | I38: 0 | K38: =IF(ISERROR(+I38+'App.2-CB_MIFRS_DepExp_2012'!O38-J38), 0, +I38+'App.2-CB_MIFRS_DepExp_2012'!O38-J38) -> 0
A39: 1920 | B39: Computer Equip.-Hardware(Post Mar. 19/07) | E39: 0 | F39: =IF(D39=0,+'App.2-CB_MIFRS_DepExp_2012'!O39,+'App.2-CB_MIFRS_DepExp_2012'!O39+((C39*0.5)/D39)) -> 0 | H39: 0 | I39: 0 | K39: =IF(ISERROR(+I39+'App.2-CB_MIFRS_DepExp_2012'!O39-J39), 0, +I39+'App.2-CB_MIFRS_DepExp_2012'!O39-J39) -> 0
A40: 1930 | B40: Transportation Equipment | E40: 0 | F40: =IF(D40=0,+'App.2-CB_MIFRS_DepExp_2012'!O40,+'App.2-CB_MIFRS_DepExp_2012'!O40+((C40*0.5)/D40)) -> 0 | H40: 0 | I40: 0 | K40: =IF(ISERROR(+I40+'App.2-CB_MIFRS_DepExp_2012'!O40-J40), 0, +I40+'App.2-CB_MIFRS_DepExp_2012'!O40-J40) -> 0
A41: 1935 | B41: Stores Equipment | E41: 0 | F41: =IF(D41=0,+'App.2-CB_MIFRS_DepExp_2012'!O41,+'App.2-CB_MIFRS_DepExp_2012'!O41+((C41*0.5)/D41)) -> 0 | H41: 0 | I41: 0 | K41: =IF(ISERROR(+I41+'App.2-CB_MIFRS_DepExp_2012'!O41-J41), 0, +I41+'App.2-CB_MIFRS_DepExp_2012'!O41-J41) -> 0
A42: 1940 | B42: Tools, Shop & Garage Equipment | E42: 0 | F42: =IF(D42=0,+'App.2-CB_MIFRS_DepExp_2012'!O42,+'App.2-CB_MIFRS_DepExp_2012'!O42+((C42*0.5)/D42)) -> 0 | H42: 0 | I42: 0 | K42: =IF(ISERROR(+I42+'App.2-CB_MIFRS_DepExp_2012'!O42-J42), 0, +I42+'App.2-CB_MIFRS_DepExp_2012'!O42-J42) -> 0
A43: 1945 | B43: Measurement & Testing Equipment | E43: 0 | F43: =IF(D43=0,+'App.2-CB_MIFRS_DepExp_2012'!O43,+'App.2-CB_MIFRS_DepExp_2012'!O43+((C43*0.5)/D43)) -> 0 | H43: 0 | I43: 0 | K43: =IF(ISERROR(+I43+'App.2-CB_MIFRS_DepExp_2012'!O43-J43), 0, +I43+'App.2-CB_MIFRS_DepExp_2012'!O43-J43) -> 0
A44: 1950 | B44: Power Operated Equipment | E44: 0 | F44: =IF(D44=0,+'App.2-CB_MIFRS_DepExp_2012'!O44,+'App.2-CB_MIFRS_DepExp_2012'!O44+((C44*0.5)/D44)) -> 0 | H44: 0 | I44: 0 | K44: =IF(ISERROR(+I44+'App.2-CB_MIFRS_DepExp_2012'!O44-J44), 0, +I44+'App.2-CB_MIFRS_DepExp_2012'!O44-J44) -> 0
A45: 1955 | B45: Communications Equipment | E45: 0 | F45: =IF(D45=0,+'App.2-CB_MIFRS_DepExp_2012'!O45,+'App.2-CB_MIFRS_DepExp_2012'!O45+((C45*0.5)/D45)) -> 0 | H45: 0 | I45: 0 | K45: =IF(ISERROR(+I45+'App.2-CB_MIFRS_DepExp_2012'!O45-J45), 0, +I45+'App.2-CB_MIFRS_DepExp_2012'!O45-J45) -> 0
A46: 1955 | B46: Communication Equipment (Smart Meters) | E46: 0 | F46: =IF(D46=0,+'App.2-CB_MIFRS_DepExp_2012'!O46,+'App.2-CB_MIFRS_DepExp_2012'!O46+((C46*0.5)/D46)) -> 0 | H46: 0 | I46: 0 | K46: =IF(ISERROR(+I46+'App.2-CB_MIFRS_DepExp_2012'!O46-J46), 0, +I46+'App.2-CB_MIFRS_DepExp_2012'!O46-J46) -> 0
A47: 1960 | B47: Miscellaneous Equipment | E47: 0 | F47: =IF(D47=0,+'App.2-CB_MIFRS_DepExp_2012'!O47,+'App.2-CB_MIFRS_DepExp_2012'!O47+((C47*0.5)/D47)) -> 0 | H47: 0 | I47: 0 | K47: =IF(ISERROR(+I47+'App.2-CB_MIFRS_DepExp_2012'!O47-J47), 0, +I47+'App.2-CB_MIFRS_DepExp_2012'!O47-J47) -> 0
A48: 1975 | B48: Load Management Controls Utility Premises | E48: 0 | F48: =IF(D48=0,+'App.2-CB_MIFRS_DepExp_2012'!O48,+'App.2-CB_MIFRS_DepExp_2012'!O48+((C48*0.5)/D48)) -> 0 | H48: 0 | I48: 0 | K48: =IF(ISERROR(+I48+'App.2-CB_MIFRS_DepExp_2012'!O48-J48), 0, +I48+'App.2-CB_MIFRS_DepExp_2012'!O48-J48) -> 0
A49: 1980 | B49: System Supervisor Equipment | E49: 0 | F49: =IF(D49=0,+'App.2-CB_MIFRS_DepExp_2012'!O49,+'App.2-CB_MIFRS_DepExp_2012'!O49+((C49*0.5)/D49)) -> 0 | H49: 0 | I49: 0 | K49: =IF(ISERROR(+I49+'App.2-CB_MIFRS_DepExp_2012'!O49-J49), 0, +I49+'App.2-CB_MIFRS_DepExp_2012'!O49-J49) -> 0
A50: 1985 | B50: Miscellaneous Fixed Assets | E50: 0 | F50: =IF(D50=0,+'App.2-CB_MIFRS_DepExp_2012'!O50,+'App.2-CB_MIFRS_DepExp_2012'!O50+((C50*0.5)/D50)) -> 0 | H50: 0 | I50: 0 | K50: =IF(ISERROR(+I50+'App.2-CB_MIFRS_DepExp_2012'!O50-J50), 0, +I50+'App.2-CB_MIFRS_DepExp_2012'!O50-J50) -> 0
A51: 1995 | B51: Contributions & Grants | E51: 0 | F51: =IF(D51=0,+'App.2-CB_MIFRS_DepExp_2012'!O51,+'App.2-CB_MIFRS_DepExp_2012'!O51+((C51*0.5)/D51)) -> 0 | H51: 0 | I51: 0 | K51: =IF(ISERROR(+I51+'App.2-CB_MIFRS_DepExp_2012'!O51-J51), 0, +I51+'App.2-CB_MIFRS_DepExp_2012'!O51-J51) -> 0
A52: etc. | E52: 0 | F52: =IF(D52=0,+'App.2-CB_MIFRS_DepExp_2012'!O52,+'App.2-CB_MIFRS_DepExp_2012'!O52+((C52*0.5)/D52)) -> 0 | H52: 0 | I52: 0 | K52: =IF(ISERROR(+I52+'App.2-CB_MIFRS_DepExp_2012'!O52-J52), 0, +I52+'App.2-CB_MIFRS_DepExp_2012'!O52-J52) -> 0
E53: 0 | F53: =IF(D53=0,+'App.2-CB_MIFRS_DepExp_2012'!O53,+'App.2-CB_MIFRS_DepExp_2012'!O53+((C53*0.5)/D53)) -> 0 | H53: 0 | I53: 0 | K53: =IF(ISERROR(+I53+'App.2-CB_MIFRS_DepExp_2012'!O53-J53), 0, +I53+'App.2-CB_MIFRS_DepExp_2012'!O53-J53) -> 0
B54: Total | C54: =SUM(C16:C53) -> 0 | F54: =SUM(F16:F53) -> 0 | G54: 0 | H54: 0 | I54: 0 | J54: 0 | K54: 0
A56: Notes:
A57: 1 | B57: Board policy of the "half-year" rule - the applicant must ensure that additions in the year attract a half-year depreciation expense in the first year. Deviations from this standard practice must be supported in the application.
A58: 2 | B58: The applicant must provide an explanation of material variances in evidence
A59: 3 | B59: This column refers to the calculated full year depreciation but excludes the depreciation expense on assets fully depreciated during the year. This column is used for the purpose of calculating depreciation expense in the following year on the next worksheet.
A61: General: | B61: Applicants must provide a breakdown of depreciation and amortization expense in the above format for all relevant accounts. Asset Retirement Obligations (AROs), depreciation and accretion expense should be disclosed separately consistent with the Notes of historical Audited Financial Statements.

Sheet App.2-CD_MIFRS_DepExp_2014 (hidden)
G1: File Number: | H1: ='LDC Info'!$E$18 -> EB-2013-0139
G2: Exhibit:
G3: Tab:
G4: Schedule:
G5: Page:
G7: Date:
A9: Appendix 2-CD
A10: Depreciation and Amortization Expense
A11: Assumes the applicant adopted IFRS for financial reporting purposes January 1, 2012
C12: 2013 | D12: MIFRS
A14: Account | B14: Description | C14: Additions | D14: Years (new additions only) | E14: Depreciation Rate on New Additions | F14: 2013 Depreciation Expense 1 | G14: 2013 Depreciation Expense per Appendix 2-B Fixed Assets, Column K (l) | H14: Variance 2
C15: (d) | D15: (f) | E15: (g) = 1 / (f) | F15: (h)=2012 Full Year Depreciation + ((d)*0.5)/(f) | H15: (m) = (h) - (l)
A16: 1611 | B16: Computer Software (Formally known as Account 1925) | E16: =IF(D16=0,0,1/D16) -> 0 | F16: =IF(D16=0,'App.2-CC_MIFRS_DepExp_2013'!K16,+'App.2-CC_MIFRS_DepExp_2013'!K16+((C16*0.5)/D16)) -> 0 | H16: =IF(ISERROR(+F16-G16), 0, +F16-G16) -> 0
A17: 1612 | B17: Land Rights (Formally known as Account 1906) | E17: 0 | F17: =IF(D17=0,'App.2-CC_MIFRS_DepExp_2013'!K17,+'App.2-CC_MIFRS_DepExp_2013'!K17+((C17*0.5)/D17)) -> 0 | H17: 0
A18: 1805 | B18: Land | E18: 0 | F18: =IF(D18=0,'App.2-CC_MIFRS_DepExp_2013'!K18,+'App.2-CC_MIFRS_DepExp_2013'!K18+((C18*0.5)/D18)) -> 0 | H18: 0
A19: 1808 | B19: Buildings | E19: 0 | F19: =IF(D19=0,'App.2-CC_MIFRS_DepExp_2013'!K19,+'App.2-CC_MIFRS_DepExp_2013'!K19+((C19*0.5)/D19)) -> 0 | H19: 0
A20: 1810 | B20: Leasehold Improvements | E20: 0 | F20: =IF(D20=0,'App.2-CC_MIFRS_DepExp_2013'!K20,+'App.2-CC_MIFRS_DepExp_2013'!K20+((C20*0.5)/D20)) -> 0 | H20: 0
A21: 1815 | B21: Transformer Station Equipment >50 kV | E21: 0 | F21: =IF(D21=0,'App.2-CC_MIFRS_DepExp_2013'!K21,+'App.2-CC_MIFRS_DepExp_2013'!K21+((C21*0.5)/D21)) -> 0 | H21: 0
A22: 1820 | B22: Distribution Station Equipment <50 kV | E22: 0 | F22: =IF(D22=0,'App.2-CC_MIFRS_DepExp_2013'!K22,+'App.2-CC_MIFRS_DepExp_2013'!K22+((C22*0.5)/D22)) -> 0 | H22: 0
A23: 1825 | B23: Storage Battery Equipment | E23: 0 | F23: =IF(D23=0,'App.2-CC_MIFRS_DepExp_2013'!K23,+'App.2-CC_MIFRS_DepExp_2013'!K23+((C23*0.5)/D23)) -> 0 | H23: 0
A24: 1830 | B24: Poles, Towers & Fixtures | E24: 0 | F24: =IF(D24=0,'App.2-CC_MIFRS_DepExp_2013'!K24,+'App.2-CC_MIFRS_DepExp_2013'!K24+((C24*0.5)/D24)) -> 0 | H24: 0
A25: 1835 | B25: Overhead Conductors & Devices | E25: 0 | F25: =IF(D25=0,'App.2-CC_MIFRS_DepExp_2013'!K25,+'App.2-CC_MIFRS_DepExp_2013'!K25+((C25*0.5)/D25)) -> 0 | H25: 0
A26: 1840 | B26: Underground Conduit | E26: 0 | F26: =IF(D26=0,'App.2-CC_MIFRS_DepExp_2013'!K26,+'App.2-CC_MIFRS_DepExp_2013'!K26+((C26*0.5)/D26)) -> 0 | H26: 0
A27: 1845 | B27: Underground Conductors & Devices | E27: 0 | F27: =IF(D27=0,'App.2-CC_MIFRS_DepExp_2013'!K27,+'App.2-CC_MIFRS_DepExp_2013'!K27+((C27*0.5)/D27)) -> 0 | H27: 0
A28: 1850 | B28: Line Transformers | E28: 0 | F28: =IF(D28=0,'App.2-CC_MIFRS_DepExp_2013'!K28,+'App.2-CC_MIFRS_DepExp_2013'!K28+((C28*0.5)/D28)) -> 0 | H28: 0
A29: 1855 | B29: Services (Overhead & Underground) | E29: 0 | F29: =IF(D29=0,'App.2-CC_MIFRS_DepExp_2013'!K29,+'App.2-CC_MIFRS_DepExp_2013'!K29+((C29*0.5)/D29)) -> 0 | H29: 0
A30: 1860 | B30: Meters | E30: 0 | F30: =IF(D30=0,'App.2-CC_MIFRS_DepExp_2013'!K30,+'App.2-CC_MIFRS_DepExp_2013'!K30+((C30*0.5)/D30)) -> 0 | H30: 0
A31: 1860 | B31: Meters (Smart Meters) | E31: 0 | F31: =IF(D31=0,'App.2-CC_MIFRS_DepExp_2013'!K31,+'App.2-CC_MIFRS_DepExp_2013'!K31+((C31*0.5)/D31)) -> 0 | H31: 0
A32: 1905 | B32: Land | E32: 0 | F32: =IF(D32=0,'App.2-CC_MIFRS_DepExp_2013'!K32,+'App.2-CC_MIFRS_DepExp_2013'!K32+((C32*0.5)/D32)) -> 0 | H32: 0
A33: 1908 | B33: Buildings & Fixtures | E33: 0 | F33: =IF(D33=0,'App.2-CC_MIFRS_DepExp_2013'!K33,+'App.2-CC_MIFRS_DepExp_2013'!K33+((C33*0.5)/D33)) -> 0 | H33: 0
A34: 1910 | B34: Leasehold Improvements | E34: 0 | F34: =IF(D34=0,'App.2-CC_MIFRS_DepExp_2013'!K34,+'App.2-CC_MIFRS_DepExp_2013'!K34+((C34*0.5)/D34)) -> 0 | H34: 0
A35: 1915 | B35: Office Furniture & Equipment (10 years) | E35: 0 | F35: =IF(D35=0,'App.2-CC_MIFRS_DepExp_2013'!K35,+'App.2-CC_MIFRS_DepExp_2013'!K35+((C35*0.5)/D35)) -> 0 | H35: 0
A36: 1915 | B36: Office Furniture & Equipment (5 years) | E36: 0 | F36: =IF(D36=0,'App.2-CC_MIFRS_DepExp_2013'!K36,+'App.2-CC_MIFRS_DepExp_2013'!K36+((C36*0.5)/D36)) -> 0 | H36: 0
A37: 1920 | B37: Computer Equipment - Hardware | E37: 0 | F37: =IF(D37=0,'App.2-CC_MIFRS_DepExp_2013'!K37,+'App.2-CC_MIFRS_DepExp_2013'!K37+((C37*0.5)/D37)) -> 0 | H37: 0
A38: 1920 | B38: Computer Equip.-Hardware(Post Mar. 22/04) | E38: 0 | F38: =IF(D38=0,'App.2-CC_MIFRS_DepExp_2013'!K38,+'App.2-CC_MIFRS_DepExp_2013'!K38+((C38*0.5)/D38)) -> 0 | H38: 0
A39: 1920 | B39: Computer Equip.-Hardware(Post Mar. 19/07) | E39: 0 | F39: =IF(D39=0,'App.2-CC_MIFRS_DepExp_2013'!K39,+'App.2-CC_MIFRS_DepExp_2013'!K39+((C39*0.5)/D39)) -> 0 | H39: 0
A40: 1930 | B40: Transportation Equipment | E40: 0 | F40: =IF(D40=0,'App.2-CC_MIFRS_DepExp_2013'!K40,+'App.2-CC_MIFRS_DepExp_2013'!K40+((C40*0.5)/D40)) -> 0 | H40: 0
A41: 1935 | B41: Stores Equipment | E41: 0 | F41: =IF(D41=0,'App.2-CC_MIFRS_DepExp_2013'!K41,+'App.2-CC_MIFRS_DepExp_2013'!K41+((C41*0.5)/D41)) -> 0 | H41: 0
A42: 1940 | B42: Tools, Shop & Garage Equipment | E42: 0 | F42: =IF(D42=0,'App.2-CC_MIFRS_DepExp_2013'!K42,+'App.2-CC_MIFRS_DepExp_2013'!K42+((C42*0.5)/D42)) -> 0 | H42: 0
A43: 1945 | B43: Measurement & Testing Equipment | E43: 0 | F43: =IF(D43=0,'App.2-CC_MIFRS_DepExp_2013'!K43,+'App.2-CC_MIFRS_DepExp_2013'!K43+((C43*0.5)/D43)) -> 0 | H43: 0
A44: 1950 | B44: Power Operated Equipment | E44: 0 | F44: =IF(D44=0,'App.2-CC_MIFRS_DepExp_2013'!K44,+'App.2-CC_MIFRS_DepExp_2013'!K44+((C44*0.5)/D44)) -> 0 | H44: 0
A45: 1955 | B45: Communications Equipment | E45: 0 | F45: =IF(D45=0,'App.2-CC_MIFRS_DepExp_2013'!K45,+'App.2-CC_MIFRS_DepExp_2013'!K45+((C45*0.5)/D45)) -> 0 | H45: 0
A46: 1955 | B46: Communication Equipment (Smart Meters) | E46: 0 | F46: =IF(D46=0,'App.2-CC_MIFRS_DepExp_2013'!K46,+'App.2-CC_MIFRS_DepExp_2013'!K46+((C46*0.5)/D46)) -> 0 | H46: 0
A47: 1960 | B47: Miscellaneous Equipment | E47: 0 | F47: =IF(D47=0,'App.2-CC_MIFRS_DepExp_2013'!K47,+'App.2-CC_MIFRS_DepExp_2013'!K47+((C47*0.5)/D47)) -> 0 | H47: 0
A48: 1975 | B48: Load Management Controls Utility Premises | E48: 0 | F48: =IF(D48=0,'App.2-CC_MIFRS_DepExp_2013'!K48,+'App.2-CC_MIFRS_DepExp_2013'!K48+((C48*0.5)/D48)) -> 0 | H48: 0
A49: 1980 | B49: System Supervisor Equipment | E49: 0 | F49: =IF(D49=0,'App.2-CC_MIFRS_DepExp_2013'!K49,+'App.2-CC_MIFRS_DepExp_2013'!K49+((C49*0.5)/D49)) -> 0 | H49: 0
A50: 1985 | B50: Miscellaneous Fixed Assets | E50: 0 | F50: =IF(D50=0,'App.2-CC_MIFRS_DepExp_2013'!K50,+'App.2-CC_MIFRS_DepExp_2013'!K50+((C50*0.5)/D50)) -> 0 | H50: 0
A51: 1995 | B51: Contributions & Grants | E51: 0 | F51: =IF(D51=0,'App.2-CC_MIFRS_DepExp_2013'!K51,+'App.2-CC_MIFRS_DepExp_2013'!K51+((C51*0.5)/D51)) -> 0 | H51: 0
A52: etc. | E52: 0 | F52: =IF(D52=0,'App.2-CC_MIFRS_DepExp_2013'!K52,+'App.2-CC_MIFRS_DepExp_2013'!K52+((C52*0.5)/D52)) -> 0 | H52: 0
E53: 0 | F53: =IF(D53=0,'App.2-CC_MIFRS_DepExp_2013'!K53,+'App.2-CC_MIFRS_DepExp_2013'!K53+((C53*0.5)/D53)) -> 0 | H53: 0
B54: Total | C54: =SUM(C16:C53) -> 0 | F54: =SUM(F16:F53) -> 0 | G54: =SUM(G16:G53) -> 0 | H54: =SUM(H16:H53) -> 0
B55: Depreciation expense adjustment resulting from amortization of Account 1575 | F55: 0
B56: Total Depreciation expense to be included in the test year revenue requirement | F56: =+F54+F55 -> 0
A57: Notes:
A58: 1 | B58: Board policy of the "half-year" rule - the applicant must ensure that additions in the year attract a half-year depreciation expense in the first year. Deviations from this standard practice must be supported in the application.
A59: 2 | B59: The applicant must provide an explanation of material variances in evidence
A61: General: | B61: Applicants must provide a breakdown of depreciation and amortization expense in the above format for all relevant accounts. Asset Retirement Obligations (AROs), depreciation and accretion expense should be disclosed separately consistent with the Notes of historical Audited Financial Statements.

Sheet App.2-CG_MIFRS_DepExp_2013 (hidden)
N1: File Number: | O1: ='LDC Info'!$E$18 -> EB-2013-0139
N2: Exhibit:
N3: Tab:
N4: Schedule:
N5: Page:
N7: Date:
A9: Appendix 2-CG
A10: Depreciation and Amortization Expense
A11: Assumes the applicant adopted IFRS for financial reporting purposes January 1, 2013
C12: Year | D12: 2012 | E12: MIFRS
A14: Account | B14: Description | C14: Opening NBV as at Jan 1, 2012 5 | D14: Additions | E14: Average Remaining Life of Opening NBV 4 | F14: Years (new additions only) 3 | G14: Depreciation Rate on New Additions | H14: Depreciation Expense on Opening NBV | I14: Depreciation Expense on Additions 1 | J14: 2012 Depreciation Expense | K14: 2012 Depreciation Expense per Appendix 2-B Fixed Assets, Column K (l) | L14: Variance 2 | M14: Depreciation Expense on 2012 Full Year Additions | N14: Less Depreciation Expense on Assets Fully Depreciated during the year (o) | O14: 2012 Full Year Depreciation 6
C15: (a) | D15: (d) | E15: (i) | F15: (f) | G15: (g) = 1 / (f) | H15: (j) = (a) / (i) | I15: (h)=((d)*0.5)/(f) | J15: (k) = (j) + (h) | L15: (m) = (k) - (l) | M15: (n)=((d))/(f) | O15: (p) = (j) + (n) - (o)
A16: 1611 | B16: Computer Software (Formally known as Account 1925) | G16: =IF(F16=0,0,1/F16) -> 0 | H16: =IF(E16=0,0,+C16/E16) -> 0 | I16: =IF(F16=0,0,+(D16*0.5)/F16) -> 0 | J16: =IF(ISERROR(+H16+I16), 0, +H16+I16) -> 0 | L16: =IF(ISERROR(+J16-K16), 0, +J16-K16) -> 0 | M16: =IF(F16=0,0,+(D16)/F16) -> 0 | O16: =IF(ISERROR(+M16+H16-N16), 0, +M16+H16-N16) -> 0
A17: 1612 | B17: Land Rights (Formally known as Account 1906) | G17: 0 | H17: 0 | I17: 0 | J17: 0 | L17: 0 | M17: 0 | O17: =IF(ISERROR(+M17+H17-N17), 0, +M17+H17-N17) -> 0
A18: 1805 | B18: Land | G18: 0 | H18: 0 | I18: 0 | J18: 0 | L18: 0 | M18: 0 | O18: 0
A19: 1808 | B19: Buildings | G19: 0 | H19: 0 | I19: 0 | J19: 0 | L19: 0 | M19: 0 | O19: 0
A20: 1810 | B20: Leasehold Improvements | G20: 0 | H20: 0 | I20: 0 | J20: 0 | L20: 0 | M20: 0 | O20: 0
A21: 1815 | B21: Transformer Station Equipment >50 kV | G21: 0 | H21: 0 | I21: 0 | J21: 0 | L21: 0 | M21: 0 | O21: 0
A22: 1820 | B22: Distribution Station Equipment <50 kV | G22: 0 | H22: 0 | I22: 0 | J22: 0 | L22: 0 | M22: 0 | O22: 0
A23: 1825 | B23: Storage Battery Equipment | G23: 0 | H23: 0 | I23: 0 | J23: 0 | L23: 0 | M23: 0 | O23: 0
A24: 1830 | B24: Poles, Towers & Fixtures | G24: 0 | H24: 0 | I24: 0 | J24: 0 | L24: 0 | M24: 0 | O24: 0
A25: 1835 | B25: Overhead Conductors & Devices | G25: 0 | H25: 0 | I25: 0 | J25: 0 | L25: 0 | M25: 0 | O25: 0
A26: 1840 | B26: Underground Conduit | G26: 0 | H26: 0 | I26: 0 | J26: 0 | L26: 0 | M26: 0 | O26: 0
A27: 1845 | B27: Underground Conductors & Devices | G27: 0 | H27: 0 | I27: 0 | J27: 0 | L27: 0 | M27: 0 | O27: 0
A28: 1850 | B28: Line Transformers | G28: 0 | H28: 0 | I28: 0 | J28: 0 | L28: 0 | M28: 0 | O28: 0
A29: 1855 | B29: Services (Overhead & Underground) | G29: 0 | H29: 0 | I29: 0 | J29: 0 | L29: 0 | M29: 0 | O29: 0
A30: 1860 | B30: Meters | G30: 0 | H30: 0 | I30: 0 | J30: 0 | L30: 0 | M30: 0 | O30: 0
A31: 1860 | B31: Meters (Smart Meters) | G31: 0 | H31: 0 | I31: 0 | J31: 0 | L31: 0 | M31: 0 | O31: 0
A32: 1905 | B32: Land | G32: 0 | H32: 0 | I32: 0 | J32: 0 | L32: 0 | M32: 0 | O32: 0
A33: 1908 | B33: Buildings & Fixtures | G33: 0 | H33: 0 | I33: 0 | J33: 0 | L33: 0 | M33: 0 | O33: 0
A34: 1910 | B34: Leasehold Improvements | G34: 0 | H34: 0 | I34: 0 | J34: 0 | L34: 0 | M34: 0 | O34: 0
A35: 1915 | B35: Office Furniture & Equipment (10 years) | G35: 0 | H35: 0 | I35: 0 | J35: 0 | L35: 0 | M35: 0 | O35: 0
A36: 1915 | B36: Office Furniture & Equipment (5 years) | G36: 0 | H36: 0 | I36: 0 | J36: 0 | L36: 0 | M36: 0 | O36: 0
A37: 1920 | B37: Computer Equipment - Hardware | G37: 0 | H37: 0 | I37: 0 | J37: 0 | L37: 0 | M37: 0 | O37: 0
A38: 1920 | B38: Computer Equip.-Hardware(Post Mar. 22/04) | G38: 0 | H38: 0 | I38: 0 | J38: 0 | L38: 0 | M38: 0 | O38: 0
A39: 1920 | B39: Computer Equip.-Hardware(Post Mar. 19/07) | G39: 0 | H39: 0 | I39: 0 | J39: 0 | L39: 0 | M39: 0 | O39: 0
A40: 1930 | B40: Transportation Equipment | G40: 0 | H40: 0 | I40: 0 | J40: 0 | L40: 0 | M40: 0 | O40: 0
A41: 1935 | B41: Stores Equipment | G41: 0 | H41: 0 | I41: 0 | J41: 0 | L41: 0 | M41: 0 | O41: 0
A42: 1940 | B42: Tools, Shop & Garage Equipment | G42: 0 | H42: 0 | I42: 0 | J42: 0 | L42: 0 | M42: 0 | O42: 0
A43: 1945 | B43: Measurement & Testing Equipment | G43: 0 | H43: 0 | I43: 0 | J43: 0 | L43: 0 | M43: 0 | O43: 0
A44: 1950 | B44: Power Operated Equipment | G44: 0 | H44: 0 | I44: 0 | J44: 0 | L44: 0 | M44: 0 | O44: 0
A45: 1955 | B45: Communications Equipment | G45: 0 | H45: 0 | I45: 0 | J45: 0 | L45: 0 | M45: 0 | O45: 0
A46: 1955 | B46: Communication Equipment (Smart Meters) | G46: 0 | H46: 0 | I46: 0 | J46: 0 | L46: 0 | M46: 0 | O46: 0
A47: 1960 | B47: Miscellaneous Equipment | G47: 0 | H47: 0 | I47: 0 | J47: 0 | L47: 0 | M47: 0 | O47: 0
A48: 1975 | B48: Load Management Controls Utility Premises | G48: 0 | H48: 0 | I48: 0 | J48: 0 | L48: 0 | M48: 0 | O48: 0
A49: 1980 | B49: System Supervisor Equipment | G49: 0 | H49: 0 | I49: 0 | J49: 0 | L49: 0 | M49: 0 | O49: 0
A50: 1985 | B50: Miscellaneous Fixed Assets | G50: 0 | H50: 0 | I50: 0 | J50: 0 | L50: 0 | M50: 0 | O50: 0
A51: 1995 | B51: Contributions & Grants | G51: 0 | H51: 0 | I51: 0 | J51: 0 | L51: 0 | M51: 0 | O51: 0
A52: etc. | G52: 0 | H52: 0 | I52: 0 | J52: 0 | L52: 0 | M52: 0 | O52: 0
G53: 0 | H53: 0 | I53: 0 | J53: 0 | L53: 0 | M53: 0 | O53: 0
B54: Total | C54: =SUM(C16:C53) -> 0 | D54: =SUM(D16:D53) -> 0 | H54: =SUM(H16:H53) -> 0 | I54: 0 | J54: 0 | K54: 0 | L54: 0 | M54: 0 | N54: =SUM(N16:N53) -> 0 | O54: 0
A56: Notes:
A58: 1 | B58: Board policy of the "half-year" rule - the applicant must ensure that additions in the year attract a half-year depreciation expense in the first year. Deviations from this standard practice must be supported in the application.
A59: 2 | B59: The applicant must provide an explanation of material variances in evidence
A60: 3 | B60: The applicant should ensure that the years for new additions of assets are the asset useful lives determined by management in accordance with IFRS.
A61: 4 | B61: A recalculation should be performed to determine the average remaining life of opening balance of assets (i.e. excluding 2012 additions) under IFRS. For example, Asset A had a useful life of 20 years under CGAAP. On January 1, 2012, the date of transition, Asset A was 3 years depreciated. As a result, Asset A would have a remaining service life of 17 years (20 years less 3 years) under CGAAP as of January 1, 2012. Due to the transition to IFRS, management re-assessed the asset useful lives under IFRS principles and concluded that the revised useful life of Asset A is now 30 years. Therefore, the average remaining useful life of opening balance of Asset A is determined to be 27 years (30 years less 3 years) under IFRS as of January 1, 2012.
A62: 5 | B62: NBV must exclude assets still on the books but which have been fully amortized or depreciated.
A63: 6 | B63: This column refers to the calculated full year depreciation but excludes the depreciation expense on assets fully depreciated during the year. This column is used for the purpose of calculating depreciation expense in the following year on the next worksheet.
A65: General: | B65: Applicants must provide a breakdown of depreciation and amortization expense in the above format for all relevant accounts. Asset Retirement Obligations (AROs), depreciation and accretion expense should be disclosed separately consistent with the Notes of historical Audited Financial Statements.

Sheet App.2-CH_MIFRS_DepExp_2014 (hidden)
I1: File Number: | J1: ='LDC Info'!$E$18 -> EB-2013-0139
I2: Exhibit:
I3: Tab:
I4: Schedule:
I5: Page:
I7: Date:
A9: Appendix 2-CH
A10: Depreciation and Amortization Expense
A11: Assumes the applicant adopted IFRS for financial reporting purposes January 1, 2013
C12: Year | D12: 2013 | E12: MIFRS
A14: Account | B14: Description | C14: Additions | D14: Years (new additions only) | E14: Depreciation Rate on New Additions | F14: 2013 Depreciation Expense 1 | G14: 2013 Depreciation Expense per Appendix 2-B Fixed Assets, Column K (l) | H14: Variance 2
C15: (d) | D15: (f) | E15: (g) = 1 / (f) | F15: (h)=2012 Full Year Depreciation + ((d)*0.5)/(f) | H15: (m) = (h) - (l)
A16: 1611 | B16: Computer Software (Formally known as Account 1925) | E16: =IF(D16=0,0,1/D16) -> 0 | F16: =IF(D16=0,'App.2-CG_MIFRS_DepExp_2013'!O16,+'App.2-CG_MIFRS_DepExp_2013'!O16+((C16*0.5)/D16)) -> 0 | H16: =IF(ISERROR(+F16-G16), 0, +F16-G16) -> 0
A17: 1612 | B17: Land Rights (Formally known as Account 1906) | E17: 0 | F17: =IF(D17=0,'App.2-CG_MIFRS_DepExp_2013'!O17,+'App.2-CG_MIFRS_DepExp_2013'!O17+((C17*0.5)/D17)) -> 0 | H17: 0
A18: 1805 | B18: Land | E18: 0 | F18: =IF(D18=0,'App.2-CG_MIFRS_DepExp_2013'!O18,+'App.2-CG_MIFRS_DepExp_2013'!O18+((C18*0.5)/D18)) -> 0 | H18: 0
A19: 1808 | B19: Buildings | E19: 0 | F19: =IF(D19=0,'App.2-CG_MIFRS_DepExp_2013'!O19,+'App.2-CG_MIFRS_DepExp_2013'!O19+((C19*0.5)/D19)) -> 0 | H19: 0
A20: 1810 | B20: Leasehold Improvements | E20: 0 | F20: =IF(D20=0,'App.2-CG_MIFRS_DepExp_2013'!O20,+'App.2-CG_MIFRS_DepExp_2013'!O20+((C20*0.5)/D20)) -> 0 | H20: 0
A21: 1815 | B21: Transformer Station Equipment >50 kV | E21: 0 | F21: =IF(D21=0,'App.2-CG_MIFRS_DepExp_2013'!O21,+'App.2-CG_MIFRS_DepExp_2013'!O21+((C21*0.5)/D21)) -> 0 | H21: 0
A22: 1820 | B22: Distribution Station Equipment <50 kV | E22: 0 | F22: =IF(D22=0,'App.2-CG_MIFRS_DepExp_2013'!O22,+'App.2-CG_MIFRS_DepExp_2013'!O22+((C22*0.5)/D22)) -> 0 | H22: 0
A23: 1825 | B23: Storage Battery Equipment | E23: 0 | F23: =IF(D23=0,'App.2-CG_MIFRS_DepExp_2013'!O23,+'App.2-CG_MIFRS_DepExp_2013'!O23+((C23*0.5)/D23)) -> 0 | H23: 0
A24: 1830 | B24: Poles, Towers & Fixtures | E24: 0 | F24: =IF(D24=0,'App.2-CG_MIFRS_DepExp_2013'!O24,+'App.2-CG_MIFRS_DepExp_2013'!O24+((C24*0.5)/D24)) -> 0 | H24: 0
A25: 1835 | B25: Overhead Conductors & Devices | E25: 0 | F25: =IF(D25=0,'App.2-CG_MIFRS_DepExp_2013'!O25,+'App.2-CG_MIFRS_DepExp_2013'!O25+((C25*0.5)/D25)) -> 0 | H25: 0
A26: 1840 | B26: Underground Conduit | E26: 0 | F26: =IF(D26=0,'App.2-CG_MIFRS_DepExp_2013'!O26,+'App.2-CG_MIFRS_DepExp_2013'!O26+((C26*0.5)/D26)) -> 0 | H26: 0
A27: 1845 | B27: Underground Conductors & Devices | E27: 0 | F27: =IF(D27=0,'App.2-CG_MIFRS_DepExp_2013'!O27,+'App.2-CG_MIFRS_DepExp_2013'!O27+((C27*0.5)/D27)) -> 0 | H27: 0
A28: 1850 | B28: Line Transformers | E28: 0 | F28: =IF(D28=0,'App.2-CG_MIFRS_DepExp_2013'!O28,+'App.2-CG_MIFRS_DepExp_2013'!O28+((C28*0.5)/D28)) -> 0 | H28: 0
A29: 1855 | B29: Services (Overhead & Underground) | E29: 0 | F29: =IF(D29=0,'App.2-CG_MIFRS_DepExp_2013'!O29,+'App.2-CG_MIFRS_DepExp_2013'!O29+((C29*0.5)/D29)) -> 0 | H29: 0
A30: 1860 | B30: Meters | E30: 0 | F30: =IF(D30=0,'App.2-CG_MIFRS_DepExp_2013'!O30,+'App.2-CG_MIFRS_DepExp_2013'!O30+((C30*0.5)/D30)) -> 0 | H30: 0
A31: 1860 | B31: Meters (Smart Meters) | E31: 0 | F31: =IF(D31=0,'App.2-CG_MIFRS_DepExp_2013'!O31,+'App.2-CG_MIFRS_DepExp_2013'!O31+((C31*0.5)/D31)) -> 0 | H31: 0
A32: 1905 | B32: Land | E32: 0 | F32: =IF(D32=0,'App.2-CG_MIFRS_DepExp_2013'!O32,+'App.2-CG_MIFRS_DepExp_2013'!O32+((C32*0.5)/D32)) -> 0 | H32: 0
A33: 1908 | B33: Buildings & Fixtures | E33: 0 | F33: =IF(D33=0,'App.2-CG_MIFRS_DepExp_2013'!O33,+'App.2-CG_MIFRS_DepExp_2013'!O33+((C33*0.5)/D33)) -> 0 | H33: 0
A34: 1910 | B34: Leasehold Improvements | E34: 0 | F34: =IF(D34=0,'App.2-CG_MIFRS_DepExp_2013'!O34,+'App.2-CG_MIFRS_DepExp_2013'!O34+((C34*0.5)/D34)) -> 0 | H34: 0
A35: 1915 | B35: Office Furniture & Equipment (10 years) | E35: 0 | F35: =IF(D35=0,'App.2-CG_MIFRS_DepExp_2013'!O35,+'App.2-CG_MIFRS_DepExp_2013'!O35+((C35*0.5)/D35)) -> 0 | H35: 0
A36: 1915 | B36: Office Furniture & Equipment (5 years) | E36: 0 | F36: =IF(D36=0,'App.2-CG_MIFRS_DepExp_2013'!O36,+'App.2-CG_MIFRS_DepExp_2013'!O36+((C36*0.5)/D36)) -> 0 | H36: 0
A37: 1920 | B37: Computer Equipment - Hardware | E37: 0 | F37: =IF(D37=0,'App.2-CG_MIFRS_DepExp_2013'!O37,+'App.2-CG_MIFRS_DepExp_2013'!O37+((C37*0.5)/D37)) -> 0 | H37: 0
A38: 1920 | B38: Computer Equip.-Hardware(Post Mar. 22/04) | E38: 0 | F38: =IF(D38=0,'App.2-CG_MIFRS_DepExp_2013'!O38,+'App.2-CG_MIFRS_DepExp_2013'!O38+((C38*0.5)/D38)) -> 0 | H38: 0
A39: 1920 | B39: Computer Equip.-Hardware(Post Mar. 19/07) | E39: 0 | F39: =IF(D39=0,'App.2-CG_MIFRS_DepExp_2013'!O39,+'App.2-CG_MIFRS_DepExp_2013'!O39+((C39*0.5)/D39)) -> 0 | H39: 0
A40: 1930 | B40: Transportation Equipment | E40: 0 | F40: =IF(D40=0,'App.2-CG_MIFRS_DepExp_2013'!O40,+'App.2-CG_MIFRS_DepExp_2013'!O40+((C40*0.5)/D40)) -> 0 | H40: 0
A41: 1935 | B41: Stores Equipment | E41: 0 | F41: =IF(D41=0,'App.2-CG_MIFRS_DepExp_2013'!O41,+'App.2-CG_MIFRS_DepExp_2013'!O41+((C41*0.5)/D41)) -> 0 | H41: 0
A42: 1940 | B42: Tools, Shop & Garage Equipment | E42: 0 | F42: =IF(D42=0,'App.2-CG_MIFRS_DepExp_2013'!O42,+'App.2-CG_MIFRS_DepExp_2013'!O42+((C42*0.5)/D42)) -> 0 | H42: 0
A43: 1945 | B43: Measurement & Testing Equipment | E43: 0 | F43: =IF(D43=0,'App.2-CG_MIFRS_DepExp_2013'!O43,+'App.2-CG_MIFRS_DepExp_2013'!O43+((C43*0.5)/D43)) -> 0 | H43: 0
A44: 1950 | B44: Power Operated Equipment | E44: 0 | F44: =IF(D44=0,'App.2-CG_MIFRS_DepExp_2013'!O44,+'App.2-CG_MIFRS_DepExp_2013'!O44+((C44*0.5)/D44)) -> 0 | H44: 0
A45: 1955 | B45: Communications Equipment | E45: 0 | F45: =IF(D45=0,'App.2-CG_MIFRS_DepExp_2013'!O45,+'App.2-CG_MIFRS_DepExp_2013'!O45+((C45*0.5)/D45)) -> 0 | H45: 0
A46: 1955 | B46: Communication Equipment (Smart Meters) | E46: 0 | F46: =IF(D46=0,'App.2-CG_MIFRS_DepExp_2013'!O46,+'App.2-CG_MIFRS_DepExp_2013'!O46+((C46*0.5)/D46)) -> 0 | H46: 0
A47: 1960 | B47: Miscellaneous Equipment | E47: 0 | F47: =IF(D47=0,'App.2-CG_MIFRS_DepExp_2013'!O47,+'App.2-CG_MIFRS_DepExp_2013'!O47+((C47*0.5)/D47)) -> 0 | H47: 0
A48: 1975 | B48: Load Management Controls Utility Premises | E48: 0 | F48: =IF(D48=0,'App.2-CG_MIFRS_DepExp_2013'!O48,+'App.2-CG_MIFRS_DepExp_2013'!O48+((C48*0.5)/D48)) -> 0 | H48: 0
A49: 1980 | B49: System Supervisor Equipment | E49: 0 | F49: =IF(D49=0,'App.2-CG_MIFRS_DepExp_2013'!O49,+'App.2-CG_MIFRS_DepExp_2013'!O49+((C49*0.5)/D49)) -> 0 | H49: 0
A50: 1985 | B50: Miscellaneous Fixed Assets | E50: 0 | F50: =IF(D50=0,'App.2-CG_MIFRS_DepExp_2013'!O50,+'App.2-CG_MIFRS_DepExp_2013'!O50+((C50*0.5)/D50)) -> 0 | H50: 0
A51: 1995 | B51: Contributions & Grants | E51: 0 | F51: =IF(D51=0,'App.2-CG_MIFRS_DepExp_2013'!O51,+'App.2-CG_MIFRS_DepExp_2013'!O51+((C51*0.5)/D51)) -> 0 | H51: 0
A52: etc. | E52: 0 | F52: =IF(D52=0,'App.2-CG_MIFRS_DepExp_2013'!O52,+'App.2-CG_MIFRS_DepExp_2013'!O52+((C52*0.5)/D52)) -> 0 | H52: 0
E53: 0 | F53: =IF(D53=0,'App.2-CG_MIFRS_DepExp_2013'!O53,+'App.2-CG_MIFRS_DepExp_2013'!O53+((C53*0.5)/D53)) -> 0 | H53: 0
B54: Total | C54: =SUM(C16:C53) -> 0 | F54: =SUM(F16:F53) -> 0 | G54: =SUM(G16:G53) -> 0 | H54: =SUM(H16:H53) -> 0
B55: Depreciation expense adjustment resulting from amortization of Account 1575 | F55: 0
B56: Total Depreciation expense to be included in the test year revenue requirement | F56: =+F55+F54 -> 0
A58: Notes:
A59: 1 | B59: Board policy of the "half-year" rule - the applicant must ensure that additions in the year attract a half-year depreciation expense in the first year. Deviations from this standard practice must be supported in the application.
A60: 2 | B60: The applicant must provide an explanation of material variances in evidence
A63: General: | B63: Applicants must provide a breakdown of depreciation and amortization expense in the above format for all relevant accounts. Asset Retirement Obligations (AROs), depreciation and accretion expense should be disclosed separately consistent with the Notes of historical Audited Financial Statements.

Sheet App.2-CI_AltAccStd_DepExp (hidden)
K1: File Number: | L1: ='LDC Info'!$E$18 -> EB-2013-0139
K2: Exhibit:
K3: Tab:
K4: Schedule:
K5: Page:
K7: Date:
A9: Appendix 2-CI
A10: Depreciation and Amortization Expense
A11: Assumes the applicant adopted an alternate accounting standard other than IFRS for financial reporting purposes. For applicants adopting an Alternate Accounting Standard for financial reporting purposes January 1, 2012, applicants must complete 4 versions of the table below (2011 CGAAP, 2011 Alternate Accounting Standard, 2012 Alternate Accounting Standard and 2013 Alternate Accounting Standard). For applicants adopting an Alternate Accounting Standard for financial reporting purposes January 1, 2013, applicants must complete 4 versions of the table below (2011 CGAAP, 2012 CGAAP, 2012 Alternate Accounting Standard and 2013 Alternate Accounting Standard).
B12: Year | E12: Accounting Standard
A14: Account | B14: Description | C14: Opening Regulatory Gross PP&E | D14: Less Fully Depreciated | E14: Net for Depreciation | F14: Additions | G14: Total for Depreciation | H14: Years | I14: Depreciation Rate | J14: Depreciation Expense | K14: Depreciation Expense per Appendix 2-B Fixed Assets, Column K (l) | L14: Variance 2
C15: (a) | D15: (b) | E15: (c) | F15: (d) | G15: (e) = (c) + ½ x (d) 1 | H15: (f) | I15: (g) = 1 / (f) | J15: (h) = (e) / (f) | L15: (m) = (h) - (l)
A16: 1611 | B16: Computer Software (Formally known as Account 1925) | E16: =C16-D16 -> 0 | G16: =E16+0.5*F16 -> 0 | I16: =IF(H16=0,0,1/H16) -> 0 | J16: =IF(H16=0,0,G16/H16) -> 0 | L16: =IF(ISERROR(+J16-K16), 0, +J16-K16) -> 0
A17: 1612 | B17: Land Rights (Formally known as Account 1906) | E17: =C17-D17 -> 0 | G17: =E17+0.5*F17 -> 0 | I17: 0 | J17: 0 | L17: 0
A18: 1805 | B18: Land | E18: 0 | G18: 0 | I18: 0 | J18: 0 | L18: 0
A19: 1808 | B19: Buildings | E19: 0 | G19: 0 | I19: 0 | J19: 0 | L19: 0
A20: 1810 | B20: Leasehold Improvements | E20: 0 | G20: 0 | I20: 0 | J20: 0 | L20: 0
A21: 1815 | B21: Transformer Station Equipment >50 kV | E21: 0 | G21: 0 | I21: 0 | J21: 0 | L21: 0
A22: 1820 | B22: Distribution Station Equipment <50 kV | E22: 0 | G22: 0 | I22: 0 | J22: 0 | L22: 0
A23: 1825 | B23: Storage Battery Equipment | E23: 0 | G23: 0 | I23: 0 | J23: 0 | L23: 0
A24: 1830 | B24: Poles, Towers & Fixtures | E24: 0 | G24: 0 | I24: 0 | J24: 0 | L24: 0
A25: 1835 | B25: Overhead Conductors & Devices | E25: 0 | G25: 0 | I25: 0 | J25: 0 | L25: 0
A26: 1840 | B26: Underground Conduit | E26: 0 | G26: 0 | I26: 0 | J26: 0 | L26: 0
A27: 1845 | B27: Underground Conductors & Devices | E27: 0 | G27: 0 | I27: 0 | J27: 0 | L27: 0
A28: 1850 | B28: Line Transformers | E28: 0 | G28: 0 | I28: 0 | J28: 0 | L28: 0
A29: 1855 | B29: Services (Overhead & Underground) | E29: 0 | G29: 0 | I29: 0 | J29: 0 | L29: 0
A30: 1860 | B30: Meters | E30: 0 | G30: 0 | I30: 0 | J30: 0 | L30: 0
A31: 1860 | B31: Meters (Smart Meters) | E31: 0 | G31: 0 | I31: 0 | J31: 0 | L31: 0
A32: 1905 | B32: Land | E32: 0 | G32: 0 | I32: 0 | J32: 0 | L32: 0
A33: 1908 | B33: Buildings & Fixtures | E33: 0 | G33: 0 | I33: 0 | J33: 0 | L33: 0
A34: 1910 | B34: Leasehold Improvements | E34: 0 | G34: 0 | I34: 0 | J34: 0 | L34: 0
A35: 1915 | B35: Office Furniture & Equipment (10 years) | E35: 0 | G35: 0 | I35: 0 | J35: 0 | L35: 0
A36: 1915 | B36: Office Furniture & Equipment (5 years) | E36: 0 | G36: 0 | I36: 0 | J36: 0 | L36: 0
A37: 1920 | B37: Computer Equipment - Hardware | E37: 0 | G37: 0 | I37: 0 | J37: 0 | L37: 0
A38: 1920 | B38: Computer Equip.-Hardware(Post Mar. 22/04) | E38: 0 | G38: 0 | I38: 0 | J38: 0 | L38: 0
A39: 1920 | B39: Computer Equip.-Hardware(Post Mar. 19/07) | E39: 0 | G39: 0 | I39: 0 | J39: 0 | L39: 0
A40: 1930 | B40: Transportation Equipment | E40: 0 | G40: 0 | I40: 0 | J40: 0 | L40: 0
A41: 1935 | B41: Stores Equipment | E41: 0 | G41: 0 | I41: 0 | J41: 0 | L41: 0
A42: 1940 | B42: Tools, Shop & Garage Equipment | E42: 0 | G42: 0 | I42: 0 | J42: 0 | L42: 0
A43: 1945 | B43: Measurement & Testing Equipment | E43: 0 | G43: 0 | I43: 0 | J43: 0 | L43: 0
A44: 1950 | B44: Power Operated Equipment | E44: 0 | G44: 0 | I44: 0 | J44: 0 | L44: 0
A45: 1955 | B45: Communications Equipment | E45: 0 | G45: 0 | I45: 0 | J45: 0 | L45: 0
A46: 1955 | B46: Communication Equipment (Smart Meters) | E46: 0 | G46: 0 | I46: 0 | J46: 0 | L46: 0
A47: 1960 | B47: Miscellaneous Equipment | E47: 0 | G47: 0 | I47: 0 | J47: 0 | L47: 0
A48: 1975 | B48: Load Management Controls Utility Premises | E48: 0 | G48: 0 | I48: 0 | J48: 0 | L48: 0
A49: 1980 | B49: System Supervisor Equipment | E49: 0 | G49: 0 | I49: 0 | J49: 0 | L49: 0
A50: 1985 | B50: Miscellaneous Fixed Assets | E50: 0 | G50: 0 | I50: 0 | J50: 0 | L50: 0
A51: 1995 | B51: Contributions & Grants | E51: 0 | G51: 0 | I51: 0 | J51: 0 | L51: 0
A52: etc. | E52: 0 | G52: 0 | I52: 0 | J52: 0 | L52: 0
E53: 0 | G53: 0 | I53: 0 | J53: 0 | L53: 0
B54: Total | C54: =SUM(C16:C53) -> 0 | D54: =SUM(D16:D53) -> 0 | E54: =SUM(E16:E53) -> 0 | F54: =SUM(F16:F53) -> 0 | G54: =SUM(G16:G53) -> 0 | J54: =SUM(J16:J53) -> 0 | K54: =SUM(K16:K53) -> 0 | L54: =SUM(L16:L53) -> 0
A56: Notes:
A58: 1 | B58: Board policy of the "half-year" rule - the applicant must ensure that additions in the year attract a half-year depreciation expense in the first year. Deviations from this standard practice must be supported in the application.
A59: 2 | B59: The applicant must provide an explanation of material variances in evidence
A62: General: | B62: Applicants must provide a breakdown of depreciation and amortization expense in the above format for all relevant accounts. Asset Retirement Obligations (AROs), depreciation and accretion expense should be disclosed separately consistent with the Notes of historical Audited Financial Statements.

Sheet App.2-D_Overhead (hidden)
L1: File Number: | M1: ='LDC Info'!$E$18 -> EB-2013-0139
L2: Exhibit:
L3: Tab:
L4: Schedule:
L5: Page:
L7: Date:
A9: Appendix 2-D
A10: Overhead Expense
A12: The following table should be completed based on the information requested below. An explanation should be provided for any blank entries. The entries should include overhead costs that are currently capitalized on self-constructed assets under MIFRS or an alternate accounting standard.
E13: (A) 1 | F13: (B) | G13: (C) | H13: (D) | I13: (E) 1 | J13: (F) | K13: (G)
A14: Nature of the Overhead Costs | E14: Dollar | F14: Dollar | G14: Dollar | H14: Dollar Impact - | I14: Dollar Impact - | J14: Directly | K14: Reasons why the overhead costs are allowed to be
E15: Impact on PP&E | F15: Impact on PP&E | G15: Impact on PP&E | H15: PP&E Variance | I15: PP&E Variance | J15: Attributable? | K15: capitalized under MIFRS or an alternate accounting
E16: Historic Year | F16: Bridge Year | G16: Test Year | H16: Test versus Bridge | I16: Test versus Historic | J16: (Y/N) | K16: standard given limitations on capitalized overhead
A17: employee benefits | H17: =+G17-F17 -> 0 | I17: =+G17-E17 -> 0
A18: costs of site preparation | H18: 0 | I18: 0
A19: initial delivery and handling costs | H19: 0 | I19: 0
A20: costs of testing whether the asset is functioning properly | H20: 0 | I20: 0
A21: professional fees | H21: 0 | I21: 0
H22: 0 | I22: 0
A23: costs of opening a new facility | H23: 0 | I23: 0
A24: costs of introducing a new product or service (including costs of advertising and promotional activities) | H24: 0 | I24: 0
A25: costs of conducting business in a new location or with a new class of customer (including costs of staff training) | H25: 0 | I25: 0
A26: administration and other general overhead costs | H26: 0 | I26: 0
H27: 0 | I27: 0
H28: 0 | I28: 0
H29: 0 | I29: 0
A30: Insert description of additional item(s) and new rows if needed. | H30: 0 | I30: 0
A31: Total | E31: =SUM(E17:E30) -> 0 | F31: =SUM(F17:F30) -> 0 | G31: =SUM(G17:G30) -> 0 | H31: =SUM(H17:H30) -> 0 | I31: =SUM(I17:I30) -> 0
A34: The following table should be completed based on the information requested below. An explanation should be provided for any blank entries. The entries should include overhead costs that were capitalized on self-constructed assets under CGAAP but are no longer capitalized under MIFRS or an alternate accounting standard and are included in OM&A.
E35: (A) 1 | F35: (B) | G35: (C) | H35: (D) | I35: (E) 1 | J35: (F) | K35: (G)
A36: Nature of the Overhead Costs | E36: Dollar | F36: Dollar | G36: Dollar | H36: Dollar Impact - | I36: Dollar Impact - | J36: Directly | K36: Reasons why the overhead costs are not allowed to be
E37: Impact on OM&A | F37: Impact on OM&A | G37: Impact on OM&A | H37: OM&A Variance | I37: OM&A Variance | J37: Attributable? | K37: capitalized under MIFRS or an alternate accounting
E38: Historic Year | F38: Bridge Year | G38: Test Year | H38: Test versus Bridge | I38: Test versus Historic | J38: (Y/N) | K38: standard given limitations on capitalized overhead
A39: employee benefits | H39: =+G39-F39 -> 0 | I39: =+G39-E39 -> 0
A40: costs of site preparation | H40: =+G40-F40 -> 0 | I40: =+G40-E40 -> 0
A41: initial delivery and handling costs | H41: =+G41-F41 -> 0 | I41: =+G41-E41 -> 0
A42: costs of testing whether the asset is functioning properly | H42: =+G42-F42 -> 0 | I42: =+G42-E42 -> 0
A43: professional fees | H43: =+G43-F43 -> 0 | I43: =+G43-E43 -> 0
A45: costs of opening a new facility | H45: =+G45-F45 -> 0 | I45: =+G45-E45 -> 0
A46: costs of introducing a new product or service (including costs of advertising and promotional activities) | H46: 0 | I46: 0
A47: costs of conducting business in a new location or with a new class of customer (including costs of staff training) | H47: 0 | I47: 0
A48: administration and other general overhead costs | H48: 0 | I48: 0
H49: 0 | I49: 0
H50: 0 | I50: 0
H51: 0 | I51: 0
A52: Insert description of additional item(s) and new rows if needed. | H52: 0 | I52: 0
A53: Total | E53: =SUM(E39:E52) -> 0 | F53: =SUM(F39:F52) -> 0 | G53: =SUM(G39:G52) -> 0 | H53: =SUM(H39:H52) -> 0 | I53: =SUM(I39:I52) -> 0
A55: Notes:
A56: 1 | B56: If the applicant chooses to adopt IFRS or an alternate accounting standard for financial reporting purposes in 2013, the applicant does not need to complete Columns A, E. If the applicant adopts IFRS or an alternate accounting standard for financial reporting purposes in 2012, the applicant must complete all columns.

Sheet App.2-EA_PP&E Deferral Account (hidden)
H1: File Number: | I1: ='LDC Info'!$E$18 -> EB-2013-0139
H2: Exhibit:
H3: Tab:
H4: Schedule:
H5: Page:
H7: Date:
A9: Appendix 2-EA
A10: IFRS-CGAAP Transitional PP&E Amounts
A11: 2014 Adopters of IFRS for Financial Reporting Purposes
A13: For applicants that adopt IFRS on January 1, 2014 for financial reporting purposes
A15: Note: this sheet should be filled out if the applicant adopts IFRS for its financial reporting purpose as of January 1, 2012.
B17: 2010 Rebasing Year | C17: 2011 | D17: 2012 | E17: 2013 | F17: 2014 Rebasing Year | G17: 2015 | H17: 2016 | I17: 2017
A18: Reporting Basis | B18: CGAAP | C18: IRM | D18: IRM | E18: IRM | F18: MIFRS | G18: IRM | H18: IRM | I18: IRM
A19: Forecast vs. Actual Used in Rebasing Year | B19: Forecast | C19: Actual | D19: Actual | E19: Forecast | F19: Forecast
D20: $ | E20: $
A21: PP&E Values under CGAAP
A22: Opening net PP&E - Note 1
A23: Additions
A24: Depreciation (amounts should be negative)
A25: Closing net PP&E (1) | D25: =D22+D23+D24 -> 0 | E25: =E22+E23+E24 -> 0
A27: PP&E Values under MIFRS (Starts from 2011, the transition year)
A28: Opening net PP&E - Note 1
A29: Additions
A30: Depreciation (amounts should be negative)
A31: Closing net PP&E (2) | D31: =SUM(D28:D30) -> 0 | E31: =SUM(E28:E30) -> 0
A33: Difference in Closing net PP&E, CGAAP vs. MIFRS (Shown as adjustment to rate base on rebasing) | D33: =D25-D31 -> 0 | E33: =E25-E31 -> 0
A35: Account 1575 - IFRS-CGAAP Transitional PP&E Amounts
A36: Opening balance | D36: 0 | E36: =D40 -> 0 | F36: =E40 -> 0 | G36: =F40 -> 0 | H36: =G40 -> 0 | I36: =H40 -> 0
A37: Amounts added in the year | D37: =D33 -> 0 | E37: =E33-D33 -> 0
A38: Sub-total | D38: =D36+D37 -> 0 | E38: 0 | F38: 0 | G38: 0 | H38: 0 | I38: 0
A39: Amount of amortization, included in depreciation expense - Note 2 | F39: =IF(ISERROR(-E33/I44), 0, -E33/I44) -> 0 | G39: =+F39 -> 0 | H39: =+F39 -> 0 | I39: =+F39 -> 0
A40: Closing balance in deferral account | D40: =D38+D39 -> 0 | E40: 0 | F40: =IF(ISERROR(F38+F39), 0, F38+F39) -> 0 | G40: 0 | H40: 0 | I40: 0
A42: Effect on Revenue Requirement
A43: Amortization of deferred balance as above - Note 2 | F43: =IF(ISERROR(E33/I44), 0, E33/I44) -> 0 | H43: WACC
A44: Return on Rate Base Associated with deferred PP&E balance at WACC - Note 3 | F44: =E33*I43 -> 0 | H44: Disposition Period - Note 4 | I44: 4 | J44: Years
A45: Amount included in Revenue Requirement on rebasing | F45: =F43+F44 -> 0
A47: Notes:
A48: 1 For an applicant that adopts IFRS on January 1, 2014, the PP&E values as of January 1, 2013 under both CGAAP and MIFRS should be the same.
A49: 2 Amortization of the deferred balance in Account 1575 will start from the rebasing year.
A50: Assume the utility requests for a certain disposition period, the amortization that should be included in the depreciation expense is calculated as:
A51: the opening balance of Account 1575 / the approved disposition period
A52: 3 Return on rate base associated with deferred balance is calculated as:
A53: the deferred account opening balance as of 2014 rebasing year x WACC
A54: * Please note that the calculation should be adjusted once WACC is updated and finalized in the rate application.
A55: 4 Consistent with the 4 year normal rate cycle, the model is using a 4 year amortization period as a default selection to "clear" the PP&E deferral account through a one-time adjustment to ratebase to capture and remove the impact of the accounting policy changes as caused by the transition from CGAAP to MIFRS.

Sheet App.2-CF_CGAAP_DepExp_2010
L1: File Number: | M1: 0
L2: Exhibit: | M2: 2
L3: Tab: | M3: 1
L4: Schedule: | M4: 5
L5: Page: | M5: 1
L7: Date:
A9: Appendix 2-CA
A10: Depreciation and Amortization Expense
A11: Assumes the applicant adopted IFRS for financial reporting purposes January 1, 2015
C12: Year | D12: 2010 | E12: CGAAP
A14: Account | B14: Description | C14: Opening Regulatory Gross PP&E as at Jan 1, 2012 | D14: Less Fully Depreciated | E14: Net for Depreciation | F14: Additions | G14: Smart Meter Additions | H14: Total for Depreciation | I14: Years | J14: Depreciation Rate | K14: Depreciation Expense | L14: 2012 Depreciation Expense per Appendix 2-B Fixed Assets, Column K (l) | M14: Variance 2
C15: (a) | D15: (b) | E15: (c) | F15: (d) | G15: (dd) | H15: (e) = (c) + ½ x (d) 1 | I15: (f) | J15: (g) = 1 / (f) | K15: (h) = (e) / (f) | M15: (m) = (h) - (l)
A16: 1611 | B16: Computer Software (Formally known as Account 1925) | C16: 113795.64 | D16: 5356.3 | E16: =C16-D16 -> 108439.34 | F16: 14357.63 | H16: =E16+0.5*F16 -> 115618.155 | I16: 5 | J16: =IF(I16=0,0,1/I16) -> 0.2 | K16: =IF(I16=0,0,H16/I16) -> 23123.631 | L16: 23123.63 | M16: =IF(ISERROR(+K16-L16), 0, +K16-L16) -> 0.001
A17: 1612 | B17: Land Rights (Formally known as Account 1906) | C17: 8588 | E17: =C17-D17 -> 8588 | F17: 0 | H17: =E17+0.5*F17 -> 8588 | J17: 0 | K17: 0 | L17: 0 | M17: 0
A18: 1805 | B18: Land | C18: 10000 | E18: 10000 | H18: 10000 | J18: 0 | K18: 0 | L18: 0 | M18: 0
A19: 1808 | B19: Buildings | E19: 0 | H19: 0 | J19: 0 | K19: 0 | M19: 0
A20: 1810 | B20: Leasehold Improvements | E20: 0 | H20: 0 | J20: 0 | K20: 0 | M20: 0
A21: 1815 | B21: Transformer Station Equipment >50 kV | C21: 349916.94 | D21: 20772.34 | E21: 329144.6 | F21: 52494.8 | H21: 355392 | I21: 40 | J21: 0.025 | K21: 8884.8 | L21: 8884.8 | M21: 0
A22: 1820 | B22: Distribution Station Equipment <50 kV | C22: 175800.99 | D22: -137579.81 | E22: 313380.8 | F22: 9059.01 | H22: 317910.305 | I22: 30 | J22: 0.03333333333 | K22: 10597.01017 | L22: 10597.01 | M22: 0.0001666666667
A23: 1825 | B23: Storage Battery Equipment | E23: 0 | H23: 0 | J23: 0 | K23: 0 | M23: 0
A24: 1830 | B24: Poles, Towers & Fixtures | C24: 322655.88 | D24: -121032.5 | E24: 443688.38 | F24: 28410.75 | H24: 457893.755 | I24: 25 | J24: 0.04 | K24: 18315.7502 | L24: 18315.75 | M24: 0.0001999999986
A25: 1835 | B25: Overhead Conductors & Devices | C25: 367500.19 | D25: -172447.79 | E25: 539947.98 | F25: 34806.04 | H25: 557351 | I25: 25 | J25: 0.04 | K25: 22294.04 | L25: 22294.04 | M25: 0
A26: 1840 | B26: Underground Conduit | C26: 113707.7 | D26: -34654.09 | E26: 148361.79 | F26: 147.42 | H26: 148435.5 | I26: 25 | J26: 0.04 | K26: 5937.42 | L26: 5937.42 | M26: -9.094947018e-13
A27: 1845 | B27: Underground Conductors & Devices | C27: 212731.5 | D27: -52040.95 | E27: 264772.45 | F27: 47660.1 | H27: 288602.5 | I27: 25 | J27: 0.04 | K27: 11544.1 | L27: 11544.1 | M27: 0
A28: 1850 | B28: Line Transformers | C28: 372827.19 | D28: -31367.7 | E28: 404194.89 | F28: 24321.22 | H28: 416355.5 | I28: 25 | J28: 0.04 | K28: 16654.22 | L28: 16654.22 | M28: 0
A29: 1855 | B29: Services (Overhead & Underground) | C29: 23261.26 | D29: 17.87 | E29: 23243.39 | F29: 3574.22 | H29: 25030.5 | I29: 25 | J29: 0.04 | K29: 1001.22 | L29: 1001.22 | M29: 0
A30: 1860 | B30: Meters | C30: 246912.13 | D30: -144487.87 | E30: 391400 | H30: 391400 | I30: 25 | J30: 0.04 | K30: 15656 | L30: 15656 | M30: 0
A31: 1860 | B31: Meters (Smart Meters) | E31: 0 | H31: 0 | I31: 15 | J31: 0.06666666667 | K31: 0 | M31: 0
A32: 1905 | B32: Land | C32: 28299.7 | E32: 28299.7 | H32: 28299.7 | J32: 0 | K32: 0 | L32: 0 | M32: 0
A33: 1908 | B33: Buildings & Fixtures | C33: 824123.77 | D33: -25826.23 | E33: 849950 | H33: 849950 | I33: 50 | J33: 0.02 | K33: 16999 | L33: 16999 | M33: 0 | P33: `
A34: 1910 | B34: Leasehold Improvements | E34: 0 | H34: 0 | J34: 0 | K34: 0 | M34: 0
A35: 1915 | B35: Office Furniture & Equipment (10 years) | C35: 30527.53 | D35: 5428.63 | E35: 25098.9 | F35: 2126.2 | H35: 26162 | I35: 10 | J35: 0.1 | K35: 2616.2 | L35: 2616.2 | M35: 0
A36: 1915 | B36: Office Furniture & Equipment (5 years) | E36: 0 | H36: 0 | J36: 0 | K36: 0 | M36: 0
A37: 1920 | B37: Computer Equipment - Hardware | C37: 46427.21 | D37: 24646.81 | E37: 21780.4 | F37: 3691.2 | H37: 23626 | I37: 5 | J37: 0.2 | K37: 4725.2 | L37: 4725.2 | M37: -9.094947018e-13
A38: 1920 | B38: Computer Equip.-Hardware(Post Mar. 22/04) | E38: 0 | H38: 0 | J38: 0 | K38: 0 | M38: 0
A39: 1920 | B39: Computer Equip.-Hardware(Post Mar. 19/07) | E39: 0 | H39: 0 | J39: 0 | K39: 0 | M39: 0
A40: 1930 | B40: Transportation Equipment | C40: 205345.8 | D40: 184897.8 | E40: 20448 | H40: 20448 | I40: 8 | J40: 0.125 | K40: 2556 | L40: 2556 | M40: 0
A41: 1935 | B41: Stores Equipment | E41: 0 | H41: 0 | J41: 0 | K41: 0 | M41: 0
A42: 1940 | B42: Tools, Shop & Garage Equipment | C42: 13959.53 | D42: 3436.17 | E42: =C42-D42 -> 10523.36 | F42: 6006.67 | H42: 13526.695 | I42: 10 | J42: 0.1 | K42: 1352.6695 | L42: 1352.67 | M42: -0.0005000000001
A43: 1945 | B43: Measurement & Testing Equipment | E43: 0 | H43: 0 | J43: 0 | K43: 0 | M43: 0
A44: 1950 | B44: Power Operated Equipment | C44: 4363.29 | D44: 3.29 | E44: 4360 | H44: 4360 | I44: 8 | J44: 0.125 | K44: 545 | L44: 545 | M44: 0
A45: 1955 | B45: Communications Equipment | E45: 0 | H45: 0 | J45: 0 | K45: 0 | M45: 0
A46: 1955 | B46: Communication Equipment (Smart Meters) | E46: 0 | H46: 0 | J46: 0 | K46: 0 | M46: 0
A47: 1960 | B47: Miscellaneous Equipment | E47: 0 | H47: 0 | J47: 0 | K47: 0 | M47: 0
A48: 1975 | B48: Load Management Controls Utility Premises | E48: 0 | H48: 0 | J48: 0 | K48: 0 | M48: 0
A49: 1980 | B49: System Supervisor Equipment | E49: 0 | H49: 0 | J49: 0 | K49: 0 | M49: 0
A50: 1985 | B50: Miscellaneous Fixed Assets | E50: 0 | H50: 0 | J50: 0 | K50: 0 | M50: 0
A51: 1995 | B51: Contributions & Grants | C51: -70173.64 | D51: -49.37 | E51: -70124.27 | F51: -74299.97 | H51: -107274.255 | I51: 25 | J51: 0.04 | K51: -4290.9702 | L51: -4290.97 | M51: -0.0001999999995
A52: etc. | E52: 0 | H52: 0 | J52: 0 | K52: 0 | M52: 0
E53: 0 | F53: 0 | H53: 0 | J53: 0 | K53: 0 | M53: 0
B54: Total | C54: =SUM(C16:C53) -> 3400570.61 | D54: -474927.1 | E54: 3875497.71 | F54: 152355.29 | G54: 0 | H54: 3951675.355 | K54: =SUM(K16:K53) -> 158511.2907 | L54: =SUM(L16:L53) -> 158511.29 | M54: =SUM(M16:M53) -> 0.0006666666641
A56: Notes:
A58: 1 | B58: Board policy of the "half-year" rule - the applicant must ensure that additions in the year attract a half-year depreciation expense in the first year. Deviations from this standard practice must be supported in the application.
A59: 2 | B59: The applicant must provide an explanation of material variances in evidence
A61: General | B61: Applicants must provide a breakdown of depreciation and amortization expense in the above format for all relevant accounts. Asset Retirement Obligations (AROs), depreciation and accretion expense should be disclosed separately consistent with the Notes of historical Audited Financial Statements.

Sheet App.2-CF_CGAAP_DepExp_2011
L1: File Number: | M1: 0
L2: Exhibit: | M2: 2
L3: Tab: | M3: 1
L4: Schedule: | M4: 5
L5: Page: | M5: 1
L7: Date:
A9: Appendix 2-CA
A10: Depreciation and Amortization Expense
A11: Assumes the applicant adopted IFRS for financial reporting purposes January 1, 2015
C12: Year | D12: 2011 | E12: CGAAP
A14: Account | B14: Description | C14: Opening Regulatory Gross PP&E as at Jan 1, 2012 | D14: Less Fully Depreciated | E14: Net for Depreciation | F14: Additions | G14: Smart Meter Additions | H14: Total for Depreciation | I14: Years | J14: Depreciation Rate | K14: Depreciation Expense | L14: 2012 Depreciation Expense per Appendix 2-B Fixed Assets, Column K (l) | M14: Variance 2
C15: (a) | D15: (b) | E15: (c) | F15: (d) | G15: (dd) | H15: (e) = (c) + ½ x (d) 1 | I15: (f) | J15: (g) = 1 / (f) | K15: (h) = (e) / (f) | M15: (m) = (h) - (l)
A16: 1611 | B16: Computer Software (Formally known as Account 1925) | C16: 128153.27 | D16: 15277.94 | E16: =C16-D16 -> 112875.33 | F16: 8639.34 | H16: =E16+0.5*F16 -> 117195 | I16: 5 | J16: =IF(I16=0,0,1/I16) -> 0.2 | K16: =IF(I16=0,0,H16/I16) -> 23439 | L16: 23439 | M16: =IF(ISERROR(+K16-L16), 0, +K16-L16) -> 0
A17: 1612 | B17: Land Rights (Formally known as Account 1906) | C17: 8588 | E17: =C17-D17 -> 8588 | F17: 0 | H17: =E17+0.5*F17 -> 8588 | J17: 0 | K17: 0 | L17: 0 | M17: 0
A18: 1805 | B18: Land | C18: 10000 | E18: 10000 | H18: 10000 | J18: 0 | K18: 0 | L18: 0 | M18: 0
A19: 1808 | B19: Buildings | C19: 0 | E19: 0 | H19: 0 | J19: 0 | K19: 0 | M19: 0
A20: 1810 | B20: Leasehold Improvements | C20: 0 | E20: 0 | H20: 0 | J20: 0 | K20: 0 | M20: 0
A21: 1815 | B21: Transformer Station Equipment >50 kV | C21: 402411.74 | D21: 40401.74 | E21: 362010 | F21: 55500 | H21: 389760 | I21: 40 | J21: 0.025 | K21: 9744 | L21: 9744 | M21: 0
A22: 1820 | B22: Distribution Station Equipment <50 kV | C22: 184860 | D22: -137594.59 | E22: 322454.59 | F22: 66690.82 | H22: 355800 | I22: 30 | J22: 0.03333333333 | K22: 11860 | L22: 11860 | M22: 0
A23: 1825 | B23: Storage Battery Equipment | C23: 0 | E23: 0 | H23: 0 | J23: 0 | K23: 0 | M23: 0
A24: 1830 | B24: Poles, Towers & Fixtures | C24: 351066.63 | D24: -100079.11 | E24: 451145.74 | F24: 27658.52 | H24: 464975 | I24: 25 | J24: 0.04 | K24: 18599 | L24: 18599 | M24: 0
A25: 1835 | B25: Overhead Conductors & Devices | C25: 402306.23 | D25: -146550.62 | E25: 548856.85 | F25: 3636.3 | H25: 550675 | I25: 25 | J25: 0.04 | K25: 22027 | L25: 22027 | M25: 0
A26: 1840 | B26: Underground Conduit | C26: 113855.12 | D26: -34694.88 | E26: 148550 | F26: 0 | H26: 148550 | I26: 25 | J26: 0.04 | K26: 5942 | L26: 5942 | M26: 0
A27: 1845 | B27: Underground Conductors & Devices | C27: 260391.6 | D27: -51990.75 | E27: 312382.35 | F27: 585.31 | H27: 312675.005 | I27: 25 | J27: 0.04 | K27: 12507.0002 | L27: 12507 | M27: 0.0002000000004
A28: 1850 | B28: Line Transformers | C28: 397148.41 | D28: 10985.74 | E28: 386162.67 | F28: 6024.65 | H28: 389174.995 | I28: 25 | J28: 0.04 | K28: 15566.9998 | L28: 15567 | M28: -0.0001999999986
A29: 1855 | B29: Services (Overhead & Underground) | C29: 26835.48 | D29: 10.59 | E29: 26824.89 | F29: 3350.22 | H29: 28500 | I29: 25 | J29: 0.04 | K29: 1140 | L29: 1140 | M29: 0
A30: 1860 | B30: Meters | C30: 246912.13 | D30: -134339.55 | E30: 381251.68 | F30: 7796.64 | H30: 385150 | I30: 25 | J30: 0.04 | K30: 15406 | L30: 15406 | M30: 0
A31: 1860 | B31: Meters (Smart Meters) | C31: 0 | E31: 0 | H31: 0 | I31: 15 | J31: 0.06666666667 | K31: 0 | M31: 0
A32: 1905 | B32: Land | C32: 28299.7 | E32: 28299.7 | F32: 0 | H32: 28299.7 | J32: 0 | K32: 0 | L32: 0 | M32: 0
A33: 1908 | B33: Buildings & Fixtures | C33: 824123.77 | D33: -25826.23 | E33: 849950 | F33: 0 | H33: 849950 | I33: 50 | J33: 0.02 | K33: 16999 | L33: 16999 | M33: 0 | P33: `
A34: 1910 | B34: Leasehold Improvements | C34: 0 | E34: 0 | H34: 0 | J34: 0 | K34: 0 | M34: 0
A35: 1915 | B35: Office Furniture & Equipment (10 years) | C35: 32653.73 | D35: 5838.85 | E35: 26814.88 | F35: 1130.23 | H35: 27379.995 | I35: 10 | J35: 0.1 | K35: 2737.9995 | L35: 2738 | M35: -0.0005000000001
A36: 1915 | B36: Office Furniture & Equipment (5 years) | C36: 0 | E36: 0 | H36: 0 | J36: 0 | K36: 0 | M36: 0
A37: 1920 | B37: Computer Equipment - Hardware | C37: 50118.41 | D37: 29210.1 | E37: 20908.31 | F37: 2103.38 | H37: 21960 | I37: 5 | J37: 0.2 | K37: 4392 | L37: 4392 | M37: -9.094947018e-13
A38: 1920 | B38: Computer Equip.-Hardware(Post Mar. 22/04) | C38: 0 | E38: 0 | H38: 0 | J38: 0 | K38: 0 | M38: 0
A39: 1920 | B39: Computer Equip.-Hardware(Post Mar. 19/07) | C39: 0 | E39: 0 | H39: 0 | J39: 0 | K39: 0 | M39: 0
A40: 1930 | B40: Transportation Equipment | C40: 205345.8 | D40: 184897.8 | E40: 20448 | F40: 0 | H40: 20448 | I40: 8 | J40: 0.125 | K40: 2556 | L40: 2556 | M40: 0
A41: 1935 | B41: Stores Equipment | C41: 0 | E41: 0 | H41: 0 | J41: 0 | K41: 0 | M41: 0
A42: 1940 | B42: Tools, Shop & Garage Equipment | C42: 19966.2 | D42: 3737.84 | E42: =C42-D42 -> 16228.36 | F42: 5063.27 | H42: 18759.995 | I42: 10 | J42: 0.1 | K42: 1875.9995 | L42: 1876 | M42: -0.0004999999996
A43: 1945 | B43: Measurement & Testing Equipment | C43: 0 | E43: 0 | H43: 0 | J43: 0 | K43: 0 | M43: 0
A44: 1950 | B44: Power Operated Equipment | C44: 4363.29 | D44: 3.29 | E44: 4360 | F44: 0 | H44: 4360 | I44: 8 | J44: 0.125 | K44: 545 | L44: 545 | M44: 0
A45: 1955 | B45: Communications Equipment | C45: 0 | E45: 0 | H45: 0 | J45: 0 | K45: 0 | M45: 0
A46: 1955 | B46: Communication Equipment (Smart Meters) | C46: 0 | E46: 0 | H46: 0 | J46: 0 | K46: 0 | M46: 0
A47: 1960 | B47: Miscellaneous Equipment | C47: 0 | E47: 0 | H47: 0 | J47: 0 | K47: 0 | M47: 0
A48: 1975 | B48: Load Management Controls Utility Premises | C48: 0 | E48: 0 | H48: 0 | J48: 0 | K48: 0 | M48: 0
A49: 1980 | B49: System Supervisor Equipment | C49: 0 | E49: 0 | H49: 0 | J49: 0 | K49: 0 | M49: 0
A50: 1985 | B50: Miscellaneous Fixed Assets | C50: 0 | E50: 0 | H50: 0 | J50: 0 | K50: 0 | M50: 0
A51: 1995 | B51: Contributions & Grants | C51: -144473.61 | D51: -48.61 | E51: -144425 | F51: 0 | H51: -144425 | I51: 25 | J51: 0.04 | K51: -5777 | L51: -5777 | M51: 0
A52: etc. | C52: 0 | E52: 0 | H52: 0 | J52: 0 | K52: 0 | M52: 0
E53: 0 | H53: 0 | J53: 0 | K53: 0 | M53: 0
B54: Total | C54: =SUM(C16:C53) -> 3552925.9 | D54: -340760.45 | E54: 3893686.35 | F54: 188178.68 | G54: 0 | H54: 3987775.69 | K54: =SUM(K16:K53) -> 159559.999 | L54: =SUM(L16:L53) -> 159560 | M54: =SUM(M16:M53) -> -0.0009999999988
A56: Notes:
A58: 1 | B58: Board policy of the "half-year" rule - the applicant must ensure that additions in the year attract a half-year depreciation expense in the first year. Deviations from this standard practice must be supported in the application.
A59: 2 | B59: The applicant must provide an explanation of material variances in evidence
A61: General | B61: Applicants must provide a breakdown of depreciation and amortization expense in the above format for all relevant accounts. Asset Retirement Obligations (AROs), depreciation and accretion expense should be disclosed separately consistent with the Notes of historical Audited Financial Statements.

Sheet App.2-CF_CGAAP_DepExp_2012
L1: File Number: | M1: 0
L2: Exhibit: | M2: 2
L3: Tab: | M3: 1
L4: Schedule: | M4: 5
L5: Page: | M5: 1
L7: Date:
A9: Appendix 2-CA
A10: Depreciation and Amortization Expense
A11: Assumes the applicant adopted IFRS for financial reporting purposes January 1, 2015
C12: Year | D12: 2012 | E12: CGAAP
A14: Account | B14: Description | C14: Opening Regulatory Gross PP&E as at Jan 1, 2012 | D14: Less Fully Depreciated | E14: Net for Depreciation | F14: Additions | G14: Smart Meter Additions | H14: Total for Depreciation | I14: Years | J14: Depreciation Rate | K14: Depreciation Expense | L14: 2012 Depreciation Expense per Appendix 2-B Fixed Assets, Column K (l) | M14: Variance 2
C15: (a) | D15: (b) | E15: (c) | F15: (d) | G15: (dd) | H15: (e) = (c) + ½ x (d) 1 | I15: (f) | J15: (g) = 1 / (f) | K15: (h) = (e) / (f) | M15: (m) = (h) - (l)
A16: 1611 | B16: Computer Software (Formally known as Account 1925) | C16: ='App 2-B FixAsset 2012-CGAAP'!E16 -> 136792.61 | D16: -5561 | E16: =C16-D16 -> 142353.61 | F16: ='App 2-B FixAsset 2012-CGAAP'!F16 -> 2682.5 | G16: =+'App 2-B FixAsset 2012-CGAAP'!G16 -> 41549 | H16: =E16+0.5*F16 -> 143694.86 | I16: 5 | J16: =IF(I16=0,0,1/I16) -> 0.2 | K16: =IF(I16=0,0,H16/I16) -> 28738.972 | L16: 28739 | M16: =IF(ISERROR(+K16-L16), 0, +K16-L16) -> -0.028
A17: 1612 | B17: Land Rights (Formally known as Account 1906) | C17: ='App 2-B FixAsset 2012-CGAAP'!E17 -> 8588 | D17: 8588 | E17: =C17-D17 -> 0 | F17: ='App 2-B FixAsset 2012-CGAAP'!F17 -> 0 | H17: =E17+0.5*F17 -> 0 | J17: 0 | K17: 0 | M17: 0
A18: 1805 | B18: Land | C18: ='App 2-B FixAsset 2012-CGAAP'!E18 -> 10000 | D18: 10000 | E18: 0 | F18: ='App 2-B FixAsset 2012-CGAAP'!F18 -> 0 | H18: 0 | J18: 0 | K18: 0 | M18: 0
A19: 1808 | B19: Buildings | C19: ='App 2-B FixAsset 2012-CGAAP'!E19 -> 0 | E19: 0 | F19: ='App 2-B FixAsset 2012-CGAAP'!F19 -> 0 | H19: 0 | J19: 0 | K19: 0 | M19: 0
A20: 1810 | B20: Leasehold Improvements | C20: ='App 2-B FixAsset 2012-CGAAP'!E20 -> 0 | E20: 0 | F20: ='App 2-B FixAsset 2012-CGAAP'!F20 -> 0 | H20: 0 | J20: 0 | K20: 0 | M20: 0
A21: 1815 | B21: Transformer Station Equipment >50 kV | C21: ='App 2-B FixAsset 2012-CGAAP'!E21 -> 457911.74 | D21: 40397 | E21: 417514.74 | F21: ='App 2-B FixAsset 2012-CGAAP'!F21 -> 24890 | H21: 429959.74 | I21: 40 | J21: 0.025 | K21: 10748.9935 | L21: 10749 | M21: -0.0065
A22: 1820 | B22: Distribution Station Equipment <50 kV | C22: ='App 2-B FixAsset 2012-CGAAP'!E22 -> 251550.82 | D22: -137573 | E22: 389123.82 | F22: ='App 2-B FixAsset 2012-CGAAP'!F22 -> 4632.27 | H22: 391439.955 | I22: 30 | J22: 0.03333333333 | K22: 13047.9985 | L22: 13048 | M22: -0.0015
A23: 1825 | B23: Storage Battery Equipment | C23: ='App 2-B FixAsset 2012-CGAAP'!E23 -> 0 | E23: 0 | F23: ='App 2-B FixAsset 2012-CGAAP'!F23 -> 0 | H23: 0 | J23: 0 | K23: 0 | M23: 0
A24: 1830 | B24: Poles, Towers & Fixtures | C24: ='App 2-B FixAsset 2012-CGAAP'!E24 -> 378725.15 | D24: -100074 | E24: 478799.15 | F24: ='App 2-B FixAsset 2012-CGAAP'!F24 -> 80902.08 | H24: 519250.19 | I24: 25 | J24: 0.04 | K24: 20770.0076 | L24: 20770 | M24: 0.007600000001
A25: 1835 | B25: Overhead Conductors & Devices | C25: ='App 2-B FixAsset 2012-CGAAP'!E25 -> 405942.53 | D25: -124489 | E25: 530431.53 | F25: ='App 2-B FixAsset 2012-CGAAP'!F25 -> 69887.63 | H25: 565375.345 | I25: 25 | J25: 0.04 | K25: 22615.0138 | L25: 22615 | M25: 0.0138
A26: 1840 | B26: Underground Conduit | C26: ='App 2-B FixAsset 2012-CGAAP'!E26 -> 113855.12 | D26: -29520 | E26: 143375.12 | F26: ='App 2-B FixAsset 2012-CGAAP'!F26 -> 0 | H26: 143375.12 | I26: 25 | J26: 0.04 | K26: 5735.0048 | L26: 5735 | M26: 0.0048
A27: 1845 | B27: Underground Conductors & Devices | C27: ='App 2-B FixAsset 2012-CGAAP'!E27 -> 260976.91 | D27: -44305 | E27: 305281.91 | F27: ='App 2-B FixAsset 2012-CGAAP'!F27 -> 4935.66 | H27: 307749.74 | I27: 25 | J27: 0.04 | K27: 12309.9896 | L27: 12310 | M27: -0.0104
A28: 1850 | B28: Line Transformers | C28: ='App 2-B FixAsset 2012-CGAAP'!E28 -> 403173.06 | D28: 14383 | E28: 388790.06 | F28: ='App 2-B FixAsset 2012-CGAAP'!F28 -> 5619.7 | H28: 391599.91 | I28: 25 | J28: 0.04 | K28: 15663.9964 | L28: 15664 | M28: -0.003599999998
A29: 1855 | B29: Services (Overhead & Underground) | C29: ='App 2-B FixAsset 2012-CGAAP'!E29 -> 30185.7 | E29: 30185.7 | F29: ='App 2-B FixAsset 2012-CGAAP'!F29 -> 2234.12 | H29: 31302.76 | I29: 25 | J29: 0.04 | K29: 1252.1104 | L29: 1252 | M29: 0.1104
A30: 1860 | B30: Meters | C30: ='App 2-B FixAsset 2012-CGAAP'!E30 -> 254708.77 | D30: -64049 | E30: 318757.77 | F30: ='App 2-B FixAsset 2012-CGAAP'!F30 -> 134.61 | H30: 318825.075 | I30: 25 | J30: 0.04 | K30: 12753.003 | L30: 12753 | M30: 0.003000000001
A31: 1860 | B31: Meters (Smart Meters) | C31: ='App 2-B FixAsset 2012-CGAAP'!E31 -> 0 | E31: =C31-D31+601816.73 -> 601816.73 | F31: ='App 2-B FixAsset 2012-CGAAP'!F31 -> 17081.77 | G31: =+'App 2-B FixAsset 2012-CGAAP'!G31 -> 601816.73 | H31: 610357.615 | I31: 15 | J31: 0.06666666667 | K31: 40690.50767 | L31: 40690 | M31: 0.5076666667
A32: 1905 | B32: Land | C32: ='App 2-B FixAsset 2012-CGAAP'!E32 -> 28299.7 | D32: 28300 | E32: -0.3 | F32: ='App 2-B FixAsset 2012-CGAAP'!F32 -> 0 | H32: -0.3 | J32: 0 | K32: 0 | M32: 0
A33: 1908 | B33: Buildings & Fixtures | C33: ='App 2-B FixAsset 2012-CGAAP'!E33 -> 824123.77 | D33: -25826 | E33: 849949.77 | F33: ='App 2-B FixAsset 2012-CGAAP'!F33 -> 0 | H33: 849949.77 | I33: 50 | J33: 0.02 | K33: 16998.9954 | L33: 16999 | M33: -0.0046 | P33: `
A34: 1910 | B34: Leasehold Improvements | C34: ='App 2-B FixAsset 2012-CGAAP'!E34 -> 0 | E34: 0 | F34: ='App 2-B FixAsset 2012-CGAAP'!F34 -> 0 | H34: 0 | J34: 0 | K34: 0 | M34: 0
A35: 1915 | B35: Office Furniture & Equipment (10 years) | C35: ='App 2-B FixAsset 2012-CGAAP'!E35 -> 33783.96 | D35: 6234 | E35: 27549.96 | F35: ='App 2-B FixAsset 2012-CGAAP'!F35 -> 0 | H35: 27549.96 | I35: 10 | J35: 0.1 | K35: 2754.996 | L35: 2755 | M35: -0.004
A36: 1915 | B36: Office Furniture & Equipment (5 years) | C36: ='App 2-B FixAsset 2012-CGAAP'!E36 -> 0 | E36: 0 | F36: ='App 2-B FixAsset 2012-CGAAP'!F36 -> 0 | H36: 0 | J36: 0 | K36: 0 | M36: 0
A37: 1920 | B37: Computer Equipment - Hardware | C37: ='App 2-B FixAsset 2012-CGAAP'!E37 -> 52221.79 | D37: 35355 | E37: 16866.79 | F37: ='App 2-B FixAsset 2012-CGAAP'!F37 -> 2656.32 | H37: 18194.95 | I37: 5 | J37: 0.2 | K37: 3638.99 | L37: 3639 | M37: -0.01
A38: 1920 | B38: Computer Equip.-Hardware(Post Mar. 22/04) | C38: ='App 2-B FixAsset 2012-CGAAP'!E38 -> 0 | E38: 0 | F38: ='App 2-B FixAsset 2012-CGAAP'!F38 -> 0 | H38: 0 | J38: 0 | K38: 0 | M38: 0
A39: 1920 | B39: Computer Equip.-Hardware(Post Mar. 19/07) | C39: ='App 2-B FixAsset 2012-CGAAP'!E39 -> 0 | E39: 0 | F39: ='App 2-B FixAsset 2012-CGAAP'!F39 -> 0 | H39: 0 | J39: 0 | K39: 0 | M39: 0
A40: 1930 | B40: Transportation Equipment | C40: ='App 2-B FixAsset 2012-CGAAP'!E40 -> 205345.8 | D40: =184346+552 -> 184898 | E40: 20447.8 | F40: ='App 2-B FixAsset 2012-CGAAP'!F40 -> 0 | H40: 20447.8 | I40: 8 | J40: 0.125 | K40: 2555.975 | L40: 2556 | M40: -0.025
A41: 1935 | B41: Stores Equipment | C41: ='App 2-B FixAsset 2012-CGAAP'!E41 -> 0 | E41: 0 | F41: ='App 2-B FixAsset 2012-CGAAP'!F41 -> 0 | H41: 0 | J41: 0 | K41: 0 | M41: 0
A42: 1940 | B42: Tools, Shop & Garage Equipment | C42: ='App 2-B FixAsset 2012-CGAAP'!E42 -> 25029.47 | D42: 2616 | E42: =C42-D42 -> 22413.47 | F42: ='App 2-B FixAsset 2012-CGAAP'!F42 -> 794 | G42: =+'App 2-B FixAsset 2012-CGAAP'!G42 -> 2173 | H42: 22810.47 | I42: 10 | J42: 0.1 | K42: 2281.047 | L42: 2281 | M42: 0.047
A43: 1945 | B43: Measurement & Testing Equipment | C43: ='App 2-B FixAsset 2012-CGAAP'!E43 -> 0 | E43: 0 | F43: ='App 2-B FixAsset 2012-CGAAP'!F43 -> 0 | H43: 0 | J43: 0 | K43: 0 | M43: 0
A44: 1950 | B44: Power Operated Equipment | C44: ='App 2-B FixAsset 2012-CGAAP'!E44 -> 4363.29 | E44: 4363.29 | F44: ='App 2-B FixAsset 2012-CGAAP'!F44 -> 0 | H44: 4363.29 | I44: 8 | J44: 0.125 | K44: 545.41125 | L44: 545.41 | M44: 0.00125
A45: 1955 | B45: Communications Equipment | C45: ='App 2-B FixAsset 2012-CGAAP'!E45 -> 0 | E45: 0 | F45: ='App 2-B FixAsset 2012-CGAAP'!F45 -> 0 | H45: 0 | J45: 0 | K45: 0 | M45: 0
A46: 1955 | B46: Communication Equipment (Smart Meters) | C46: ='App 2-B FixAsset 2012-CGAAP'!E46 -> 0 | E46: 0 | F46: ='App 2-B FixAsset 2012-CGAAP'!F46 -> 0 | H46: 0 | J46: 0 | K46: 0 | M46: 0
A47: 1960 | B47: Miscellaneous Equipment | C47: ='App 2-B FixAsset 2012-CGAAP'!E47 -> 0 | E47: 0 | F47: ='App 2-B FixAsset 2012-CGAAP'!F47 -> 0 | H47: 0 | J47: 0 | K47: 0 | M47: 0
A48: 1975 | B48: Load Management Controls Utility Premises | C48: ='App 2-B FixAsset 2012-CGAAP'!E48 -> 0 | E48: 0 | F48: ='App 2-B FixAsset 2012-CGAAP'!F48 -> 0 | H48: 0 | J48: 0 | K48: 0 | M48: 0
A49: 1980 | B49: System Supervisor Equipment | C49: ='App 2-B FixAsset 2012-CGAAP'!E49 -> 0 | E49: 0 | F49: ='App 2-B FixAsset 2012-CGAAP'!F49 -> 0 | H49: 0 | J49: 0 | K49: 0 | M49: 0
A50: 1985 | B50: Miscellaneous Fixed Assets | C50: ='App 2-B FixAsset 2012-CGAAP'!E50 -> 0 | E50: 0 | F50: ='App 2-B FixAsset 2012-CGAAP'!F50 -> 0 | H50: 0 | J50: 0 | K50: 0 | M50: 0
A51: 1995 | B51: Contributions & Grants | C51: ='App 2-B FixAsset 2012-CGAAP'!E51 -> -144473.61 | E51: -144473.61 | F51: ='App 2-B FixAsset 2012-CGAAP'!F51 -> -110040.57 | H51: -199493.895 | I51: 25 | J51: 0.04 | K51: -7979.7558 | L51: -7977.81 | M51: -1.9458
A52: etc. | C52: ='App 2-B FixAsset 2012-CGAAP'!E52 -> 0 | E52: 0 | F52: ='App 2-B FixAsset 2012-CGAAP'!F52 -> 0 | H52: 0 | J52: 0 | K52: 0 | M52: 0
C53: ='App 2-B FixAsset 2012-CGAAP'!E53 -> 0 | E53: 0 | F53: ='App 2-B FixAsset 2012-CGAAP'!F53 -> 0 | H53: 0 | J53: 0 | K53: 0 | M53: 0
B54: Total | C54: =SUM(C16:C53) -> 3741104.58 | D54: -200626 | E54: 4543547.31 | F54: 106410.09 | G54: 645538.73 | H54: 4596752.355 | K54: =SUM(K16:K53) -> 205121.2561 | L54: =SUM(L16:L53) -> 205122.6 | M54: =SUM(M16:M53) -> -1.343883333
A56: Notes:
A58: 1 | B58: Board policy of the "half-year" rule - the applicant must ensure that additions in the year attract a half-year depreciation expense in the first year. Deviations from this standard practice must be supported in the application.
A59: 2 | B59: The applicant must provide an explanation of material variances in evidence
A61: General | B61: Applicants must provide a breakdown of depreciation and amortization expense in the above format for all relevant accounts. Asset Retirement Obligations (AROs), depreciation and accretion expense should be disclosed separately consistent with the Notes of historical Audited Financial Statements.

Sheet App.2-CF_CGAAP_DepExp_2013
K1: File Number: | L1: 0
K2: Exhibit: | L2: 2
K3: Tab: | L3: 1
K4: Schedule: | L4: 6
K5: Page: | L5: 2
K7: Date:
A9: Appendix 2-CA
A10: Depreciation and Amortization Expense
A11: Assumes the applicant adopted IFRS for financial reporting purposes January 1, 2015
C12: Year | D12: 2013 | E12: CGAAP
A14: Account | B14: Description | C14: Opening Regulatory Gross PP&E as at Jan 1, 2013 | D14: Less Fully Depreciated | E14: Net for Depreciation | F14: Additions | G14: Total for Depreciation | H14: Years | I14: Depreciation Rate | J14: Depreciation Expense | K14: 2013 Depreciation Expense per Appendix 2-B Fixed Assets, Column K (l) | L14: Variance 2
C15: (a) | D15: (b) | E15: (c) | F15: (d) | G15: (e) = (c) + ½ x (d) 1 | H15: (f) | I15: (g) = 1 / (f) | J15: (h) = (e) / (f) | L15: (m) = (h) - (l)
A16: 1611 | B16: Computer Software (Formally known as Account 1925) | C16: ='App 2-B FixAsset 2013-CGAAP'!E16 -> 181024.11 | D16: 81389.11 | E16: =C16-D16 -> 99635 | F16: ='App 2-B FixAsset 2013-CGAAP'!F16 -> 28000 | G16: =E16+0.5*F16 -> 113635 | H16: 5 | I16: =IF(H16=0,0,1/H16) -> 0.2 | J16: =IF(H16=0,0,G16/H16) -> 22727 | K16: 22727 | L16: =IF(ISERROR(+J16-K16), 0, +J16-K16) -> 3.637978807e-12 | M16: =L16/I16 -> 1.818989404e-11
A17: 1612 | B17: Land Rights (Formally known as Account 1906) | C17: ='App 2-B FixAsset 2013-CGAAP'!E17 -> 8588 | D17: 8588 | E17: =C17-D17 -> 0 | F17: ='App 2-B FixAsset 2013-CGAAP'!F17 -> 0 | G17: =E17+0.5*F17 -> 0 | I17: 0 | J17: 0 | K17: 0 | L17: 0
A18: 1805 | B18: Land | C18: ='App 2-B FixAsset 2013-CGAAP'!E18 -> 10000 | D18: 10000 | E18: 0 | F18: ='App 2-B FixAsset 2013-CGAAP'!F18 -> 0 | G18: 0 | I18: 0 | J18: 0 | K18: 0 | L18: 0
A19: 1808 | B19: Buildings | C19: ='App 2-B FixAsset 2013-CGAAP'!E19 -> 0 | D19: 0 | E19: 0 | F19: ='App 2-B FixAsset 2013-CGAAP'!F19 -> 0 | G19: 0 | I19: 0 | J19: 0 | L19: 0
A20: 1810 | B20: Leasehold Improvements | C20: ='App 2-B FixAsset 2013-CGAAP'!E20 -> 0 | D20: 0 | E20: 0 | F20: ='App 2-B FixAsset 2013-CGAAP'!F20 -> 0 | G20: 0 | I20: 0 | J20: 0 | L20: 0
A21: 1815 | B21: Transformer Station Equipment >50 kV | C21: ='App 2-B FixAsset 2013-CGAAP'!E21 -> 482801.74 | D21: 40402 | E21: 442399.74 | F21: ='App 2-B FixAsset 2013-CGAAP'!F21 -> 1547900 | G21: 1216349.74 | H21: 45 | I21: 0.02222222222 | J21: 27029.99422 | K21: 27030 | L21: -0.005777777777
A22: 1820 | B22: Distribution Station Equipment <50 kV | C22: ='App 2-B FixAsset 2013-CGAAP'!E22 -> 256183.09 | D22: -137564 | E22: 393747.09 | F22: ='App 2-B FixAsset 2013-CGAAP'!F22 -> 800000 | G22: 793747.09 | H22: 45 | I22: 0.02222222222 | J22: 17638.82422 | K22: 17639 | L22: -0.1757777778
A23: 1825 | B23: Storage Battery Equipment | C23: ='App 2-B FixAsset 2013-CGAAP'!E23 -> 0 | D23: 0 | E23: 0 | F23: ='App 2-B FixAsset 2013-CGAAP'!F23 -> 0 | G23: 0 | I23: 0 | J23: 0 | L23: 0
A24: 1830 | B24: Poles, Towers & Fixtures | C24: ='App 2-B FixAsset 2013-CGAAP'!E24 -> 459627.23 | D24: -95987.77 | E24: 555615 | F24: ='App 2-B FixAsset 2013-CGAAP'!F24 -> 99000 | G24: 605115 | H24: 45 | I24: 0.02222222222 | J24: 13447 | K24: 13447 | L24: 0
A25: 1835 | B25: Overhead Conductors & Devices | C25: ='App 2-B FixAsset 2013-CGAAP'!E25 -> 475830.16 | D25: -124389.84 | E25: 600220 | F25: ='App 2-B FixAsset 2013-CGAAP'!F25 -> 25000 | G25: 612720 | H25: 60 | I25: 0.01666666667 | J25: 10212 | K25: 10212 | L25: 0
A26: 1840 | B26: Underground Conduit | C26: ='App 2-B FixAsset 2013-CGAAP'!E26 -> 113855.12 | D26: -23694.88 | E26: 137550 | F26: ='App 2-B FixAsset 2013-CGAAP'!F26 -> 500 | G26: 137800 | H26: 50 | I26: 0.02 | J26: 2756 | K26: 2756 | L26: 0
A27: 1845 | B27: Underground Conductors & Devices | C27: ='App 2-B FixAsset 2013-CGAAP'!E27 -> 265912.57 | D27: -35217.43 | E27: 301130 | F27: ='App 2-B FixAsset 2013-CGAAP'!F27 -> 17000 | G27: 309630 | H27: 30 | I27: 0.03333333333 | J27: 10321 | K27: 10321 | L27: 0
A28: 1850 | B28: Line Transformers | C28: ='App 2-B FixAsset 2013-CGAAP'!E28 -> 408792.76 | D28: 22312.76 | E28: 386480 | F28: ='App 2-B FixAsset 2013-CGAAP'!F28 -> 28000 | G28: 400480 | H28: 40 | I28: 0.025 | J28: 10012 | K28: 10012 | L28: 1.818989404e-12
A29: 1855 | B29: Services (Overhead & Underground) | C29: ='App 2-B FixAsset 2013-CGAAP'!E29 -> 32419.82 | D29: 19.82 | E29: 32400 | F29: ='App 2-B FixAsset 2013-CGAAP'!F29 -> 3000 | G29: 33900 | H29: 30 | I29: 0.03333333333 | J29: 1130 | K29: 1130 | L29: 0
A30: 1860 | B30: Meters | C30: ='App 2-B FixAsset 2013-CGAAP'!E30 -> 254843.38 | D30: 28468.38 | E30: 226375 | F30: ='App 2-B FixAsset 2013-CGAAP'!F30 -> 0 | G30: 226375 | H30: 25 | I30: 0.04 | J30: 9055 | K30: 9055 | L30: 0
A31: 1860 | B31: Meters (Smart Meters) | C31: ='App 2-B FixAsset 2013-CGAAP'!E31 -> 618898.5 | D31: 0 | E31: 618898.5 | F31: ='App 2-B FixAsset 2013-CGAAP'!F31 -> 3500 | G31: 620648.5 | H31: 15 | I31: 0.06666666667 | J31: 41376.56667 | K31: 41377 | L31: -0.4333333333
A32: 1905 | B32: Land | C32: ='App 2-B FixAsset 2013-CGAAP'!E32 -> 28299.7 | D32: 0 | E32: 28299.7 | F32: ='App 2-B FixAsset 2013-CGAAP'!F32 -> 0 | G32: 28299.7 | I32: 0 | J32: 0 | L32: 0
A33: 1908 | B33: Buildings & Fixtures - BUILDING ROOF | C33: ='App 2-B FixAsset 2013-CGAAP'!E33 -> 165167 | D33: 0 | E33: 165167 | F33: ='App 2-B FixAsset 2013-CGAAP'!F33 -> 18040 | G33: 174187 | H33: 25 | I33: 0.04 | J33: 6967.48 | K33: 6968 | L33: -0.52
A34: 1908 | B34: Buildings & Fixtures - INTERIOR FIXTURES | C34: ='App 2-B FixAsset 2013-CGAAP'!E34 -> 246040.77 | D34: 0 | E34: 246040.77 | F34: ='App 2-B FixAsset 2013-CGAAP'!F34 -> 19460 | G34: 255770.77 | H34: 15 | I34: 0.06666666667 | J34: 17051.38467 | K34: 17053 | L34: -1.615333333
A35: 1908 | B35: Buildings & Fixtures - STRUCTURE | C35: ='App 2-B FixAsset 2013-CGAAP'!E35 -> 412916 | D35: 0 | E35: 412916 | F35: ='App 2-B FixAsset 2013-CGAAP'!F35 -> 0 | G35: 412916 | H35: 50 | I35: 0.02 | J35: 8258.32 | K35: 8258 | L35: 0.32
A36: 1910 | B36: Leasehold Improvements | C36: ='App 2-B FixAsset 2013-CGAAP'!E36 -> 0 | D36: 0 | E36: 0 | F36: ='App 2-B FixAsset 2013-CGAAP'!F36 -> 0 | G36: 0 | I36: 0 | J36: 0 | L36: 0
A37: 1915 | B37: Office Furniture & Equipment (10 years) | C37: ='App 2-B FixAsset 2013-CGAAP'!E37 -> 33783.96 | D37: 6223.96 | E37: 27560 | F37: ='App 2-B FixAsset 2013-CGAAP'!F37 -> 5700 | G37: 30410 | H37: 10 | I37: 0.1 | J37: 3041 | K37: 3041 | L37: 0
A38: 1915 | B38: Office Furniture & Equipment (5 years) | C38: ='App 2-B FixAsset 2013-CGAAP'!E38 -> 0 | D38: 0 | E38: 0 | F38: ='App 2-B FixAsset 2013-CGAAP'!F38 -> 0 | G38: 0 | I38: 0 | J38: 0 | L38: 0
A39: 1920 | B39: Computer Equipment - Hardware | C39: ='App 2-B FixAsset 2013-CGAAP'!E39 -> 54878.11 | D39: 41508.11 | E39: 13370 | F39: ='App 2-B FixAsset 2013-CGAAP'!F39 -> 3000 | G39: 14870 | H39: 5 | I39: 0.2 | J39: 2974 | K39: 2974 | L39: -1.364242053e-12
A40: 1920 | B40: Computer Equip.-Hardware(Post Mar. 22/04) | C40: ='App 2-B FixAsset 2013-CGAAP'!E40 -> 0 | D40: 0 | E40: 0 | F40: ='App 2-B FixAsset 2013-CGAAP'!F40 -> 0 | G40: 0 | I40: 0 | J40: 0 | L40: 0
A41: 1920 | B41: Computer Equip.-Hardware(Post Mar. 19/07) | C41: ='App 2-B FixAsset 2013-CGAAP'!E41 -> 0 | D41: 0 | E41: 0 | F41: ='App 2-B FixAsset 2013-CGAAP'!F41 -> 0 | G41: 0 | I41: 0 | J41: 0 | L41: 0
A42: 1930 | B42: Transportation Equipment | C42: ='App 2-B FixAsset 2013-CGAAP'!E42 -> 204793.8 | D42: 184345.8 | E42: 20448 | F42: ='App 2-B FixAsset 2013-CGAAP'!F42 -> 0 | G42: 20448 | H42: 8 | I42: 0.125 | J42: 2556 | K42: 2556 | L42: 0
A43: 1935 | B43: Stores Equipment | C43: ='App 2-B FixAsset 2013-CGAAP'!E43 -> 0 | D43: 0 | E43: 0 | F43: ='App 2-B FixAsset 2013-CGAAP'!F43 -> 0 | G43: 0 | I43: 0 | J43: 0 | L43: 0
A44: 1940 | B44: Tools, Shop & Garage Equipment | C44: ='App 2-B FixAsset 2013-CGAAP'!E44 -> 27996.47 | D44: 5066.47 | E44: 22930 | F44: ='App 2-B FixAsset 2013-CGAAP'!F44 -> 3000 | G44: 24430 | H44: 10 | I44: 0.1 | J44: 2443 | K44: 2443 | L44: 0
A45: 1945 | B45: Measurement & Testing Equipment | C45: ='App 2-B FixAsset 2013-CGAAP'!E45 -> 0 | D45: 0 | E45: 0 | F45: ='App 2-B FixAsset 2013-CGAAP'!F45 -> 0 | G45: 0 | I45: 0 | J45: 0 | L45: 0
A46: 1950 | B46: Power Operated Equipment | C46: ='App 2-B FixAsset 2013-CGAAP'!E46 -> 4363.29 | D46: 2163.29 | E46: 2200 | F46: ='App 2-B FixAsset 2013-CGAAP'!F46 -> 2000 | G46: 3200 | H46: 8 | I46: 0.125 | J46: 400 | K46: 400 | L46: 0
A47: 1955 | B47: Communications Equipment | C47: ='App 2-B FixAsset 2013-CGAAP'!E47 -> 0 | D47: 0 | E47: 0 | F47: ='App 2-B FixAsset 2013-CGAAP'!F47 -> 0 | G47: 0 | I47: 0 | J47: 0 | L47: 0
A48: 1955 | B48: Communication Equipment (Smart Meters) | C48: ='App 2-B FixAsset 2013-CGAAP'!E48 -> 0 | D48: 0 | E48: 0 | F48: ='App 2-B FixAsset 2013-CGAAP'!F48 -> 0 | G48: 0 | I48: 0 | J48: 0 | L48: 0
A49: 1960 | B49: Miscellaneous Equipment | C49: ='App 2-B FixAsset 2013-CGAAP'!E49 -> 0 | D49: 0 | E49: 0 | F49: ='App 2-B FixAsset 2013-CGAAP'!F49 -> 0 | G49: 0 | I49: 0 | J49: 0 | L49: 0
A50: 1975 | B50: Load Management Controls Utility Premises | C50: ='App 2-B FixAsset 2013-CGAAP'!E50 -> 0 | D50: 0 | E50: 0 | F50: ='App 2-B FixAsset 2013-CGAAP'!F50 -> 0 | G50: 0 | I50: 0 | J50: 0 | L50: 0
A51: 1980 | B51: System Supervisor Equipment | C51: ='App 2-B FixAsset 2013-CGAAP'!E51 -> 0 | D51: 0 | E51: 0 | F51: ='App 2-B FixAsset 2013-CGAAP'!F51 -> 0 | G51: 0 | I51: 0 | J51: 0 | L51: 0
A52: 1985 | B52: Miscellaneous Fixed Assets | C52: ='App 2-B FixAsset 2013-CGAAP'!E52 -> 0 | D52: 0 | E52: 0 | F52: ='App 2-B FixAsset 2013-CGAAP'!F52 -> 0 | G52: 0 | I52: 0 | J52: 0 | L52: 0
A53: 1995 | B53: Contributions & Grants - ACCT 1830 | C53: ='App 2-B FixAsset 2013-CGAAP'!E53 -> -77570.38 | D53: 0 | E53: -77570.38 | F53: ='App 2-B FixAsset 2013-CGAAP'!F53 -> 0 | G53: -77570.38 | H53: 45 | I53: 0.02222222222 | J53: -1723.786222 | K53: -1724 | L53: 0.2137777778
A54: 1995 | B54: Contributions & Grants - ACCT 1835 | C54: ='App 2-B FixAsset 2013-CGAAP'!E54 -> -49660.65 | D54: 0 | E54: -49660.65 | F54: ='App 2-B FixAsset 2013-CGAAP'!F54 -> 0 | G54: -49660.65 | H54: 60 | I54: 0.01666666667 | J54: -827.6775 | K54: -828 | L54: 0.3225
A55: 1995 | B55: Contributions & Grants - ACCT 1840 | C55: ='App 2-B FixAsset 2013-CGAAP'!E55 -> -219.86 | D55: 0 | E55: -219.86 | F55: ='App 2-B FixAsset 2013-CGAAP'!F55 -> 0 | G55: -219.86 | H55: 50 | I55: 0.02 | J55: -4.3972 | K55: -4 | L55: -0.3972
A56: 1995 | B56: Contributions & Grants - ACCT 1845 | C56: ='App 2-B FixAsset 2013-CGAAP'!E56 -> -80350.46 | D56: 0 | E56: -80350.46 | F56: ='App 2-B FixAsset 2013-CGAAP'!F56 -> 0 | G56: -80350.46 | H56: 30 | I56: 0.03333333333 | J56: -2678.348667 | K56: -2678 | L56: -0.3486666667
A57: 1995 | B57: Contributions & Grants - ACCT 1850 | C57: ='App 2-B FixAsset 2013-CGAAP'!E57 -> -46712.83 | D57: 0 | E57: -46712.83 | F57: ='App 2-B FixAsset 2013-CGAAP'!F57 -> 0 | G57: -46712.83 | H57: 40 | I57: 0.025 | J57: -1167.82075 | K57: -1168 | L57: 0.17925
E58: 0 | G58: 0 | I58: 0 | J58: 0 | L58: 0
B59: Total | C59: =SUM(C16:C58) -> 4492501.4 | D59: =SUM(D16:D58) -> 13633.78 | E59: =SUM(E16:E58) -> 4478867.62 | F59: =SUM(F16:F58) -> 2603100 | G59: =SUM(G16:G58) -> 5780417.62 | J59: =SUM(J16:J58) -> 202994.5394 | K59: =SUM(K16:K58) -> 202997 | L59: =SUM(L16:L58) -> -2.460561111
A61: Notes:
A63: 1 | B63: Board policy of the "half-year" rule - the applicant must ensure that additions in the year attract a half-year depreciation expense in the first year. Deviations from this standard practice must be supported in the application.
A64: 2 | B64: The applicant must provide an explanation of material variances in evidence
A66: General | B66: Applicants must provide a breakdown of depreciation and amortization expense in the above format for all relevant accounts. Asset Retirement Obligations (AROs), depreciation and accretion expense should be disclosed separately consistent with the Notes of historical Audited Financial Statements.

Sheet App.2-CF_CGAAP_DepExp_2014
K1: File Number: | L1: 0
K2: Exhibit: | L2: 2
K3: Tab: | L3: 1
K4: Schedule: | L4: 6
K5: Page: | L5: 3
K7: Date:
A9: Appendix 2-CA
A10: Depreciation and Amortization Expense
A11: Assumes the applicant adopted IFRS for financial reporting purposes January 1, 2015
C12: Year | D12: 2014 | E12: CGAAP
A14: Account | B14: Description | C14: Opening Regulatory Gross PP&E as at Jan 1, 2014 | D14: Less Fully Depreciated | E14: Net for Depreciation | F14: Additions | G14: Total for Depreciation | H14: Years | I14: Depreciation Rate | J14: Depreciation Expense | K14: 2014 Depreciation Expense per Appendix 2-B Fixed Assets, Column K (l) | L14: Variance 2
C15: (a) | D15: (b) | E15: (c) | F15: (d) | G15: (e) = (c) + ½ x (d) 1 | H15: (f) | I15: (g) = 1 / (f) | J15: (h) = (e) / (f) | L15: (m) = (h) - (l)
A16: 1611 | B16: Computer Software (Formally known as Account 1925) | C16: ='App.2-B_FixAsset 2014-CGAAP'!E16 -> 209024.11 | D16: 113414.11 | E16: =C16-D16 -> 95610 | F16: ='App.2-B_FixAsset 2014-CGAAP'!F16 -> 17000 | G16: =E16+0.5*F16 -> 104110 | H16: 5 | I16: =IF(H16=0,0,1/H16) -> 0.2 | J16: =IF(H16=0,0,G16/H16) -> 20822 | K16: 20822 | L16: =IF(ISERROR(+J16-K16), 0, +J16-K16) -> 3.637978807e-12 | M16: =+L16/I16 -> 1.818989404e-11
A17: 1612 | B17: Land Rights (Formally known as Account 1906) | C17: ='App.2-B_FixAsset 2014-CGAAP'!E17 -> 8588 | D17: 0 | E17: =C17-D17 -> 8588 | F17: ='App.2-B_FixAsset 2014-CGAAP'!F17 -> 0 | G17: =E17+0.5*F17 -> 8588 | I17: 0 | J17: 0 | L17: 0
A18: 1805 | B18: Land | C18: ='App.2-B_FixAsset 2014-CGAAP'!E18 -> 10000 | D18: 0 | E18: 10000 | F18: ='App.2-B_FixAsset 2014-CGAAP'!F18 -> 0 | G18: 10000 | I18: 0 | J18: 0 | L18: 0
A19: 1808 | B19: Buildings | C19: ='App.2-B_FixAsset 2014-CGAAP'!E19 -> 0 | D19: 0 | E19: 0 | F19: ='App.2-B_FixAsset 2014-CGAAP'!F19 -> 0 | G19: 0 | I19: 0 | J19: 0 | L19: 0
A20: 1810 | B20: Leasehold Improvements | C20: ='App.2-B_FixAsset 2014-CGAAP'!E20 -> 0 | D20: 0 | E20: 0 | F20: ='App.2-B_FixAsset 2014-CGAAP'!F20 -> 0 | G20: 0 | I20: 0 | J20: 0 | L20: 0
A21: 1815 | B21: Transformer Station Equipment >50 kV | C21: ='App.2-B_FixAsset 2014-CGAAP'!E21 -> 2030701.74 | D21: 40386.74 | E21: 1990315 | F21: ='App.2-B_FixAsset 2014-CGAAP'!F21 -> 25000 | G21: 2002815 | H21: 45 | I21: 0.02222222222 | J21: 44507 | K21: 44507 | L21: 0
A22: 1820 | B22: Distribution Station Equipment <50 kV | C22: ='App.2-B_FixAsset 2014-CGAAP'!E22 -> 1056183 | D22: -137592 | E22: 1193775 | F22: ='App.2-B_FixAsset 2014-CGAAP'!F22 -> 60000 | G22: 1223775 | H22: 45 | I22: 0.02222222222 | J22: 27195 | K22: 27195 | L22: 0
A23: 1825 | B23: Storage Battery Equipment | C23: ='App.2-B_FixAsset 2014-CGAAP'!E23 -> 0 | D23: ='App.2-B_FixAsset 2014-CGAAP'!G23 -> 0 | E23: 0 | F23: ='App.2-B_FixAsset 2014-CGAAP'!F23 -> 0 | G23: 0 | I23: 0 | J23: 0 | L23: 0
A24: 1830 | B24: Poles, Towers & Fixtures | C24: ='App.2-B_FixAsset 2014-CGAAP'!E24 -> 558627.23 | D24: -32767.77 | E24: 591395 | F24: ='App.2-B_FixAsset 2014-CGAAP'!F24 -> 89000 | G24: 635895 | H24: 45 | I24: 0.02222222222 | J24: 14131 | K24: 14131 | L24: 0
A25: 1835 | B25: Overhead Conductors & Devices | C25: ='App.2-B_FixAsset 2014-CGAAP'!E25 -> 500830.16 | D25: -124449.84 | E25: 625280 | F25: ='App.2-B_FixAsset 2014-CGAAP'!F25 -> 20000 | G25: 635280 | H25: 60 | I25: 0.01666666667 | J25: 10588 | K25: 10588 | L25: 0
A26: 1840 | B26: Underground Conduit | C26: ='App.2-B_FixAsset 2014-CGAAP'!E26 -> 114355.12 | D26: -23544.88 | E26: 137900 | F26: ='App.2-B_FixAsset 2014-CGAAP'!F26 -> 500 | G26: 138150 | H26: 50 | I26: 0.02 | J26: 2763 | K26: 2763 | L26: 0
A27: 1845 | B27: Underground Conductors & Devices | C27: ='App.2-B_FixAsset 2014-CGAAP'!E27 -> 282912.57 | D27: -33447.43 | E27: 316360 | F27: ='App.2-B_FixAsset 2014-CGAAP'!F27 -> 17500 | G27: 325110 | H27: 30 | I27: 0.03333333333 | J27: 10837 | K27: 10837 | L27: 0
A28: 1850 | B28: Line Transformers | C28: ='App.2-B_FixAsset 2014-CGAAP'!E28 -> 435244.76 | D28: 31494.76 | E28: 403750 | F28: ='App.2-B_FixAsset 2014-CGAAP'!F28 -> 12500 | G28: 410000 | H28: 40 | I28: 0.025 | J28: 10250 | K28: 10250 | L28: 1.818989404e-12
A29: 1855 | B29: Services (Overhead & Underground) | C29: ='App.2-B_FixAsset 2014-CGAAP'!E29 -> 35419.82 | D29: ='App.2-B_FixAsset 2014-CGAAP'!G29 -> 0 | E29: 35419.82 | F29: ='App.2-B_FixAsset 2014-CGAAP'!F29 -> 3100 | G29: 36969.82 | H29: 30 | I29: 0.03333333333 | J29: 1232.327333 | K29: 1232 | L29: 0.3273333333
A30: 1860 | B30: Meters | C30: ='App.2-B_FixAsset 2014-CGAAP'!E30 -> 254843.38 | D30: =-'App.2-B_FixAsset 2014-CGAAP'!G30 -> 254843.38 | E30: 0 | F30: ='App.2-B_FixAsset 2014-CGAAP'!F30 -> 0 | G30: 0 | H30: 25 | I30: 0.04 | J30: 0 | K30: 0 | L30: 0
A31: 1860 | B31: Meters (Smart Meters) | C31: ='App.2-B_FixAsset 2014-CGAAP'!E31 -> 622398.5 | D31: ='App.2-B_FixAsset 2014-CGAAP'!G31 -> 0 | E31: 622398.5 | F31: ='App.2-B_FixAsset 2014-CGAAP'!F31 -> 3500 | G31: 624148.5 | H31: 15 | I31: 0.06666666667 | J31: 41609.9 | K31: 41610 | L31: -0.1
A32: 1905 | B32: Land | C32: ='App.2-B_FixAsset 2014-CGAAP'!E32 -> 28299.7 | D32: ='App.2-B_FixAsset 2014-CGAAP'!G32 -> 0 | E32: 28299.7 | F32: ='App.2-B_FixAsset 2014-CGAAP'!F32 -> 0 | G32: 28299.7 | I32: 0 | J32: 0 | L32: 0
A33: 1908 | B33: Buildings & Fixtures - BUILDING ROOF | C33: 183207 | D33: 0 | E33: 183207 | F33: ='App.2-B_FixAsset 2014-CGAAP'!F33 -> 0 | G33: 183207 | H33: 25 | I33: 0.04 | J33: 7328.28 | K33: 7329 | L33: -0.72
A34: 1908 | B34: Buildings & Fixtures - INTERIOR FIXTURES | C34: 265500.77 | D34: 0 | E34: 265500.77 | F34: ='App.2-B_FixAsset 2014-CGAAP'!F34 -> 12500 | G34: 271750.77 | H34: 15 | I34: =IF(H34=0,0,1/H34) -> 0.06666666667 | J34: =IF(H34=0,0,G34/H34) -> 18116.718 | K34: 18118 | L34: -1.282
A35: 1908 | B35: Buildings & Fixtures - STRUCTURE | C35: 412916 | D35: 0 | E35: 412916 | F35: ='App.2-B_FixAsset 2014-CGAAP'!F35 -> 0 | G35: 412916 | H35: 50 | I35: 0.02 | J35: 8258.32 | K35: 8258 | L35: 0.32
A36: 1910 | B36: Leasehold Improvements | C36: ='App.2-B_FixAsset 2014-CGAAP'!E36 -> 0 | D36: ='App.2-B_FixAsset 2014-CGAAP'!G36 -> 0 | E36: 0 | F36: ='App.2-B_FixAsset 2014-CGAAP'!F36 -> 0 | G36: 0 | I36: 0 | J36: 0 | L36: 0
A37: 1915 | B37: Office Furniture & Equipment (10 years) | C37: ='App.2-B_FixAsset 2014-CGAAP'!E37 -> 39483.96 | D37: 9953.96 | E37: 29530 | F37: ='App.2-B_FixAsset 2014-CGAAP'!F37 -> 3500 | G37: 31280 | H37: 10 | I37: 0.1 | J37: 3128 | K37: 3128 | L37: 0
A38: 1915 | B38: Office Furniture & Equipment (5 years) | C38: ='App.2-B_FixAsset 2014-CGAAP'!E38 -> 0 | D38: ='App.2-B_FixAsset 2014-CGAAP'!G38 -> 0 | E38: 0 | F38: ='App.2-B_FixAsset 2014-CGAAP'!F38 -> 0 | G38: 0 | I38: 0 | J38: 0 | L38: 0
A39: 1920 | B39: Computer Equipment - Hardware | C39: ='App.2-B_FixAsset 2014-CGAAP'!E39 -> 57878.11 | D39: 44523.11 | E39: 13355 | F39: ='App.2-B_FixAsset 2014-CGAAP'!F39 -> 3100 | G39: 14905 | H39: 5 | I39: 0.2 | J39: 2981 | K39: 2981 | L39: -1.364242053e-12
A40: 1920 | B40: Computer Equip.-Hardware(Post Mar. 22/04) | C40: ='App.2-B_FixAsset 2014-CGAAP'!E40 -> 0 | D40: ='App.2-B_FixAsset 2014-CGAAP'!G40 -> 0 | E40: 0 | F40: ='App.2-B_FixAsset 2014-CGAAP'!F40 -> 0 | G40: 0 | I40: 0 | J40: 0 | L40: 0
A41: 1920 | B41: Computer Equip.-Hardware(Post Mar. 19/07) | C41: ='App.2-B_FixAsset 2014-CGAAP'!E41 -> 0 | D41: ='App.2-B_FixAsset 2014-CGAAP'!G41 -> 0 | E41: 0 | F41: ='App.2-B_FixAsset 2014-CGAAP'!F41 -> 0 | G41: 0 | I41: 0 | J41: 0 | L41: 0
A42: 1930 | B42: Transportation Equipment | C42: ='App.2-B_FixAsset 2014-CGAAP'!E42 -> 204793.8 | D42: 184345.8 | E42: 20448 | F42: ='App.2-B_FixAsset 2014-CGAAP'!F42 -> 0 | G42: 20448 | H42: 8 | I42: 0.125 | J42: 2556 | K42: 2556 | L42: 0
A43: 1935 | B43: Stores Equipment | C43: ='App.2-B_FixAsset 2014-CGAAP'!E43 -> 0 | D43: ='App.2-B_FixAsset 2014-CGAAP'!G43 -> 0 | E43: 0 | F43: ='App.2-B_FixAsset 2014-CGAAP'!F43 -> 0 | G43: 0 | I43: 0 | J43: 0 | L43: 0
A44: 1940 | B44: Tools, Shop & Garage Equipment | C44: ='App.2-B_FixAsset 2014-CGAAP'!E44 -> 30996.47 | D44: 6786.47 | E44: 24210 | F44: ='App.2-B_FixAsset 2014-CGAAP'!F44 -> 3100 | G44: 25760 | H44: 10 | I44: 0.1 | J44: 2576 | K44: 2576 | L44: 0
A45: 1945 | B45: Measurement & Testing Equipment | C45: ='App.2-B_FixAsset 2014-CGAAP'!E45 -> 0 | D45: ='App.2-B_FixAsset 2014-CGAAP'!G45 -> 0 | E45: 0 | F45: ='App.2-B_FixAsset 2014-CGAAP'!F45 -> 0 | G45: 0 | I45: 0 | J45: 0 | L45: 0
A46: 1950 | B46: Power Operated Equipment | C46: ='App.2-B_FixAsset 2014-CGAAP'!E46 -> 6363.29 | D46: 4363.29 | E46: 2000 | F46: ='App.2-B_FixAsset 2014-CGAAP'!F46 -> 2000 | G46: 3000 | H46: 8 | I46: 0.125 | J46: 375 | K46: 375 | L46: 0
A47: 1955 | B47: Communications Equipment | C47: ='App.2-B_FixAsset 2014-CGAAP'!E47 -> 0 | D47: ='App.2-B_FixAsset 2014-CGAAP'!G47 -> 0 | E47: 0 | F47: ='App.2-B_FixAsset 2014-CGAAP'!F47 -> 0 | G47: 0 | I47: 0 | J47: 0 | L47: 0
A48: 1955 | B48: Communication Equipment (Smart Meters) | C48: ='App.2-B_FixAsset 2014-CGAAP'!E48 -> 0 | D48: ='App.2-B_FixAsset 2014-CGAAP'!G48 -> 0 | E48: 0 | F48: ='App.2-B_FixAsset 2014-CGAAP'!F48 -> 0 | G48: 0 | I48: 0 | J48: 0 | L48: 0
A49: 1960 | B49: Miscellaneous Equipment | C49: ='App.2-B_FixAsset 2014-CGAAP'!E49 -> 0 | D49: ='App.2-B_FixAsset 2014-CGAAP'!G49 -> 0 | E49: 0 | F49: ='App.2-B_FixAsset 2014-CGAAP'!F49 -> 0 | G49: 0 | I49: 0 | J49: 0 | L49: 0
A50: 1975 | B50: Load Management Controls Utility Premises | C50: ='App.2-B_FixAsset 2014-CGAAP'!E50 -> 0 | D50: ='App.2-B_FixAsset 2014-CGAAP'!G50 -> 0 | E50: 0 | F50: ='App.2-B_FixAsset 2014-CGAAP'!F50 -> 0 | G50: 0 | I50: 0 | J50: 0 | L50: 0
A51: 1980 | B51: System Supervisor Equipment | C51: ='App.2-B_FixAsset 2014-CGAAP'!E51 -> 0 | D51: ='App.2-B_FixAsset 2014-CGAAP'!G51 -> 0 | E51: 0 | F51: ='App.2-B_FixAsset 2014-CGAAP'!F51 -> 0 | G51: 0 | I51: 0 | J51: 0 | L51: 0
A52: 1985 | B52: Miscellaneous Fixed Assets | C52: ='App.2-B_FixAsset 2014-CGAAP'!E52 -> 0 | D52: ='App.2-B_FixAsset 2014-CGAAP'!G52 -> 0 | E52: 0 | F52: ='App.2-B_FixAsset 2014-CGAAP'!F52 -> 0 | G52: 0 | I52: 0 | J52: 0 | L52: 0
A53: 1995 | B53: Contributions & Grants - ACCT 1830 | C53: -77570.38 | D53: 0 | E53: -77570.38 | F53: ='App.2-B_FixAsset 2014-CGAAP'!F53 -> 0 | G53: -77570.38 | H53: 45 | I53: 0.02222222222 | J53: -1723.786222 | K53: -1724 | L53: 0.2137777778
A54: 1995 | B54: Contributions & Grants - ACCT 1835 | C54: -49660.65 | D54: 0 | E54: -49660.65 | F54: ='App.2-B_FixAsset 2014-CGAAP'!F54 -> 0 | G54: -49660.65 | H54: 60 | I54: =IF(H54=0,0,1/H54) -> 0.01666666667 | J54: =IF(H54=0,0,G54/H54) -> -827.6775 | K54: -828 | L54: 0.3225
A55: 1995 | B55: Contributions & Grants - ACCT 1840 | C55: -219.86 | D55: 0 | E55: -219.86 | F55: ='App.2-B_FixAsset 2014-CGAAP'!F55 -> 0 | G55: -219.86 | H55: 50 | I55: 0.02 | J55: -4.3972 | K55: -4 | L55: -0.3972
A56: 1995 | B56: Contributions & Grants - ACCT 1845 | C56: -80350.46 | D56: 0 | E56: -80350.46 | F56: ='App.2-B_FixAsset 2014-CGAAP'!F56 -> 0 | G56: -80350.46 | H56: 30 | I56: 0.03333333333 | J56: -2678.348667 | K56: -2678 | L56: -0.3486666667
A57: 1995 | B57: Contributions & Grants - ACCT 1850 | C57: -46712.83 | D57: 0 | E57: -46712.83 | F57: ='App.2-B_FixAsset 2014-CGAAP'!F57 -> 0 | G57: -46712.83 | H57: 40 | I57: 0.025 | J57: -1167.82075 | K57: -1168 | L57: 0.17925
G58: 0 | I58: 0 | J58: 0 | L58: 0
B59: Total | C59: =SUM(C16:C58) -> 7094053.31 | D59: =SUM(D16:D58) -> 338309.7 | E59: =SUM(E16:E58) -> 6755743.61 | F59: =SUM(F16:F58) -> 272300 | G59: =SUM(G16:G58) -> 6891893.61 | J59: =SUM(J16:J58) -> 222852.515 | K59: =SUM(K16:K58) -> 222854 | L59: =SUM(L16:L58) -> -1.485005556
A61: Notes:
A63: 1 | B63: Board policy of the "half-year" rule - the applicant must ensure that additions in the year attract a half-year depreciation expense in the first year. Deviations from this standard practice must be supported in the application.
A64: 2 | B64: The applicant must provide an explanation of material variances in evidence
A66: General | B66: Applicants must provide a breakdown of depreciation and amortization expense in the above format for all relevant accounts. Asset Retirement Obligations (AROs), depreciation and accretion expense should be disclosed separately consistent with the Notes of historical Audited Financial Statements.

Sheet App.2-G_Detailed_OM&A_Expenses
G1: File Number: | I1: ='LDC Info'!$E$18 -> EB-2013-0139
G2: Exhibit: | I2: 4
G3: Tab: | I3: 1
G4: Schedule: | I4: 3
G5: Page:
G7: Date:
A9: Appendix 2-G
A10: Detailed, Account by Account, OM&A Expense Table
A11: (excluding Depreciation and Amortization)
A14: Account | B14: Description | C14: ="Last Rebasing Year (" & 'LDC Info'!E30 & " Actuals)" -> Last Rebasing Year (2010 Actuals) | D14: ='LDC Info'!E26-2 & " Actual" -> 2011 Actual | E14: ='LDC Info'!E26-1 & " Actual"& CHAR(178) -> 2012 Actual² | F14: ="Bridge Year " & 'LDC Info'!E26& CHAR(179) -> Bridge Year 2013³ | G14: ="Bridge Year " & 'LDC Info'!E26& CHAR(179) -> Bridge Year 2013³ | H14: ="Test Year " & 'LDC Info'!E28 -> Test Year 2014 | I14: ="Test Year " & 'LDC Info'!E28 -> Test Year 2014
A15: Reporting Basis | C15: CGAAP | D15: CGAAP | E15: CGAAP | F15: CGAAP | G15: MIFRS | H15: CGAAP | I15: MIFRS
A16: Operations
A17: 5005 | B17: Operation Supervision and Engineering | C17: 0 | D17: 0 | E17: 0 | F17: 0 | H17: 0
A18: 5010 | B18: Load Dispatching | C18: 0 | D18: 0 | E18: 0 | F18: 0 | H18: 0
A19: 5012 | B19: Station Buildings and Fixtures Expense | C19: 0 | D19: 0 | E19: 0 | F19: 0 | H19: 0
A20: 5014 | B20: Transformer Station Equipment - Operation Labour | C20: 3289.9 | D20: 11350.91 | E20: 6356 | F20: 9500 | H20: 10000
A21: 5015 | B21: Transformer Station Equipment - Operation Supplies and Expenses | C21: 8023.04 | D21: 3779.67 | E21: 5261 | F21: 8500 | H21: 9000
A22: 5016 | B22: Distribution Station Equipment - Operation Labour | C22: 4358.85 | D22: 10381.08 | E22: 8507 | F22: 10000 | H22: 12000
A23: 5017 | B23: Distribution Station Equipment - Operation Supplies and Expenses | C23: 4905.24 | D23: 2053.11 | E23: 6400 | F23: 5000 | H23: 6500
A24: 5020 | B24: Overhead Distribution Lines and Feeders - Operation Labour | C24: 9936.49 | D24: 9930.66 | E24: 11028 | F24: 11500 | H24: 13500
A25: 5025 | B25: Overhead Distribution Lines and Feeders - Operation Supplies and Expenses | C25: 1171.07 | D25: 1750.8 | E25: 1404 | F25: 1500 | H25: 1600
A26: 5030 | B26: Overhead Sub-transmission Feeders - Operation | C26: 0 | D26: 0 | E26: 0 | F26: 0 | H26: 0
A27: 5035 | B27: Overhead Distribution Transformers - Operation | C27: 7628.04 | D27: 4195.49 | E27: 5585 | F27: 8000 | H27: 10000
A28: 5040 | B28: Underground Distribution Lines and Feeders - Operation Labour | C28: 911.05 | D28: 3095.89 | E28: 1920 | F28: 2100 | H28: 2500
A29: 5045 | B29: Underground Distribution Lines and Feeders - Operation Supplies and Expenses | C29: 31.74 | D29: 31.74 | E29: 50 | F29: 50 | H29: 50
A30: 5050 | B30: Underground Sub-transmission Feeders - Operation | C30: 0 | D30: 0 | E30: 0 | F30: 0 | H30: 0
A31: 5055 | B31: Underground Distribution Transformers - Operation | C31: 316.59 | D31: 1836.82 | E31: 1274 | F31: 3000 | H31: 3500
A32: 5060 | B32: Street Lighting and Signal System Expense | C32: 0 | D32: 0 | E32: 0 | F32: 0 | H32: 0
A33: 5065 | B33: Meter Expense | C33: 33645.26 | D33: 21738.16 | E33: 25715 | F33: 24600 | H33: 26300
A34: 5070 | B34: Customer Premises - Operation Labour | C34: 0 | D34: 0 | E34: 0 | F34: 0 | H34: 0
A35: 5075 | B35: Customer Premises - Operation Materials and Expenses | C35: 0 | D35: 0 | E35: 0 | F35: 0 | H35: 0
A36: 5085 | B36: Miscellaneous Distribution Expenses | C36: 0 | D36: 0 | E36: 0 | F36: 0 | H36: 0
A37: 5090 | B37: Underground Distribution Lines and Feeders - Rental Paid | C37: 0 | D37: 0 | E37: 0 | F37: 0 | H37: 0
A38: 5095 | B38: Overhead Distribution Lines and Feeders - Rental Paid | C38: 886.91 | D38: 886.91 | E38: 887 | F38: 1500 | H38: 1600
A39: 5096 | B39: Other Rent | C39: 0 | D39: 0 | E39: 0 | F39: 0 | H39: 0
A40: Total - Operations | C40: =SUM(C17:C39) -> 75104.18 | D40: 71031.24 | E40: 74387 | F40: 85250 | G40: 0 | H40: 96550 | I40: 0
A41: Account | B41: Description | C41: =C14 -> Last Rebasing Year (2010 Actuals) | D41: 2011 Actual | E41: 2012 Actual² | F41: Bridge Year 2013³ | G41: Bridge Year 2013³ | H41: Test Year 2014 | I41: Test Year 2014
A42: Maintenance
A43: 5105 | B43: Maintenance Supervision and Engineering | C43: 720 | D43: 0 | E43: 0 | F43: 1000 | H43: 1100
A44: 5110 | B44: Maintenance of Buildings and Fixtures - Distribution Stations | C44: 0 | D44: 0 | E44: 0 | F44: 0 | H44: 0
A45: 5112 | B45: Maintenance of Transformer Station Equipment | C45: 0 | D45: 0 | E45: 0 | F45: 0 | H45: 0
A46: 5114 | B46: Maintenance of Distribution Station Equipment | C46: 0 | D46: 0 | E46: 0 | F46: 0 | H46: 0
A47: 5120 | B47: Maintenance of Poles, Towers and Fixtures | C47: 5216.54 | D47: 3986.57 | E47: 11552 | F47: 10000 | H47: 11000
A48: 5125 | B48: Maintenance of Overhead Conductors and Devices | C48: 36894.46 | D48: 28090.02 | E48: 35188 | F48: 34000 | H48: 35000
A49: 5130 | B49: Maintenance of Overhead Services | C49: 28277.95 | D49: 34875.1 | E49: 42724 | F49: 46000 | H49: 50000
A50: 5135 | B50: Overhead Distribution Lines and Feeders - Right of Way | C50: 40522.91 | D50: 44239.08 | E50: 62172 | F50: 65000 | H50: 70000
A51: 5145 | B51: Maintenance of Underground Conduit | C51: 333.17 | D51: 545.37 | E51: 1606 | F51: 1500 | H51: 1500
A52: 5150 | B52: Maintenance of Underground Conductors and Devices | C52: 5407.59 | D52: 15280.2 | E52: 4084 | F52: 8900 | H52: 10300
A53: 5155 | B53: Maintenance of Underground Services | C53: 7402.01 | D53: 7581.97 | E53: 7468 | F53: 8500 | H53: 9900
A54: 5160 | B54: Maintenance of Line Transformers | C54: 7716.53 | D54: 11805.91 | E54: 11988 | F54: 13000 | H54: 15000
A55: 5165 | B55: Maintenance of Street Lighting and Signal Systems | C55: 0 | D55: 0 | E55: 0 | F55: 0 | H55: 0
A56: 5170 | B56: Sentinel Lights - Labour | C56: 0 | D56: 0 | E56: 0 | F56: 0 | H56: 0
A57: 5172 | B57: Sentinel Lights - Materials and Expenses | C57: 0 | D57: 0 | E57: 0 | F57: 0 | H57: 0
A58: 5175 | B58: Maintenance of Meters | C58: -981.88 | D58: 1229.42 | E58: 1963 | F58: 1800 | H58: 1900
A59: 5178 | B59: Customer Installations Expenses - Leased Property | C59: 0 | D59: 0 | E59: 0 | F59: 0 | H59: 0
A60: 5195 | B60: Maintenance of Other Installations on Customer Premises | C60: 0 | D60: 0 | E60: 0 | F60: 0 | H60: 0
A61: Total - Maintenance | C61: =SUM(C43:C60) -> 131509.28 | D61: 147633.64 | E61: 178745 | F61: 189700 | G61: 0 | H61: 205700 | I61: 0
A62: Account | B62: Description | C62: =C41 -> Last Rebasing Year (2010 Actuals) | D62: =D41 -> 2011 Actual | E62: =E41 -> 2012 Actual² | F62: =F41 -> Bridge Year 2013³ | G62: =G41 -> Bridge Year 2013³ | I62: =I41 -> Test Year 2014
A63: Billing and Collecting
A64: 5305 | B64: Supervision | C64: 0 | D64: 0 | E64: 0 | F64: 0 | H64: 0
A65: 5310 | B65: Meter Reading Expense | C65: 29863.73 | D65: 42061.58 | E65: 35200 | F65: 38000 | H65: 45000
A66: 5315 | B66: Customer Billing | C66: 175731.13 | D66: 185552.18 | E66: 211800 | F66: 230000 | H66: 245000
A67: 5320 | B67: Collecting | C67: 100396.13 | D67: 94826.84 | E67: 97931 | F67: 102130 | H67: 106250
A68: 5325 | B68: Collecting - Cash Over and Short | C68: 0 | D68: 5 | E68: 0 | F68: 60 | H68: 65
A69: 5330 | B69: Collection Charges | C69: 0 | D69: 0 | E69: 0 | F69: 0 | H69: 0
A70: 5335 | B70: Bad Debt Expense | C70: 19528.13 | D70: 17496.83 | E70: 2800 | F70: 20000 | H70: 30000
A71: 5340 | B71: Miscellaneous Customer Accounts Expenses | C71: 0 | D71: 0 | E71: 0 | F71: 0 | H71: 0
A72: Total - Billing and Collecting | C72: =SUM(C64:C71) -> 325519.12 | D72: 339942.43 | E72: 347731 | F72: 390190 | G72: 0 | H72: 426315 | I72: 0
A73: Account | B73: Description | C73: =C62 -> Last Rebasing Year (2010 Actuals) | D73: =D62 -> 2011 Actual | E73: =E62 -> 2012 Actual² | F73: =F62 -> Bridge Year 2013³ | G73: =G62 -> Bridge Year 2013³ | I73: =I62 -> Test Year 2014
A74: Community Relations
A75: 5405 | B75: Supervision | C75: 0 | D75: 0 | E75: 0 | F75: 0 | H75: 0
A76: 5410 | B76: Community Relations - Sundry | C76: 100 | D76: 225 | E76: 0 | F76: 200 | H76: 200
A77: 5415 | B77: Energy Conservation | C77: 0 | D77: 0 | E77: 0 | F77: 0 | H77: 0
A78: 5420 | B78: Community Safety Program | C78: 0 | D78: 0 | E78: 0 | F78: 0 | H78: 0
A79: 5425 | B79: Miscellaneous Customer Service and Informational Expenses | C79: 0 | D79: 0 | E79: 0 | F79: 0 | H79: 0
A80: 5505 | B80: Supervision | C80: 0 | D80: 0 | E80: 0 | F80: 0 | H80: 0
A81: 5510 | B81: Demonstrating and Selling Expense | C81: 0 | D81: 0 | E81: 0 | F81: 0 | H81: 0
A82: 5515 | B82: Advertising Expenses | C82: 0 | D82: 0 | E82: 0 | F82: 0 | H82: 0
A83: 5520 | B83: Miscellaneous Sales Expense | C83: 0 | D83: 0 | E83: 0 | F83: 0 | H83: 0
A84: Total - Community Relations | C84: =SUM(C75:C83) -> 100 | D84: 225 | E84: 0 | F84: 200 | G84: 0 | H84: 200 | I84: 0
A85: Account | B85: Description | C85: =C73 -> Last Rebasing Year (2010 Actuals) | D85: =D73 -> 2011 Actual | E85: =E73 -> 2012 Actual² | F85: =F73 -> Bridge Year 2013³ | G85: =G73 -> Bridge Year 2013³ | I85: =I73 -> Test Year 2014
A86: Administrative and General Expenses
A87: 5605 | B87: Executive Salaries and Expenses | C87: 105990.16 | D87: 105071.87 | E87: 105734 | F87: 109000 | H87: 112000
A88: 5610 | B88: Management Salaries and Expenses | C88: 69180.62 | D88: 72506.75 | E88: 74249 | F88: 76000 | H88: 78000
A89: 5615 | B89: General Administrative Salaries and Expenses | C89: 0 | D89: 0 | E89: 0 | F89: 0 | H89: 0
A90: 5620 | B90: Office Supplies and Expenses | C90: 21409.29 | D90: 24654.78 | E90: 22744 | F90: 27000 | H90: 30000
A91: 5625 | B91: Administrative Expense Transferred - Credit | C91: 0 | D91: 0 | E91: 0 | F91: 0 | H91: 0
A92: 5630 | B92: Outside Services Employed | C92: 11212.5 | D92: 19494.95 | E92: 17784 | F92: 19850 | H92: 20600
A93: 5635 | B93: Property Insurance | C93: 4566.42 | D93: 4657.86 | E93: 4798 | F93: 7700 | H93: 12000
A94: 5640 | B94: Injuries and Damages | C94: 6177.6 | D94: 9018 | E94: 3509 | F94: 7700 | H94: 8000
A95: 5645 | B95: OMERS Pensions and Benefits | C95: 3249.72 | D95: 3687.72 | E95: 3627 | F95: 3750 | H95: 3900
A96: 5646 | B96: Employee Pensions and OPEB | C96: 0 | D96: 0 | E96: 0 | F96: 0 | H96: 0
A97: 5647 | B97: Employee Sick Leave | C97: 0 | D97: 0 | E97: 0 | F97: 0 | H97: 0
A98: 5650 | B98: Franchise Requirements | C98: 0 | D98: 0 | E98: 0 | F98: 0 | H98: 0
A99: 5655 | B99: Regulatory Expenses | C99: 47004.25 | D99: 66083.48 | E99: 128605 | F99: 138000 | H99: 65400
A100: 5660 | B100: General Advertising Expenses | C100: 0 | D100: 0 | E100: 0 | F100: 0 | H100: 0
A101: 5665 | B101: Miscellaneous General Expenses | C101: 13817.39 | D101: 13850 | E101: 14600 | F101: 15100 | H101: 15700
A102: 5670 | B102: Rent | C102: 0 | D102: 0 | E102: 0 | F102: 0 | H102: 0
A103: 5672 | B103: Lease Payment Charge | C103: 0 | D103: 0 | E103: 0 | F103: 0 | H103: 0
A104: 5675 | B104: Maintenance of General Plant | C104: 25832.76 | D104: 26746.3 | E104: 23003 | F104: 56200 | H104: 45000
A105: 5680 | B105: Electrical Safety Authority Fees | C105: 4914.05 | D105: 4887.12 | E105: 4904 | F105: 5100 | H105: 5300
A106: 5681 | B106: Special Purpose Charge Expense | C106: 22101.26 | D106: 0 | F106: 0 | H106: 0
A107: 5685 | B107: Independent Electricity System Operator Fees and Penalties | C107: 0 | D107: 0 | F107: 0 | H107: 0
A108: 5695 | B108: OM&A Contra Account
A109: 6205 | B109: Donations
A110: 6205 | B110: Donations, Sub-account LEAP Funding | C110: 0 | D110: 2000 | E110: 2000 | F110: 2000 | H110: 2000
A111: Total - Administrative and General Expenses | C111: =SUM(C87:C110) -> 335456.02 | D111: =SUM(D87:D110) -> 352658.83 | E111: 405557 | F111: 467400 | G111: 0 | H111: =SUM(H87:H110) -> 397900 | I111: 0
A112: Total OM&A | C112: =C40+C61+C72+C84+C111 -> 867688.6 | D112: 911491.14 | E112: 1006420 | F112: 1132740 | G112: 0 | H112: 1126665 | I112: 0
A113: Adjustments for non-recoverable items
A114: 5681 | B114: Special Purpose Charge Expense | C114: 22101.26
A115: 6205 | B115: Donations1
A119: Total Recoverable OM&A | C119: =C112-SUM(C114:C118) -> 845587.34 | D119: 911491.14 | E119: 1006420 | F119: 1132740 | G119: 0 | H119: 1126665 | I119: 0
A121: 1 Account 6205 - Donations is generally non-recoverable. However, the sub-account LEAP funding of account 6205 is generally recoverable.
A123: Note:
A124: 1 | B124: If it has been more than three years since the applicant last filed a cost of service application, additional years of historical actuals should be incorporated into the table, as necessary, to go back to the last cost of service application. If the applicant last filed a cost of service application less than three years ago, a minimum of three years of actual information is required.
A125: 2 | B125: If the applicant is adopting IFRS or an alternate accounting standard as of January 1, 2013 for financial reporting purposes, 2012 must be presented on both a CGAAP and MIFRS (or alternate accounting standard) basis.
A126: 3 | B126: If the applicant is adopting IFRS or an alternate accounting standard as of January 1, 2014 for financial reporting purposes, 2013 must be presented on both a CGAAP and MIFRS (or alternate accounting standard) basis.

Sheet App.2-H_OM&A_Detailed_Analysis
H1: File Number: | I1: ='LDC Info'!$E$18 -> EB-2013-0139
H2: Exhibit: | I2: 4
H3: Tab: | I3: 1
H4: Schedule: | I4: 3
H5: Page:
H7: Date:
A9: Appendix 2-H
A10: OM&A Detailed Variance Analysis
A11: (excluding Depreciation and Amortization)
A14: Account | B14: Description | C14: ="Last Board-approved Rebasing Year ("&'LDC Info'!E30&" Year)" -> Last Board-approved Rebasing Year (2010 Year) | D14: Most Current Actuals Year 2012 | E14: ="Test Year " & 'LDC Info'!E28 -> Test Year 2014 | F14: Test Year Versus Last Rebasing | H14: Test Year Versus Most Current Actuals
F15: Variance ($) | G15: Percentage Change (%) | H15: Variance ($) | I15: Percentage Change (%)
A16: Reporting Basis | C16: CGAAP | D16: CGAAP | E16: CGAAP
A17: Operations
A18: 5005 | B18: Operation Supervision and Engineering | C18: 0 | D18: =+'App.2-G_Detailed_OM&A_Expenses'!E17 -> 0 | E18: =+'App.2-G_Detailed_OM&A_Expenses'!H17 -> 0 | F18: =E18-C18 -> 0 | G18: =IF(C18=0,"",(E18/C18)-1) ->  | H18: =E18-D18 -> 0 | I18: =IF(D18=0,"",(E18/D18)-1) -> 
A19: 5010 | B19: Load Dispatching | C19: 0 | D19: =+'App.2-G_Detailed_OM&A_Expenses'!E18 -> 0 | E19: =+'App.2-G_Detailed_OM&A_Expenses'!H18 -> 0 | F19: =E19-C19 -> 0 | G19: =IF(C19=0,"",(E19/C19)-1) ->  | H19: =E19-D19 -> 0 | I19: =IF(D19=0,"",(E19/D19)-1) -> 
A20: 5012 | B20: Station Buildings and Fixtures Expense | C20: 0 | D20: =+'App.2-G_Detailed_OM&A_Expenses'!E19 -> 0 | E20: =+'App.2-G_Detailed_OM&A_Expenses'!H19 -> 0 | F20: 0 | H20: 0
A21: 5014 | B21: Transformer Station Equipment - Operation Labour | C21: 11695 | D21: =+'App.2-G_Detailed_OM&A_Expenses'!E20 -> 6356 | E21: =+'App.2-G_Detailed_OM&A_Expenses'!H20 -> 10000 | F21: -1695 | G21: -0.1449337324 | H21: 3644 | I21: 0.5733165513
A22: 5015 | B22: Transformer Station Equipment - Operation Supplies and Expenses | C22: 12944 | D22: =+'App.2-G_Detailed_OM&A_Expenses'!E21 -> 5261 | E22: =+'App.2-G_Detailed_OM&A_Expenses'!H21 -> 9000 | F22: -3944 | G22: -0.304697157 | H22: 3739 | I22: 0.7107013876
A23: 5016 | B23: Distribution Station Equipment - Operation Labour | C23: 9672 | D23: =+'App.2-G_Detailed_OM&A_Expenses'!E22 -> 8507 | E23: =+'App.2-G_Detailed_OM&A_Expenses'!H22 -> 12000 | F23: 2328 | G23: 0.2406947891 | H23: 3493 | I23: 0.4106030328
A24: 5017 | B24: Distribution Station Equipment - Operation Supplies and Expenses | C24: 66 | D24: =+'App.2-G_Detailed_OM&A_Expenses'!E23 -> 6400 | E24: =+'App.2-G_Detailed_OM&A_Expenses'!H23 -> 6500 | F24: 6434 | G24: 97.48484848 | H24: 100 | I24: 0.015625
A25: 5020 | B25: Overhead Distribution Lines and Feeders - Operation Labour | C25: 10154 | D25: =+'App.2-G_Detailed_OM&A_Expenses'!E24 -> 11028 | E25: =+'App.2-G_Detailed_OM&A_Expenses'!H24 -> 13500 | F25: 3346 | G25: 0.3295253102 | H25: 2472 | I25: 0.2241566921
A26: 5025 | B26: Overhead Distribution Lines and Feeders - Operation Supplies and Expenses | C26: 1120 | D26: =+'App.2-G_Detailed_OM&A_Expenses'!E25 -> 1404 | E26: =+'App.2-G_Detailed_OM&A_Expenses'!H25 -> 1600 | F26: 480 | G26: 0.4285714286 | H26: 196 | I26: 0.1396011396
A27: 5030 | B27: Overhead Sub-transmission Feeders - Operation | C27: 0 | D27: =+'App.2-G_Detailed_OM&A_Expenses'!E26 -> 0 | E27: =+'App.2-G_Detailed_OM&A_Expenses'!H26 -> 0 | F27: 0 | H27: 0
A28: 5035 | B28: Overhead Distribution Transformers - Operation | C28: 12046 | D28: =+'App.2-G_Detailed_OM&A_Expenses'!E27 -> 5585 | E28: =+'App.2-G_Detailed_OM&A_Expenses'!H27 -> 10000 | F28: -2046 | G28: -0.1698489125 | H28: 4415 | I28: 0.7905102954
A29: 5040 | B29: Underground Distribution Lines and Feeders - Operation Labour | C29: 2130 | D29: =+'App.2-G_Detailed_OM&A_Expenses'!E28 -> 1920 | E29: =+'App.2-G_Detailed_OM&A_Expenses'!H28 -> 2500 | F29: 370 | G29: 0.1737089202 | H29: 580 | I29: 0.3020833333
A30: 5045 | B30: Underground Distribution Lines and Feeders - Operation Supplies and Expenses | C30: 25 | D30: =+'App.2-G_Detailed_OM&A_Expenses'!E29 -> 50 | E30: =+'App.2-G_Detailed_OM&A_Expenses'!H29 -> 50 | F30: 25 | G30: 1 | H30: 0 | I30: 0
A31: 5050 | B31: Underground Sub-transmission Feeders - Operation | C31: 0 | D31: =+'App.2-G_Detailed_OM&A_Expenses'!E30 -> 0 | E31: =+'App.2-G_Detailed_OM&A_Expenses'!H30 -> 0 | F31: 0 | H31: 0
A32: 5055 | B32: Underground Distribution Transformers - Operation | C32: 2465 | D32: =+'App.2-G_Detailed_OM&A_Expenses'!E31 -> 1274 | E32: =+'App.2-G_Detailed_OM&A_Expenses'!H31 -> 3500 | F32: 1035 | G32: 0.4198782961 | H32: 2226 | I32: 1.747252747
A33: 5060 | B33: Street Lighting and Signal System Expense | C33: 0 | D33: =+'App.2-G_Detailed_OM&A_Expenses'!E32 -> 0 | E33: =+'App.2-G_Detailed_OM&A_Expenses'!H32 -> 0 | F33: 0 | H33: 0
A34: 5065 | B34: Meter Expense | C34: 12032 | D34: =+'App.2-G_Detailed_OM&A_Expenses'!E33 -> 25715 | E34: =+'App.2-G_Detailed_OM&A_Expenses'!H33 -> 26300 | F34: 14268 | G34: 1.185837766 | H34: 585 | I34: 0.02274936807
A35: 5070 | B35: Customer Premises - Operation Labour | C35: 0 | D35: =+'App.2-G_Detailed_OM&A_Expenses'!E34 -> 0 | E35: =+'App.2-G_Detailed_OM&A_Expenses'!H34 -> 0 | F35: 0 | H35: 0
A36: 5075 | B36: Customer Premises - Operation Materials and Expenses | C36: 0 | D36: =+'App.2-G_Detailed_OM&A_Expenses'!E35 -> 0 | E36: =+'App.2-G_Detailed_OM&A_Expenses'!H35 -> 0 | F36: 0 | H36: 0
A37: 5085 | B37: Miscellaneous Distribution Expenses | C37: 0 | D37: =+'App.2-G_Detailed_OM&A_Expenses'!E36 -> 0 | E37: =+'App.2-G_Detailed_OM&A_Expenses'!H36 -> 0 | F37: 0 | H37: 0
A38: 5090 | B38: Underground Distribution Lines and Feeders - Rental Paid | C38: 0 | D38: =+'App.2-G_Detailed_OM&A_Expenses'!E37 -> 0 | E38: =+'App.2-G_Detailed_OM&A_Expenses'!H37 -> 0 | F38: 0 | H38: 0
A39: 5095 | B39: Overhead Distribution Lines and Feeders - Rental Paid | C39: 1114 | D39: =+'App.2-G_Detailed_OM&A_Expenses'!E38 -> 887 | E39: =+'App.2-G_Detailed_OM&A_Expenses'!H38 -> 1600 | F39: 486 | G39: 0.4362657092 | H39: 713 | I39: 0.8038331454
A40: 5096 | B40: Other Rent | C40: =#REF! ->  | D40: =+'App.2-G_Detailed_OM&A_Expenses'!E39 -> 0 | E40: =+'App.2-G_Detailed_OM&A_Expenses'!H39 -> 0 | H40: 0
A41: Total - Operations | C41: =SUM(C18:C40) ->  | D41: =SUM(D18:D40) -> 74387 | E41: =SUM(E18:E40) -> 96550 | H41: 22163 | I41: 0.2979418447
A42: Account | B42: Description
A43: Maintenance
A44: 5105 | B44: Maintenance Supervision and Engineering | C44: 4815 | D44: 0 | E44: 1100 | F44: =E44-C44 -> -3715 | G44: =IF(C44=0,"",(E44/C44)-1) -> -0.7715472482 | H44: =E44-D44 -> 1100 | I44: =IF(D44=0,"",(E44/D44)-1) -> 
A45: 5110 | B45: Maintenance of Buildings and Fixtures - Distribution Stations | C45: 0 | D45: 0 | E45: 0 | F45: 0 | H45: 0
A46: 5112 | B46: Maintenance of Transformer Station Equipment | C46: 0 | D46: 0 | E46: 0 | F46: 0 | H46: 0
A47: 5114 | B47: Maintenance of Distribution Station Equipment | C47: 0 | D47: 0 | E47: 0 | F47: 0 | H47: 0
A48: 5120 | B48: Maintenance of Poles, Towers and Fixtures | C48: 18022 | D48: 11552 | E48: 11000 | F48: -7022 | G48: -0.3896348907 | H48: -552 | I48: -0.04778393352
A49: 5125 | B49: Maintenance of Overhead Conductors and Devices | C49: 32799 | D49: 35188 | E49: 35000 | F49: 2201 | G49: 0.06710570444 | H49: -188 | I49: -0.005342730476
A50: 5130 | B50: Maintenance of Overhead Services | C50: 33392 | D50: 42724 | E50: 50000 | F50: 16608 | G50: 0.4973646382 | H50: 7276 | I50: 0.1703024061
A51: 5135 | B51: Overhead Distribution Lines and Feeders - Right of Way | C51: 44827 | D51: 62172 | E51: 70000 | F51: 25173 | G51: 0.5615588819 | H51: 7828 | I51: 0.1259087692
A52: 5145 | B52: Maintenance of Underground Conduit | C52: 1198 | D52: 1606 | E52: 1500 | F52: 302 | G52: 0.2520868114 | H52: -106 | I52: -0.06600249066
A53: 5150 | B53: Maintenance of Underground Conductors and Devices | C53: 18596 | D53: 4084 | E53: 10300 | F53: -8296 | G53: -0.4461174446 | H53: 6216 | I53: 1.522037218
A54: 5155 | B54: Maintenance of Underground Services | C54: 7176 | D54: 7468 | E54: 9900 | F54: 2724 | G54: 0.3795986622 | H54: 2432 | I54: 0.3256561328
A55: 5160 | B55: Maintenance of Line Transformers | C55: 2362 | D55: 11988 | E55: 15000 | F55: 12638 | G55: 5.350550381 | H55: 3012 | I55: 0.2512512513
A56: 5165 | B56: Maintenance of Street Lighting and Signal Systems | C56: 0 | D56: 0 | E56: 0 | F56: 0 | H56: 0
A57: 5170 | B57: Sentinel Lights - Labour | C57: 0 | D57: 0 | E57: 0 | F57: 0 | H57: 0
A58: 5172 | B58: Sentinel Lights - Materials and Expenses | C58: 0 | D58: 0 | E58: 0 | F58: 0 | H58: 0
A59: 5175 | B59: Maintenance of Meters | C59: 8700 | D59: 1963 | E59: 1900 | F59: -6800 | G59: -0.7816091954 | H59: -63 | I59: -0.03209373408
A60: 5178 | B60: Customer Installations Expenses - Leased Property | C60: 0 | D60: 0 | E60: 0 | F60: 0 | H60: 0
A61: 5195 | B61: Maintenance of Other Installations on Customer Premises | C61: 0 | D61: 0 | E61: 0 | F61: 0 | H61: 0
A62: Total - Maintenance | C62: =SUM(C44:C61) -> 171887 | D62: =SUM(D44:D61) -> 178745 | E62: =SUM(E44:E61) -> 205700 | F62: 33813 | G62: 0.1967164474 | H62: 26955 | I62: 0.150801421
A63: Account | B63: Description
A64: Billing and Collecting
A65: 5305 | B65: Supervision | C65: 0 | D65: 0 | E65: 0 | F65: =E65-C65 -> 0 | G65: =IF(C65=0,"",(E65/C65)-1) ->  | H65: =E65-D65 -> 0 | I65: =IF(D65=0,"",(E65/D65)-1) -> 
A66: 5310 | B66: Meter Reading Expense | C66: 33376 | D66: 35200 | E66: 45000 | F66: 11624 | G66: 0.348274209 | H66: 9800 | I66: 0.2784090909
A67: 5315 | B67: Customer Billing | C67: 185880 | D67: 211800 | E67: 245000 | F67: 59120 | G67: 0.3180546589 | H67: 33200 | I67: 0.1567516525
A68: 5320 | B68: Collecting | C68: 100389 | D68: 97931 | E68: 106250 | F68: 5861 | G68: 0.05838289056 | H68: 8319 | I68: 0.08494756512
A69: 5325 | B69: Collecting - Cash Over and Short | C69: 0 | D69: 0 | E69: 65 | F69: 65 | H69: 65
A70: 5330 | B70: Collection Charges | C70: 0 | D70: 0 | E70: 0 | F70: 0 | H70: 0
A71: 5335 | B71: Bad Debt Expense | C71: 7927 | D71: 2800 | E71: 30000 | F71: 22073 | G71: 2.784533872 | H71: 27200 | I71: 9.714285714
A72: 5340 | B72: Miscellaneous Customer Accounts Expenses | C72: 0 | D72: 0 | E72: 0 | F72: 0 | H72: 0
A73: Total - Billing and Collecting | C73: =SUM(C65:C72) -> 327572 | D73: =SUM(D65:D72) -> 347731 | E73: =SUM(E65:E72) -> 426315 | F73: 98743 | G73: 0.3014390729 | H73: 78584 | I73: 0.2259907802
A74: Account | B74: Description
A75: Community Relations
A76: 5405 | B76: Supervision | C76: 0 | D76: 0 | E76: 0 | F76: =E76-C76 -> 0 | G76: =IF(C76=0,"",(E76/C76)-1) ->  | H76: =E76-D76 -> 0 | I76: =IF(D76=0,"",(E76/D76)-1) -> 
A77: 5410 | B77: Community Relations - Sundry | C77: 108 | D77: 0 | E77: 200 | F77: 92 | G77: 0.8518518519 | H77: 200
A78: 5415 | B78: Energy Conservation | C78: 0 | D78: 0 | E78: 0 | F78: 0 | H78: 0
A79: 5420 | B79: Community Safety Program | C79: 0 | D79: 0 | E79: 0 | F79: 0 | H79: 0
A80: 5425 | B80: Miscellaneous Customer Service and Informational Expenses | C80: 0 | D80: 0 | E80: 0 | F80: 0 | H80: 0
A81: 5505 | B81: Supervision | C81: 0 | D81: 0 | E81: 0 | F81: 0 | H81: 0
A82: 5510 | B82: Demonstrating and Selling Expense | C82: 0 | D82: 0 | E82: 0 | F82: 0 | H82: 0
A83: 5515 | B83: Advertising Expenses | C83: 0 | D83: 0 | E83: 0 | F83: 0 | H83: 0
A84: 5520 | B84: Miscellaneous Sales Expense | C84: 0 | D84: 0 | E84: 0 | F84: 0 | H84: 0
A85: Total - Community Relations | C85: =SUM(C76:C84) -> 108 | D85: =SUM(D76:D84) -> 0 | E85: =SUM(E76:E84) -> 200 | F85: 92 | G85: 0.8518518519 | H85: 200
A86: Account | B86: Description
A87: Administrative and General Expenses
A88: 5605 | B88: Executive Salaries and Expenses | C88: 107289 | D88: 105734 | E88: 112000 | F88: =E88-C88 -> 4711 | G88: =IF(C88=0,"",(E88/C88)-1) -> 0.04390944086 | H88: =E88-D88 -> 6266 | I88: =IF(D88=0,"",(E88/D88)-1) -> 0.05926192143
A89: 5610 | B89: Management Salaries and Expenses | C89: 74757 | D89: 74249 | E89: 78000 | F89: 3243 | G89: 0.04338055299 | H89: 3751 | I89: 0.05051919891
A90: 5615 | B90: General Administrative Salaries and Expenses | C90: 0 | D90: 0 | E90: 0 | F90: 0 | H90: 0
A91: 5620 | B91: Office Supplies and Expenses | C91: 21702 | D91: 22744 | E91: 30000 | F91: 8298 | G91: 0.3823610727 | H91: 7256 | I91: 0.3190291945
A92: 5625 | B92: Administrative Expense Transferred - Credit | C92: 0 | D92: 0 | E92: 0 | F92: 0 | H92: 0
A93: 5630 | B93: Outside Services Employed | C93: 28817 | D93: 17784 | E93: 20600 | F93: -8217 | G93: -0.2851441857 | H93: 2816 | I93: 0.1583445794
A94: 5635 | B94: Property Insurance | C94: 4698 | D94: 4798 | E94: 12000 | F94: 7302 | G94: 1.554278416 | H94: 7202 | I94: 1.501042101
A95: 5640 | B95: Injuries and Damages | C95: 12427 | D95: 3509 | E95: 8000 | F95: -4427 | G95: -0.3562404442 | H95: 4491 | I95: 1.27985181
A96: 5645 | B96: OMERS Pensions and Benefits | C96: 3699 | D96: 3627 | E96: 3900 | F96: 201 | G96: 0.05433901054 | H96: 273 | I96: 0.0752688172
A97: 5646 | B97: Employee Pensions and OPEB | C97: 0 | D97: 0 | E97: 0 | F97: =E97-C97 -> 0 | G97: =IF(C97=0,"",(E97/C97)-1) ->  | H97: =E97-D97 -> 0 | I97: =IF(D97=0,"",(E97/D97)-1) -> 
A98: 5647 | B98: Employee Sick Leave | C98: 0 | D98: 0 | E98: 0 | F98: =E98-C98 -> 0 | G98: =IF(C98=0,"",(E98/C98)-1) ->  | H98: =E98-D98 -> 0 | I98: =IF(D98=0,"",(E98/D98)-1) -> 
A99: 5650 | B99: Franchise Requirements | C99: 0 | D99: 0 | E99: 0 | F99: 0 | H99: 0
A100: 5655 | B100: Regulatory Expenses | C100: 67531 | D100: 128605 | E100: 65400 | F100: -2131 | G100: -0.03155587804 | H100: -63205 | I100: -0.4914661172
A101: 5660 | B101: General Advertising Expenses | C101: 0 | D101: 0 | E101: 0 | F101: 0 | H101: 0
A102: 5665 | B102: Miscellaneous General Expenses | C102: 13520 | D102: 14600 | E102: 15700 | F102: 2180 | G102: 0.1612426036 | H102: 1100 | I102: 0.07534246575
A103: 5670 | B103: Rent | C103: 0 | D103: 0 | E103: 0 | F103: =E103-C103 -> 0 | G103: =IF(C103=0,"",(E103/C103)-1) ->  | H103: =E103-D103 -> 0
A104: 5672 | B104: Lease Payment Charge | C104: 0 | D104: 0 | E104: 0 | F104: 0 | H104: 0
A105: 5675 | B105: Maintenance of General Plant | C105: 30596 | D105: 23003 | E105: 45000 | F105: 14404 | G105: 0.4707804942 | H105: 21997 | I105: 0.9562665739
A106: 5680 | B106: Electrical Safety Authority Fees | C106: 5526 | D106: 4904 | E106: 5300 | F106: -226 | G106: -0.0408975751 | H106: 396 | I106: 0.08075040783
A107: 5681 | B107: Special Purpose Charge Expense | C107: 0 | D107: 0 | E107: 0 | F107: 0 | H107: 0
A108: 5685 | B108: Independent Electricity System Operator Fees and Penalties | C108: 0 | D108: 0 | E108: 0 | F108: 0 | H108: 0
A109: 5695 | B109: OM&A Contra Account | C109: 0 | D109: 0 | E109: 0 | F109: 0 | H109: 0
A110: 6205 | B110: Donations | C110: 0 | D110: 0 | E110: 0 | F110: =E110-C110 -> 0 | G110: =IF(C110=0,"",(E110/C110)-1) ->  | H110: =E110-D110 -> 0 | I110: =IF(D110=0,"",(E110/D110)-1) -> 
A111: 6205 | B111: Donations, Sub-account LEAP Funding | C111: 0 | D111: 2000 | E111: 2000 | F111: 2000 | H111: 0 | I111: 0
A112: Total - Administrative and General Expenses | C112: =SUM(C88:C111) -> 370562 | D112: =SUM(D88:D111) -> 405557 | E112: =SUM(E88:E111) -> 397900 | F112: 27338 | G112: 0.07377442911 | H112: -7657 | I112: -0.01888020673
A113: Total OM&A | C113: =C112+C85+C73+C62+C41 ->  | D113: =D112+D85+D73+D62+D41 -> 1006420 | E113: =E112+E85+E73+E62+E41 -> 1126665 | H113: 120245 | I113: 0.1194779516
A114: Adjustments for non-recoverable items
A115: 5681 | B115: Special Purpose Charge Expense | C115: =#REF! ->  | D115: =#REF! ->  | E115: =#REF! ->  | F115: =E115-C115 ->  | G115: =IF(C115=0,"",(E115/C115)-1) ->  | H115: =E115-D115 ->  | I115: =IF(D115=0,"",(E115/D115)-1) -> 
A116: 6205 | B116: Donations1 | F116: =E116-C116 -> 0 | H116: =E116-D116 -> 0
F117: =E117-C117 -> 0 | H117: =E117-D117 -> 0
F118: =E118-C118 -> 0 | H118: =E118-D118 -> 0
F119: =E119-C119 -> 0 | H119: =E119-D119 -> 0
A120: Total Recoverable OM&A | C120: =C113-SUM(C115:C119) ->  | D120: =D113-SUM(D115:D119) ->  | E120: =E113-SUM(E115:E119) ->  | F120: =F113-SUM(F115:F119) ->  | H120: =H113-SUM(H115:H119) -> 
A122: 1 Account 6205 - Donations is generally non-recoverable. However, the sub-account LEAP funding of account 6205 is generally recoverable.
A125: Note:
A127: 1 | B127: If the applicant is adopting IFRS or an alternate accounting standard as of January 1, 2013 for financial reporting purposes, Column D "Most Current Actual Year" must be provided on CGAAP.
A128: 2 | B128: If the applicant is adopting IFRS or an alternate accounting standard as of January 1, 2012 for financial reporting purposes, Column D "Most Current Actual Year" must be provided on that standard.

Sheet App.2-I_OM&A_Summary_Analys
K1: File Number: | L1: ='LDC Info'!$E$18 -> EB-2013-0139
K2: Exhibit:
K3: Tab:
K4: Schedule:
K5: Page:
K7: Date:
A9: Appendix 2-I
A10: Summary of Recoverable OM&A Expenses
B13: ="Last Rebasing Year (" & 'LDC Info'!E30 & " BA)" -> Last Rebasing Year (2010 BA) | C13: ="Last Rebasing Year (" & 'LDC Info'!E30 & " Actuals)" -> Last Rebasing Year (2010 Actuals) | D13: ='LDC Info'!E26 -2 & " Actuals" -> 2011 Actuals | E13: ='LDC Info'!E26 -1 & " Actuals" -> 2012 Actuals | F13: ='LDC Info'!E26 & " Bridge Year" -> 2013 Bridge Year | G13: ='LDC Info'!E28 & " Test Year" -> 2014 Test Year
A14: Reporting Basis | B14: CGAAP | C14: CGAAP | D14: CGAAP | E14: CGAAP | F14: CGAAP | G14: CGAAP
A15: Operations | B15: 75463 | C15: ='App.2-G_Detailed_OM&A_Expenses'!C40 -> 75104.18 | D15: ='App.2-G_Detailed_OM&A_Expenses'!D40 -> 71031.24 | E15: ='App.2-G_Detailed_OM&A_Expenses'!E40 -> 74387 | F15: ='App.2-G_Detailed_OM&A_Expenses'!F40 -> 85250 | G15: ='App.2-G_Detailed_OM&A_Expenses'!H40 -> 96550
A16: Maintenance | B16: ='App.2-H_OM&A_Detailed_Analysis'!C62 -> 171887 | C16: ='App.2-G_Detailed_OM&A_Expenses'!C61 -> 131509.28 | D16: ='App.2-G_Detailed_OM&A_Expenses'!D61 -> 147633.64 | E16: ='App.2-G_Detailed_OM&A_Expenses'!E61 -> 178745 | F16: ='App.2-G_Detailed_OM&A_Expenses'!F61 -> 189700 | G16: ='App.2-G_Detailed_OM&A_Expenses'!H61 -> 205700
A17: SubTotal | B17: =SUM(B15:B16) -> 247350 | C17: 206613.46 | D17: 218664.88 | E17: 253132 | F17: 274950 | G17: 302250
A18: %Change (year over year) | D18: =IF(ISERROR((D17-C17)/C17), "", (D17-C17)/C17) -> 0.05832833931 | E18: =IF(ISERROR((E17-D17)/D17), "", (E17-D17)/D17) -> 0.1576253123 | F18: =IF(ISERROR((F17-E17)/E17), "", (F17-E17)/E17) -> 0.08619218431 | G18: =IF(ISERROR((G17-F17)/F17), "", (G17-F17)/F17) -> 0.09929078014
A19: %Change (Test Year vs Last Rebasing Year - Actual) | G19: =IF(ISERROR((G17-C17)/C17), "", (G17-C17)/C17) -> 0.4628766199
A20: Billing and Collecting | B20: ='App.2-H_OM&A_Detailed_Analysis'!C73 -> 327572 | C20: ='App.2-G_Detailed_OM&A_Expenses'!C72 -> 325519.12 | D20: ='App.2-G_Detailed_OM&A_Expenses'!D72 -> 339942.43 | E20: ='App.2-G_Detailed_OM&A_Expenses'!E72 -> 347731 | F20: ='App.2-G_Detailed_OM&A_Expenses'!F72 -> 390190 | G20: ='App.2-G_Detailed_OM&A_Expenses'!H72 -> 426315
A21: Community Relations | B21: ='App.2-H_OM&A_Detailed_Analysis'!C85 -> 108 | C21: ='App.2-G_Detailed_OM&A_Expenses'!C84 -> 100 | D21: ='App.2-G_Detailed_OM&A_Expenses'!D84 -> 225 | E21: ='App.2-G_Detailed_OM&A_Expenses'!E84 -> 0 | F21: ='App.2-G_Detailed_OM&A_Expenses'!F84 -> 200 | G21: ='App.2-G_Detailed_OM&A_Expenses'!H84 -> 200
A22: Administrative and General | B22: ='App.2-H_OM&A_Detailed_Analysis'!C112 -> 370562 | C22: ='App.2-G_Detailed_OM&A_Expenses'!C111 -> 335456.02 | D22: ='App.2-G_Detailed_OM&A_Expenses'!D111 -> 352658.83 | E22: ='App.2-G_Detailed_OM&A_Expenses'!E111 -> 405557 | F22: ='App.2-G_Detailed_OM&A_Expenses'!F111 -> 467400 | G22: ='App.2-G_Detailed_OM&A_Expenses'!H111 -> 397900
A23: SubTotal | B23: =SUM(B20:B22) -> 698242 | C23: 661075.14 | D23: 692826.26 | E23: 753288 | F23: 857790 | G23: 824415
A24: %Change (year over year) | D24: =IF(ISERROR((D23-C23)/C23), "", (D23-C23)/C23) -> 0.04802951749 | E24: =IF(ISERROR((E23-D23)/D23), "", (E23-D23)/D23) -> 0.08726825684 | F24: =IF(ISERROR((F23-E23)/E23), "", (F23-E23)/E23) -> 0.1387278172 | G24: =IF(ISERROR((G23-F23)/F23), "", (G23-F23)/F23) -> -0.03890812437
A25: %Change (Test Year vs Last Rebasing Year - Actual) | G25: =IF(ISERROR((G23-C23)/C23), "", (G23-C23)/C23) -> 0.2470821396
A26: Total | B26: =SUM(B23,B17) -> 945592 | C26: 867688.6 | D26: 911491.14 | E26: 1006420 | F26: 1132740 | G26: 1126665
A27: %Change (year over year) | D27: =IF(ISERROR((D26-C26)/C26), "", (D26-C26)/C26) -> 0.05048186642 | E27: =IF(ISERROR((E26-D26)/D26), "", (E26-D26)/D26) -> 0.1041467721 | F27: =IF(ISERROR((F26-E26)/E26), "", (F26-E26)/E26) -> 0.1255141988 | G27: =IF(ISERROR((G26-F26)/F26), "", (G26-F26)/F26) -> -0.005363101859
B30: =B13 -> Last Rebasing Year (2010 BA) | C30: Last Rebasing Year (2010 Actuals) | D30: 2011 Actuals | E30: 2012 Actuals | F30: 2013 Bridge Year | G30: 2014 Test Year
A31: Operations | B31: =B15 -> 75463 | C31: 75104.18 | D31: 71031.24 | E31: 74387 | F31: 85250 | G31: 96550
A32: Maintenance | B32: 171887 | C32: 131509.28 | D32: 147633.64 | E32: 178745 | F32: 189700 | G32: 205700
A33: Billing and Collecting | B33: =B20 -> 327572 | C33: 325519.12 | D33: 339942.43 | E33: 347731 | F33: 390190 | G33: 426315
A34: Community Relations | B34: 108 | C34: 100 | D34: 225 | E34: 0 | F34: 200 | G34: 200
A35: Administrative and General | B35: 370562 | C35: 335456.02 | D35: 352658.83 | E35: 405557 | F35: 467400 | G35: 397900
A36: Total | B36: =SUM(B31:B35) -> 945592 | C36: 867688.6 | D36: 911491.14 | E36: 1006420 | F36: 1132740 | G36: 1126665
A37: %Change (year over year) | D37: =IF(ISERROR((D36-C36)/C36), "", (D36-C36)/C36) -> 0.05048186642 | E37: =IF(ISERROR((E36-D36)/D36), "", (E36-D36)/D36) -> 0.1041467721 | F37: =IF(ISERROR((F36-E36)/E36), "", (F36-E36)/E36) -> 0.1255141988 | G37: =IF(ISERROR((G36-F36)/F36), "", (G36-F36)/F36) -> -0.005363101859
B40: =B13 -> Last Rebasing Year (2010 BA) | C40: =C13 -> Last Rebasing Year (2010 Actuals) | D40: ="Variance " & 'LDC Info'!E30 & " BA – " & 'LDC Info'!E30 & " Actuals" -> Variance 2010 BA – 2010 Actuals | E40: =D13 -> 2011 Actuals | F40: ="Variance " & 'LDC Info'!E26 -2 & " Actuals vs. " & 'LDC Info'!E30 & " Actuals" -> Variance 2011 Actuals vs. 2010 Actuals | G40: =E13 -> 2012 Actuals | H40: ="Variance " & 'LDC Info'!E26 -1 & " Actuals vs. " & 'LDC Info'!E26-2 & " Actuals" -> Variance 2012 Actuals vs. 2011 Actuals | I40: =F13 -> 2013 Bridge Year | J40: ="Variance " & 'LDC Info'!E26 & " Bridge vs. " & 'LDC Info'!E26 -1 & " Actuals" -> Variance 2013 Bridge vs. 2012 Actuals | K40: =G13 -> 2014 Test Year | L40: ="Variance " & 'LDC Info'!E28 & " Test vs. " & 'LDC Info'!E26 & " Bridge" -> Variance 2014 Test vs. 2013 Bridge
A41: Operations | B41: =B15 -> 75463 | C41: =C15 -> 75104.18 | D41: =B41-C41 -> 358.82 | E41: =D15 -> 71031.24 | F41: =E41-C41 -> -4072.94 | G41: =E15 -> 74387 | H41: =G41-E41 -> 3355.76 | I41: =F15 -> 85250 | J41: =I41-G41 -> 10863 | K41: =G15 -> 96550 | L41: =K41-I41 -> 11300
A42: Maintenance | B42: =B16 -> 171887 | C42: =C16 -> 131509.28 | D42: =B42-C42 -> 40377.72 | E42: =D16 -> 147633.64 | F42: =E42-C42 -> 16124.36 | G42: =E16 -> 178745 | H42: =G42-E42 -> 31111.36 | I42: =F16 -> 189700 | J42: 10955 | K42: =G16 -> 205700 | L42: 16000
A43: Billing and Collecting | B43: =B20 -> 327572 | C43: 325519.12 | D43: =B43-C43 -> 2052.88 | E43: =D20 -> 339942.43 | F43: =E43-C43 -> 14423.31 | G43: =E20 -> 347731 | H43: 7788.57 | I43: =F20 -> 390190 | J43: 42459 | K43: =G20 -> 426315 | L43: 36125
A44: Community Relations | B44: 108 | C44: 100 | D44: =B44-C44 -> 8 | E44: =D21 -> 225 | F44: =E44-C44 -> 125 | G44: =E21 -> 0 | H44: -225 | I44: =F21 -> 200 | J44: 200 | K44: =G21 -> 200 | L44: 0
A45: Administrative and General | B45: 370562 | C45: 335456.02 | D45: =B45-C45 -> 35105.98 | E45: =D22 -> 352658.83 | F45: =E45-C45 -> 17202.81 | G45: =E22 -> 405557 | H45: 52898.17 | I45: =F22 -> 467400 | J45: 61843 | K45: =G22 -> 397900 | L45: -69500
A46: Total OM&A Expenses | B46: =SUM(B41:B45) -> 945592 | C46: =SUM(C41:C45) -> 867688.6 | D46: 77903.4 | E46: 911491.14 | F46: 43802.54 | G46: 1006420 | H46: 94928.86 | I46: 1132740 | J46: 126320 | K46: 1126665 | L46: -6075
A47: Variance from previous year | E47: =E46-C46 -> 43802.54 | G47: =G46-E46 -> 94928.86 | I47: =I46-G46 -> 126320 | K47: =K46-I46 -> -6075
A48: Percent change (year over year) | E48: =IF(ISERROR(E47/C46), "", E47/C46) -> 0.05048186642 | G48: =IF(ISERROR(G47/E46), "", G47/E46) -> 0.1041467721 | I48: =IF(ISERROR(I47/G46), "", I47/G46) -> 0.1255141988 | K48: =IF(ISERROR(K47/I46), "", K47/I46) -> -0.005363101859
A49: Percent Change: Test year vs. Most Current Actual | G49: =IF(ISERROR((K46-G46)/G46), "", (K46-G46)/G46) -> 0.1194779516
A50: Simple average of % variance for all years | G50: =IF(ISERROR((K46-C46)/C46), "", (K46-C46)/C46) -> 0.2984669846 | L50: =IF(ISERROR(AVERAGE(E48,G48,I48,K48)), "", AVERAGE(E48,G48,I48,K48)) -> 0.06869493387
A51: Compound Annual Growth Rate for all years | G51: =IF(ISERROR((K47-C47)/C47), "", (K47-C47)/C47) -> 
A52: ="Compound Growth Rate (" & E13 & " vs. " & 'LDC Info'!E30 & " Actuals)" -> Compound Growth Rate (2012 Actuals vs. 2010 Actuals) | G52: =IF(ISERROR((G46/C46)^(1/(2010-2008)) - 1), "", (G46-C46)/C46) -> 0.1598861619
A54: Note:
A56: 1 "BA" = Board-Approved
A57: 2 If it has been more than three years since the applicant last filed a cost of service application, additional years of historical actuals should be incorporated into the table, as necessary, to go back to the last cost of service application. If the applicant last filed a cost of service application less than three years ago, a minimum of three years of actual information is required.
A59: 3 Recoverable OM&A that is included on these tables should be identical to the recoverable OM&A that is shown for the corresponding periods on Appendix 2-H.

Sheet App.2-J_OM&A_Cost _Drivers
E1: File Number: | F1: ='LDC Info'!$E$18 -> EB-2013-0139
E2: Exhibit:
E3: Tab:
E4: Schedule:
E5: Page:
E7: Date:
A10: Appendix 2-J
A11: OM&A Cost Driver Table
A13: OM&A | B13: ="Last Rebasing Year (" & 'LDC Info'!E30 & " Actuals)" -> Last Rebasing Year (2010 Actuals) | C13: ='LDC Info'!E26 -2 & " Actuals" -> 2011 Actuals | D13: ='LDC Info'!E26 -1 & " Actuals" -> 2012 Actuals | E13: ='LDC Info'!E26 & " Bridge Year" -> 2013 Bridge Year | F13: ='LDC Info'!E28 & " Test Year" -> 2014 Test Year
A14: Reporting Basis
A15: Opening Balance | B15: 945592 | C15: 845587.34 | D15: 911491.14 | E15: 1006420 | F15: 1132740
A16: 5014-Transformer Station Equipment - Operation Labour | C16: 8061.01 | E16: 3144
A17: 5015-Transformer Station Equipment - Operation Supplies and Expenses | E17: 3239
A18: 5016-Distribution Station Equipment - Operation Labour | C18: 6022.23
A19: 5017-Distribution Station Equipment - Operation Supplies and Expenses | B19: 4839.24 | D19: 4346.89
A20: 5040-Underground Distribution Lines and Feeders - Operation Labour | C20: 2184.84
A21: 5065-Meter Expense | B21: 21613.26 | D21: 3976.84
A22: 5120-Maintenance of Poles, Towers and Fixtures | D22: 7565.43
A23: 5125-Maintenance of Overhead Conductors and Devices | B23: 4095.46 | D23: 7097.98
A24: 5130-Maintenance of Overhead Services | C24: 6597.15 | D24: 7848.9 | E24: 3276 | F24: 4000
A25: 5135-Overhead Distribution Lines and Feeders - Right of Way | C25: 3716.17 | D25: 17932.92 | F25: 5000
A26: 5150-Maintenance of Underground Conductors and Devices | C26: 9872.61 | E26: 4816
A27: 5160-Maintenance of Line Transformers | B27: 5354.53 | C27: 4089.38
A28: 5175-Maintenance of Meters | C28: 2211.3
A29: 5310-Meter Reading Expense | C29: 12197.85 | F29: 7000
A30: 5315-Customer Billing | C30: 9821.05 | D30: 26247.82 | E30: 18200 | F30: 15000
A31: 5320-Collecting | D31: 3104.16 | E31: 4199 | F31: 4120
A32: 5335-Bad Debt Expense | B32: 11601.13 | E32: 17200 | F32: 10000
A33: 5605-Executive Salaries and Expenses | E33: 3266 | F33: 3000
A34: 5610-Management Salaries and Expenses | C34: 3326.13
A35: 5620-Office Supplies and Expenses | C35: 3245.49 | E35: 4256 | F35: 3000
A36: 5630-Outside Services Employed | C36: 8282.45
A37: 5635-Property Insurance | F37: 4300
A38: 5640-Injuries and Damages | C38: 2840.4 | E38: 4191
A39: 5655-Regulatory Expenses | C39: 19079.23 | D39: 62521.52 | E39: 9395
A40: 5675-Maintenance of General Plant | E40: 33197
A41: Other | B41: 588.34 | C41: 6097.71 | D41: 9274.23 | E41: 23465 | F41: 22305
A42: Cost Reduction | B42: -148096.62 | C42: -41741.2 | D42: -54987.83 | E42: -5524 | F42: -83800
A44: Total Adjustment | B44: =SUM(B16:B42) -> -100004.66 | C44: =SUM(C16:C42) -> 65903.8 | D44: =SUM(D16:D42) -> 94928.86 | E44: =SUM(E16:E42) -> 126320 | F44: =SUM(F16:F42) -> -6075
A45: Closing Balance | B45: =SUM(B15:B42) -> 845587.34 | C45: =SUM(C15:C42) -> 911491.14 | D45: =SUM(D15:D42) -> 1006420 | E45: =SUM(E15:E42) -> 1132740 | F45: =SUM(F15:F42) -> 1126665
A47: Notes:
A49: 1 | B49: For each year, a detailed explanation for each cost driver and associated amount is
B50: required.
A51: 2 | B51: The closing balance for each year becomes the opening balance for the next year.
A52: 3 | B52: If it has been more than three years since the applicant last filed a cost of service application, additional years of historical actuals should be incorporated into the table, as necessary, to go back to the last cost of service application. If the applicant last filed a cost of service application less than three years ago, a minimum of three years of actual information is required.
A56: 4 | B56: Opening Balance for "Last Rebasing Year" (cell B15) should be equal to the Board-Approved amount.

Sheet App.2-K_Employee Costs
F1: File Number: | G1: ='LDC Info'!$E$18 -> EB-2013-0139
F2: Exhibit: | G2: 4
F3: Tab: | G3: 2
F4: Schedule: | G4: 2
F5: Page:
F7: Date:
A9: Appendix 2-K
A10: Employee Costs
B12: ="Last Rebasing Year (" & 'LDC Info'!E30 & " Board-Approved)" -> Last Rebasing Year (2010 Board-Approved) | C12: ="Last Rebasing Year (" & 'LDC Info'!E30 & " Actuals)" -> Last Rebasing Year (2010 Actuals) | D12: ='LDC Info'!E26 -2 & " Actuals" -> 2011 Actuals | E12: ='LDC Info'!E26 -1 & " Actuals" -> 2012 Actuals | F12: ='LDC Info'!E26 & " Bridge Year" -> 2013 Bridge Year | G12: ='LDC Info'!E28 & " Test Year" -> 2014 Test Year
A13: Reporting Basis
A14: Number of Employees (FTEs including Part-Time)1
A15: Executive
A16: Management | B16: 2 | C16: 2 | D16: 2 | E16: 2 | F16: 2 | G16: 2
A17: Non-Union
A18: Union | B18: 6 | C18: 6 | D18: 6 | E18: 6 | F18: 6 | G18: 6
A19: Total | B19: =SUM(B15:B18) -> 8 | C19: 8 | D19: 8 | E19: 8 | F19: 8 | G19: 8
A20: Number of Part-Time Employees
A21: Executive
A22: Management
A23: Non-Union
A24: Union
A25: Total | B25: =SUM(B21:B24) -> 0 | C25: 0 | D25: 0 | E25: 0 | F25: 0 | G25: 0
A26: Total Salary and Wages
A27: Executive
A28: Management | C28: 149986 | D28: 155200 | E28: 158784 | F28: 172127 | G28: 186043
A29: Non-Union
A30: Union | C30: 314865 | D30: 322593 | E30: 324114 | F30: 349258 | G30: 343241
A31: Total | B31: =SUM(B27:B30) -> 0 | C31: 464851 | D31: 477793 | E31: 482898 | F31: 521385 | G31: 529284
A32: Current Benefits
A33: Executive
A34: Management | C34: 8502 | D34: 9067 | E34: 9569 | F34: 10411 | G34: 10901
A35: Non-Union
A36: Union | C36: 32025 | D36: 34028 | E36: 35809 | F36: 38684 | G36: 40423
A37: Total | B37: =SUM(B33:B36) -> 0 | C37: 40527 | D37: 43095 | E37: 45378 | F37: 49095 | G37: 51324
A38: Accrued Pension and Post-Retirement Benefits
A39: Executive
A40: Management | C40: 10549 | D40: 12398 | E40: 14511 | F40: 16563 | G40: 18200
A41: Non-Union | C41: 3250 | D41: 3688 | E41: 3627 | F41: 3529 | G41: 3523
A42: Union | C42: 19394 | D42: 22680 | E42: 25374 | F42: 27044 | G42: 31512
A43: Total | B43: $- | C43: 33193 | D43: 38766 | E43: 43512 | F43: 47135 | G43: 53235
A44: Total Benefits (Current + Accrued)
A45: Executive | B45: =B33+B39 -> 0 | C45: 0 | D45: 0 | E45: 0 | F45: 0 | G45: 0
A46: Management | B46: 0 | C46: 19051 | D46: 21465 | E46: 24080 | F46: 26974 | G46: 29101
A47: Non-Union | B47: 0 | C47: 3250 | D47: 3688 | E47: 3627 | F47: 3529 | G47: 3523
A48: Union | B48: 0 | C48: 51419 | D48: 56708 | E48: 61183 | F48: 65728 | G48: 71935
A49: Total | C49: 73720 | D49: 81861 | E49: 88890 | F49: 96230 | G49: 104559
A50: Total Compensation (Salary, Wages, & Benefits)
A51: Executive | B51: =B27+B45 -> 0 | C51: 0 | D51: 0 | E51: 0 | F51: 0 | G51: 0
A52: Management | B52: 0 | C52: 169037 | D52: 176665 | E52: 182864 | F52: 199101 | G52: 215144
A53: Non-Union | B53: 0 | C53: 3250 | D53: 3688 | E53: 3627 | F53: 3529 | G53: 3523
A54: Union | B54: 0 | C54: 366284 | D54: 379301 | E54: 385297 | F54: 414986 | G54: 415176
A55: Total | C55: 538571 | D55: 559654 | E55: 571788 | F55: 617615 | G55: 633843
A56: Compensation - Average Yearly Base Wages
A57: Executive
A58: Management | C58: 74993 | D58: 77600 | E58: 79392 | F58: 86064 | G58: 93022
A59: Non-Union
A60: Union | C60: 52477 | D60: 53765 | E60: 54019 | F60: 58210 | G60: 57207
A61: Total
A62: Compensation - Average Yearly Overtime
A63: Executive
A64: Management
A65: Non-Union
A66: Union
A67: Total
A68: Compensation - Average Yearly Incentive Pay
A69: Executive
A70: Management
A71: Non-Union
A72: Union
A73: Total
A74: Compensation - Average Yearly Benefits
A75: Executive
A76: Management | C76: 4251 | D76: 4533 | E76: 4785 | F76: 5205 | G76: 5451
A77: Non-Union
A78: Union | C78: 5337 | D78: 5671 | E78: 5968 | F78: 6447 | G78: 6737
A79: Total
A81: Total Compensation | B81: =SUM(B51:B54) -> 0 | C81: 538571 | D81: 559654 | E81: 571788 | F81: 617616 | G81: 633843
A82: Total Compensation Capitalized (CGAAP)
A83: Total Compensation Charged to OM&A (CGAAP) | B83: =B81-B82 -> 0 | C83: =C81-C82 -> 538571 | D83: =D81-D82 -> 559654 | E83: =E81-E82 -> 571788 | F83: =F81-F82 -> 617616
A85: Total Compensation Capitalized (MIFRS)
A86: Total Compensation Charged to OM&A (MIFRS) | E86: =E81-E85 -> 571788 | F86: =F81-F85 -> 617616 | G86: =G81-G85 -> 633843
A89: 1 If an applicant wishes to use headcount, it must also file the same schedule on an FTE basis.
A91: Note:
A92: 1 Please report compensation on a CGAAP and MIFRS basis for your transition year.

Sheet App.2-L_OM&A_per_Cust_FTEE
G1: File Number: | H1: ='LDC Info'!$E$18 -> EB-2013-0139
G2: Exhibit:
G3: Tab:
G4: Schedule:
G5: Page:
G7: Date:
A9: Appendix 2-L
A10: Recoverable OM&A Cost per Customer and per FTEE
C12: ="Last Rebasing Year (" & 'LDC Info'!E30 & " Board-Approved)" -> Last Rebasing Year (2010 Board-Approved) | D12: ="Last Rebasing Year (" & 'LDC Info'!E30 & " Actuals)" -> Last Rebasing Year (2010 Actuals) | E12: ='LDC Info'!E26 -2 & " Actuals" -> 2011 Actuals | F12: ='LDC Info'!E26 -1 & " Actuals" -> 2012 Actuals | G12: ='LDC Info'!E26 & " Bridge Year" -> 2013 Bridge Year | H12: ='LDC Info'!E28 & " Test Year" -> 2014 Test Year
A13: Reporting Basis | C13: CGAAP | D13: CGAAP | E13: CGAAP | F13: CGAAP | G13: CGAAP | H13: CGAAP
A14: Number of Customers | C14: 5523 | D14: 5523 | E14: 5547 | F14: 5606 | G14: 5647 | H14: 5690
A15: Total Recoverable OM&A from Appendix 2-I | C15: =+'App.2-I_OM&A_Summary_Analys'!B26 -> 945592 | D15: =+'App.2-I_OM&A_Summary_Analys'!C26 -> 867688.6 | E15: =+'App.2-I_OM&A_Summary_Analys'!D26 -> 911491.14 | F15: =+'App.2-I_OM&A_Summary_Analys'!E26 -> 1006420 | G15: =+'App.2-I_OM&A_Summary_Analys'!F26 -> 1132740 | H15: =+'App.2-I_OM&A_Summary_Analys'!G26 -> 1126665
A16: OM&A cost per customer | C16: =+C15/C14 -> 171.2098497 | D16: =IF(D14=0,"",D15/D14) -> 157.1045808 | E16: 164.3214602 | F16: 179.5255084 | G16: 200.5914645 | H16: 198.0079086
A17: Number of FTEEs | C17: 8 | D17: 8 | E17: 8 | F17: 8 | G17: 8 | H17: 8
A18: Customers/FTEEs | C18: =IF(C17=0,"",C14/C17) -> 690.375 | D18: 690.375 | E18: 693.375 | F18: 700.75 | G18: 705.875 | H18: 711.25
A19: OM&A Cost per FTEE | C19: =IF(C17=0,"",C15/C17) -> 118199 | D19: 108461.075 | E19: 113936.3925 | F19: 125802.5 | G19: 141592.5 | H19: 140833.125
A21: Notes:
A23: 1 | B23: If it has been more than three years since the applicant last filed a cost of service application, additional years of historical actuals should be incorporated into the table, as necessary, to go back to the last cost of service application. If the applicant last filed a cost of service application less than three years ago, a minimum of three years of actual information is required.
A27: 2 | B27: The method of calculating the number of customers must be identified.
A28: 3 | B28: The method of calculating the number of FTEEs must be identified. See also Appendix 2-K
A29: 4 | B29: The number of customers and the number of FTEEs should correspond to mid-year or average of January 1 and December 31 figures.

Sheet App.2-M_Regulatory_Costs
J1: File Number: | K1: ='LDC Info'!$E$18 -> EB-2013-0139
J2: Exhibit:
J3: Tab:
J4: Schedule:
J5: Page:
J7: Date:
A9: Appendix 2-M
A10: Regulatory Cost Schedule
A13: Regulatory Cost Category | C13: USoA Account | D13: USoA Account Balance | E13: Ongoing or One-time Cost? 2 | F13: 2010 Actual | G13: Most Current Actuals Year 2012 | H13: ='LDC Info'!E26 & " Bridge Year" -> 2013 Bridge Year | I13: Annual % Change | J13: ='LDC Info'!E28 & " Test Year" -> 2014 Test Year | K13: Annual % Change | M13: INTERVENOR COSTS
A14: (A) | C14: (B) | D14: (C ) | E14: (D) | F14: (E) | G14: (F) | H14: (G) | I14: (H) = [(G)-(F)]/(F) | J14: (I) | K14: (J) = [(I)-(G)]/(G) | M14: 2010 | N14: 2011 | O14: 2012 | P14: 2013 | Q14: 2014
A15: 1 | B15: OEB Annual Assessment | C15: 5655 | E15: On-Going | F15: 7976 | G15: 8268 | H15: 8600 | I15: =IF(G15=0,"",(H15-G15)/G15) -> 0.04015481374 | J15: 8900 | K15: =IF(H15=0,"",(J15-H15)/H15) -> 0.03488372093 | M15: 13536.67 | N15: 0 | O15: 7596.5 | P15: 314.25
A16: 2 | B16: OEB Section 30 Costs (Applicant-originated) | I16: =IF(G16=0,"",(H16-G16)/G16) ->  | K16: =IF(H16=0,"",(J16-H16)/H16) ->  | M16: 2010 COST OF SERVICE EXPENSE
A17: 3 | B17: OEB Section 30 Costs (OEB-initiated) - COST AWARDS & AN. REGIST. FEE | C17: 5655 | E17: On-Going | F17: 1111 | G17: 1448 | H17: 1500 | I17: 0.03591160221 | J17: 1500 | K17: 0 | M17: 217074.29 | N17: (Acct 1460.000)
A18: 4 | B18: Expert Witness costs for regulatory matters | M18: 2010 | N18: 2011 | O18: 2012 | P18: 2013
A19: 5 | B19: Legal costs for regulatory matters | M19: 36177.29 | N19: 54269 | O19: 67426 | P19: 59202
A20: 6 | B20: Consultants' costs for regulatory matters - UP TO DEC. 31, 2010 | C20: 5655 | E20: On-Going | F20: =36177-13536.67 -> 22640.33 | G20: 110013 | H20: =59202+45000+1964.25+334 -> 106500.25 | I20: -0.03193031733 | J20: 45000 | K20: -0.5774657806 | M20: IRM EXPENSES
A21: 7 | B21: Operating expenses associated with staff resources allocated to regulatory matters | M21: 52147.56 | N21: (Acct 1460.010)
A22: 8 | B22: Operating expenses associated with other resources allocated to regulatory matters 1 | M22: 2010 | N22: 2011 | O22: 2012 | P22: 2013
A23: 9 | B23: Other regulatory agency fees or assessments | F23: 0 | M23: 2662.5 | N23: 19130.56 | O23: 28390.25 | P23: 1964.25
A24: 10 | B24: Any other costs for regulatory matters (please define) - FEE FOR PUBLICATION OF APPLICATION IN LOCAL NEWSPAPERS | C24: 5655 | E24: On-Going | F24: 1740 | G24: 1280 | H24: 1400 | I24: 0.09375 | K24: -1 | M24: 2014 COST OF SERVICE EXPENSE
A25: 11 | B25: Intervenor costs | F25: 13536.67 | G25: 7597 | H25: 20000 | I25: =IF(G25=0,"",(H25-G25)/G25) -> 1.632618139 | J25: 10000 | K25: =IF(H25=0,"",(J25-H25)/H25) -> -0.5
A26: 12 | B26: Sub-total - Ongoing Costs 3 | D26: =SUMIF($E15:$E25,$E11,D15:D25) -> 0 | F26: =SUM(F15:F25) -> 47004 | G26: =SUM(G15:G25) -> 128606 | H26: =SUM(H15:H25) -> 138000.25 | I26: 0.07304674743 | J26: =SUM(J15:J25) -> 65400 | K26: -0.5260878151 | O26: 2012 | P26: 2013 | Q26: 2014
A27: 13 | B27: Sub-total - One-time Costs 4 | D27: =SUMIF($E15:$E25,$E12,D15:D25) -> 0 | F27: =SUMIF($E15:$E25,$E12,F15:F25) -> 0 | G27: =SUMIF($E15:$E25,$E12,G15:G25) -> 0 | H27: =SUMIF($E15:$E25,$E12,H15:H25) -> 0 | J27: =SUMIF($E15:$E25,$E12,J15:J25) -> 0 | O27: 10000 | P27: 45000 | Q27: 45000
A28: 14 | B28: Total | D28: =D26+D27 -> 0 | F28: =F26+F27 -> 47004 | G28: =G26+G27 -> 128606 | H28: =H26+H27 -> 138000.25 | I28: 0.07304674743 | J28: =J26+J27 -> 65400 | K28: -0.5260878151
M29: 269221.85 | N29: TOTAL COS & IRM EXPENSES EXCLUDING 2014 COS
M30: -210019.85 | N30: 2010 COS EXP. TRANSFERRED TO 5655
A31: 1 | B31: Please identify the resources involved. | M31: 59202 | N31: GL BALANCE AS OF DEC. 31, 2012
A32: 2 | B32: Where a category's costs include both one-time and ongoing costs, the applicant should prove a separate breakdown between one-time and ongoing costs.
A33: 3 | B33: Sum of all ongoing costs identified in rows 1 to 11 inclusive.
A34: 4 | B34: Sum of all one-time costs identified in rows 1 to 11 inclusive.
A37: Please fill out the following table for all one-time costs related to this cost of service application
C39: Historical Year(s) | D39: =H13 -> 2013 Bridge Year | E39: =J13 -> 2014 Test Year
A40: 4 | B40: Expert Witness costs for regulatory matters | D40: =H18 -> 0 | E40: =J18 -> 0
A41: 6 | B41: Consultants' costs for regulatory matters | D41: =H20 -> 106500.25 | E41: =J20 -> 45000
A42: 7 | B42: Operating expenses associated with staff resources allocated to regulatory matters | D42: =H21 -> 0 | E42: =J21 -> 0
A43: 8 | B43: Operating expenses associated with other resources allocated to regulatory matters 1 | D43: =H22 -> 0 | E43: =J22 -> 0
A44: 11 | B44: Intervenor costs | D44: =H25 -> 20000 | E44: =J25 -> 10000

Sheet App.2-N_Corp_Cost_Allocation (hidden)
F1: File Number: | G1: ='LDC Info'!$E$18 -> EB-2013-0139
F2: Exhibit:
F3: Tab:
F4: Schedule:
F5: Page:
F7: Date:
A9: Appendix 2-N
A10: Shared Services and Corporate Cost Allocation
B12: Year:
A14: Shared Services
A16: Name of Company | C16: Service Offered | D16: Pricing Methdology | E16: Price for the Service | F16: Cost for the Service
A17: From | B17: To
E18: $ | F18: $
A28: Corporate Cost Allocation
A30: Name of Company | C30: Service Offered | D30: Pricing Methdology | E30: % of Corporate Costs Allocated | F30: Amount Allocated
A31: From | B31: To
E32: % | F32: $
A33: eg: parent company | B33: eg: regulated entity
A42: Note:
A43: 1 | B43: This appendix must be completed in relation to each service provided or received for the Historical (actuals), Bridge and Test years.

Sheet App.2-R_Loss Factors
G1: File Number: | H1: ='LDC Info'!$E$18 -> EB-2013-0139
G2: Exhibit: | H2: 8
G3: Tab: | H3: 6
G4: Schedule: | H4: 1
G5: Page:
G7: Date:
A9: Appendix 2-R
A10: Loss Factors
C14: Historical Years | H14: 5-Year Average
C15: =IF(ISBLANK('LDC Info'!E26-5), "Year 5", 'LDC Info'!E26-5) -> 2008 | D15: =IF(ISBLANK('LDC Info'!E26-4), "Year 5", 'LDC Info'!E26-4) -> 2009 | E15: =IF(ISBLANK('LDC Info'!E26-3), "Year 5", 'LDC Info'!E26-3) -> 2010 | F15: =IF(ISBLANK('LDC Info'!E26-2), "Year 5", 'LDC Info'!E26-2) -> 2011 | G15: =IF(ISBLANK('LDC Info'!E26-1), "Year 5", 'LDC Info'!E26-1) -> 2012
B16: Losses Within Distributor's System
A17: A(1) | B17: "Wholesale" kWh delivered to distributor (higher value) | C17: 195587930 | D17: 180790858 | E17: 159288614 | F17: 161859215 | G17: 155160223 | H17: =IF(SUM(C17:G17)=0,0,AVERAGE(C17:G17)) -> 170537368
A18: A(2) | B18: "Wholesale" kWh delivered to distributor (lower value) | C18: 194402877 | D18: 179654626 | E18: 158412711 | F18: 160929367 | G18: 154311135 | H18: =IF(SUM(C18:G18)=0,0,AVERAGE(C18:G18)) -> 169542143.2
A19: B | B19: Portion of "Wholesale" kWh delivered to distributor for its Large Use Customer(s) | C19: 26758704 | D19: 0 | E19: 0 | F19: 0 | G19: 0 | H19: =IF(SUM(C19:G19)=0,0,AVERAGE(C19:G19)) -> 5351740.8
A20: C | B20: Net "Wholesale" kWh delivered to distributor = A(2) - B | C20: =C18-C19 -> 167644173 | D20: 179654626 | E20: 158412711 | F20: 160929367 | G20: 154311135 | H20: 164190402.4
A21: D | B21: "Retail" kWh delivered by distributor | C21: 185032775 | D21: 169624607 | E21: 152090908 | F21: 154131709 | G21: 149212313 | H21: =IF(SUM(C21:G21)=0,0,AVERAGE(C21:G21)) -> 162018462.4
A22: E | B22: Portion of "Retail" kWh delivered by distributor to its Large Use Customer(s) | C22: 26758704 | D22: 0 | E22: 0 | F22: 0 | G22: 0 | H22: =IF(SUM(C22:G22)=0,0,AVERAGE(C22:G22)) -> 5351740.8
A23: F | B23: Net "Retail" kWh delivered by distributor = D - E | C23: =C21-C22 -> 158274071 | D23: 169624607 | E23: 152090908 | F23: 154131709 | G23: 149212313 | H23: 156666721.6
A24: G | B24: Loss Factor in Distributor's system = C / F | C24: =IF(C23=0,"",C20/C23) -> 1.05920175 | D24: 1.059130684 | E24: 1.041565949 | F24: 1.044102917 | G24: 1.03417159 | H24: 1.048023478
B25: Losses Upstream of Distributor's System
A26: H | B26: Supply Facilities Loss Factor | C26: 1.00605892 | D26: 1.0062848 | E26: 1.0054988 | F26: 1.0057448 | G26: 1.0054723 | H26: =IF(SUM(C26:G26)=0,0,AVERAGE(C26:G26)) -> 1.005811924
B27: Total Losses
A28: I | B28: Total Loss Factor = G x H | C28: =IF(C24="","",C24*C26) -> 1.065619369 | D28: 1.065787108 | E28: 1.047293312 | F28: 1.05010108 | G28: 1.039830887 | H28: 1.05411451
A30: Notes
A33: A(1) | B33: If directly connected to the IESO-controlled grid, kWh pertains to the virtual meter on the primary or high voltage side of the transformer at the interface with the transmission grid. This corresponds to the "With Losses" kWh value provided by the IESO's MV-WEB. It is the higher of the two values provided by MV-WEB.
B37: If fully embedded within a host distributor, kWh pertains to the virtual meter on the primary or high voltage side of the transformer, at the interface between the host distributor and the transmission grid. For example, if the host distributor is Hydro One Networks Inc., kWh from the Hydro One Networks' invoice corresponding to "Total kWh w Losses" should be reported. This corresponds to the higher of the two kWh values provided in Hydro One Networks' invoice.
B42: If partially embedded, kWh pertains to the sum of the above.
A44: A(2) | B44: If directly connected to the IESO-controlled grid, kWh pertains to a metering installation on the secondary or low voltage side of the transformer at the interface with the transmission grid. This corresponds to the "Without Losses" kWh value provided by the IESO's MV-WEB. It is the lower of the two kWh values provided by MV-WEB.
B48: If fully embedded with the host distributor, kWh pertains to an actual or virtual meter at the interface between the embedded distributor and the host distributor. For example, if the host distributor is Hydro One Networks Inc., kWh from the Hydro One Networks' invoice corresponding to "Total kWh" should be reported. This corresponds to the lower of the two kWh values provided in Hydro One Networks' invoice.
B53: If partially embedded, kWh pertains to the sum of the above.
B55: Additionally, kWh pertaining to distributed generation directly connected to the distributor's own distribution network should be included in A(2).
A58: B | B58: If a Large Use Customer is metered on the secondary or low voltage side of the transformer, the default loss is 1% (i.e., B = 1.01 X E).
A61: D | B61: kWh corresponding to D should equal metered or estimated kWh at the customer’s delivery point.
A64: G and I | B64: These loss factors pertain to secondary-metered customers with demand less than 5,000 kW.
A66: H | B66: If directly connected to the IESO-controlled grid, SFLF = 1.0045.
B68: If fully embedded within a host distributor, SFLF = loss factor re losses in transformer at grid interface X loss factor re losses in host distributor's system. If the host distributor is Hydro One Networks Inc., SFLF = 1.0060 X 1.0278 = 1.0340. If partially embedded, SFLF should be calculated as the weighted average of above.
B72: Distributors that wish to propose a different SFLF should provide appropriate justification for any such proposal including supporting
B73: calculations and any other relevant material.

Sheet App.2-F_Other_Oper_Rev
H1: File Number: | I1: 0
H2: Exhibit: | I2: 3
H3: Tab: | I3: 3
H4: Schedule: | I4: 1
H5: Page:
H7: Date:
A9: Appendix 2-F
A10: Other Operating Revenue
A12: USoA # | B12: USoA Description | C12: 2010 Actual | D12: 2011 Actual | E12: 2012 Actual² | F12: 2012 Actual² | G12: Bridge Year³ | H12: Bridge Year³ | I12: Test Year
G13: 2013 | H13: 2013 | I13: 2014
B14: Reporting Basis | G14: CGAAP | H14: MIFRS | I14: CGAAP
A15: 4235 | B15: Specific Service Charges | C15: -72825.59 | D15: -75517.97 | E15: -64162.36 | G15: -70000 | I15: -70000
A16: 4225 | B16: Late Payment Charges | C16: -28329.26 | D16: -27264.73 | E16: -31973.44 | G16: -30000 | I16: -30000
A17: 4080 | B17: Distribution Services Revenue | C17: -14391.11 | D17: -14502.22 | E17: -15392.81 | G17: -15400 | I17: -15400
A18: 4082 | B18: Retail Services Revenues
A19: 4084 | B19: STR Revenues
A20: 4210 | B20: Rent from Electric Property | C20: -16394.48 | D20: -16389.44 | E20: -16739.44 | G20: -16739.44 | I20: -16739.44
A21: 4325 | B21: Revenues from Jobbing | C21: -34415.03 | D21: -8159.1 | E21: -22937.11 | G21: -20000 | I21: -20000
A22: 4330 | B22: Costs and Expenses from Jobbing | C22: 19817.12 | D22: 8159.1 | E22: 14618.53 | G22: 15000 | I22: 15000
A23: 4390 | B23: Misc Non-Operating Income | C23: -3655.22 | D23: -902.68 | E23: 0 | G23: 0 | I23: 0
A24: 4405 | B24: Interest and Dividend Income | C24: -12059.97 | D24: -36255.44 | E24: -39530.41 | G24: -20000 | I24: -20000
A28: Specific Service Charges | C28: =SUM(C15) -> -72825.59 | D28: =SUM(D15) -> -75517.97 | E28: -64162.36 | F28: 0 | G28: -70000 | H28: 0 | I28: -70000
A29: Late Payment Charges | C29: =C16 -> -28329.26 | D29: =D16 -> -27264.73 | E29: -31973.44 | F29: 0 | G29: -30000 | H29: 0 | I29: -30000
A30: Other Operating Revenues | C30: =SUM(C17:C20) -> -30785.59 | D30: -30891.66 | E30: -32132.25 | F30: 0 | G30: -32139.44 | H30: 0 | I30: -32139.44
A31: Other Income or Deductions | C31: =SUM(C21:C24) -> -30313.1 | D31: -37158.12 | E31: -47848.99 | F31: 0 | G31: -25000 | H31: 0 | I31: -25000
A32: Total | C32: =SUM(C28:C31) -> -162253.54 | D32: =SUM(D28:D31) -> -170832.48 | E32: -176117.04 | F32: 0 | G32: -157139.44 | H32: 0 | I32: =SUM(I28:I31) -> -157139.44
A34: Description | C34: Account(s)
A35: Specific Service Charges: | C35: 4235
A36: Late Payment Charges: | C36: 4225
A37: Other Distribution Revenues: | C37: 4080, 4082, 4084, 4090, 4205, 4210, 4215, 4220, 4240, 4245
A38: Other Income and Expenses: | C38: 4305, 4310, 4315, 4320, 4325, 4330, 4335, 4340, 4345, 4350, 4355, 4360, 4365, 4370, 4375, 4380, 4385, 4390, 4395, 4398, 4405, 4415
A41: Note: Add all applicable accounts listed above to the table and include all relevant information.
A42: The above table assumes adoption of MIFRS as of January 1, 2013. If the adoption year differs, please adjust the table accordingly.
A45: Account Breakdown Details
A47: For each "Other Operating Revenue" and "Other Income or Deductions" Account, a detailed breakdown of the account components is required. See the example below for Account 4405, Interest and Dividend Income.
A50: 4210 - Rent from Electric Property
C51: 2010 Actual | D51: 2011 Actual | E51: 2012 Actual² | F51: 2012 Actual² | G51: Bridge Year | H51: Bridge Year | I51: Test Year
A52: Reporting Basis | G52: CGAAP | H52: MIFRS | I52: CGAAP
A53: Office Rent | C53: -1200 | D53: -1200 | E53: -1200 | F53: 0 | G53: -1200 | H53: 0 | I53: -1200
A54: COGECO Pole Rental | C54: -13309.64 | D54: -13331.99 | E54: -13331.99 | F54: 0 | G54: -13324.54 | H54: 0 | I54: -13324.54
A55: BELL Pole Rental - Expense | C55: 12435.06 | D55: 12462.45 | E55: 12462.45 | F55: 0 | G55: 12453.32 | H55: 0 | I55: 12453.32
A56: BELL Pole Rental - Revenue | C56: -14169.9 | D56: -14169.9 | E56: -14169.9 | G56: -14169.9 | I56: -14170
A57: Conference Room Rental | C57: -150 | D57: -150 | E57: -500 | F57: 0 | G57: -498 | H57: 0 | I57: -498
C58: 0 | D58: 0 | E58: 0 | F58: 0 | G58: 0 | H58: 0 | I58: 0
A59: Total | C59: =SUM(C53:C58) -> -16394.48 | D59: -16389.44 | E59: -16739.44 | F59: 0 | G59: -16739.12 | H59: 0 | I59: -16739.22
A61: 4325 - Revenues from Jobbing
C62: 2010 Actual | D62: 2011 Actual | E62: 2012 Actual² | F62: 2012 Actual² | G62: Bridge Year | H62: Bridge Year | I62: Test Year
A63: Reporting Basis | G63: CGAAP | H63: MIFRS | I63: CGAAP
A64: Miscelleneous jobbing revenues | C64: -34415.03 | D64: -8159.1 | E64: -22937.11 | G64: -20000 | H64: 0 | I64: -20000
C65: 0 | D65: 0 | E65: 0 | F65: 0 | G65: 0 | H65: 0 | I65: 0
C66: 0 | D66: 0 | E66: 0 | F66: 0 | G66: 0 | H66: 0 | I66: 0
C67: 0 | D67: 0 | E67: 0 | F67: 0 | G67: 0 | H67: 0 | I67: 0
C68: 0 | D68: 0 | E68: 0 | F68: 0 | G68: 0 | H68: 0 | I68: 0
A69: Total | C69: -34415.03 | D69: -8159.1 | E69: -22937.11 | F69: 0 | G69: =SUM(G64:G68) -> -20000 | H69: 0 | I69: =SUM(I64:I68) -> -20000
A71: 4330 - Costs and Expenses from Jobbing
C72: 2010 Actual | D72: 2011 Actual | E72: 2012 Actual² | F72: 2012 Actual² | G72: Bridge Year | H72: Bridge Year | I72: Test Year
A73: Reporting Basis | G73: CGAAP | H73: MIFRS | I73: CGAAP
A74: Miscelleneous jobbing expenses | C74: 19817.12 | D74: 8159.1 | E74: 14618.53 | G74: 15000 | H74: 0 | I74: 15000
C75: 0 | D75: 0 | E75: 0 | F75: 0 | G75: 0 | H75: 0 | I75: 0
C76: 0 | D76: 0 | E76: 0 | F76: 0 | G76: 0 | H76: 0 | I76: 0
C77: 0 | D77: 0 | E77: 0 | F77: 0 | G77: 0 | H77: 0 | I77: 0
C78: 0 | D78: 0 | E78: 0 | F78: 0 | G78: 0 | H78: 0 | I78: 0
A79: Total | C79: 19817.12 | D79: 8159.1 | E79: 14618.53 | F79: 0 | G79: =SUM(G74:G78) -> 15000 | H79: 0 | I79: =SUM(I74:I78) -> 15000
A81: 4390 - Miscellaneous Non-Operating Income
C82: 2010 Actual | D82: 2011 Actual | E82: 2012 Actual² | F82: 2012 Actual² | G82: Bridge Year | H82: Bridge Year | I82: Test Year
A83: Reporting Basis | G83: CGAAP | H83: MIFRS | I83: CGAAP
A84: UTILISMART Dividend | C84: -1565.75 | D84: -482.68 | E84: 0 | F84: 0 | G84: 0 | H84: 0 | I84: 0
A85: Sale of Scrap | C85: -2089.47 | D85: -420 | E85: 0 | F85: 0 | G85: 0 | H85: 0 | I85: 0
C86: 0 | D86: 0 | E86: 0 | F86: 0 | G86: 0 | H86: 0 | I86: 0
C87: 0 | D87: 0 | E87: 0 | F87: 0 | G87: 0 | H87: 0 | I87: 0
C88: 0 | D88: 0 | E88: 0 | F88: 0 | G88: 0 | H88: 0 | I88: 0
A89: Total | C89: -3655.22 | D89: -902.68 | E89: 0 | F89: 0 | G89: =SUM(G84:G88) -> 0 | H89: 0 | I89: =SUM(I84:I88) -> 0
A91: 4405 - Interest and Divided Income
C92: 2010 Actual | D92: 2011 Actual | E92: 2012 Actual² | F92: 2012 Actual² | G92: Bridge Year | H92: Bridge Year | I92: Test Year
A93: Reporting Basis | G93: CGAAP | H93: MIFRS | I93: CGAAP
A94: Short-term Investment Interest | C94: -10835.1 | D94: -1403.91 | E94: 0 | G94: 0 | I94: 0
A95: Bank Deposit Interest | C95: -986.89 | D95: -4615.85 | E95: -2385.23 | G95: -2000 | I95: -2000
A96: Miscellaneous Interest Revenue | C96: -237.98 | D96: -2634.96 | E96: -20.83 | G96: -1000 | I96: -1000
A97: Carrying Charges on RSVA Accts | C97: 0 | D97: -27600.72 | E97: -26442.07 | G97: -17000 | I97: -17000
A98: Write-Off of Accts 1570 & 1571 as per OEB Regulatory Auditors | E98: -10682.28
A99: Total | C99: -12059.97 | D99: -36255.44 | E99: -39530.41 | F99: 0 | G99: =SUM(G94:G98) -> -20000 | H99: 0 | I99: =SUM(I94:I98) -> -20000
A101: Notes:
A102: 1 | B102: List and specify any other interest revenue
A103: 2 | B103: If the applicant is adopting IFRS or an alternate accounting standard as of January 1, 2012 for financial reporting purposes, 2011 must be presented on both a CGAAP and MIFRS (or alternate accounting standard) basis.
A104: 3 | B104: If the applicant is adopting IFRS or an alternate accounting standard as of January 1, 2013 for financial reporting purposes, 2012 must be presented on both a CGAAP and MIFRS (or alternate accounting standard) basis.

Sheet App.2-T_1592_Tax_Variance (hidden)
C1: File Number: | E1: ='LDC Info'!$E$18 -> EB-2013-0139
C2: Exhibit:
C3: Tab:
C4: Schedule:
C5: Page:
C7: Date:
A9: Appendix 2-T
A10: Deferred PILs Account 1592 Balances
A12: The following table should be completed based on the information requested below, in accordance with the notes following the table. An explanation should be provided for any blank entries.
A14: Tax Item | E14: Principal as of
E15: December 31,
E16: 20XX
A17: Large Corporation Tax grossed-up proxy from 2006 EDR application PILs model for the period from May 1, 2006 to April 30, 2007
A18: Large Corporation Tax grossed-up proxy from 2006 EDR application PILs model for the period from January 1, 2006 to April 30, 2006 (4/12ths of the approved grossed-up proxy), if not recorded in PILs account 1562
A19: Ontario Capital Tax rate decrease and increase in capital deduction for 2007
A20: Ontario Capital Tax rate decrease and increase in capital deduction for 2008
A21: Ontario Capital Tax rate decrease and increase in capital deduction for 2009
A22: Ontario Capital Tax rate decrease and increase in capital deduction for 2010
A23: Capital Cost Allowance class changes from 2006 EDR application for 2006
A24: Capital Cost Allowance class changes from 2006 EDR application for 2007
A25: Capital Cost Allowance class changes from 2006 EDR application for 2008
A26: Capital Cost Allowance class changes from 2006 EDR application for 2009
A27: Capital Cost Allowance class changes from 2006 EDR application for 2010
A28: Capital Cost Allowance class changes from 2006 EDR application for 2011
A29: Capital Cost Allowance class changes from any prior application not recorded above. Please provide details and explanation separately.
A30: Insert description of additional item(s) and new rows if needed.
A31: Total | E31: =SUM(E17:E30) -> 0
A33: Notes:
A35: 1 | B35: Revise the deferral and variance account continuity schedule to include account 1592 as a group 2 account and enter all relevant information for transactions, adjustments, etc., for all relevant years.
A38: 2 | B38: Describe each type of tax item that has been recorded in account 1592.
A40: 3 | B40: Provide the calculations that show how each item was determined and provide any pertinent supporting evidence and documentation.
A43: 4 | B43: Please state whether or not the applicant followed the guidance provided in the FAQ of July 2007. If not, please provide an explanation.
A46: 5 | B46: Identify the account balance as of December 31, 2011 as per the 2011 Audited Financial Statements. Identify the account balance as of December 31, 2011 as per the April 2012 2.1.7 RRR filing to the Board. Provide a reconciliation if the balances provided are not identical to each other and to the total shown on the continuity schedule.
A51: 6 | B51: Complete the above table based on the answers to the previous. Add rows as required to complete the analysis in an informative manner. Please provide the completed table as a working Excel spreadsheet.

Sheet App.2-OB_Debt Instruments
J1: File Number: | K1: 0
J2: Exhibit:
J3: Tab:
J4: Schedule:
J5: Page:
J7: Date:
A10: Appendix 2-OB
A11: Debt Instruments
A13: This table must be completed for the required years of all historical years, the bridge year and the test year.
D14: Year | E14: 2010
H15: As of Dec. 31st
A16: Row | B16: Description | C16: Lender | D16: Affiliated or Third-Party Debt? | E16: Fixed or Variable-Rate? | F16: Start Date | G16: Term (years) | H16: Principal ($) | I16: Rate (%) (Note 2) | J16: Interest ($) (Note 1) | K16: ACTUAL INTEREST EXPENSE
A17: 1 | B17: Convertible Promissory Note | C17: Town of Hawkesbury | D17: Third-Party | E17: Fixed Rate | F17: JANUARY 1, 2010 | G17: 1 | H17: 731714.52 | I17: 0.065 | J17: =+H17*I17 -> 47561.4438 | K17: 55273.71
A18: 2 | J18: 0
A19: 3 | J19: 0
A20: 4 | J20: 0
A21: 5 | J21: 0
A22: 6 | J22: 0
A23: 7 | J23: 0
A24: 8 | J24: 0
A25: 9 | J25: 0
A26: 10 | J26: 0
A27: 11 | J27: 0
A28: 12 | J28: 0
A30: Total | H30: 731714.52 | I30: 0.065 | J30: 47561.4438 | K30: 55273.71
D32: Year | E32: 2011
H33: As of Dec. 31st
A34: Row | B34: Description | C34: Lender | D34: Affiliated or Third-Party Debt? | E34: Fixed or Variable-Rate? | F34: Start Date | G34: Term (years) | H34: Principal ($) | I34: Rate (%) (Note 2) | J34: Interest ($) (Note 1) | K34: ACTUAL INTEREST EXPENSE
A35: 1 | B35: Convertible Promissory Note | C35: Town of Hawkesbury | D35: Third-Party | E35: Fixed Rate | F35: JANUARY 1, 2011 | G35: 1 | H35: 500289.76 | I35: 0.065 | J35: =+H35*I35 -> 32518.8344 | K35: 40747.61
A36: 2 | J36: 0
A37: 3 | J37: 0
A38: 4 | J38: 0
A39: 5 | J39: 0
A40: 6 | J40: 0
A41: 7 | J41: 0
A42: 8 | J42: 0
A43: 9 | J43: 0
A44: 10 | J44: 0
A45: 11 | J45: 0
A46: 12 | J46: 0
A48: Total | H48: 500289.76 | I48: 0.065 | J48: 32518.8344 | K48: 40747.61
D50: Year | E50: 2012
H51: As of Dec. 31st
A52: Row | B52: Description | C52: Lender | D52: Affiliated or Third-Party Debt? | E52: Fixed or Variable-Rate? | F52: Start Date | G52: Term (years) | H52: Principal ($) | I52: Rate (%) (Note 2) | J52: Interest ($) (Note 1) | K52: ACTUAL INTEREST EXPENSE
A53: 1 | B53: Convertible Promissory Note | C53: Town of Hawkesbury | D53: Third-Party | E53: Fixed Rate | F53: JANUARY 1, 2012 | G53: 1 | H53: 253366.06 | I53: 0.065 | J53: =+H53*I53 -> 16468.7939 | K53: 25248.66
A54: 2 | B54: SUB 44KV Loan | C54: Infrastructure Ontario | D54: Third-Party | E54: Fixed Rate | F54: JULY 16, 2012 | G54: 0.5 | H54: 741098.39 | I54: 0.0394 | J54: =+H54*I54 -> 29199.27657 | K54: 14702.21
A55: 3 | J55: 0
A56: 4 | J56: 0
A57: 5 | J57: 0
A58: 6 | J58: 0
A59: 7 | J59: 0
A60: 8 | J60: 0
A61: 9 | J61: 0
A62: 10 | J62: 0
A63: 11 | J63: 0
A64: 12 | J64: 0
A66: Total | H66: 994464.45 | I66: 0.04592227552 | J66: 45668.07047 | K66: 39950.87
D68: Year | E68: 2013
H69: As of Dec. 31st
A70: Row | B70: Description | C70: Lender | D70: Affiliated or Third-Party Debt? | E70: Fixed or Variable-Rate? | F70: Start Date | G70: Term (years) | H70: Principal ($) | I70: Rate (%) (Note 2) | J70: Interest ($) (Note 1) | K70: ACTUAL INTEREST EXPENSE
A71: 1 | B71: Convertible Promissory Note | C71: Town of Hawkesbury | D71: Third-Party | E71: Fixed Rate | F71: JANUARY 1, 2013 | G71: 1 | H71: 0 | I71: 0.065 | J71: =+H71*I71 -> 0 | K71: 8711.72
A72: 2 | B72: SUB 44KV Loan | C72: Town of Hawkesbury | D72: Third-Party | E72: Fixed Rate | F72: JANUARY 1, 2013 | G72: 1 | H72: 722761.24 | I72: 0.0394 | J72: =+H72*I72 -> 28476.79286 | K72: 28870.54
A73: 3 | B73: SUB 110KV Loan | C73: Town of Hawkesbury | D73: Third-Party | E73: Fixed Rate | F73: JULY 1, 2013 | G73: 1 | H73: 1483000 | I73: 0.0394 | J73: =(+H73*I73)/2 -> 29215.1 | K73: 28900
A74: 4 | J74: 0
A75: 5 | J75: 0
A76: 6 | J76: 0
A77: 7 | J77: 0
A78: 8 | J78: 0
A79: 9 | J79: 0
A80: 10 | J80: 0
A81: 11 | J81: 0
A82: 12 | J82: 0
A84: Total | H84: 2205761.24 | I84: 0.02615509413 | J84: 57691.89286 | K84: 66482.26
D86: Year | E86: 2014
H87: As of Dec. 31st
A88: Row | B88: Description | C88: Lender | D88: Affiliated or Third-Party Debt? | E88: Fixed or Variable-Rate? | F88: Start Date | G88: Term (years) | H88: Principal ($) | I88: Rate (%) (Note 2) | J88: Interest ($) (Note 1) | K88: ACTUAL INTEREST EXPENSE
A89: 1 | B89: SUB 44KV Loan | C89: Town of Hawkesbury | D89: Third-Party | E89: Fixed Rate | F89: JANUARY 1, 2014 | G89: 1 | H89: 703688.42 | I89: 0.0394 | J89: =+H89*I89 -> 27725.32375 | K89: 28134.82
A90: 2 | B90: SUB 110KV Loan | C90: Town of Hawkesbury | D90: Third-Party | E90: Fixed Rate | F90: JANUARY 1, 2014 | G90: 1 | H90: 1449000 | I90: 0.0394 | J90: =+H90*I90 -> 57090.6 | K90: 56400
A91: 3 | J91: 0
A92: 4 | J92: 0
A93: 5 | J93: 0
A94: 6 | J94: 0
A95: 7 | J95: 0
A96: 8 | J96: 0
A97: 9 | J97: 0
A98: 10 | J98: 0
A99: 11 | J99: 0
A100: 12 | J100: 0
A102: Total | H102: 2152688.42 | I102: 0.0394 | J102: 84815.92375 | K102: 84534.82
A106: Notes
A108: 1 | B108: If financing is in place only part of the year, calculate the pro-rated interest and input in the cell.
A109: 2 | B109: Input actual or deemed long-term debt rate in accordance with the guidelines in The Report of the Board on the Cost of Capital for Ontario's Regulated Utilities, issued December 11, 2009
A110: 3 | B110: Add more lines above row 12 if necessary.

Sheet App.2-OA CapStructure-CGAAP
K1: File Number: | O1: ='LDC Info'!$E$18 -> EB-2013-0139
K2: Exhibit: | O2: 5
K3: Tab: | O3: 1
K4: Schedule:
K5: Page:
K7: Date:
C10: Appendix 2-OA
C11: Capital Structure and Cost of Capital
A13: This table must be completed for the required years of all historical years, the bridge year and the test year.
A15: Line No.
C16: Particulars | E16: Capitalization Ratio | K16: Cost Rate | O16: Return
C19: Application
E20: (%) | I20: ($) | K20: (%) | O20: ($)
C21: Debt
A22: 1 | C22: Long-term Debt | E22: 0.56 | I22: =$I$31*E22 -> 3955803.916 | K22: 0.0412 | O22: =K22*I22 -> 162979.1213
A23: 2 | C23: Short-term Debt | E23: 0.04 | G23: (1) | I23: =$I$31*E23 -> 282557.4226 | K23: 0.0207 | O23: =K23*I23 -> 5848.938647
A24: 3 | C24: Total Debt | E24: =SUM(E22:E23) -> 0.6 | I24: =SUM(I22:I23) -> 4238361.339 | K24: =IF(E24=0,0,SUMPRODUCT(E22:E23,K22:K23)/E24) -> 0.03983333333 | O24: =SUM(O22:O23) -> 168828.06
C26: Equity
A27: 4 | C27: Common Equity | E27: 0.4 | I27: =$I$31*E27 -> 2825574.226 | K27: 0.0898 | O27: =K27*I27 -> 253736.5655
A28: 5 | C28: Preferred Shares | E28: 0 | I28: =$I$31*E28 -> 0 | K28: 0 | O28: =K28*I28 -> 0
A29: 6 | C29: Total Equity | E29: =SUM(E27:E28) -> 0.4 | I29: =SUM(I27:I28) -> 2825574.226 | K29: =IF(E29=0,0,SUMPRODUCT(E27:E28,K27:K28)/E29) -> 0.0898 | O29: =SUM(O27:O28) -> 253736.5655
A31: 7 | C31: Total | E31: 1 | I31: 7063935.564 | K31: =(K24*E24)+(K29*E29) -> 0.05982 | O31: =O24+O29 -> 422564.6255
C32: *Cost of Capital Parameter Updates for 2013 Cost of Service Applications for Rates Effective May 1, 2013
C34: 2013
C35: Application
E36: (%) | I36: ($) | K36: (%) | O36: ($)
C37: Debt
A38: 1 | C38: Long-term Debt | E38: 0.56 | I38: =I47*E38 -> 3489998.305 | K38: 0.0587 | O38: =K38*I38 -> 204862.9005
A39: 2 | C39: Short-term Debt | E39: 0.04 | G39: (1) | I39: =I47*E39 -> 249285.5932 | K39: 0.0207 | O39: =K39*I39 -> 5160.211779
A40: 3 | C40: Total Debt | E40: =SUM(E38:E39) -> 0.6 | I40: =SUM(I38:I39) -> 3739283.898 | K40: =IF(E40=0,0,SUMPRODUCT(E38:E39,K38:K39)/E40) -> 0.05616666667 | O40: =SUM(O38:O39) -> 210023.1123
C42: Equity
A43: 4 | C43: Common Equity | E43: 0.4 | I43: =I47*E43 -> 2492855.932 | K43: 0.0985 | O43: =K43*I43 -> 245546.3093
A44: 5 | C44: Preferred Shares | E44: 0 | I44: =$I$47*E44 -> 0 | K44: 0 | O44: =K44*I44 -> 0
A45: 6 | C45: Total Equity | E45: =SUM(E43:E44) -> 0.4 | I45: =SUM(I43:I44) -> 2492855.932 | K45: =IF(E45=0,0,SUMPRODUCT(E43:E44,K43:K44)/E45) -> 0.0985 | O45: =SUM(O43:O44) -> 245546.3093
A47: 7 | C47: Total | E47: 1 | I47: 6232139.83 | K47: =(K40*E40)+(K45*E45) -> 0.0731 | O47: =O40+O45 -> 455569.4216
C48: * Cost of Capital Parameter Updates for 2012 Cost of Service Applications for Rates Effective May 1, 2012
C50: 2012
C51: Application
E52: (%) | I52: ($) | K52: (%) | O52: ($)
C53: Debt
A54: 1 | C54: Long-term Debt | E54: 0.56 | I54: =I63*E54 -> 2126369.291 | K54: 0.0587 | O54: =K54*I54 -> 124817.8774
A55: 2 | C55: Short-term Debt | E55: 0.04 | G55: (1) | I55: =I63*E55 -> 151883.5208 | K55: 0.0207 | O55: =K55*I55 -> 3143.98888
A56: 3 | C56: Total Debt | E56: =SUM(E54:E55) -> 0.6 | I56: =SUM(I54:I55) -> 2278252.811 | K56: =IF(E56=0,0,SUMPRODUCT(E54:E55,K54:K55)/E56) -> 0.05616666667 | O56: =SUM(O54:O55) -> 127961.8662
C58: Equity
A59: 4 | C59: Common Equity | E59: 0.4 | I59: =I63*E59 -> 1518835.208 | K59: 0.0985 | O59: =K59*I59 -> 149605.2679
A60: 5 | C60: Preferred Shares | E60: 0 | I60: =$I$47*E60 -> 0 | K60: 0 | O60: =K60*I60 -> 0
A61: 6 | C61: Total Equity | E61: =SUM(E59:E60) -> 0.4 | I61: =SUM(I59:I60) -> 1518835.208 | K61: =IF(E61=0,0,SUMPRODUCT(E59:E60,K59:K60)/E61) -> 0.0985 | O61: =SUM(O59:O60) -> 149605.2679
A63: 7 | C63: Total | E63: 1 | I63: 3797088.019 | K63: =(K56*E56)+(K61*E61) -> 0.0731 | O63: =O56+O61 -> 277567.1342
C64: *Cost of Capital Parameter Updates for 2011 Cost of Service Applications for Rates Effective May 1 2011 for Rates Effective May 1, 2011
C66: 2011
C67: Application
E68: (%) | I68: ($) | K68: (%) | O68: ($)
C69: Debt
A70: 1 | C70: Long-term Debt | E70: 0.56 | I70: =I79*E70 -> 2005983.183 | K70: 0.0587 | O70: =K70*I70 -> 117751.2129
A71: 2 | C71: Short-term Debt | E71: 0.04 | G71: (1) | I71: =I79*E71 -> 143284.5131 | K71: 0.0207 | O71: =K71*I71 -> 2965.989421
A72: 3 | C72: Total Debt | E72: =SUM(E70:E71) -> 0.6 | I72: =SUM(I70:I71) -> 2149267.697 | K72: =IF(E72=0,0,SUMPRODUCT(E70:E71,K70:K71)/E72) -> 0.05616666667 | O72: =SUM(O70:O71) -> 120717.2023
C74: Equity
A75: 4 | C75: Common Equity | E75: 0.4 | I75: =I79*E75 -> 1432845.131 | K75: 0.0985 | O75: =K75*I75 -> 141135.2454
A76: 5 | C76: Preferred Shares | E76: 0 | I76: =$I$47*E76 -> 0 | K76: 0 | O76: =K76*I76 -> 0
A77: 6 | C77: Total Equity | E77: =SUM(E75:E76) -> 0.4 | I77: =SUM(I75:I76) -> 1432845.131 | K77: =IF(E77=0,0,SUMPRODUCT(E75:E76,K75:K76)/E77) -> 0.0985 | O77: =SUM(O75:O76) -> 141135.2454
A79: 7 | C79: Total | E79: 1 | I79: 3582112.827 | K79: =(K72*E72)+(K77*E77) -> 0.0731 | O79: =O72+O77 -> 261852.4477
C82: 2010
C83: Application
E84: (%) | I84: ($) | K84: (%) | O84: ($)
C85: Debt
A86: 1 | C86: Long-term Debt | E86: 0.56 | I86: =I95*E86 -> 2023375.149 | K86: 0.0587 | O86: =K86*I86 -> 118772.1212
A87: 2 | C87: Short-term Debt | E87: 0.04 | G87: (1) | I87: =I95*E87 -> 144526.7964 | K87: 0.0207 | O87: =K87*I87 -> 2991.704685
A88: 3 | C88: Total Debt | E88: =SUM(E86:E87) -> 0.6 | I88: =SUM(I86:I87) -> 2167901.945 | K88: =IF(E88=0,0,SUMPRODUCT(E86:E87,K86:K87)/E88) -> 0.05616666667 | O88: =SUM(O86:O87) -> 121763.8259
C90: Equity
A91: 4 | C91: Common Equity | E91: 0.4 | I91: =I95*E91 -> 1445267.964 | K91: 0.0985 | O91: =K91*I91 -> 142358.8944
A92: 5 | C92: Preferred Shares | E92: 0 | I92: =$I$47*E92 -> 0 | K92: 0 | O92: =K92*I92 -> 0
A93: 6 | C93: Total Equity | E93: =SUM(E91:E92) -> 0.4 | I93: =SUM(I91:I92) -> 1445267.964 | K93: =IF(E93=0,0,SUMPRODUCT(E91:E92,K91:K92)/E93) -> 0.0985 | O93: =SUM(O91:O92) -> 142358.8944
A95: 7 | C95: Total | E95: 1 | I95: 3613169.909 | K95: =(K88*E88)+(K93*E93) -> 0.0731 | O95: =O88+O93 -> 264122.7203

Sheet App.2-P_Cost_Allocation
E1: File Number: | F1: ='LDC Info'!$E$18 -> EB-2013-0139
E2: Exhibit:
E3: Tab:
E4: Schedule:
E5: Page:
E7: Date:
A9: Appendix 2-P
A10: Cost Allocation
A12: Please complete the following four tables.
A14: A) Allocated Costs
A16: Classes | B16: Costs Allocated from Previous Study | C16: % | D16: Costs Allocated in Test Year Study (Column 7A) | E16: %
A17: Residential | B17: 774573 | C17: =IF(B$28=0,"",B17/B$28) -> 0.5198863808 | D17: 1093425.421 | E17: =IF(D$28=0,"",D17/D$28) -> 0.6107279614
A18: GS < 50 kW | B18: 211822 | C18: =IF(B$28=0,"",B18/B$28) -> 0.1421730075 | D18: 216644.711 | E18: 0.1210059508
A19: GS > 50 kW (or 50 kW < GS < xxx kW, if applicable) | B19: 471811 | C19: 0.3166752691 | D19: 453272.3231 | E19: 0.2531732632
A20: GS > xxx kW, if applicable | C20: 0 | E20: 0
A21: Large User, if applicable | C21: 0 | E21: 0
A22: Street Lighting | B22: 29336 | C22: 0.01969005745 | D22: 24762.45026 | E22: 0.01383095772
A23: Sentinel Lighting | B23: 1498 | C23: 0.00100544403 | D23: 1186.579115 | E23: 0.0006627585477
A24: Unmetered Scattered Load (USL) | B24: 849 | C24: 0.000569841109 | D24: 1072.621983 | E24: 0.0005991082929
A25: Other class, if applicable | C25: 0 | E25: 0
C26: 0 | E26: 0
A27: Embedded distributor class | C27: 0 | E27: 0
A28: Total | B28: =SUM(B17:B27) -> 1489889 | C28: =SUM(C17:C27) -> 1 | D28: =SUM(D17:D27) -> 1790364.106 | E28: =SUM(E17:E27) -> 1
A30: Notes
A32: 1 Customer Classification - If proposed rate classes differ from those in place in the previous Cost Allocation study, modify the rate classes to match the current application as closely as possible.
A35: 2 Host Distributors - Provide information on embedded distributor(s) as a separate class, if applicable. If embedded distributor(s) are billed as customers in a General Service class, include the allocated cost and revenue of the embedded distributor(s) in the applicable class. Also complete Appendix 2-Q.
A39: 3 Class Revenue Requirements - If using the Board-issued model, in column 7A enter the results from Worksheet O-1, Revenue Requirement (row 40 in the 2013 model). This excludes costs in deferral and variance accounts. Note to Embedded Distributor(s), it also does not include Account 4750 - Low Voltage (LV) Costs.
A43: B) Calculated Class Revenues
C45: Column 7B | D45: Column 7C | E45: Column 7D | F45: Column 7E
A46: Classes (same as previous table) | C46: Load Forecast (LF) X current approved rates | D46: L.F. X current approved rates X (1 + d) | E46: LF X proposed rates | F46: Miscellaneous Revenue
A48: =A17 -> Residential | C48: 780597.7668 | D48: 1083335.772 | E48: 1053454.342 | F48: 124578
A49: GS < 50 kW | C49: 209020.8975 | D49: 273574.8553 | E49: 228362.7287 | F49: 16848
A50: GS > 50 kW (or 50 kW < GS < xxx kW, if applicable) | C50: 307750.3578 | D50: 389578.8686 | E50: 476217.0152 | F50: 11589
A51: GS > xxx kW, if applicable
A52: Large User, if applicable
A53: Street Lighting | C53: 30200.49415 | D53: 41022.31452 | E53: 29825.85683 | F53: 3929
A54: Sentinel Lighting | C54: 1328.59049 | D54: 1731.821806 | E54: 1429.781734 | F54: 100
A55: Unmetered Scattered Load (USL) | C55: 834.1671 | D55: 1119.55352 | E55: 1073.460993 | F55: 95
A56: Other class, if applicable
A58: =A27 -> Embedded distributor class
A59: =A28 -> Total | C59: =SUM(C48:C58) -> 1329732.274 | D59: =SUM(D48:D58) -> 1790363.185 | E59: =SUM(E48:E58) -> 1790363.185 | F59: =SUM(F48:F58) -> 157139
A61: Notes:
A63: 1 Columns 7B to 7D - LF means Load Forecast of Annual Billing Quantities (i.e. customers or connections X 12, (kWh or kW, as applicable). Revenue Quantities should be net of Transfomrer Ownership Allowance. Exclude revenue from rate adders and rate riders.
A66: 2 Columns 7C and 7D - Column total in each column should equal the Base Revenue Requirement
A68: 3 Columns 7C - The Board cost allocation model calculates "1+d" in worksheet O-1, cell C21. "d" is defined as Revenue Deficiency/ Revenue at Current Rates.
A71: 4 Columns 7E - If using the Board-issued Cost Allocation model, enter Miscellaneous Revenue as it appears in Worksheet O-1, row 19.
A74: C) Rebalancing Revenue-to-Cost (R/C) Ratios
A76: Class | C76: Previously Approved Ratios | D76: Status Quo Ratios | E76: Proposed Ratios | F76: Policy Range
C77: Most Recent Year: | D77: (7C + 7E) / (7A) | E77: (7D + 7E) / (7A)
C78: 20XX
C79: % | D79: % | E79: % | F79: %
A80: =A48 -> Residential | C80: 111 | D80: =IF(D17=0,"",(D48+F48)/D17*100) -> 110.4706136 | E80: =IF(D17=0,"",(E48+F48)/D17*100) -> 107.7377862 | F80: 85 - 115
A81: GS < 50 kW | C81: 111 | D81: =IF(D18=0,"",(D49+F49)/D18*100) -> 134.0549022 | E81: 113.185652 | F81: 80 - 120
A82: GS > 50 kW (or 50 kW < GS < xxx kW, if applicable) | C82: 80 | D82: 88.50482329 | E82: 107.6187515 | F82: 80 - 120
A83: GS > xxx kW, if applicable | F83: 80 - 120
A84: Large User, if applicable | F84: 85 - 115
A85: Street Lighting | C85: 70 | D85: 181.5301558 | E85: 136.3146881 | F85: 70 - 120
A86: Sentinel Lighting | C86: 120 | D86: 154.3783961 | E86: 128.923703 | F86: 80 - 120
A87: Unmetered Scattered Load (USL) | C87: 80 | D87: 113.2322048 | E87: 108.935022 | F87: 80 - 120
A88: Other class, if applicable
A90: =A58 -> Embedded distributor class
A92: Notes
A94: 1 Previously Approved Revenue-to-Cost Ratios - For most applicants, Most Recent Year would be the third year of the IRM 3 period, e.g. if the applicant rebased in 2009 with further adjustments over 2 years, the Most recent year is 2011. For applicants that have had rates adjusted only under IRM 2, the Most Recent Year is 2006, and the applicant should enter the ratios from their Informational Filing.
A97: 2 Status Quo Ratios - The Board's updated Cost Allocation Model yields the Status Quo Ratios in Worksheet O-1. Status Quo means "Before Rebalancing".
A99: D) Proposed Revenue-to-Cost Ratios
A101: Class | C101: Proposed Revenue-to-Cost Ratios | F101: Policy Range
C102: 2013 | D102: 2014 | E102: 2015
C103: % | D103: % | E103: % | F103: %
A104: =A80 -> Residential | C104: =E80 -> 107.7377862 | D104: 96 | F104: =F80 -> 85 - 115
A105: =A81 -> GS < 50 kW | C105: =E81 -> 113.185652 | D105: 105 | F105: =F81 -> 80 - 120
A106: GS > 50 kW (or 50 kW < GS < xxx kW, if applicable) | C106: 107.6187515 | D106: 105 | F106: 80 - 120
A107: GS > xxx kW, if applicable | D107: 100 | F107: 80 - 120
A108: Large User, if applicable | F108: 85 - 115
A109: Street Lighting | C109: 136.3146881 | D109: 120 | F109: 70 - 120
A110: Sentinel Lighting | C110: 128.923703 | D110: 120 | F110: 80 - 120
A111: Unmetered Scattered Load (USL) | C111: 108.935022 | D111: 100 | F111: 80 - 120
A112: Other class, if applicable | F112: =F88 -> 0
F113: =F89 -> 0
A114: Embedded distributor class
A116: Note
A117: 1 The applicant should complete Table D if it is applying for approval of a revenue to cost ratio in 2012 that is outside the Board’s policy range for any customer class. Table (d) will show the information that the distributor would likely enter in the IRM model) in 2013. In 2013 Table (d), enter the planned ratios for the classes that will be ‘Change’ and ‘No Change’ in 2013 (in the current Revenue Cost Ratio Adjustment Workform, Worksheet C1.1 ‘Decision – Cost Revenue Adjustment’, column d), and enter TBD for class(es) that will be entered as ‘Rebalance’.

Sheet App.2-Q_Cost of Serv. Emb. Dx (hidden)
F1: File Number: | G1: ='LDC Info'!$E$18 -> EB-2013-0139
F2: Exhibit:
F3: Tab:
F4: Schedule:
F5: Page:
F7: Date:
A9: Appendix 2-Q
A10: Cost of Serving Embedded Distributor(s)
A12: To be completed by Host Distributors*
A13: (Not required if Host Distributor has an Embedded Distributor rate class, i.e. a separate row in Appendix 2-P.)
A17: Proposed Rate Class for Billing Embedded Distributor(s)
A19: Host's Distribution Facilities used by Embedded Distributor(s)
A21: (1) | B21: (2) | C21: (3) | D21: (4) | E21: (5) | F21: (6) = '(3) + (4)
A22: Asset Class | B22: Total OM&A costs asociated with asset class | C22: Original cost of asset class | D22: Accumulated amortization of asset class | E22: Annual amortization of asset class | F22: Net Book Value of asset class
A23: Totals for Host Distributor: | B23: ($) | C23: ($) | D23: ($) | E23: ($)
A24: Distribution Stations | F24: =C24+D24 -> 0
A25: Low Voltage Line | F25: 0
A26: LV Line category # 2 (if applcable) | F26: 0
A27: TS (owned by host) | F27: 0
A28: add rows if necessary... | F28: 0
F29: 0
F30: 0
A32: (1) | B32: (7) | C32: (8) | D32: (9) | E32: (10) | F32: (11)
A33: =A22 -> Asset Class | B33: Total line length or station capacity in asset class | C33: Line length or capacity required to provide LV service to Embedded Distributor(s) | D33: Annual total demand on station/line providing LV services (sum of 12 monthly peaks) | E33: Annual billed Embedded Distributor demand on station/line providing LV services | F33: Embedded Distributor(s)' Responsibility Share
A34: Embedded Distributor's share: | B34: kW or kVa; km | C34: kW or kVA; km | D34: kW or kVA | E34: kW or kVA | F34: percent
A35: Distribution Stations | F35: =IF(D35=0,0,(C35/B35)*(E35/D35)) -> 0
A36: Low Voltage Line | F36: =IF(D36=0,0,(C36/B36)*(E36/D36)) -> 0
A37: LV Line # 2 (if applicable) | F37: =IF(D37=0,0,(C37/B37)*(E37/D37)) -> 0
A38: TS (owned by host) | F38: =IF(D38=0,0,(C38/B38)*(E38/D38)) -> 0
A39: add rows if necessary | F39: =IF(D39=0,0,(C39/B39)*(E39/D39)) -> 0
A41: (1) | B41: (12) | C41: (12a) | D41: (13) | E41: (14) | F41: (15) | G41: (16)
A42: =A33 -> Asset Class | B42: Return on Assets used to Provide LV services | C42: Taxes/PILs | D42: Annual amortization on assets used to provide LV services | E42: OM&A costs with burden associated with assets used to provide LV services | F42: Total annual cost associated with assets used to provide LV services | G42: Monthly cost associated with the delivery of LV services
B43: ($) | C43: ($) | D43: ($) | E43: ($) | F43: ($) | G43: $/kW or $/kVA
A44: Distribution Stations | B44: =E$55*(F24+B24*E$60)*F35 -> 0 | C44: =(B44-(B$55*C$55*F35*(F24+B24*E58)+B$56*C$56*F35*(F24+B24*E$58)))*E$58/(1-E$58) -> 0 | D44: =E24*F35 -> 0 | E44: =B24*F35 -> 0 | F44: =SUM(B44:E44) -> 0 | G44: =IF(E35=0,0,(D44/E35)) -> 0
A45: Low Voltage Line | B45: =E$55*(F25+B25*E$60)*F36 -> 0 | C45: =(B45-(B$55*C$55*F36*(F25+B25*E59)+B$56*C$56*F36*(F25+B25*E59)))*E$58/(1-E$58) -> 0 | D45: =E25*F36 -> 0 | E45: =B25*F36 -> 0 | F45: =SUM(B45:E45) -> 0 | G45: =IF(E36=0,0,(D45/E36)) -> 0
A46: LV Line # 2 (if applicable) | B46: =E$55*(F26+B26*E$60)*F37 -> 0 | C46: =(B46-(B$55*C$55*F37*(F26+B26*E60)+B$56*C$56*F37*(F26+B26*E$60)))*E$58/(1-E$58) -> 0 | D46: =E26*F37 -> 0 | E46: =B26*F37 -> 0 | F46: =SUM(B46:E46) -> 0 | G46: =IF(E37=0,0,(D46/E37)) -> 0
A47: TS (owned by host) | B47: =E$55*(F27+B27*E$60)*F38 -> 0 | C47: =(B47-(B$55*C$55*F38*(F27+B27*E61)+B$56*C$56*F38*(F27+B27*E61)))*E$58/(1-E$58) -> 0 | D47: =E27*F38 -> 0 | E47: =B27*F38 -> 0 | F47: =SUM(B47:E47) -> 0 | G47: =IF(E38=0,0,(D47/E38)) -> 0
A48: add rows if necessary | B48: =E$55*(F28+B28*E$60)*F39 -> 0 | C48: =(B48-(B$55*C$55*F39*(F28+B28*I62)+B$56*C$56*F39*(F28+B28*I62)))*E$58/(1-E$58) -> 0 | D48: =E28*F39 -> 0 | E48: =B28*F39 -> 0 | F48: =SUM(B48:E48) -> 0 | G48: =IF(E39=0,0,(D48/E39)) -> 0
A50: Total | F50: =SUM(F44:F48) -> 0 | G50: =SUM(G44:G48) -> 0
A52: (17) | B52: (18) | C52: (19) | D52: (20) | E52: (21)
B53: Capital Structure | C53: Cost Rate
B54: (%) | C54: (%) | E54: (%)
A55: Long-Term Debt | D55: Weighted Average Cost of Capital | E55: =IF(B61=0%,0,SUMPRODUCT(B55:B59,C55:C59)/B61) -> 0
A56: Short-term Debt
A58: Common Equity | D58: Tax/PILs Rate
A59: Preferred Shares
D60: Working Capital Allowance Factor
A61: Total | B61: =SUM(B55:B59) -> 0

Sheet App.2-S_Stranded Meters
G1: File Number: | H1: ='LDC Info'!$E$18 -> EB-2013-0139
G2: Exhibit:
G3: Tab:
G4: Schedule:
G5: Page:
G7: Date:
A9: Appendix 2-S
A10: Stranded Meter Treatment
A12: Year | B12: Notes | C12: Gross Asset Value | D12: Accumulated Amortization | E12: Contributed Capital (Net of Amortization) | F12: Net Asset | G12: Proceeds on Disposition | H12: Residual Net Book Value
C13: (A) | D13: (B) | E13: (C) | F13: (D ) = (A) - (B) - (C) | G13: (E) | H13: (F) = (D) - (E)
A14: 2006 | C14: 221805.19 | D14: 95458.19 | F14: =C14-D14-E14 -> 126347 | H14: =F14-G14 -> 126347
A15: 2007 | C15: 222885.19 | D15: 110272.19 | F15: 112613 | H15: 112613
A16: 2008 | C16: 224821.63 | D16: 125119.63 | F16: 99702 | H16: 99702
A17: 2009 | C17: 246912.13 | D17: 140473.13 | F17: 106439 | H17: 106439
A18: 2010 | C18: 246912.13 | D18: 156129.13 | F18: 90783 | H18: 90783
A19: 2011 | C19: 254708.77 | D19: 171535.13 | F19: 83173.64 | H19: 83173.64
A20: 2012 | B20: (1) | C20: 254843.38 | D20: 184288.13 | F20: 70555.25 | H20: 70555.25
A21: 2013 | C21: 254843.38 | D21: 193343.13 | F21: 61500.25 | H21: 61500.25
A23: Notes:
A25: (1) | B25: For 2012, please indicate whether the amounts provided are on a forecast or actual basis.
A27: Some distributors have transferred the cost of stranded meters from Account 1860 - Meters to "Sub-account Stranded Meter Costs of Account 1555", while in some cases distributors have left these costs in Account 1860. Depending on which treatment the applicant has chosen. please provide the information under either of the two scenarios (A and B below), as applicable.
A32: Scenario A: If the stranded meter costs were transferred to "Sub-account Stranded Meter Costs" of Account 1555, the above table should be completed and the following information should be provided.
A35: 1 | B35: A description of the accounting treatment followed by the applicant on stranded meter costs for financial accounting and reporting purposes.
A38: 2 | B38: The amount of the pooled residual net book value of the removed from service stranded meters, less any contributed capital (net of accumulated amortization), and less any net proceeds from sales, which were transferred to this sub-account as of December 31, 2010.
A42: 3 | B42: A statement as to whether or not, since transferring the removed stranded meter costs to the sub-account, the recording of depreciation expenses was continued in order to reduce the net book value through accumulated depreciation. If so, the total depreciation expense amount for the period from the time the costs for the stranded meters were transferred to the sub-account to December 31, 2010 should be provided.
B47: If no depreciation expenses were recorded to reduce the net book value of stranded meter costs through accumulated depreciation, the total depreciation expense amount that would have been applicable from the time that the stranded meter costs were transferred to the sub-account of Account 1555 to December 31, 2010 should be provided. In addition, the following information should be provided:
B52: a) | C52: Whether or not carrying charges were recorded for the stranded meter cost balances in the sub-account, and if so, the total carrying charges recorded to December 31, 2010.
B55: b) | C55: The estimated amount of the pooled residual net book value of the removed from service meters, less any net proceeds from sales and contributed capital, at the time when the smart meters will have been fully deployed (e.g., as of December 31, 2010). If the smart meters have been fully deployed, the actual amount should be provided.
B60: c) | C60: A description as to how the applicant intends to recover in rates the remaining costs for stranded meters, including the proposed accounting treatment, the proposed disposition period, and the associated bill impacts.
A64: Scenario B: If the stranded meter costs remained recorded in Account 1860, the above table should be completed and the following information should be provided:
A67: 1 | B67: A description of the accounting treatment followed by the applicant on stranded meter costs for financial accounting and reporting purposes.
A70: 2 | B70: The amount of the pooled residual net book value of the removed from service stranded meters, less any contributed capital (net of accumulated amortization), and less any net proceeds from sales, as of December 31, 2010.
A74: 3 | B74: A statement as to whether or not the recording of depreciation expenses continued in order to reduce the net book value through accumulated depreciation. If so, provision of the total (cumulative) depreciation expense for the period from the time that the meters became stranded to December 31, 2010.
A78: 4 | B78: If no depreciation expenses were recorded to reduce the net book value of stranded meters through accumulated depreciation, the total (cumulative) depreciation expense amount that would have been applicable for the period from the time that the meters became stranded to December 31, 2010.
A82: 5 | B82: The estimated amount of the pooled residual net book value of the removed from service meters, less any net proceeds from sales and contributed capital, at the time when smart meters will have been fully deployed. If the smart meters have been fully deployed, please provide the actual amount.
A86: 6 | B86: A description as to how the applicant intends to recover in rates the costs for stranded meters, including the proposed accounting treatment, the proposed disposition period and the associated bill impacts.
A89: Distributors should also provide the Net Book Value per class of meter as of December 31, 2010 as well as the number of meters that were removed / stranded. In preparing this information, distributors should review the Board's letter of January 16, 2007 Stranded Meter Costs Related to the Installation of Smart Meters which stated that records were to be kept of the type and number of each meter to support the stranded meter costs.

Sheet App.2-U_IFRS Transition Costs
M1: File Number: | N1: ='LDC Info'!$E$18 -> EB-2013-0139
M2: Exhibit:
M3: Tab:
M4: Schedule:
M5: Page:
M7: Date:
A9: Appendix 2-U
A10: One-Time Incremental IFRS Transition Costs
A12: The following table should be completed based on the information requested below. An explanation should be provided for any blank entries. The entries should include one-time incremental IFRS transition costs that are currently included in Account 1508, Other Regulatory Assets, sub-account Deferred IFRS Transition Costs Account, or Account 1508, Other Regulatory Assets, sub-account IFRS Transition Costs Variance Account.
A14: Nature of One-Time Incremental IFRS Transition Costs 1 | E14: Audited Actual | F14: Audited Actual | G14: Audited Actual | H14: Audited Carrying | I14: Total Audited | J14: Audited Actual | K14: Audited Carrying | L14: Total Audited | M14: RRR 2.1.7 | N14: Variance 2 | O14: Reasons why the costs recorded meet the criteria of one-time IFRS administrative incremental costs
E15: Costs Incurred | F15: Costs Incurred | G15: Costs Incurred | H15: Charges | I15: Actual Costs | J15: Costs Incurred | K15: Charges | L15: Actual Costs | M15: Balance
E16: 2009 | F16: 2010 | G16: 2011 | H16: to Dec 31, 2011 | I16: to Dec 31, 2011 | J16: 2012 | K16: to Dec 31, 2012 | L16: to Dec 31, 2012 | M16: 2012-12-31
A17: professional accounting fees | I17: 0 | J17: 4066 | K17: 52.68 | L17: =SUM(J17:K17) -> 4118.68
A18: professional legal fees | I18: 0 | L18: =SUM(E18:H18) -> 0
A19: salaries, wages and benefits of staff added to support the transition to IFRS | I19: 0 | L19: 0
A20: associated staff training and development costs | G20: 1038.17 | H20: 5.45 | I20: 1043.62 | L20: 0
A21: costs related to system upgrades, or replacements or changes where IFRS was the major reason for conversion | I21: 0 | L21: 0
I22: 0 | L22: 0
I23: 0 | L23: 0
I24: 0 | L24: 0
I25: 0 | L25: 0
I26: 0 | L26: 0
I27: 0 | L27: 0
I28: 0 | L28: 0
A29: Insert description of additional item(s) and new rows if needed. | I29: 0 | L29: 0
A30: Total | E30: =SUM(E17:E29) -> 0 | F30: =SUM(F17:F29) -> 0 | G30: =SUM(G17:G29) -> 1038.17 | H30: =SUM(H17:H29) -> 5.45 | I30: 1043.62 | L30: =SUM(L17:L29) -> 4118.68 | M30: =5104.17+5.45+52.68 -> 5162.3 | N30: =+I30+L30-M30 -> 0
A33: Note:
A34: 1 | B34: The Deferred IFRS Transition Costs Account and the IFRS Transition Costs Variance Account are exclusively for necessary, incremental transition costs and shall not include ongoing IFRS compliance costs or impacts arising from adopting accounting policy changes that reflect changes in the timing of the recognition of income. The incremental costs in these accounts shall not include costs related to system upgrades, or replacements or changes where IFRS was not the major reason for conversion. In addition, incremental IFRS costs shall not include capital assets or expenditures.
A36: 2 | B36: Applicants are to provide an explanation of material variances in evidence

Sheet App.2-V_Rev_Reconciliation
O1: File Number: | P1: ='LDC Info'!$E$18
O2: Exhibit: | P2: 8
O3: Tab: | P3: 1
O4: Schedule: | P4: 5
O5: Page:
O7: Date:
A9: Appendix 2-V
A10: Revenue Reconciliation
A12: Rate Class | B12: Customers/ Connections | C12: Number of Customers/Connections | F12: Test Year Consumption | H12: Proposed Rates | K12: Revenues at Proposed Rates | M12: Class Specific Revenue Requirement | N12: Transformer Allowance Credit | O12: Total | P12: Difference
C13: Start of Test Year | D13: End of Test Year | E13: Average | F13: kWh | G13: kW | H13: Monthly Service Charge | I13: Volumetric
I14: kWh | J14: kW
A16: Residential | B16: Customers | C16: 4950 | D16: 4950 | E16: 4950 | F16: 52443428 | H16: 10 | I16: 0.006385477739 | K16: =H16*E16*12+I16*F16+J16*G16 -> 928876.3421 | M16: 928876.3421 | O16: =SUM(M16:N16) -> 928876.3421 | P16: =O16-K16 -> 0
A17: GS < 50 kW | B17: Customers | C17: 634 | D17: 634 | E17: 634 | F17: 18859305 | H17: 15 | I17: 0.005164279844 | K17: =H17*E17*12+I17*F17+J17*G17 -> 211514.7287 | M17: 211514.7287 | O17: 211514.7287 | P17: 0
A18: GS > 50 to 4,999 kW | B18: Customers | C18: 98 | D18: 98 | E18: 98 | F18: 0 | G18: 197191 | H18: 97.35 | J18: 2.351361954 | K18: =H18*E18*12+I18*F18+J18*G18 -> 578151.0152 | M18: 464628.0152 | N18: 113523 | O18: 578151.0152 | P18: 0
E19: 0 | K19: 0 | O19: 0 | P19: 0
A20: Streetlighting | B20: Connections | C20: 1215 | D20: 1215 | E20: 1215 | G20: 3123.655844 | H20: 1 | J20: 3.622952526 | K20: 25896.85683 | M20: 25896.85683 | O20: 25896.85683 | P20: 0
A21: Sentinel Lighting | B21: Connections | C21: 21 | D21: 21 | E21: 21 | G21: 284.2900697 | H21: 3 | J21: 2.018296785 | K21: 1329.781734 | M21: 1329.781734 | O21: 1329.781734 | P21: 0
A22: Unmetered Scattered Load | B22: Customers | C22: 5 | D22: 5 | E22: 5 | F22: 214651 | H22: 8.5 | I22: 0.002182430984 | K22: 978.4609932 | M22: 978.4609932 | O22: 978.4609932 | P22: 0
E23: =IF(SUM(C23:D23)=0,0,AVERAGE(C23:D23)) -> 0 | K23: 0 | O23: 0 | P23: 0
E24: 0 | K24: 0 | O24: 0 | P24: 0
E25: 0 | K25: 0 | O25: 0 | P25: 0
E26: 0 | K26: 0 | O26: 0 | P26: 0
E27: 0 | K27: 0 | O27: 0 | P27: 0
E28: 0 | K28: 0 | O28: 0 | P28: 0
A30: Total | K30: =SUM(K16:K28) -> 1746747.185 | M30: =SUM(M16:M28) -> 1633224.185 | N30: =SUM(N16:N28) -> 113523 | O30: =M30+N30 -> 1746747.185 | P30: =O30-K30 -> 0
A32: Note
A34: 1 The class specific revenue requirements in column N must be the amounts used in the final rate design process. The total of column N should equate to the proposed base revenue requirement

Sheet DVA Riders
D1: File Number:
D2: Exhibit:
D3: Tab:
D4: Schedule:
D5: Page:
D7: Date:
A9: TESI-9
A10: Rate Rider Calculation for Deferral / Variance Accounts Balances (excluding Global Adj.)
A13: Please indicate the Rate Rider Recovery Period (in years) | C13: 1
A17: Rate Class (Enter Rate Classes in cells below) | B17: Units | C17: kW / kWh / # of Customers | D17: Allocated Balance (excluding 1588 sub-account) | E17: Rate Rider for Deferral/Variance Accounts
A19: Residential | B19: kWh | C19: 51132834 | D19: -43993.44935 | E19: -0.0008603757294 | F19: =IF(B19="", "", IF(B19="# of Customers", "per customer per month", "$/"&B19)) -> $/kWh
A20: GS<50 | B20: kWh | C20: 18531353 | D20: -18687.83259 | E20: -0.001008444046 | F20: =IF(B20="", "", IF(B20="# of Customers", "per customer per month", "$/"&B20)) -> $/kWh
A21: GS>50 | B21: kW | C21: 206640 | D21: -88856.57317 | E21: -0.4300066452 | F21: $/kW
A22: USL | B22: kWh | C22: 214901 | D22: -233.383972 | E22: -0.001086006915 | F22: $/kWh
A23: Sentinel | B23: kW | C23: 284 | D23: -76.67059263 | E23: -0.2699668755 | F23: $/kW
A24: Street Lights | B24: kW | C24: 3751 | D24: 567.4896649 | E24: 0.1512902332 | F24: $/kW
A39: Total
A42: Rate Rider Calculation for RSVA - Power - Sub-account - Global Adjustment
A44: Rate Class (Enter Rate Classes in cells below) | B44: Units | C44: kW / kWh / # of Customers | D44: Balance of RSVA - Power - Sub-account - Global Adjustment | E44: Rate Rider for RSVA - Power - Sub-account - Global Adjustment
A46: Residential | B46: kWh | C46: 2604189 | D46: 8638.718513 | E46: 0.00331723946 | F46: =IF(B46="", "", IF(B46="# of Customers", "per customer per month", "$/"&B46)) -> $/kWh
A47: GS<50 | B47: kWh | C47: 70374 | D47: 233.4474098 | E47: 0.00331723946 | F47: =IF(B47="", "", IF(B47="# of Customers", "per customer per month", "$/"&B47)) -> $/kWh
